Workbook

Sheet entry data
B2: Loans and Leases Register | I2: Designed by: 2013 © SmarteKits.com
B3: (Sample Version - interest rate locked at 12.60%) | I3: Premium version: | K3: click here to buy
B5: Enter Details:
B7: Loan No | C7: Loan Name | D7: Start Date | E7: Repayment frequency | F7: Purchase Value | G7: Residual Value | H7: Term (max=9000) | I7: in | J7: Interest rate (p.a.) | K7: Repayment payable in | L7: Repayment Amount
B8: 1 | C8: Car Loan | D8: 2013-06-18 | E8: fortnightly | F8: 18000 | G8: 0 | H8: 78 | I8: =IF(ISERROR(VLOOKUP(E8,index!A:B,2,0)),"",VLOOKUP(E8,index!A:B,2,0)) -> fortnights | J8: =IF(C8<>"",0.126,"") -> 0.126 | K8: advance | L8: =IF(K8="","",-PMT(J8*VLOOKUP(I8,index!B:C,2,0),'entry data'!H8,'entry data'!F8,-G8,VLOOKUP(K8,index!G:H,2,0))) -> 276.2071848
B9: =IF(C9<>"",B8+1,"") -> 2 | C9: Hire Purchase 1 | D9: 2012-08-26 | E9: monthly | F9: 7000 | G9: 0 | H9: 72 | I9: =IF(ISERROR(VLOOKUP(E9,index!A:B,2,0)),"",VLOOKUP(E9,index!A:B,2,0)) -> months | J9: =IF(C9<>"",0.126,"") -> 0.126 | K9: arrears | L9: =IF(K9="","",-PMT(J9*VLOOKUP(I9,index!B:C,2,0),'entry data'!H9,'entry data'!F9,-G9,VLOOKUP(K9,index!G:H,2,0))) -> 139.0452636
B10: =IF(C10<>"",B9+1,"") -> 3 | C10: Inventory Loan | D10: 2011-07-20 | E10: weekly | F10: 15000 | G10: 0 | H10: 312 | I10: =IF(ISERROR(VLOOKUP(E10,index!A:B,2,0)),"",VLOOKUP(E10,index!A:B,2,0)) -> weeks | J10: 0.126 | K10: advance | L10: =IF(K10="","",-PMT(J10*VLOOKUP(I10,index!B:C,2,0),'entry data'!H10,'entry data'!F10,-G10,VLOOKUP(K10,index!G:H,2,0))) -> 68.34644124
B11: 4 | C11: Lease 2 - Truck | D11: 2012-06-04 | E11: monthly | F11: 150000 | G11: 10000 | H11: 60 | I11: =IF(ISERROR(VLOOKUP(E11,index!A:B,2,0)),"",VLOOKUP(E11,index!A:B,2,0)) -> months | J11: 0.126 | K11: arrears | L11: =IF(K11="","",-PMT(J11*VLOOKUP(I11,index!B:C,2,0),'entry data'!H11,'entry data'!F11,-G11,VLOOKUP(K11,index!G:H,2,0))) -> 3261.836738
B12: 5 | C12: Lease 2 - Vehicle | D12: 2013-02-17 | E12: monthly | F12: 28000 | G12: 5000 | H12: 84 | I12: =IF(ISERROR(VLOOKUP(E12,index!A:B,2,0)),"",VLOOKUP(E12,index!A:B,2,0)) -> months | J12: 0.126 | K12: arrears | L12: =IF(K12="","",-PMT(J12*VLOOKUP(I12,index!B:C,2,0),'entry data'!H12,'entry data'!F12,-G12,VLOOKUP(K12,index!G:H,2,0))) -> 465.9297457
I13: =IF(ISERROR(VLOOKUP(E13,index!A:B,2,0)),"",VLOOKUP(E13,index!A:B,2,0)) ->  | L13: =IF(K13="","",-PMT(J13*VLOOKUP(I13,index!B:C,2,0),'entry data'!H13,'entry data'!F13,-G13,VLOOKUP(K13,index!G:H,2,0))) -> 
I14: =IF(ISERROR(VLOOKUP(E14,index!A:B,2,0)),"",VLOOKUP(E14,index!A:B,2,0)) ->  | L14: =IF(K14="","",-PMT(J14*VLOOKUP(I14,index!B:C,2,0),'entry data'!H14,'entry data'!F14,-G14,VLOOKUP(K14,index!G:H,2,0))) -> 
I15: =IF(ISERROR(VLOOKUP(E15,index!A:B,2,0)),"",VLOOKUP(E15,index!A:B,2,0)) ->  | L15: =IF(K15="","",-PMT(J15*VLOOKUP(I15,index!B:C,2,0),'entry data'!H15,'entry data'!F15,-G15,VLOOKUP(K15,index!G:H,2,0))) -> 
I16: =IF(ISERROR(VLOOKUP(E16,index!A:B,2,0)),"",VLOOKUP(E16,index!A:B,2,0)) ->  | L16: =IF(K16="","",-PMT(J16*VLOOKUP(I16,index!B:C,2,0),'entry data'!H16,'entry data'!F16,-G16,VLOOKUP(K16,index!G:H,2,0))) -> 
I17: =IF(ISERROR(VLOOKUP(E17,index!A:B,2,0)),"",VLOOKUP(E17,index!A:B,2,0)) ->  | L17: =IF(K17="","",-PMT(J17*VLOOKUP(I17,index!B:C,2,0),'entry data'!H17,'entry data'!F17,-G17,VLOOKUP(K17,index!G:H,2,0))) -> 
I18: =IF(ISERROR(VLOOKUP(E18,index!A:B,2,0)),"",VLOOKUP(E18,index!A:B,2,0)) ->  | L18: =IF(K18="","",-PMT(J18*VLOOKUP(I18,index!B:C,2,0),'entry data'!H18,'entry data'!F18,-G18,VLOOKUP(K18,index!G:H,2,0))) -> 
I19: =IF(ISERROR(VLOOKUP(E19,index!A:B,2,0)),"",VLOOKUP(E19,index!A:B,2,0)) ->  | L19: =IF(K19="","",-PMT(J19*VLOOKUP(I19,index!B:C,2,0),'entry data'!H19,'entry data'!F19,-G19,VLOOKUP(K19,index!G:H,2,0))) -> 
I20: =IF(ISERROR(VLOOKUP(E20,index!A:B,2,0)),"",VLOOKUP(E20,index!A:B,2,0)) ->  | L20: =IF(K20="","",-PMT(J20*VLOOKUP(I20,index!B:C,2,0),'entry data'!H20,'entry data'!F20,-G20,VLOOKUP(K20,index!G:H,2,0))) -> 
I21: =IF(ISERROR(VLOOKUP(E21,index!A:B,2,0)),"",VLOOKUP(E21,index!A:B,2,0)) ->  | L21: =IF(K21="","",-PMT(J21*VLOOKUP(I21,index!B:C,2,0),'entry data'!H21,'entry data'!F21,-G21,VLOOKUP(K21,index!G:H,2,0))) -> 
I22: =IF(ISERROR(VLOOKUP(E22,index!A:B,2,0)),"",VLOOKUP(E22,index!A:B,2,0)) ->  | L22: =IF(K22="","",-PMT(J22*VLOOKUP(I22,index!B:C,2,0),'entry data'!H22,'entry data'!F22,-G22,VLOOKUP(K22,index!G:H,2,0))) -> 
I23: =IF(ISERROR(VLOOKUP(E23,index!A:B,2,0)),"",VLOOKUP(E23,index!A:B,2,0)) ->  | L23: =IF(K23="","",-PMT(J23*VLOOKUP(I23,index!B:C,2,0),'entry data'!H23,'entry data'!F23,-G23,VLOOKUP(K23,index!G:H,2,0))) -> 
I24: =IF(ISERROR(VLOOKUP(E24,index!A:B,2,0)),"",VLOOKUP(E24,index!A:B,2,0)) ->  | L24: =IF(K24="","",-PMT(J24*VLOOKUP(I24,index!B:C,2,0),'entry data'!H24,'entry data'!F24,-G24,VLOOKUP(K24,index!G:H,2,0))) -> 
I25: =IF(ISERROR(VLOOKUP(E25,index!A:B,2,0)),"",VLOOKUP(E25,index!A:B,2,0)) ->  | L25: =IF(K25="","",-PMT(J25*VLOOKUP(I25,index!B:C,2,0),'entry data'!H25,'entry data'!F25,-G25,VLOOKUP(K25,index!G:H,2,0))) -> 
I26: =IF(ISERROR(VLOOKUP(E26,index!A:B,2,0)),"",VLOOKUP(E26,index!A:B,2,0)) ->  | L26: =IF(K26="","",-PMT(J26*VLOOKUP(I26,index!B:C,2,0),'entry data'!H26,'entry data'!F26,-G26,VLOOKUP(K26,index!G:H,2,0))) -> 
I27: =IF(ISERROR(VLOOKUP(E27,index!A:B,2,0)),"",VLOOKUP(E27,index!A:B,2,0)) ->  | L27: =IF(K27="","",-PMT(J27*VLOOKUP(I27,index!B:C,2,0),'entry data'!H27,'entry data'!F27,-G27,VLOOKUP(K27,index!G:H,2,0))) -> 
I28: =IF(ISERROR(VLOOKUP(E28,index!A:B,2,0)),"",VLOOKUP(E28,index!A:B,2,0)) ->  | L28: =IF(K28="","",-PMT(J28*VLOOKUP(I28,index!B:C,2,0),'entry data'!H28,'entry data'!F28,-G28,VLOOKUP(K28,index!G:H,2,0))) -> 
I29: =IF(ISERROR(VLOOKUP(E29,index!A:B,2,0)),"",VLOOKUP(E29,index!A:B,2,0)) ->  | L29: =IF(K29="","",-PMT(J29*VLOOKUP(I29,index!B:C,2,0),'entry data'!H29,'entry data'!F29,-G29,VLOOKUP(K29,index!G:H,2,0))) -> 
I30: =IF(ISERROR(VLOOKUP(E30,index!A:B,2,0)),"",VLOOKUP(E30,index!A:B,2,0)) ->  | L30: =IF(K30="","",-PMT(J30*VLOOKUP(I30,index!B:C,2,0),'entry data'!H30,'entry data'!F30,-G30,VLOOKUP(K30,index!G:H,2,0))) -> 
I31: =IF(ISERROR(VLOOKUP(E31,index!A:B,2,0)),"",VLOOKUP(E31,index!A:B,2,0)) ->  | L31: =IF(K31="","",-PMT(J31*VLOOKUP(I31,index!B:C,2,0),'entry data'!H31,'entry data'!F31,-G31,VLOOKUP(K31,index!G:H,2,0))) -> 
I32: =IF(ISERROR(VLOOKUP(E32,index!A:B,2,0)),"",VLOOKUP(E32,index!A:B,2,0)) ->  | L32: =IF(K32="","",-PMT(J32*VLOOKUP(I32,index!B:C,2,0),'entry data'!H32,'entry data'!F32,-G32,VLOOKUP(K32,index!G:H,2,0))) -> 
I33: =IF(ISERROR(VLOOKUP(E33,index!A:B,2,0)),"",VLOOKUP(E33,index!A:B,2,0)) ->  | L33: =IF(K33="","",-PMT(J33*VLOOKUP(I33,index!B:C,2,0),'entry data'!H33,'entry data'!F33,-G33,VLOOKUP(K33,index!G:H,2,0))) -> 
I34: =IF(ISERROR(VLOOKUP(E34,index!A:B,2,0)),"",VLOOKUP(E34,index!A:B,2,0)) ->  | L34: =IF(K34="","",-PMT(J34*VLOOKUP(I34,index!B:C,2,0),'entry data'!H34,'entry data'!F34,-G34,VLOOKUP(K34,index!G:H,2,0))) -> 
I35: =IF(ISERROR(VLOOKUP(E35,index!A:B,2,0)),"",VLOOKUP(E35,index!A:B,2,0)) ->  | L35: =IF(K35="","",-PMT(J35*VLOOKUP(I35,index!B:C,2,0),'entry data'!H35,'entry data'!F35,-G35,VLOOKUP(K35,index!G:H,2,0))) -> 
I36: =IF(ISERROR(VLOOKUP(E36,index!A:B,2,0)),"",VLOOKUP(E36,index!A:B,2,0)) ->  | L36: =IF(K36="","",-PMT(J36*VLOOKUP(I36,index!B:C,2,0),'entry data'!H36,'entry data'!F36,-G36,VLOOKUP(K36,index!G:H,2,0))) -> 
I37: =IF(ISERROR(VLOOKUP(E37,index!A:B,2,0)),"",VLOOKUP(E37,index!A:B,2,0)) ->  | L37: =IF(K37="","",-PMT(J37*VLOOKUP(I37,index!B:C,2,0),'entry data'!H37,'entry data'!F37,-G37,VLOOKUP(K37,index!G:H,2,0))) -> 
I38: =IF(ISERROR(VLOOKUP(E38,index!A:B,2,0)),"",VLOOKUP(E38,index!A:B,2,0)) ->  | L38: =IF(K38="","",-PMT(J38*VLOOKUP(I38,index!B:C,2,0),'entry data'!H38,'entry data'!F38,-G38,VLOOKUP(K38,index!G:H,2,0))) -> 
I39: =IF(ISERROR(VLOOKUP(E39,index!A:B,2,0)),"",VLOOKUP(E39,index!A:B,2,0)) ->  | L39: =IF(K39="","",-PMT(J39*VLOOKUP(I39,index!B:C,2,0),'entry data'!H39,'entry data'!F39,-G39,VLOOKUP(K39,index!G:H,2,0))) -> 
I40: =IF(ISERROR(VLOOKUP(E40,index!A:B,2,0)),"",VLOOKUP(E40,index!A:B,2,0)) ->  | L40: =IF(K40="","",-PMT(J40*VLOOKUP(I40,index!B:C,2,0),'entry data'!H40,'entry data'!F40,-G40,VLOOKUP(K40,index!G:H,2,0))) -> 
I41: =IF(ISERROR(VLOOKUP(E41,index!A:B,2,0)),"",VLOOKUP(E41,index!A:B,2,0)) ->  | L41: =IF(K41="","",-PMT(J41*VLOOKUP(I41,index!B:C,2,0),'entry data'!H41,'entry data'!F41,-G41,VLOOKUP(K41,index!G:H,2,0))) -> 
I42: =IF(ISERROR(VLOOKUP(E42,index!A:B,2,0)),"",VLOOKUP(E42,index!A:B,2,0)) ->  | L42: =IF(K42="","",-PMT(J42*VLOOKUP(I42,index!B:C,2,0),'entry data'!H42,'entry data'!F42,-G42,VLOOKUP(K42,index!G:H,2,0))) -> 
I43: =IF(ISERROR(VLOOKUP(E43,index!A:B,2,0)),"",VLOOKUP(E43,index!A:B,2,0)) ->  | L43: =IF(K43="","",-PMT(J43*VLOOKUP(I43,index!B:C,2,0),'entry data'!H43,'entry data'!F43,-G43,VLOOKUP(K43,index!G:H,2,0))) -> 
I44: =IF(ISERROR(VLOOKUP(E44,index!A:B,2,0)),"",VLOOKUP(E44,index!A:B,2,0)) ->  | L44: =IF(K44="","",-PMT(J44*VLOOKUP(I44,index!B:C,2,0),'entry data'!H44,'entry data'!F44,-G44,VLOOKUP(K44,index!G:H,2,0))) -> 
I45: =IF(ISERROR(VLOOKUP(E45,index!A:B,2,0)),"",VLOOKUP(E45,index!A:B,2,0)) ->  | L45: =IF(K45="","",-PMT(J45*VLOOKUP(I45,index!B:C,2,0),'entry data'!H45,'entry data'!F45,-G45,VLOOKUP(K45,index!G:H,2,0))) -> 
I46: =IF(ISERROR(VLOOKUP(E46,index!A:B,2,0)),"",VLOOKUP(E46,index!A:B,2,0)) ->  | L46: =IF(K46="","",-PMT(J46*VLOOKUP(I46,index!B:C,2,0),'entry data'!H46,'entry data'!F46,-G46,VLOOKUP(K46,index!G:H,2,0))) -> 
I47: =IF(ISERROR(VLOOKUP(E47,index!A:B,2,0)),"",VLOOKUP(E47,index!A:B,2,0)) ->  | L47: =IF(K47="","",-PMT(J47*VLOOKUP(I47,index!B:C,2,0),'entry data'!H47,'entry data'!F47,-G47,VLOOKUP(K47,index!G:H,2,0))) -> 
I48: =IF(ISERROR(VLOOKUP(E48,index!A:B,2,0)),"",VLOOKUP(E48,index!A:B,2,0)) ->  | L48: =IF(K48="","",-PMT(J48*VLOOKUP(I48,index!B:C,2,0),'entry data'!H48,'entry data'!F48,-G48,VLOOKUP(K48,index!G:H,2,0))) -> 
I49: =IF(ISERROR(VLOOKUP(E49,index!A:B,2,0)),"",VLOOKUP(E49,index!A:B,2,0)) ->  | L49: =IF(K49="","",-PMT(J49*VLOOKUP(I49,index!B:C,2,0),'entry data'!H49,'entry data'!F49,-G49,VLOOKUP(K49,index!G:H,2,0))) -> 
I50: =IF(ISERROR(VLOOKUP(E50,index!A:B,2,0)),"",VLOOKUP(E50,index!A:B,2,0)) ->  | L50: =IF(K50="","",-PMT(J50*VLOOKUP(I50,index!B:C,2,0),'entry data'!H50,'entry data'!F50,-G50,VLOOKUP(K50,index!G:H,2,0))) -> 
I51: =IF(ISERROR(VLOOKUP(E51,index!A:B,2,0)),"",VLOOKUP(E51,index!A:B,2,0)) ->  | L51: =IF(K51="","",-PMT(J51*VLOOKUP(I51,index!B:C,2,0),'entry data'!H51,'entry data'!F51,-G51,VLOOKUP(K51,index!G:H,2,0))) -> 
I52: =IF(ISERROR(VLOOKUP(E52,index!A:B,2,0)),"",VLOOKUP(E52,index!A:B,2,0)) ->  | L52: =IF(K52="","",-PMT(J52*VLOOKUP(I52,index!B:C,2,0),'entry data'!H52,'entry data'!F52,-G52,VLOOKUP(K52,index!G:H,2,0))) -> 
I53: =IF(ISERROR(VLOOKUP(E53,index!A:B,2,0)),"",VLOOKUP(E53,index!A:B,2,0)) ->  | L53: =IF(K53="","",-PMT(J53*VLOOKUP(I53,index!B:C,2,0),'entry data'!H53,'entry data'!F53,-G53,VLOOKUP(K53,index!G:H,2,0))) -> 
I54: =IF(ISERROR(VLOOKUP(E54,index!A:B,2,0)),"",VLOOKUP(E54,index!A:B,2,0)) ->  | L54: =IF(K54="","",-PMT(J54*VLOOKUP(I54,index!B:C,2,0),'entry data'!H54,'entry data'!F54,-G54,VLOOKUP(K54,index!G:H,2,0))) -> 
I55: =IF(ISERROR(VLOOKUP(E55,index!A:B,2,0)),"",VLOOKUP(E55,index!A:B,2,0)) ->  | L55: =IF(K55="","",-PMT(J55*VLOOKUP(I55,index!B:C,2,0),'entry data'!H55,'entry data'!F55,-G55,VLOOKUP(K55,index!G:H,2,0))) -> 
I56: =IF(ISERROR(VLOOKUP(E56,index!A:B,2,0)),"",VLOOKUP(E56,index!A:B,2,0)) ->  | L56: =IF(K56="","",-PMT(J56*VLOOKUP(I56,index!B:C,2,0),'entry data'!H56,'entry data'!F56,-G56,VLOOKUP(K56,index!G:H,2,0))) -> 
I57: =IF(ISERROR(VLOOKUP(E57,index!A:B,2,0)),"",VLOOKUP(E57,index!A:B,2,0)) ->  | L57: =IF(K57="","",-PMT(J57*VLOOKUP(I57,index!B:C,2,0),'entry data'!H57,'entry data'!F57,-G57,VLOOKUP(K57,index!G:H,2,0))) -> 
I58: =IF(ISERROR(VLOOKUP(E58,index!A:B,2,0)),"",VLOOKUP(E58,index!A:B,2,0)) ->  | L58: =IF(K58="","",-PMT(J58*VLOOKUP(I58,index!B:C,2,0),'entry data'!H58,'entry data'!F58,-G58,VLOOKUP(K58,index!G:H,2,0))) -> 
I59: =IF(ISERROR(VLOOKUP(E59,index!A:B,2,0)),"",VLOOKUP(E59,index!A:B,2,0)) ->  | L59: =IF(K59="","",-PMT(J59*VLOOKUP(I59,index!B:C,2,0),'entry data'!H59,'entry data'!F59,-G59,VLOOKUP(K59,index!G:H,2,0))) -> 
I60: =IF(ISERROR(VLOOKUP(E60,index!A:B,2,0)),"",VLOOKUP(E60,index!A:B,2,0)) ->  | L60: =IF(K60="","",-PMT(J60*VLOOKUP(I60,index!B:C,2,0),'entry data'!H60,'entry data'!F60,-G60,VLOOKUP(K60,index!G:H,2,0))) -> 
I61: =IF(ISERROR(VLOOKUP(E61,index!A:B,2,0)),"",VLOOKUP(E61,index!A:B,2,0)) ->  | L61: =IF(K61="","",-PMT(J61*VLOOKUP(I61,index!B:C,2,0),'entry data'!H61,'entry data'!F61,-G61,VLOOKUP(K61,index!G:H,2,0))) -> 
I62: =IF(ISERROR(VLOOKUP(E62,index!A:B,2,0)),"",VLOOKUP(E62,index!A:B,2,0)) ->  | L62: =IF(K62="","",-PMT(J62*VLOOKUP(I62,index!B:C,2,0),'entry data'!H62,'entry data'!F62,-G62,VLOOKUP(K62,index!G:H,2,0))) -> 
I63: =IF(ISERROR(VLOOKUP(E63,index!A:B,2,0)),"",VLOOKUP(E63,index!A:B,2,0)) ->  | L63: =IF(K63="","",-PMT(J63*VLOOKUP(I63,index!B:C,2,0),'entry data'!H63,'entry data'!F63,-G63,VLOOKUP(K63,index!G:H,2,0))) -> 
I64: =IF(ISERROR(VLOOKUP(E64,index!A:B,2,0)),"",VLOOKUP(E64,index!A:B,2,0)) ->  | L64: =IF(K64="","",-PMT(J64*VLOOKUP(I64,index!B:C,2,0),'entry data'!H64,'entry data'!F64,-G64,VLOOKUP(K64,index!G:H,2,0))) -> 
I65: =IF(ISERROR(VLOOKUP(E65,index!A:B,2,0)),"",VLOOKUP(E65,index!A:B,2,0)) ->  | L65: =IF(K65="","",-PMT(J65*VLOOKUP(I65,index!B:C,2,0),'entry data'!H65,'entry data'!F65,-G65,VLOOKUP(K65,index!G:H,2,0))) -> 
I66: =IF(ISERROR(VLOOKUP(E66,index!A:B,2,0)),"",VLOOKUP(E66,index!A:B,2,0)) ->  | L66: =IF(K66="","",-PMT(J66*VLOOKUP(I66,index!B:C,2,0),'entry data'!H66,'entry data'!F66,-G66,VLOOKUP(K66,index!G:H,2,0))) -> 
I67: =IF(ISERROR(VLOOKUP(E67,index!A:B,2,0)),"",VLOOKUP(E67,index!A:B,2,0)) ->  | L67: =IF(K67="","",-PMT(J67*VLOOKUP(I67,index!B:C,2,0),'entry data'!H67,'entry data'!F67,-G67,VLOOKUP(K67,index!G:H,2,0))) -> 
I68: =IF(ISERROR(VLOOKUP(E68,index!A:B,2,0)),"",VLOOKUP(E68,index!A:B,2,0)) ->  | L68: =IF(K68="","",-PMT(J68*VLOOKUP(I68,index!B:C,2,0),'entry data'!H68,'entry data'!F68,-G68,VLOOKUP(K68,index!G:H,2,0))) -> 
I69: =IF(ISERROR(VLOOKUP(E69,index!A:B,2,0)),"",VLOOKUP(E69,index!A:B,2,0)) ->  | L69: =IF(K69="","",-PMT(J69*VLOOKUP(I69,index!B:C,2,0),'entry data'!H69,'entry data'!F69,-G69,VLOOKUP(K69,index!G:H,2,0))) -> 
I70: =IF(ISERROR(VLOOKUP(E70,index!A:B,2,0)),"",VLOOKUP(E70,index!A:B,2,0)) ->  | L70: =IF(K70="","",-PMT(J70*VLOOKUP(I70,index!B:C,2,0),'entry data'!H70,'entry data'!F70,-G70,VLOOKUP(K70,index!G:H,2,0))) -> 
I71: =IF(ISERROR(VLOOKUP(E71,index!A:B,2,0)),"",VLOOKUP(E71,index!A:B,2,0)) ->  | L71: =IF(K71="","",-PMT(J71*VLOOKUP(I71,index!B:C,2,0),'entry data'!H71,'entry data'!F71,-G71,VLOOKUP(K71,index!G:H,2,0))) -> 
I72: =IF(ISERROR(VLOOKUP(E72,index!A:B,2,0)),"",VLOOKUP(E72,index!A:B,2,0)) ->  | L72: =IF(K72="","",-PMT(J72*VLOOKUP(I72,index!B:C,2,0),'entry data'!H72,'entry data'!F72,-G72,VLOOKUP(K72,index!G:H,2,0))) -> 
I73: =IF(ISERROR(VLOOKUP(E73,index!A:B,2,0)),"",VLOOKUP(E73,index!A:B,2,0)) ->  | J73: =IF(C73<>"",0.126,"") ->  | L73: =IF(K73="","",-PMT(J73*VLOOKUP(I73,index!B:C,2,0),'entry data'!H73,'entry data'!F73,-G73,VLOOKUP(K73,index!G:H,2,0))) -> 
B74: =IF(C74<>"",B73+1,"") ->  | I74: =IF(ISERROR(VLOOKUP(E74,index!A:B,2,0)),"",VLOOKUP(E74,index!A:B,2,0)) ->  | L74: =IF(K74="","",-PMT(J74*VLOOKUP(I74,index!B:C,2,0),'entry data'!H74,'entry data'!F74,-G74,VLOOKUP(K74,index!G:H,2,0))) -> 
I75: =IF(ISERROR(VLOOKUP(E75,index!A:B,2,0)),"",VLOOKUP(E75,index!A:B,2,0)) ->  | L75: =IF(K75="","",-PMT(J75*VLOOKUP(I75,index!B:C,2,0),'entry data'!H75,'entry data'!F75,-G75,VLOOKUP(K75,index!G:H,2,0))) -> 
I76: =IF(ISERROR(VLOOKUP(E76,index!A:B,2,0)),"",VLOOKUP(E76,index!A:B,2,0)) ->  | L76: =IF(K76="","",-PMT(J76*VLOOKUP(I76,index!B:C,2,0),'entry data'!H76,'entry data'!F76,-G76,VLOOKUP(K76,index!G:H,2,0))) -> 
I77: =IF(ISERROR(VLOOKUP(E77,index!A:B,2,0)),"",VLOOKUP(E77,index!A:B,2,0)) ->  | L77: =IF(K77="","",-PMT(J77*VLOOKUP(I77,index!B:C,2,0),'entry data'!H77,'entry data'!F77,-G77,VLOOKUP(K77,index!G:H,2,0))) -> 
I78: =IF(ISERROR(VLOOKUP(E78,index!A:B,2,0)),"",VLOOKUP(E78,index!A:B,2,0)) ->  | L78: =IF(K78="","",-PMT(J78*VLOOKUP(I78,index!B:C,2,0),'entry data'!H78,'entry data'!F78,-G78,VLOOKUP(K78,index!G:H,2,0))) -> 
I79: =IF(ISERROR(VLOOKUP(E79,index!A:B,2,0)),"",VLOOKUP(E79,index!A:B,2,0)) ->  | L79: =IF(K79="","",-PMT(J79*VLOOKUP(I79,index!B:C,2,0),'entry data'!H79,'entry data'!F79,-G79,VLOOKUP(K79,index!G:H,2,0))) -> 
I80: =IF(ISERROR(VLOOKUP(E80,index!A:B,2,0)),"",VLOOKUP(E80,index!A:B,2,0)) ->  | L80: =IF(K80="","",-PMT(J80*VLOOKUP(I80,index!B:C,2,0),'entry data'!H80,'entry data'!F80,-G80,VLOOKUP(K80,index!G:H,2,0))) -> 
I81: =IF(ISERROR(VLOOKUP(E81,index!A:B,2,0)),"",VLOOKUP(E81,index!A:B,2,0)) ->  | L81: =IF(K81="","",-PMT(J81*VLOOKUP(I81,index!B:C,2,0),'entry data'!H81,'entry data'!F81,-G81,VLOOKUP(K81,index!G:H,2,0))) -> 
I82: =IF(ISERROR(VLOOKUP(E82,index!A:B,2,0)),"",VLOOKUP(E82,index!A:B,2,0)) ->  | L82: =IF(K82="","",-PMT(J82*VLOOKUP(I82,index!B:C,2,0),'entry data'!H82,'entry data'!F82,-G82,VLOOKUP(K82,index!G:H,2,0))) -> 
I83: =IF(ISERROR(VLOOKUP(E83,index!A:B,2,0)),"",VLOOKUP(E83,index!A:B,2,0)) ->  | L83: =IF(K83="","",-PMT(J83*VLOOKUP(I83,index!B:C,2,0),'entry data'!H83,'entry data'!F83,-G83,VLOOKUP(K83,index!G:H,2,0))) -> 
I84: =IF(ISERROR(VLOOKUP(E84,index!A:B,2,0)),"",VLOOKUP(E84,index!A:B,2,0)) ->  | L84: =IF(K84="","",-PMT(J84*VLOOKUP(I84,index!B:C,2,0),'entry data'!H84,'entry data'!F84,-G84,VLOOKUP(K84,index!G:H,2,0))) -> 
I85: =IF(ISERROR(VLOOKUP(E85,index!A:B,2,0)),"",VLOOKUP(E85,index!A:B,2,0)) ->  | L85: =IF(K85="","",-PMT(J85*VLOOKUP(I85,index!B:C,2,0),'entry data'!H85,'entry data'!F85,-G85,VLOOKUP(K85,index!G:H,2,0))) -> 
I86: =IF(ISERROR(VLOOKUP(E86,index!A:B,2,0)),"",VLOOKUP(E86,index!A:B,2,0)) ->  | L86: =IF(K86="","",-PMT(J86*VLOOKUP(I86,index!B:C,2,0),'entry data'!H86,'entry data'!F86,-G86,VLOOKUP(K86,index!G:H,2,0))) -> 
I87: =IF(ISERROR(VLOOKUP(E87,index!A:B,2,0)),"",VLOOKUP(E87,index!A:B,2,0)) ->  | L87: =IF(K87="","",-PMT(J87*VLOOKUP(I87,index!B:C,2,0),'entry data'!H87,'entry data'!F87,-G87,VLOOKUP(K87,index!G:H,2,0))) -> 

Sheet index (hidden)
A1: weekly | B1: weeks | C1: =(1/365)*7 -> 0.01917808219 | G1: advance | H1: 1
A2: fortnightly | B2: fortnights | C2: =(1/365)*14 -> 0.03835616438 | G2: arrears | H2: 0
A3: monthly | B3: months | C3: =1/12 -> 0.08333333333

Sheet calculations (hidden)
A1: Loan No | B1: Period No | C1: Term | D1: Loan Name | E1: Frequency | F1: Loan Amount | G1: Residual | H1: Interest Rate | I1: Payable in | J1: Period Start | K1: Payment Date | L1: Month | M1: Open Balance | N1: Principal | O1: Interest | P1: Payment | Q1: Closing Balance | R1: Monthly Closing Balance
A2: 1 | B2: 1 | C2: =IF(A2="","",VLOOKUP(A2,'entry data'!B:H,7,0)) -> 78 | D2: =IF(A2="","",VLOOKUP(A2,'entry data'!B:C,2,0)) -> Car Loan | E2: =IF(A2="","",VLOOKUP(A2,'entry data'!B:E,4,0)) -> fortnightly | F2: =IF(A2="","",VLOOKUP(A2,'entry data'!B:F,5,0)) -> 18000 | G2: =IF(A2="","",VLOOKUP(A2,'entry data'!B:G,6,0)) -> 0 | H2: =IF(A2="","",VLOOKUP(A2,'entry data'!B:L,9,0)) -> 0.126 | I2: =IF(A2="","",VLOOKUP(A2,'entry data'!B:K,10,0)) -> advance | J2: ='entry data'!$D$8 -> 2013-06-18 | K2: =IF(A2="","",IF(E2="weekly",7,IF(E2="fortnightly",14,DATE(IF(MONTH(J2)=12,YEAR(J2)+1,YEAR(J2)),IF(MONTH(J2)=12,1,MONTH(J2)+1),DAY(J2))-J2))+J2) -> 2013-07-02 | L2: =IF(A2="","",IF(MONTH(K2)<10,YEAR(K2)&"-0"&MONTH(K2),YEAR(K2)&"-"&MONTH(K2))) -> 2013-07 | M2: =F2 -> 18000 | N2: =IF(A2="","",P2-O2) -> 276.2071848 | O2: =IF(A2="","",-IPMT(H2*VLOOKUP(E2,index!A:C,3,0),calculations!B2,calculations!C2,calculations!F2,-calculations!G2,VLOOKUP(I2,index!G:H,2,0))) -> 0 | P2: =IF(A2="","",VLOOKUP(A2,'entry data'!B:L,11,0)+IF(B2=C2,G2,0)) -> 276.2071848 | Q2: =IF(A2="","",M2-N2) -> 17723.79282 | R2: =IF(A2="","",IF(L2<>L3,Q2,0)) -> 0
A3: =IF(A2="","",IF(B2<C2,A2,IF(A2=MAX('entry data'!$B$8:$B$17),"",A2+1))) -> 1 | B3: =IF(A3="","",IF(B2=C2,1,B2+1)) -> 2 | C3: =IF(A3="","",VLOOKUP(A3,'entry data'!B:H,7,0)) -> 78 | D3: =IF(A3="","",VLOOKUP(A3,'entry data'!B:C,2,0)) -> Car Loan | E3: =IF(A3="","",VLOOKUP(A3,'entry data'!B:E,4,0)) -> fortnightly | F3: =IF(A3="","",VLOOKUP(A3,'entry data'!B:F,5,0)) -> 18000 | G3: =IF(A3="","",IF(ISERROR(VLOOKUP(A3,'entry data'!B:G,6,0)),"",VLOOKUP(A3,'entry data'!B:G,6,0))) -> 0 | H3: =IF(A3="","",VLOOKUP(A3,'entry data'!B:L,9,0)) -> 0.126 | I3: =IF(A3="","",VLOOKUP(A3,'entry data'!B:K,10,0)) -> advance | J3: =IF(A3="","",IF(B3=1,VLOOKUP(A3,'entry data'!B:D,3,0),K2)) -> 2013-07-02 | K3: =IF(A3="","",IF(E3="weekly",7,IF(E3="fortnightly",14,DATE(IF(MONTH(J3)=12,YEAR(J3)+1,YEAR(J3)),IF(MONTH(J3)=12,1,MONTH(J3)+1),DAY(J3))-J3))+J3) -> 2013-07-16 | L3: =IF(A3="","",IF(MONTH(K3)<10,YEAR(K3)&"-0"&MONTH(K3),YEAR(K3)&"-"&MONTH(K3))) -> 2013-07 | M3: =IF(A3="","",IF(B3=1,F3,Q2)) -> 17723.79282 | N3: =IF(A3="","",P3-O3) -> 190.5502793 | O3: =IF(A3="","",-IPMT(H3*VLOOKUP(E3,index!A:C,3,0),calculations!B3,calculations!C3,calculations!F3,-calculations!G3,VLOOKUP(I3,index!G:H,2,0))) -> 85.65690555 | P3: =IF(A3="","",VLOOKUP(A3,'entry data'!B:L,11,0)+IF(B3=C3,G3,0)) -> 276.2071848 | Q3: =IF(A3="","",M3-N3) -> 17533.24254 | R3: =IF(A3="","",IF(L3<>L4,Q3,0)) -> 0
A4: =IF(A3="","",IF(B3<C3,A3,IF(A3=MAX('entry data'!$B$8:$B$17),"",A3+1))) -> 1 | B4: =IF(A4="","",IF(B3=C3,1,B3+1)) -> 3 | C4: =IF(A4="","",VLOOKUP(A4,'entry data'!B:H,7,0)) -> 78 | D4: =IF(A4="","",VLOOKUP(A4,'entry data'!B:C,2,0)) -> Car Loan | E4: =IF(A4="","",VLOOKUP(A4,'entry data'!B:E,4,0)) -> fortnightly | F4: =IF(A4="","",VLOOKUP(A4,'entry data'!B:F,5,0)) -> 18000 | G4: =IF(A4="","",IF(ISERROR(VLOOKUP(A4,'entry data'!B:G,6,0)),"",VLOOKUP(A4,'entry data'!B:G,6,0))) -> 0 | H4: =IF(A4="","",VLOOKUP(A4,'entry data'!B:L,9,0)) -> 0.126 | I4: =IF(A4="","",VLOOKUP(A4,'entry data'!B:K,10,0)) -> advance | J4: =IF(A4="","",IF(B4=1,VLOOKUP(A4,'entry data'!B:D,3,0),K3)) -> 2013-07-16 | K4: =IF(A4="","",IF(E4="weekly",7,IF(E4="fortnightly",14,DATE(IF(MONTH(J4)=12,YEAR(J4)+1,YEAR(J4)),IF(MONTH(J4)=12,1,MONTH(J4)+1),DAY(J4))-J4))+J4) -> 2013-07-30 | L4: =IF(A4="","",IF(MONTH(K4)<10,YEAR(K4)&"-0"&MONTH(K4),YEAR(K4)&"-"&MONTH(K4))) -> 2013-07 | M4: =IF(A4="","",IF(B4=1,F4,Q3)) -> 17533.24254 | N4: =IF(A4="","",P4-O4) -> 191.4711853 | O4: =IF(A4="","",-IPMT(H4*VLOOKUP(E4,index!A:C,3,0),calculations!B4,calculations!C4,calculations!F4,-calculations!G4,VLOOKUP(I4,index!G:H,2,0))) -> 84.73599954 | P4: =IF(A4="","",VLOOKUP(A4,'entry data'!B:L,11,0)+IF(B4=C4,G4,0)) -> 276.2071848 | Q4: =IF(A4="","",M4-N4) -> 17341.77135 | R4: 17341.77135
A5: =IF(A4="","",IF(B4<C4,A4,IF(A4=MAX('entry data'!$B$8:$B$17),"",A4+1))) -> 1 | B5: 4 | C5: =IF(A5="","",VLOOKUP(A5,'entry data'!B:H,7,0)) -> 78 | D5: =IF(A5="","",VLOOKUP(A5,'entry data'!B:C,2,0)) -> Car Loan | E5: =IF(A5="","",VLOOKUP(A5,'entry data'!B:E,4,0)) -> fortnightly | F5: =IF(A5="","",VLOOKUP(A5,'entry data'!B:F,5,0)) -> 18000 | G5: =IF(A5="","",IF(ISERROR(VLOOKUP(A5,'entry data'!B:G,6,0)),"",VLOOKUP(A5,'entry data'!B:G,6,0))) -> 0 | H5: =IF(A5="","",VLOOKUP(A5,'entry data'!B:L,9,0)) -> 0.126 | I5: =IF(A5="","",VLOOKUP(A5,'entry data'!B:K,10,0)) -> advance | J5: =IF(A5="","",IF(B5=1,VLOOKUP(A5,'entry data'!B:D,3,0),K4)) -> 2013-07-30 | K5: 2013-08-13 | L5: 2013-08 | M5: 17341.77135 | N5: 192.3965419 | O5: =IF(A5="","",-IPMT(H5*VLOOKUP(E5,index!A:C,3,0),calculations!B5,calculations!C5,calculations!F5,-calculations!G5,VLOOKUP(I5,index!G:H,2,0))) -> 83.81064291 | P5: =IF(A5="","",VLOOKUP(A5,'entry data'!B:L,11,0)+IF(B5=C5,G5,0)) -> 276.2071848 | Q5: 17149.37481 | R5: 0
A6: =IF(A5="","",IF(B5<C5,A5,IF(A5=MAX('entry data'!$B$8:$B$17),"",A5+1))) -> 1 | B6: 5 | C6: =IF(A6="","",VLOOKUP(A6,'entry data'!B:H,7,0)) -> 78 | D6: =IF(A6="","",VLOOKUP(A6,'entry data'!B:C,2,0)) -> Car Loan | E6: =IF(A6="","",VLOOKUP(A6,'entry data'!B:E,4,0)) -> fortnightly | F6: =IF(A6="","",VLOOKUP(A6,'entry data'!B:F,5,0)) -> 18000 | G6: =IF(A6="","",IF(ISERROR(VLOOKUP(A6,'entry data'!B:G,6,0)),"",VLOOKUP(A6,'entry data'!B:G,6,0))) -> 0 | H6: =IF(A6="","",VLOOKUP(A6,'entry data'!B:L,9,0)) -> 0.126 | I6: =IF(A6="","",VLOOKUP(A6,'entry data'!B:K,10,0)) -> advance | J6: =IF(A6="","",IF(B6=1,VLOOKUP(A6,'entry data'!B:D,3,0),K5)) -> 2013-08-13 | K6: 2013-08-27 | L6: 2013-08 | M6: 17149.37481 | N6: 193.3263707 | O6: =IF(A6="","",-IPMT(H6*VLOOKUP(E6,index!A:C,3,0),calculations!B6,calculations!C6,calculations!F6,-calculations!G6,VLOOKUP(I6,index!G:H,2,0))) -> 82.88081414 | P6: =IF(A6="","",VLOOKUP(A6,'entry data'!B:L,11,0)+IF(B6=C6,G6,0)) -> 276.2071848 | Q6: 16956.04844 | R6: 16956.04844
A7: =IF(A6="","",IF(B6<C6,A6,IF(A6=MAX('entry data'!$B$8:$B$17),"",A6+1))) -> 1 | B7: 6 | C7: =IF(A7="","",VLOOKUP(A7,'entry data'!B:H,7,0)) -> 78 | D7: =IF(A7="","",VLOOKUP(A7,'entry data'!B:C,2,0)) -> Car Loan | E7: =IF(A7="","",VLOOKUP(A7,'entry data'!B:E,4,0)) -> fortnightly | F7: =IF(A7="","",VLOOKUP(A7,'entry data'!B:F,5,0)) -> 18000 | G7: =IF(A7="","",IF(ISERROR(VLOOKUP(A7,'entry data'!B:G,6,0)),"",VLOOKUP(A7,'entry data'!B:G,6,0))) -> 0 | H7: =IF(A7="","",VLOOKUP(A7,'entry data'!B:L,9,0)) -> 0.126 | I7: =IF(A7="","",VLOOKUP(A7,'entry data'!B:K,10,0)) -> advance | J7: =IF(A7="","",IF(B7=1,VLOOKUP(A7,'entry data'!B:D,3,0),K6)) -> 2013-08-27 | K7: 2013-09-10 | L7: 2013-09 | M7: 16956.04844 | N7: 194.2606932 | O7: =IF(A7="","",-IPMT(H7*VLOOKUP(E7,index!A:C,3,0),calculations!B7,calculations!C7,calculations!F7,-calculations!G7,VLOOKUP(I7,index!G:H,2,0))) -> 81.94649163 | P7: =IF(A7="","",VLOOKUP(A7,'entry data'!B:L,11,0)+IF(B7=C7,G7,0)) -> 276.2071848 | Q7: 16761.78774 | R7: 0
A8: =IF(A7="","",IF(B7<C7,A7,IF(A7=MAX('entry data'!$B$8:$B$17),"",A7+1))) -> 1 | B8: 7 | C8: =IF(A8="","",VLOOKUP(A8,'entry data'!B:H,7,0)) -> 78 | D8: =IF(A8="","",VLOOKUP(A8,'entry data'!B:C,2,0)) -> Car Loan | E8: =IF(A8="","",VLOOKUP(A8,'entry data'!B:E,4,0)) -> fortnightly | F8: =IF(A8="","",VLOOKUP(A8,'entry data'!B:F,5,0)) -> 18000 | G8: =IF(A8="","",IF(ISERROR(VLOOKUP(A8,'entry data'!B:G,6,0)),"",VLOOKUP(A8,'entry data'!B:G,6,0))) -> 0 | H8: =IF(A8="","",VLOOKUP(A8,'entry data'!B:L,9,0)) -> 0.126 | I8: =IF(A8="","",VLOOKUP(A8,'entry data'!B:K,10,0)) -> advance | J8: =IF(A8="","",IF(B8=1,VLOOKUP(A8,'entry data'!B:D,3,0),K7)) -> 2013-09-10 | K8: 2013-09-24 | L8: 2013-09 | M8: 16761.78774 | N8: 195.1995312 | O8: =IF(A8="","",-IPMT(H8*VLOOKUP(E8,index!A:C,3,0),calculations!B8,calculations!C8,calculations!F8,-calculations!G8,VLOOKUP(I8,index!G:H,2,0))) -> 81.00765365 | P8: =IF(A8="","",VLOOKUP(A8,'entry data'!B:L,11,0)+IF(B8=C8,G8,0)) -> 276.2071848 | Q8: 16566.58821 | R8: 16566.58821
A9: =IF(A8="","",IF(B8<C8,A8,IF(A8=MAX('entry data'!$B$8:$B$17),"",A8+1))) -> 1 | B9: 8 | C9: =IF(A9="","",VLOOKUP(A9,'entry data'!B:H,7,0)) -> 78 | D9: =IF(A9="","",VLOOKUP(A9,'entry data'!B:C,2,0)) -> Car Loan | E9: =IF(A9="","",VLOOKUP(A9,'entry data'!B:E,4,0)) -> fortnightly | F9: =IF(A9="","",VLOOKUP(A9,'entry data'!B:F,5,0)) -> 18000 | G9: =IF(A9="","",IF(ISERROR(VLOOKUP(A9,'entry data'!B:G,6,0)),"",VLOOKUP(A9,'entry data'!B:G,6,0))) -> 0 | H9: =IF(A9="","",VLOOKUP(A9,'entry data'!B:L,9,0)) -> 0.126 | I9: =IF(A9="","",VLOOKUP(A9,'entry data'!B:K,10,0)) -> advance | J9: =IF(A9="","",IF(B9=1,VLOOKUP(A9,'entry data'!B:D,3,0),K8)) -> 2013-09-24 | K9: 2013-10-08 | L9: 2013-10 | M9: 16566.58821 | N9: 196.1429065 | O9: =IF(A9="","",-IPMT(H9*VLOOKUP(E9,index!A:C,3,0),calculations!B9,calculations!C9,calculations!F9,-calculations!G9,VLOOKUP(I9,index!G:H,2,0))) -> 80.06427838 | P9: =IF(A9="","",VLOOKUP(A9,'entry data'!B:L,11,0)+IF(B9=C9,G9,0)) -> 276.2071848 | Q9: 16370.44531 | R9: 0
A10: =IF(A9="","",IF(B9<C9,A9,IF(A9=MAX('entry data'!$B$8:$B$17),"",A9+1))) -> 1 | B10: 9 | C10: =IF(A10="","",VLOOKUP(A10,'entry data'!B:H,7,0)) -> 78 | D10: =IF(A10="","",VLOOKUP(A10,'entry data'!B:C,2,0)) -> Car Loan | E10: =IF(A10="","",VLOOKUP(A10,'entry data'!B:E,4,0)) -> fortnightly | F10: =IF(A10="","",VLOOKUP(A10,'entry data'!B:F,5,0)) -> 18000 | G10: =IF(A10="","",IF(ISERROR(VLOOKUP(A10,'entry data'!B:G,6,0)),"",VLOOKUP(A10,'entry data'!B:G,6,0))) -> 0 | H10: =IF(A10="","",VLOOKUP(A10,'entry data'!B:L,9,0)) -> 0.126 | I10: =IF(A10="","",VLOOKUP(A10,'entry data'!B:K,10,0)) -> advance | J10: =IF(A10="","",IF(B10=1,VLOOKUP(A10,'entry data'!B:D,3,0),K9)) -> 2013-10-08 | K10: 2013-10-22 | L10: 2013-10 | M10: 16370.44531 | N10: 197.0908409 | O10: =IF(A10="","",-IPMT(H10*VLOOKUP(E10,index!A:C,3,0),calculations!B10,calculations!C10,calculations!F10,-calculations!G10,VLOOKUP(I10,index!G:H,2,0))) -> 79.1163439 | P10: =IF(A10="","",VLOOKUP(A10,'entry data'!B:L,11,0)+IF(B10=C10,G10,0)) -> 276.2071848 | Q10: 16173.35447 | R10: 16173.35447
A11: =IF(A10="","",IF(B10<C10,A10,IF(A10=MAX('entry data'!$B$8:$B$17),"",A10+1))) -> 1 | B11: 10 | C11: =IF(A11="","",VLOOKUP(A11,'entry data'!B:H,7,0)) -> 78 | D11: =IF(A11="","",VLOOKUP(A11,'entry data'!B:C,2,0)) -> Car Loan | E11: =IF(A11="","",VLOOKUP(A11,'entry data'!B:E,4,0)) -> fortnightly | F11: =IF(A11="","",VLOOKUP(A11,'entry data'!B:F,5,0)) -> 18000 | G11: =IF(A11="","",IF(ISERROR(VLOOKUP(A11,'entry data'!B:G,6,0)),"",VLOOKUP(A11,'entry data'!B:G,6,0))) -> 0 | H11: =IF(A11="","",VLOOKUP(A11,'entry data'!B:L,9,0)) -> 0.126 | I11: =IF(A11="","",VLOOKUP(A11,'entry data'!B:K,10,0)) -> advance | J11: =IF(A11="","",IF(B11=1,VLOOKUP(A11,'entry data'!B:D,3,0),K10)) -> 2013-10-22 | K11: 2013-11-05 | L11: 2013-11 | M11: 16173.35447 | N11: 198.0433567 | O11: =IF(A11="","",-IPMT(H11*VLOOKUP(E11,index!A:C,3,0),calculations!B11,calculations!C11,calculations!F11,-calculations!G11,VLOOKUP(I11,index!G:H,2,0))) -> 78.16382816 | P11: =IF(A11="","",VLOOKUP(A11,'entry data'!B:L,11,0)+IF(B11=C11,G11,0)) -> 276.2071848 | Q11: 15975.31111 | R11: 0
A12: =IF(A11="","",IF(B11<C11,A11,IF(A11=MAX('entry data'!$B$8:$B$17),"",A11+1))) -> 1 | B12: 11 | C12: =IF(A12="","",VLOOKUP(A12,'entry data'!B:H,7,0)) -> 78 | D12: =IF(A12="","",VLOOKUP(A12,'entry data'!B:C,2,0)) -> Car Loan | E12: =IF(A12="","",VLOOKUP(A12,'entry data'!B:E,4,0)) -> fortnightly | F12: =IF(A12="","",VLOOKUP(A12,'entry data'!B:F,5,0)) -> 18000 | G12: =IF(A12="","",IF(ISERROR(VLOOKUP(A12,'entry data'!B:G,6,0)),"",VLOOKUP(A12,'entry data'!B:G,6,0))) -> 0 | H12: =IF(A12="","",VLOOKUP(A12,'entry data'!B:L,9,0)) -> 0.126 | I12: =IF(A12="","",VLOOKUP(A12,'entry data'!B:K,10,0)) -> advance | J12: =IF(A12="","",IF(B12=1,VLOOKUP(A12,'entry data'!B:D,3,0),K11)) -> 2013-11-05 | K12: 2013-11-19 | L12: 2013-11 | M12: 15975.31111 | N12: 199.0004758 | O12: =IF(A12="","",-IPMT(H12*VLOOKUP(E12,index!A:C,3,0),calculations!B12,calculations!C12,calculations!F12,-calculations!G12,VLOOKUP(I12,index!G:H,2,0))) -> 77.20670903 | P12: =IF(A12="","",VLOOKUP(A12,'entry data'!B:L,11,0)+IF(B12=C12,G12,0)) -> 276.2071848 | Q12: 15776.31063 | R12: 15776.31063
A13: =IF(A12="","",IF(B12<C12,A12,IF(A12=MAX('entry data'!$B$8:$B$17),"",A12+1))) -> 1 | B13: 12 | C13: =IF(A13="","",VLOOKUP(A13,'entry data'!B:H,7,0)) -> 78 | D13: =IF(A13="","",VLOOKUP(A13,'entry data'!B:C,2,0)) -> Car Loan | E13: =IF(A13="","",VLOOKUP(A13,'entry data'!B:E,4,0)) -> fortnightly | F13: =IF(A13="","",VLOOKUP(A13,'entry data'!B:F,5,0)) -> 18000 | G13: =IF(A13="","",IF(ISERROR(VLOOKUP(A13,'entry data'!B:G,6,0)),"",VLOOKUP(A13,'entry data'!B:G,6,0))) -> 0 | H13: =IF(A13="","",VLOOKUP(A13,'entry data'!B:L,9,0)) -> 0.126 | I13: =IF(A13="","",VLOOKUP(A13,'entry data'!B:K,10,0)) -> advance | J13: =IF(A13="","",IF(B13=1,VLOOKUP(A13,'entry data'!B:D,3,0),K12)) -> 2013-11-19 | K13: 2013-12-03 | L13: 2013-12 | M13: 15776.31063 | N13: 199.9622206 | O13: =IF(A13="","",-IPMT(H13*VLOOKUP(E13,index!A:C,3,0),calculations!B13,calculations!C13,calculations!F13,-calculations!G13,VLOOKUP(I13,index!G:H,2,0))) -> 76.24496427 | P13: =IF(A13="","",VLOOKUP(A13,'entry data'!B:L,11,0)+IF(B13=C13,G13,0)) -> 276.2071848 | Q13: 15576.34841 | R13: 0
A14: =IF(A13="","",IF(B13<C13,A13,IF(A13=MAX('entry data'!$B$8:$B$17),"",A13+1))) -> 1 | B14: 13 | C14: =IF(A14="","",VLOOKUP(A14,'entry data'!B:H,7,0)) -> 78 | D14: =IF(A14="","",VLOOKUP(A14,'entry data'!B:C,2,0)) -> Car Loan | E14: =IF(A14="","",VLOOKUP(A14,'entry data'!B:E,4,0)) -> fortnightly | F14: =IF(A14="","",VLOOKUP(A14,'entry data'!B:F,5,0)) -> 18000 | G14: =IF(A14="","",IF(ISERROR(VLOOKUP(A14,'entry data'!B:G,6,0)),"",VLOOKUP(A14,'entry data'!B:G,6,0))) -> 0 | H14: =IF(A14="","",VLOOKUP(A14,'entry data'!B:L,9,0)) -> 0.126 | I14: =IF(A14="","",VLOOKUP(A14,'entry data'!B:K,10,0)) -> advance | J14: =IF(A14="","",IF(B14=1,VLOOKUP(A14,'entry data'!B:D,3,0),K13)) -> 2013-12-03 | K14: 2013-12-17 | L14: 2013-12 | M14: 15576.34841 | N14: 200.9286133 | O14: =IF(A14="","",-IPMT(H14*VLOOKUP(E14,index!A:C,3,0),calculations!B14,calculations!C14,calculations!F14,-calculations!G14,VLOOKUP(I14,index!G:H,2,0))) -> 75.27857151 | P14: =IF(A14="","",VLOOKUP(A14,'entry data'!B:L,11,0)+IF(B14=C14,G14,0)) -> 276.2071848 | Q14: 15375.4198 | R14: 0
A15: =IF(A14="","",IF(B14<C14,A14,IF(A14=MAX('entry data'!$B$8:$B$17),"",A14+1))) -> 1 | B15: 14 | C15: =IF(A15="","",VLOOKUP(A15,'entry data'!B:H,7,0)) -> 78 | D15: =IF(A15="","",VLOOKUP(A15,'entry data'!B:C,2,0)) -> Car Loan | E15: =IF(A15="","",VLOOKUP(A15,'entry data'!B:E,4,0)) -> fortnightly | F15: =IF(A15="","",VLOOKUP(A15,'entry data'!B:F,5,0)) -> 18000 | G15: =IF(A15="","",IF(ISERROR(VLOOKUP(A15,'entry data'!B:G,6,0)),"",VLOOKUP(A15,'entry data'!B:G,6,0))) -> 0 | H15: =IF(A15="","",VLOOKUP(A15,'entry data'!B:L,9,0)) -> 0.126 | I15: =IF(A15="","",VLOOKUP(A15,'entry data'!B:K,10,0)) -> advance | J15: =IF(A15="","",IF(B15=1,VLOOKUP(A15,'entry data'!B:D,3,0),K14)) -> 2013-12-17 | K15: 2013-12-31 | L15: 2013-12 | M15: 15375.4198 | N15: 201.8996765 | O15: =IF(A15="","",-IPMT(H15*VLOOKUP(E15,index!A:C,3,0),calculations!B15,calculations!C15,calculations!F15,-calculations!G15,VLOOKUP(I15,index!G:H,2,0))) -> 74.30750829 | P15: =IF(A15="","",VLOOKUP(A15,'entry data'!B:L,11,0)+IF(B15=C15,G15,0)) -> 276.2071848 | Q15: 15173.52012 | R15: 15173.52012
A16: =IF(A15="","",IF(B15<C15,A15,IF(A15=MAX('entry data'!$B$8:$B$17),"",A15+1))) -> 1 | B16: 15 | C16: =IF(A16="","",VLOOKUP(A16,'entry data'!B:H,7,0)) -> 78 | D16: =IF(A16="","",VLOOKUP(A16,'entry data'!B:C,2,0)) -> Car Loan | E16: =IF(A16="","",VLOOKUP(A16,'entry data'!B:E,4,0)) -> fortnightly | F16: =IF(A16="","",VLOOKUP(A16,'entry data'!B:F,5,0)) -> 18000 | G16: =IF(A16="","",IF(ISERROR(VLOOKUP(A16,'entry data'!B:G,6,0)),"",VLOOKUP(A16,'entry data'!B:G,6,0))) -> 0 | H16: =IF(A16="","",VLOOKUP(A16,'entry data'!B:L,9,0)) -> 0.126 | I16: =IF(A16="","",VLOOKUP(A16,'entry data'!B:K,10,0)) -> advance | J16: =IF(A16="","",IF(B16=1,VLOOKUP(A16,'entry data'!B:D,3,0),K15)) -> 2013-12-31 | K16: 2014-01-14 | L16: 2014-01 | M16: 15173.52012 | N16: 202.8754328 | O16: =IF(A16="","",-IPMT(H16*VLOOKUP(E16,index!A:C,3,0),calculations!B16,calculations!C16,calculations!F16,-calculations!G16,VLOOKUP(I16,index!G:H,2,0))) -> 73.33175205 | P16: =IF(A16="","",VLOOKUP(A16,'entry data'!B:L,11,0)+IF(B16=C16,G16,0)) -> 276.2071848 | Q16: 14970.64469 | R16: 0
A17: =IF(A16="","",IF(B16<C16,A16,IF(A16=MAX('entry data'!$B$8:$B$17),"",A16+1))) -> 1 | B17: 16 | C17: =IF(A17="","",VLOOKUP(A17,'entry data'!B:H,7,0)) -> 78 | D17: =IF(A17="","",VLOOKUP(A17,'entry data'!B:C,2,0)) -> Car Loan | E17: =IF(A17="","",VLOOKUP(A17,'entry data'!B:E,4,0)) -> fortnightly | F17: =IF(A17="","",VLOOKUP(A17,'entry data'!B:F,5,0)) -> 18000 | G17: =IF(A17="","",IF(ISERROR(VLOOKUP(A17,'entry data'!B:G,6,0)),"",VLOOKUP(A17,'entry data'!B:G,6,0))) -> 0 | H17: =IF(A17="","",VLOOKUP(A17,'entry data'!B:L,9,0)) -> 0.126 | I17: =IF(A17="","",VLOOKUP(A17,'entry data'!B:K,10,0)) -> advance | J17: =IF(A17="","",IF(B17=1,VLOOKUP(A17,'entry data'!B:D,3,0),K16)) -> 2014-01-14 | K17: 2014-01-28 | L17: 2014-01 | M17: 14970.64469 | N17: 203.8559047 | O17: =IF(A17="","",-IPMT(H17*VLOOKUP(E17,index!A:C,3,0),calculations!B17,calculations!C17,calculations!F17,-calculations!G17,VLOOKUP(I17,index!G:H,2,0))) -> 72.35128009 | P17: =IF(A17="","",VLOOKUP(A17,'entry data'!B:L,11,0)+IF(B17=C17,G17,0)) -> 276.2071848 | Q17: 14766.78879 | R17: 14766.78879
A18: =IF(A17="","",IF(B17<C17,A17,IF(A17=MAX('entry data'!$B$8:$B$17),"",A17+1))) -> 1 | B18: 17 | C18: =IF(A18="","",VLOOKUP(A18,'entry data'!B:H,7,0)) -> 78 | D18: =IF(A18="","",VLOOKUP(A18,'entry data'!B:C,2,0)) -> Car Loan | E18: =IF(A18="","",VLOOKUP(A18,'entry data'!B:E,4,0)) -> fortnightly | F18: =IF(A18="","",VLOOKUP(A18,'entry data'!B:F,5,0)) -> 18000 | G18: =IF(A18="","",IF(ISERROR(VLOOKUP(A18,'entry data'!B:G,6,0)),"",VLOOKUP(A18,'entry data'!B:G,6,0))) -> 0 | H18: =IF(A18="","",VLOOKUP(A18,'entry data'!B:L,9,0)) -> 0.126 | I18: =IF(A18="","",VLOOKUP(A18,'entry data'!B:K,10,0)) -> advance | J18: =IF(A18="","",IF(B18=1,VLOOKUP(A18,'entry data'!B:D,3,0),K17)) -> 2014-01-28 | K18: 2014-02-11 | L18: 2014-02 | M18: 14766.78879 | N18: 204.8411152 | O18: =IF(A18="","",-IPMT(H18*VLOOKUP(E18,index!A:C,3,0),calculations!B18,calculations!C18,calculations!F18,-calculations!G18,VLOOKUP(I18,index!G:H,2,0))) -> 71.36606964 | P18: =IF(A18="","",VLOOKUP(A18,'entry data'!B:L,11,0)+IF(B18=C18,G18,0)) -> 276.2071848 | Q18: 14561.94767 | R18: 0
A19: =IF(A18="","",IF(B18<C18,A18,IF(A18=MAX('entry data'!$B$8:$B$17),"",A18+1))) -> 1 | B19: 18 | C19: =IF(A19="","",VLOOKUP(A19,'entry data'!B:H,7,0)) -> 78 | D19: =IF(A19="","",VLOOKUP(A19,'entry data'!B:C,2,0)) -> Car Loan | E19: =IF(A19="","",VLOOKUP(A19,'entry data'!B:E,4,0)) -> fortnightly | F19: =IF(A19="","",VLOOKUP(A19,'entry data'!B:F,5,0)) -> 18000 | G19: =IF(A19="","",IF(ISERROR(VLOOKUP(A19,'entry data'!B:G,6,0)),"",VLOOKUP(A19,'entry data'!B:G,6,0))) -> 0 | H19: =IF(A19="","",VLOOKUP(A19,'entry data'!B:L,9,0)) -> 0.126 | I19: =IF(A19="","",VLOOKUP(A19,'entry data'!B:K,10,0)) -> advance | J19: =IF(A19="","",IF(B19=1,VLOOKUP(A19,'entry data'!B:D,3,0),K18)) -> 2014-02-11 | K19: 2014-02-25 | L19: 2014-02 | M19: 14561.94767 | N19: 205.8310871 | O19: =IF(A19="","",-IPMT(H19*VLOOKUP(E19,index!A:C,3,0),calculations!B19,calculations!C19,calculations!F19,-calculations!G19,VLOOKUP(I19,index!G:H,2,0))) -> 70.37609778 | P19: =IF(A19="","",VLOOKUP(A19,'entry data'!B:L,11,0)+IF(B19=C19,G19,0)) -> 276.2071848 | Q19: 14356.11658 | R19: 14356.11658
A20: =IF(A19="","",IF(B19<C19,A19,IF(A19=MAX('entry data'!$B$8:$B$17),"",A19+1))) -> 1 | B20: 19 | C20: =IF(A20="","",VLOOKUP(A20,'entry data'!B:H,7,0)) -> 78 | D20: =IF(A20="","",VLOOKUP(A20,'entry data'!B:C,2,0)) -> Car Loan | E20: =IF(A20="","",VLOOKUP(A20,'entry data'!B:E,4,0)) -> fortnightly | F20: =IF(A20="","",VLOOKUP(A20,'entry data'!B:F,5,0)) -> 18000 | G20: =IF(A20="","",IF(ISERROR(VLOOKUP(A20,'entry data'!B:G,6,0)),"",VLOOKUP(A20,'entry data'!B:G,6,0))) -> 0 | H20: =IF(A20="","",VLOOKUP(A20,'entry data'!B:L,9,0)) -> 0.126 | I20: =IF(A20="","",VLOOKUP(A20,'entry data'!B:K,10,0)) -> advance | J20: =IF(A20="","",IF(B20=1,VLOOKUP(A20,'entry data'!B:D,3,0),K19)) -> 2014-02-25 | K20: 2014-03-11 | L20: 2014-03 | M20: 14356.11658 | N20: 206.8258433 | O20: =IF(A20="","",-IPMT(H20*VLOOKUP(E20,index!A:C,3,0),calculations!B20,calculations!C20,calculations!F20,-calculations!G20,VLOOKUP(I20,index!G:H,2,0))) -> 69.38134152 | P20: =IF(A20="","",VLOOKUP(A20,'entry data'!B:L,11,0)+IF(B20=C20,G20,0)) -> 276.2071848 | Q20: 14149.29074 | R20: 0
A21: =IF(A20="","",IF(B20<C20,A20,IF(A20=MAX('entry data'!$B$8:$B$17),"",A20+1))) -> 1 | B21: 20 | C21: =IF(A21="","",VLOOKUP(A21,'entry data'!B:H,7,0)) -> 78 | D21: =IF(A21="","",VLOOKUP(A21,'entry data'!B:C,2,0)) -> Car Loan | E21: =IF(A21="","",VLOOKUP(A21,'entry data'!B:E,4,0)) -> fortnightly | F21: =IF(A21="","",VLOOKUP(A21,'entry data'!B:F,5,0)) -> 18000 | G21: =IF(A21="","",IF(ISERROR(VLOOKUP(A21,'entry data'!B:G,6,0)),"",VLOOKUP(A21,'entry data'!B:G,6,0))) -> 0 | H21: =IF(A21="","",VLOOKUP(A21,'entry data'!B:L,9,0)) -> 0.126 | I21: =IF(A21="","",VLOOKUP(A21,'entry data'!B:K,10,0)) -> advance | J21: =IF(A21="","",IF(B21=1,VLOOKUP(A21,'entry data'!B:D,3,0),K20)) -> 2014-03-11 | K21: 2014-03-25 | L21: 2014-03 | M21: 14149.29074 | N21: 207.8254071 | O21: =IF(A21="","",-IPMT(H21*VLOOKUP(E21,index!A:C,3,0),calculations!B21,calculations!C21,calculations!F21,-calculations!G21,VLOOKUP(I21,index!G:H,2,0))) -> 68.38177771 | P21: =IF(A21="","",VLOOKUP(A21,'entry data'!B:L,11,0)+IF(B21=C21,G21,0)) -> 276.2071848 | Q21: 13941.46533 | R21: 13941.46533
A22: =IF(A21="","",IF(B21<C21,A21,IF(A21=MAX('entry data'!$B$8:$B$17),"",A21+1))) -> 1 | B22: 21 | C22: =IF(A22="","",VLOOKUP(A22,'entry data'!B:H,7,0)) -> 78 | D22: =IF(A22="","",VLOOKUP(A22,'entry data'!B:C,2,0)) -> Car Loan | E22: =IF(A22="","",VLOOKUP(A22,'entry data'!B:E,4,0)) -> fortnightly | F22: =IF(A22="","",VLOOKUP(A22,'entry data'!B:F,5,0)) -> 18000 | G22: =IF(A22="","",IF(ISERROR(VLOOKUP(A22,'entry data'!B:G,6,0)),"",VLOOKUP(A22,'entry data'!B:G,6,0))) -> 0 | H22: =IF(A22="","",VLOOKUP(A22,'entry data'!B:L,9,0)) -> 0.126 | I22: =IF(A22="","",VLOOKUP(A22,'entry data'!B:K,10,0)) -> advance | J22: =IF(A22="","",IF(B22=1,VLOOKUP(A22,'entry data'!B:D,3,0),K21)) -> 2014-03-25 | K22: 2014-04-08 | L22: 2014-04 | M22: 13941.46533 | N22: 208.8298017 | O22: =IF(A22="","",-IPMT(H22*VLOOKUP(E22,index!A:C,3,0),calculations!B22,calculations!C22,calculations!F22,-calculations!G22,VLOOKUP(I22,index!G:H,2,0))) -> 67.37738314 | P22: =IF(A22="","",VLOOKUP(A22,'entry data'!B:L,11,0)+IF(B22=C22,G22,0)) -> 276.2071848 | Q22: 13732.63553 | R22: 0
A23: =IF(A22="","",IF(B22<C22,A22,IF(A22=MAX('entry data'!$B$8:$B$17),"",A22+1))) -> 1 | B23: 22 | C23: =IF(A23="","",VLOOKUP(A23,'entry data'!B:H,7,0)) -> 78 | D23: =IF(A23="","",VLOOKUP(A23,'entry data'!B:C,2,0)) -> Car Loan | E23: =IF(A23="","",VLOOKUP(A23,'entry data'!B:E,4,0)) -> fortnightly | F23: =IF(A23="","",VLOOKUP(A23,'entry data'!B:F,5,0)) -> 18000 | G23: =IF(A23="","",IF(ISERROR(VLOOKUP(A23,'entry data'!B:G,6,0)),"",VLOOKUP(A23,'entry data'!B:G,6,0))) -> 0 | H23: =IF(A23="","",VLOOKUP(A23,'entry data'!B:L,9,0)) -> 0.126 | I23: =IF(A23="","",VLOOKUP(A23,'entry data'!B:K,10,0)) -> advance | J23: =IF(A23="","",IF(B23=1,VLOOKUP(A23,'entry data'!B:D,3,0),K22)) -> 2014-04-08 | K23: 2014-04-22 | L23: 2014-04 | M23: 13732.63553 | N23: 209.8390504 | O23: =IF(A23="","",-IPMT(H23*VLOOKUP(E23,index!A:C,3,0),calculations!B23,calculations!C23,calculations!F23,-calculations!G23,VLOOKUP(I23,index!G:H,2,0))) -> 66.36813446 | P23: =IF(A23="","",VLOOKUP(A23,'entry data'!B:L,11,0)+IF(B23=C23,G23,0)) -> 276.2071848 | Q23: 13522.79648 | R23: 13522.79648
A24: =IF(A23="","",IF(B23<C23,A23,IF(A23=MAX('entry data'!$B$8:$B$17),"",A23+1))) -> 1 | B24: 23 | C24: =IF(A24="","",VLOOKUP(A24,'entry data'!B:H,7,0)) -> 78 | D24: =IF(A24="","",VLOOKUP(A24,'entry data'!B:C,2,0)) -> Car Loan | E24: =IF(A24="","",VLOOKUP(A24,'entry data'!B:E,4,0)) -> fortnightly | F24: =IF(A24="","",VLOOKUP(A24,'entry data'!B:F,5,0)) -> 18000 | G24: =IF(A24="","",IF(ISERROR(VLOOKUP(A24,'entry data'!B:G,6,0)),"",VLOOKUP(A24,'entry data'!B:G,6,0))) -> 0 | H24: =IF(A24="","",VLOOKUP(A24,'entry data'!B:L,9,0)) -> 0.126 | I24: =IF(A24="","",VLOOKUP(A24,'entry data'!B:K,10,0)) -> advance | J24: =IF(A24="","",IF(B24=1,VLOOKUP(A24,'entry data'!B:D,3,0),K23)) -> 2014-04-22 | K24: 2014-05-06 | L24: 2014-05 | M24: 13522.79648 | N24: 210.8531766 | O24: =IF(A24="","",-IPMT(H24*VLOOKUP(E24,index!A:C,3,0),calculations!B24,calculations!C24,calculations!F24,-calculations!G24,VLOOKUP(I24,index!G:H,2,0))) -> 65.3540082 | P24: =IF(A24="","",VLOOKUP(A24,'entry data'!B:L,11,0)+IF(B24=C24,G24,0)) -> 276.2071848 | Q24: 13311.9433 | R24: 0
A25: =IF(A24="","",IF(B24<C24,A24,IF(A24=MAX('entry data'!$B$8:$B$17),"",A24+1))) -> 1 | B25: 24 | C25: =IF(A25="","",VLOOKUP(A25,'entry data'!B:H,7,0)) -> 78 | D25: =IF(A25="","",VLOOKUP(A25,'entry data'!B:C,2,0)) -> Car Loan | E25: =IF(A25="","",VLOOKUP(A25,'entry data'!B:E,4,0)) -> fortnightly | F25: =IF(A25="","",VLOOKUP(A25,'entry data'!B:F,5,0)) -> 18000 | G25: =IF(A25="","",IF(ISERROR(VLOOKUP(A25,'entry data'!B:G,6,0)),"",VLOOKUP(A25,'entry data'!B:G,6,0))) -> 0 | H25: =IF(A25="","",VLOOKUP(A25,'entry data'!B:L,9,0)) -> 0.126 | I25: =IF(A25="","",VLOOKUP(A25,'entry data'!B:K,10,0)) -> advance | J25: =IF(A25="","",IF(B25=1,VLOOKUP(A25,'entry data'!B:D,3,0),K24)) -> 2014-05-06 | K25: 2014-05-20 | L25: 2014-05 | M25: 13311.9433 | N25: 211.872204 | O25: =IF(A25="","",-IPMT(H25*VLOOKUP(E25,index!A:C,3,0),calculations!B25,calculations!C25,calculations!F25,-calculations!G25,VLOOKUP(I25,index!G:H,2,0))) -> 64.33498079 | P25: =IF(A25="","",VLOOKUP(A25,'entry data'!B:L,11,0)+IF(B25=C25,G25,0)) -> 276.2071848 | Q25: 13100.0711 | R25: 13100.0711
A26: =IF(A25="","",IF(B25<C25,A25,IF(A25=MAX('entry data'!$B$8:$B$17),"",A25+1))) -> 1 | B26: 25 | C26: =IF(A26="","",VLOOKUP(A26,'entry data'!B:H,7,0)) -> 78 | D26: =IF(A26="","",VLOOKUP(A26,'entry data'!B:C,2,0)) -> Car Loan | E26: =IF(A26="","",VLOOKUP(A26,'entry data'!B:E,4,0)) -> fortnightly | F26: =IF(A26="","",VLOOKUP(A26,'entry data'!B:F,5,0)) -> 18000 | G26: =IF(A26="","",IF(ISERROR(VLOOKUP(A26,'entry data'!B:G,6,0)),"",VLOOKUP(A26,'entry data'!B:G,6,0))) -> 0 | H26: =IF(A26="","",VLOOKUP(A26,'entry data'!B:L,9,0)) -> 0.126 | I26: =IF(A26="","",VLOOKUP(A26,'entry data'!B:K,10,0)) -> advance | J26: =IF(A26="","",IF(B26=1,VLOOKUP(A26,'entry data'!B:D,3,0),K25)) -> 2014-05-20 | K26: 2014-06-03 | L26: 2014-06 | M26: 13100.0711 | N26: 212.8961563 | O26: =IF(A26="","",-IPMT(H26*VLOOKUP(E26,index!A:C,3,0),calculations!B26,calculations!C26,calculations!F26,-calculations!G26,VLOOKUP(I26,index!G:H,2,0))) -> 63.31102855 | P26: =IF(A26="","",VLOOKUP(A26,'entry data'!B:L,11,0)+IF(B26=C26,G26,0)) -> 276.2071848 | Q26: 12887.17494 | R26: 0
A27: =IF(A26="","",IF(B26<C26,A26,IF(A26=MAX('entry data'!$B$8:$B$17),"",A26+1))) -> 1 | B27: 26 | C27: =IF(A27="","",VLOOKUP(A27,'entry data'!B:H,7,0)) -> 78 | D27: =IF(A27="","",VLOOKUP(A27,'entry data'!B:C,2,0)) -> Car Loan | E27: =IF(A27="","",VLOOKUP(A27,'entry data'!B:E,4,0)) -> fortnightly | F27: =IF(A27="","",VLOOKUP(A27,'entry data'!B:F,5,0)) -> 18000 | G27: =IF(A27="","",IF(ISERROR(VLOOKUP(A27,'entry data'!B:G,6,0)),"",VLOOKUP(A27,'entry data'!B:G,6,0))) -> 0 | H27: =IF(A27="","",VLOOKUP(A27,'entry data'!B:L,9,0)) -> 0.126 | I27: =IF(A27="","",VLOOKUP(A27,'entry data'!B:K,10,0)) -> advance | J27: =IF(A27="","",IF(B27=1,VLOOKUP(A27,'entry data'!B:D,3,0),K26)) -> 2014-06-03 | K27: 2014-06-17 | L27: 2014-06 | M27: 12887.17494 | N27: 213.9250572 | O27: =IF(A27="","",-IPMT(H27*VLOOKUP(E27,index!A:C,3,0),calculations!B27,calculations!C27,calculations!F27,-calculations!G27,VLOOKUP(I27,index!G:H,2,0))) -> 62.28212767 | P27: =IF(A27="","",VLOOKUP(A27,'entry data'!B:L,11,0)+IF(B27=C27,G27,0)) -> 276.2071848 | Q27: 12673.24989 | R27: 12673.24989
A28: =IF(A27="","",IF(B27<C27,A27,IF(A27=MAX('entry data'!$B$8:$B$17),"",A27+1))) -> 1 | B28: 27 | C28: =IF(A28="","",VLOOKUP(A28,'entry data'!B:H,7,0)) -> 78 | D28: =IF(A28="","",VLOOKUP(A28,'entry data'!B:C,2,0)) -> Car Loan | E28: =IF(A28="","",VLOOKUP(A28,'entry data'!B:E,4,0)) -> fortnightly | F28: =IF(A28="","",VLOOKUP(A28,'entry data'!B:F,5,0)) -> 18000 | G28: =IF(A28="","",IF(ISERROR(VLOOKUP(A28,'entry data'!B:G,6,0)),"",VLOOKUP(A28,'entry data'!B:G,6,0))) -> 0 | H28: =IF(A28="","",VLOOKUP(A28,'entry data'!B:L,9,0)) -> 0.126 | I28: =IF(A28="","",VLOOKUP(A28,'entry data'!B:K,10,0)) -> advance | J28: =IF(A28="","",IF(B28=1,VLOOKUP(A28,'entry data'!B:D,3,0),K27)) -> 2014-06-17 | K28: 2014-07-01 | L28: 2014-07 | M28: 12673.24989 | N28: 214.9589306 | O28: =IF(A28="","",-IPMT(H28*VLOOKUP(E28,index!A:C,3,0),calculations!B28,calculations!C28,calculations!F28,-calculations!G28,VLOOKUP(I28,index!G:H,2,0))) -> 61.24825425 | P28: =IF(A28="","",VLOOKUP(A28,'entry data'!B:L,11,0)+IF(B28=C28,G28,0)) -> 276.2071848 | Q28: 12458.29096 | R28: 0
A29: =IF(A28="","",IF(B28<C28,A28,IF(A28=MAX('entry data'!$B$8:$B$17),"",A28+1))) -> 1 | B29: 28 | C29: =IF(A29="","",VLOOKUP(A29,'entry data'!B:H,7,0)) -> 78 | D29: =IF(A29="","",VLOOKUP(A29,'entry data'!B:C,2,0)) -> Car Loan | E29: =IF(A29="","",VLOOKUP(A29,'entry data'!B:E,4,0)) -> fortnightly | F29: =IF(A29="","",VLOOKUP(A29,'entry data'!B:F,5,0)) -> 18000 | G29: =IF(A29="","",IF(ISERROR(VLOOKUP(A29,'entry data'!B:G,6,0)),"",VLOOKUP(A29,'entry data'!B:G,6,0))) -> 0 | H29: =IF(A29="","",VLOOKUP(A29,'entry data'!B:L,9,0)) -> 0.126 | I29: =IF(A29="","",VLOOKUP(A29,'entry data'!B:K,10,0)) -> advance | J29: =IF(A29="","",IF(B29=1,VLOOKUP(A29,'entry data'!B:D,3,0),K28)) -> 2014-07-01 | K29: 2014-07-15 | L29: 2014-07 | M29: 12458.29096 | N29: 215.9978006 | O29: =IF(A29="","",-IPMT(H29*VLOOKUP(E29,index!A:C,3,0),calculations!B29,calculations!C29,calculations!F29,-calculations!G29,VLOOKUP(I29,index!G:H,2,0))) -> 60.20938424 | P29: =IF(A29="","",VLOOKUP(A29,'entry data'!B:L,11,0)+IF(B29=C29,G29,0)) -> 276.2071848 | Q29: 12242.29316 | R29: 0
A30: =IF(A29="","",IF(B29<C29,A29,IF(A29=MAX('entry data'!$B$8:$B$17),"",A29+1))) -> 1 | B30: 29 | C30: =IF(A30="","",VLOOKUP(A30,'entry data'!B:H,7,0)) -> 78 | D30: =IF(A30="","",VLOOKUP(A30,'entry data'!B:C,2,0)) -> Car Loan | E30: =IF(A30="","",VLOOKUP(A30,'entry data'!B:E,4,0)) -> fortnightly | F30: =IF(A30="","",VLOOKUP(A30,'entry data'!B:F,5,0)) -> 18000 | G30: =IF(A30="","",IF(ISERROR(VLOOKUP(A30,'entry data'!B:G,6,0)),"",VLOOKUP(A30,'entry data'!B:G,6,0))) -> 0 | H30: =IF(A30="","",VLOOKUP(A30,'entry data'!B:L,9,0)) -> 0.126 | I30: =IF(A30="","",VLOOKUP(A30,'entry data'!B:K,10,0)) -> advance | J30: =IF(A30="","",IF(B30=1,VLOOKUP(A30,'entry data'!B:D,3,0),K29)) -> 2014-07-15 | K30: 2014-07-29 | L30: 2014-07 | M30: 12242.29316 | N30: 217.0416913 | O30: =IF(A30="","",-IPMT(H30*VLOOKUP(E30,index!A:C,3,0),calculations!B30,calculations!C30,calculations!F30,-calculations!G30,VLOOKUP(I30,index!G:H,2,0))) -> 59.1654935 | P30: =IF(A30="","",VLOOKUP(A30,'entry data'!B:L,11,0)+IF(B30=C30,G30,0)) -> 276.2071848 | Q30: 12025.25146 | R30: 12025.25146
A31: =IF(A30="","",IF(B30<C30,A30,IF(A30=MAX('entry data'!$B$8:$B$17),"",A30+1))) -> 1 | B31: 30 | C31: =IF(A31="","",VLOOKUP(A31,'entry data'!B:H,7,0)) -> 78 | D31: =IF(A31="","",VLOOKUP(A31,'entry data'!B:C,2,0)) -> Car Loan | E31: =IF(A31="","",VLOOKUP(A31,'entry data'!B:E,4,0)) -> fortnightly | F31: =IF(A31="","",VLOOKUP(A31,'entry data'!B:F,5,0)) -> 18000 | G31: =IF(A31="","",IF(ISERROR(VLOOKUP(A31,'entry data'!B:G,6,0)),"",VLOOKUP(A31,'entry data'!B:G,6,0))) -> 0 | H31: =IF(A31="","",VLOOKUP(A31,'entry data'!B:L,9,0)) -> 0.126 | I31: =IF(A31="","",VLOOKUP(A31,'entry data'!B:K,10,0)) -> advance | J31: =IF(A31="","",IF(B31=1,VLOOKUP(A31,'entry data'!B:D,3,0),K30)) -> 2014-07-29 | K31: 2014-08-12 | L31: 2014-08 | M31: 12025.25146 | N31: 218.0906271 | O31: =IF(A31="","",-IPMT(H31*VLOOKUP(E31,index!A:C,3,0),calculations!B31,calculations!C31,calculations!F31,-calculations!G31,VLOOKUP(I31,index!G:H,2,0))) -> 58.11655776 | P31: =IF(A31="","",VLOOKUP(A31,'entry data'!B:L,11,0)+IF(B31=C31,G31,0)) -> 276.2071848 | Q31: 11807.16084 | R31: 0
A32: =IF(A31="","",IF(B31<C31,A31,IF(A31=MAX('entry data'!$B$8:$B$17),"",A31+1))) -> 1 | B32: 31 | C32: =IF(A32="","",VLOOKUP(A32,'entry data'!B:H,7,0)) -> 78 | D32: =IF(A32="","",VLOOKUP(A32,'entry data'!B:C,2,0)) -> Car Loan | E32: =IF(A32="","",VLOOKUP(A32,'entry data'!B:E,4,0)) -> fortnightly | F32: =IF(A32="","",VLOOKUP(A32,'entry data'!B:F,5,0)) -> 18000 | G32: =IF(A32="","",IF(ISERROR(VLOOKUP(A32,'entry data'!B:G,6,0)),"",VLOOKUP(A32,'entry data'!B:G,6,0))) -> 0 | H32: =IF(A32="","",VLOOKUP(A32,'entry data'!B:L,9,0)) -> 0.126 | I32: =IF(A32="","",VLOOKUP(A32,'entry data'!B:K,10,0)) -> advance | J32: =IF(A32="","",IF(B32=1,VLOOKUP(A32,'entry data'!B:D,3,0),K31)) -> 2014-08-12 | K32: 2014-08-26 | L32: 2014-08 | M32: 11807.16084 | N32: 219.1446322 | O32: =IF(A32="","",-IPMT(H32*VLOOKUP(E32,index!A:C,3,0),calculations!B32,calculations!C32,calculations!F32,-calculations!G32,VLOOKUP(I32,index!G:H,2,0))) -> 57.06255265 | P32: =IF(A32="","",VLOOKUP(A32,'entry data'!B:L,11,0)+IF(B32=C32,G32,0)) -> 276.2071848 | Q32: 11588.0162 | R32: 11588.0162
A33: =IF(A32="","",IF(B32<C32,A32,IF(A32=MAX('entry data'!$B$8:$B$17),"",A32+1))) -> 1 | B33: =IF(A33="","",IF(B32=C32,1,B32+1)) -> 32 | C33: =IF(A33="","",VLOOKUP(A33,'entry data'!B:H,7,0)) -> 78 | D33: =IF(A33="","",VLOOKUP(A33,'entry data'!B:C,2,0)) -> Car Loan | E33: =IF(A33="","",VLOOKUP(A33,'entry data'!B:E,4,0)) -> fortnightly | F33: =IF(A33="","",VLOOKUP(A33,'entry data'!B:F,5,0)) -> 18000 | G33: =IF(A33="","",IF(ISERROR(VLOOKUP(A33,'entry data'!B:G,6,0)),"",VLOOKUP(A33,'entry data'!B:G,6,0))) -> 0 | H33: =IF(A33="","",VLOOKUP(A33,'entry data'!B:L,9,0)) -> 0.126 | I33: =IF(A33="","",VLOOKUP(A33,'entry data'!B:K,10,0)) -> advance | J33: =IF(A33="","",IF(B33=1,VLOOKUP(A33,'entry data'!B:D,3,0),K32)) -> 2014-08-26 | K33: =IF(A33="","",IF(E33="weekly",7,IF(E33="fortnightly",14,DATE(IF(MONTH(J33)=12,YEAR(J33)+1,YEAR(J33)),IF(MONTH(J33)=12,1,MONTH(J33)+1),DAY(J33))-J33))+J33) -> 2014-09-09 | L33: =IF(A33="","",IF(MONTH(K33)<10,YEAR(K33)&"-0"&MONTH(K33),YEAR(K33)&"-"&MONTH(K33))) -> 2014-09 | M33: 11588.0162 | N33: =IF(A33="","",P33-O33) -> 220.2037312 | O33: =IF(A33="","",-IPMT(H33*VLOOKUP(E33,index!A:C,3,0),calculations!B33,calculations!C33,calculations!F33,-calculations!G33,VLOOKUP(I33,index!G:H,2,0))) -> 56.00345366 | P33: =IF(A33="","",VLOOKUP(A33,'entry data'!B:L,11,0)+IF(B33=C33,G33,0)) -> 276.2071848 | Q33: =IF(A33="","",M33-N33) -> 11367.81247 | R33: 0
A34: =IF(A33="","",IF(B33<C33,A33,IF(A33=MAX('entry data'!$B$8:$B$17),"",A33+1))) -> 1 | B34: =IF(A34="","",IF(B33=C33,1,B33+1)) -> 33 | C34: =IF(A34="","",VLOOKUP(A34,'entry data'!B:H,7,0)) -> 78 | D34: =IF(A34="","",VLOOKUP(A34,'entry data'!B:C,2,0)) -> Car Loan | E34: =IF(A34="","",VLOOKUP(A34,'entry data'!B:E,4,0)) -> fortnightly | F34: =IF(A34="","",VLOOKUP(A34,'entry data'!B:F,5,0)) -> 18000 | G34: =IF(A34="","",IF(ISERROR(VLOOKUP(A34,'entry data'!B:G,6,0)),"",VLOOKUP(A34,'entry data'!B:G,6,0))) -> 0 | H34: =IF(A34="","",VLOOKUP(A34,'entry data'!B:L,9,0)) -> 0.126 | I34: =IF(A34="","",VLOOKUP(A34,'entry data'!B:K,10,0)) -> advance | J34: =IF(A34="","",IF(B34=1,VLOOKUP(A34,'entry data'!B:D,3,0),K33)) -> 2014-09-09 | K34: =IF(A34="","",IF(E34="weekly",7,IF(E34="fortnightly",14,DATE(IF(MONTH(J34)=12,YEAR(J34)+1,YEAR(J34)),IF(MONTH(J34)=12,1,MONTH(J34)+1),DAY(J34))-J34))+J34) -> 2014-09-23 | L34: =IF(A34="","",IF(MONTH(K34)<10,YEAR(K34)&"-0"&MONTH(K34),YEAR(K34)&"-"&MONTH(K34))) -> 2014-09 | M34: 11367.81247 | N34: =IF(A34="","",P34-O34) -> 221.2679487 | O34: =IF(A34="","",-IPMT(H34*VLOOKUP(E34,index!A:C,3,0),calculations!B34,calculations!C34,calculations!F34,-calculations!G34,VLOOKUP(I34,index!G:H,2,0))) -> 54.93923617 | P34: =IF(A34="","",VLOOKUP(A34,'entry data'!B:L,11,0)+IF(B34=C34,G34,0)) -> 276.2071848 | Q34: =IF(A34="","",M34-N34) -> 11146.54453 | R34: 11146.54453
A35: =IF(A34="","",IF(B34<C34,A34,IF(A34=MAX('entry data'!$B$8:$B$17),"",A34+1))) -> 1 | B35: 34 | C35: =IF(A35="","",VLOOKUP(A35,'entry data'!B:H,7,0)) -> 78 | D35: =IF(A35="","",VLOOKUP(A35,'entry data'!B:C,2,0)) -> Car Loan | E35: =IF(A35="","",VLOOKUP(A35,'entry data'!B:E,4,0)) -> fortnightly | F35: =IF(A35="","",VLOOKUP(A35,'entry data'!B:F,5,0)) -> 18000 | G35: =IF(A35="","",IF(ISERROR(VLOOKUP(A35,'entry data'!B:G,6,0)),"",VLOOKUP(A35,'entry data'!B:G,6,0))) -> 0 | H35: =IF(A35="","",VLOOKUP(A35,'entry data'!B:L,9,0)) -> 0.126 | I35: =IF(A35="","",VLOOKUP(A35,'entry data'!B:K,10,0)) -> advance | J35: =IF(A35="","",IF(B35=1,VLOOKUP(A35,'entry data'!B:D,3,0),K34)) -> 2014-09-23 | K35: 2014-10-07 | L35: 2014-10 | M35: 11146.54453 | N35: 222.3373094 | O35: =IF(A35="","",-IPMT(H35*VLOOKUP(E35,index!A:C,3,0),calculations!B35,calculations!C35,calculations!F35,-calculations!G35,VLOOKUP(I35,index!G:H,2,0))) -> 53.86987546 | P35: =IF(A35="","",VLOOKUP(A35,'entry data'!B:L,11,0)+IF(B35=C35,G35,0)) -> 276.2071848 | Q35: 10924.20722 | R35: 0
A36: =IF(A35="","",IF(B35<C35,A35,IF(A35=MAX('entry data'!$B$8:$B$17),"",A35+1))) -> 1 | B36: 35 | C36: =IF(A36="","",VLOOKUP(A36,'entry data'!B:H,7,0)) -> 78 | D36: =IF(A36="","",VLOOKUP(A36,'entry data'!B:C,2,0)) -> Car Loan | E36: =IF(A36="","",VLOOKUP(A36,'entry data'!B:E,4,0)) -> fortnightly | F36: =IF(A36="","",VLOOKUP(A36,'entry data'!B:F,5,0)) -> 18000 | G36: =IF(A36="","",IF(ISERROR(VLOOKUP(A36,'entry data'!B:G,6,0)),"",VLOOKUP(A36,'entry data'!B:G,6,0))) -> 0 | H36: =IF(A36="","",VLOOKUP(A36,'entry data'!B:L,9,0)) -> 0.126 | I36: =IF(A36="","",VLOOKUP(A36,'entry data'!B:K,10,0)) -> advance | J36: =IF(A36="","",IF(B36=1,VLOOKUP(A36,'entry data'!B:D,3,0),K35)) -> 2014-10-07 | K36: 2014-10-21 | L36: 2014-10 | M36: 10924.20722 | N36: 223.4118382 | O36: =IF(A36="","",-IPMT(H36*VLOOKUP(E36,index!A:C,3,0),calculations!B36,calculations!C36,calculations!F36,-calculations!G36,VLOOKUP(I36,index!G:H,2,0))) -> 52.79534665 | P36: =IF(A36="","",VLOOKUP(A36,'entry data'!B:L,11,0)+IF(B36=C36,G36,0)) -> 276.2071848 | Q36: 10700.79538 | R36: 10700.79538
A37: =IF(A36="","",IF(B36<C36,A36,IF(A36=MAX('entry data'!$B$8:$B$17),"",A36+1))) -> 1 | B37: 36 | C37: =IF(A37="","",VLOOKUP(A37,'entry data'!B:H,7,0)) -> 78 | D37: =IF(A37="","",VLOOKUP(A37,'entry data'!B:C,2,0)) -> Car Loan | E37: =IF(A37="","",VLOOKUP(A37,'entry data'!B:E,4,0)) -> fortnightly | F37: =IF(A37="","",VLOOKUP(A37,'entry data'!B:F,5,0)) -> 18000 | G37: =IF(A37="","",IF(ISERROR(VLOOKUP(A37,'entry data'!B:G,6,0)),"",VLOOKUP(A37,'entry data'!B:G,6,0))) -> 0 | H37: =IF(A37="","",VLOOKUP(A37,'entry data'!B:L,9,0)) -> 0.126 | I37: =IF(A37="","",VLOOKUP(A37,'entry data'!B:K,10,0)) -> advance | J37: =IF(A37="","",IF(B37=1,VLOOKUP(A37,'entry data'!B:D,3,0),K36)) -> 2014-10-21 | K37: 2014-11-04 | L37: 2014-11 | M37: 10700.79538 | N37: 224.4915601 | O37: =IF(A37="","",-IPMT(H37*VLOOKUP(E37,index!A:C,3,0),calculations!B37,calculations!C37,calculations!F37,-calculations!G37,VLOOKUP(I37,index!G:H,2,0))) -> 51.71562478 | P37: =IF(A37="","",VLOOKUP(A37,'entry data'!B:L,11,0)+IF(B37=C37,G37,0)) -> 276.2071848 | Q37: 10476.30382 | R37: 0
A38: =IF(A37="","",IF(B37<C37,A37,IF(A37=MAX('entry data'!$B$8:$B$17),"",A37+1))) -> 1 | B38: 37 | C38: =IF(A38="","",VLOOKUP(A38,'entry data'!B:H,7,0)) -> 78 | D38: =IF(A38="","",VLOOKUP(A38,'entry data'!B:C,2,0)) -> Car Loan | E38: =IF(A38="","",VLOOKUP(A38,'entry data'!B:E,4,0)) -> fortnightly | F38: =IF(A38="","",VLOOKUP(A38,'entry data'!B:F,5,0)) -> 18000 | G38: =IF(A38="","",IF(ISERROR(VLOOKUP(A38,'entry data'!B:G,6,0)),"",VLOOKUP(A38,'entry data'!B:G,6,0))) -> 0 | H38: =IF(A38="","",VLOOKUP(A38,'entry data'!B:L,9,0)) -> 0.126 | I38: =IF(A38="","",VLOOKUP(A38,'entry data'!B:K,10,0)) -> advance | J38: =IF(A38="","",IF(B38=1,VLOOKUP(A38,'entry data'!B:D,3,0),K37)) -> 2014-11-04 | K38: 2014-11-18 | L38: 2014-11 | M38: 10476.30382 | N38: 225.5765001 | O38: =IF(A38="","",-IPMT(H38*VLOOKUP(E38,index!A:C,3,0),calculations!B38,calculations!C38,calculations!F38,-calculations!G38,VLOOKUP(I38,index!G:H,2,0))) -> 50.63068475 | P38: =IF(A38="","",VLOOKUP(A38,'entry data'!B:L,11,0)+IF(B38=C38,G38,0)) -> 276.2071848 | Q38: 10250.72732 | R38: 10250.72732
A39: =IF(A38="","",IF(B38<C38,A38,IF(A38=MAX('entry data'!$B$8:$B$17),"",A38+1))) -> 1 | B39: 38 | C39: =IF(A39="","",VLOOKUP(A39,'entry data'!B:H,7,0)) -> 78 | D39: =IF(A39="","",VLOOKUP(A39,'entry data'!B:C,2,0)) -> Car Loan | E39: =IF(A39="","",VLOOKUP(A39,'entry data'!B:E,4,0)) -> fortnightly | F39: =IF(A39="","",VLOOKUP(A39,'entry data'!B:F,5,0)) -> 18000 | G39: =IF(A39="","",IF(ISERROR(VLOOKUP(A39,'entry data'!B:G,6,0)),"",VLOOKUP(A39,'entry data'!B:G,6,0))) -> 0 | H39: =IF(A39="","",VLOOKUP(A39,'entry data'!B:L,9,0)) -> 0.126 | I39: =IF(A39="","",VLOOKUP(A39,'entry data'!B:K,10,0)) -> advance | J39: =IF(A39="","",IF(B39=1,VLOOKUP(A39,'entry data'!B:D,3,0),K38)) -> 2014-11-18 | K39: 2014-12-02 | L39: 2014-12 | M39: 10250.72732 | N39: 226.6666835 | O39: =IF(A39="","",-IPMT(H39*VLOOKUP(E39,index!A:C,3,0),calculations!B39,calculations!C39,calculations!F39,-calculations!G39,VLOOKUP(I39,index!G:H,2,0))) -> 49.54050134 | P39: =IF(A39="","",VLOOKUP(A39,'entry data'!B:L,11,0)+IF(B39=C39,G39,0)) -> 276.2071848 | Q39: 10024.06063 | R39: 0
A40: =IF(A39="","",IF(B39<C39,A39,IF(A39=MAX('entry data'!$B$8:$B$17),"",A39+1))) -> 1 | B40: 39 | C40: =IF(A40="","",VLOOKUP(A40,'entry data'!B:H,7,0)) -> 78 | D40: =IF(A40="","",VLOOKUP(A40,'entry data'!B:C,2,0)) -> Car Loan | E40: =IF(A40="","",VLOOKUP(A40,'entry data'!B:E,4,0)) -> fortnightly | F40: =IF(A40="","",VLOOKUP(A40,'entry data'!B:F,5,0)) -> 18000 | G40: =IF(A40="","",IF(ISERROR(VLOOKUP(A40,'entry data'!B:G,6,0)),"",VLOOKUP(A40,'entry data'!B:G,6,0))) -> 0 | H40: =IF(A40="","",VLOOKUP(A40,'entry data'!B:L,9,0)) -> 0.126 | I40: =IF(A40="","",VLOOKUP(A40,'entry data'!B:K,10,0)) -> advance | J40: =IF(A40="","",IF(B40=1,VLOOKUP(A40,'entry data'!B:D,3,0),K39)) -> 2014-12-02 | K40: 2014-12-16 | L40: 2014-12 | M40: 10024.06063 | N40: 227.7621356 | O40: =IF(A40="","",-IPMT(H40*VLOOKUP(E40,index!A:C,3,0),calculations!B40,calculations!C40,calculations!F40,-calculations!G40,VLOOKUP(I40,index!G:H,2,0))) -> 48.4450492 | P40: =IF(A40="","",VLOOKUP(A40,'entry data'!B:L,11,0)+IF(B40=C40,G40,0)) -> 276.2071848 | Q40: 9796.298498 | R40: 0
A41: =IF(A40="","",IF(B40<C40,A40,IF(A40=MAX('entry data'!$B$8:$B$17),"",A40+1))) -> 1 | B41: 40 | C41: =IF(A41="","",VLOOKUP(A41,'entry data'!B:H,7,0)) -> 78 | D41: =IF(A41="","",VLOOKUP(A41,'entry data'!B:C,2,0)) -> Car Loan | E41: =IF(A41="","",VLOOKUP(A41,'entry data'!B:E,4,0)) -> fortnightly | F41: =IF(A41="","",VLOOKUP(A41,'entry data'!B:F,5,0)) -> 18000 | G41: =IF(A41="","",IF(ISERROR(VLOOKUP(A41,'entry data'!B:G,6,0)),"",VLOOKUP(A41,'entry data'!B:G,6,0))) -> 0 | H41: =IF(A41="","",VLOOKUP(A41,'entry data'!B:L,9,0)) -> 0.126 | I41: =IF(A41="","",VLOOKUP(A41,'entry data'!B:K,10,0)) -> advance | J41: =IF(A41="","",IF(B41=1,VLOOKUP(A41,'entry data'!B:D,3,0),K40)) -> 2014-12-16 | K41: 2014-12-30 | L41: 2014-12 | M41: 9796.298498 | N41: 228.862882 | O41: =IF(A41="","",-IPMT(H41*VLOOKUP(E41,index!A:C,3,0),calculations!B41,calculations!C41,calculations!F41,-calculations!G41,VLOOKUP(I41,index!G:H,2,0))) -> 47.34430288 | P41: =IF(A41="","",VLOOKUP(A41,'entry data'!B:L,11,0)+IF(B41=C41,G41,0)) -> 276.2071848 | Q41: 9567.435616 | R41: 9567.435616
A42: =IF(A41="","",IF(B41<C41,A41,IF(A41=MAX('entry data'!$B$8:$B$17),"",A41+1))) -> 1 | B42: 41 | C42: =IF(A42="","",VLOOKUP(A42,'entry data'!B:H,7,0)) -> 78 | D42: =IF(A42="","",VLOOKUP(A42,'entry data'!B:C,2,0)) -> Car Loan | E42: =IF(A42="","",VLOOKUP(A42,'entry data'!B:E,4,0)) -> fortnightly | F42: =IF(A42="","",VLOOKUP(A42,'entry data'!B:F,5,0)) -> 18000 | G42: =IF(A42="","",IF(ISERROR(VLOOKUP(A42,'entry data'!B:G,6,0)),"",VLOOKUP(A42,'entry data'!B:G,6,0))) -> 0 | H42: =IF(A42="","",VLOOKUP(A42,'entry data'!B:L,9,0)) -> 0.126 | I42: =IF(A42="","",VLOOKUP(A42,'entry data'!B:K,10,0)) -> advance | J42: =IF(A42="","",IF(B42=1,VLOOKUP(A42,'entry data'!B:D,3,0),K41)) -> 2014-12-30 | K42: 2015-01-13 | L42: 2015-01 | M42: 9567.435616 | N42: 229.9689481 | O42: =IF(A42="","",-IPMT(H42*VLOOKUP(E42,index!A:C,3,0),calculations!B42,calculations!C42,calculations!F42,-calculations!G42,VLOOKUP(I42,index!G:H,2,0))) -> 46.23823679 | P42: =IF(A42="","",VLOOKUP(A42,'entry data'!B:L,11,0)+IF(B42=C42,G42,0)) -> 276.2071848 | Q42: 9337.466668 | R42: 0
A43: =IF(A42="","",IF(B42<C42,A42,IF(A42=MAX('entry data'!$B$8:$B$17),"",A42+1))) -> 1 | B43: 42 | C43: =IF(A43="","",VLOOKUP(A43,'entry data'!B:H,7,0)) -> 78 | D43: =IF(A43="","",VLOOKUP(A43,'entry data'!B:C,2,0)) -> Car Loan | E43: =IF(A43="","",VLOOKUP(A43,'entry data'!B:E,4,0)) -> fortnightly | F43: =IF(A43="","",VLOOKUP(A43,'entry data'!B:F,5,0)) -> 18000 | G43: =IF(A43="","",IF(ISERROR(VLOOKUP(A43,'entry data'!B:G,6,0)),"",VLOOKUP(A43,'entry data'!B:G,6,0))) -> 0 | H43: =IF(A43="","",VLOOKUP(A43,'entry data'!B:L,9,0)) -> 0.126 | I43: =IF(A43="","",VLOOKUP(A43,'entry data'!B:K,10,0)) -> advance | J43: =IF(A43="","",IF(B43=1,VLOOKUP(A43,'entry data'!B:D,3,0),K42)) -> 2015-01-13 | K43: 2015-01-27 | L43: 2015-01 | M43: 9337.466668 | N43: 231.0803596 | O43: =IF(A43="","",-IPMT(H43*VLOOKUP(E43,index!A:C,3,0),calculations!B43,calculations!C43,calculations!F43,-calculations!G43,VLOOKUP(I43,index!G:H,2,0))) -> 45.12682521 | P43: =IF(A43="","",VLOOKUP(A43,'entry data'!B:L,11,0)+IF(B43=C43,G43,0)) -> 276.2071848 | Q43: 9106.386309 | R43: 9106.386309
A44: =IF(A43="","",IF(B43<C43,A43,IF(A43=MAX('entry data'!$B$8:$B$17),"",A43+1))) -> 1 | B44: 43 | C44: =IF(A44="","",VLOOKUP(A44,'entry data'!B:H,7,0)) -> 78 | D44: =IF(A44="","",VLOOKUP(A44,'entry data'!B:C,2,0)) -> Car Loan | E44: =IF(A44="","",VLOOKUP(A44,'entry data'!B:E,4,0)) -> fortnightly | F44: =IF(A44="","",VLOOKUP(A44,'entry data'!B:F,5,0)) -> 18000 | G44: =IF(A44="","",IF(ISERROR(VLOOKUP(A44,'entry data'!B:G,6,0)),"",VLOOKUP(A44,'entry data'!B:G,6,0))) -> 0 | H44: =IF(A44="","",VLOOKUP(A44,'entry data'!B:L,9,0)) -> 0.126 | I44: =IF(A44="","",VLOOKUP(A44,'entry data'!B:K,10,0)) -> advance | J44: =IF(A44="","",IF(B44=1,VLOOKUP(A44,'entry data'!B:D,3,0),K43)) -> 2015-01-27 | K44: 2015-02-10 | L44: 2015-02 | M44: 9106.386309 | N44: 232.1971425 | O44: =IF(A44="","",-IPMT(H44*VLOOKUP(E44,index!A:C,3,0),calculations!B44,calculations!C44,calculations!F44,-calculations!G44,VLOOKUP(I44,index!G:H,2,0))) -> 44.01004232 | P44: =IF(A44="","",VLOOKUP(A44,'entry data'!B:L,11,0)+IF(B44=C44,G44,0)) -> 276.2071848 | Q44: 8874.189166 | R44: 0
A45: =IF(A44="","",IF(B44<C44,A44,IF(A44=MAX('entry data'!$B$8:$B$17),"",A44+1))) -> 1 | B45: 44 | C45: =IF(A45="","",VLOOKUP(A45,'entry data'!B:H,7,0)) -> 78 | D45: =IF(A45="","",VLOOKUP(A45,'entry data'!B:C,2,0)) -> Car Loan | E45: =IF(A45="","",VLOOKUP(A45,'entry data'!B:E,4,0)) -> fortnightly | F45: =IF(A45="","",VLOOKUP(A45,'entry data'!B:F,5,0)) -> 18000 | G45: =IF(A45="","",IF(ISERROR(VLOOKUP(A45,'entry data'!B:G,6,0)),"",VLOOKUP(A45,'entry data'!B:G,6,0))) -> 0 | H45: =IF(A45="","",VLOOKUP(A45,'entry data'!B:L,9,0)) -> 0.126 | I45: =IF(A45="","",VLOOKUP(A45,'entry data'!B:K,10,0)) -> advance | J45: =IF(A45="","",IF(B45=1,VLOOKUP(A45,'entry data'!B:D,3,0),K44)) -> 2015-02-10 | K45: 2015-02-24 | L45: 2015-02 | M45: 8874.189166 | N45: 233.3193227 | O45: =IF(A45="","",-IPMT(H45*VLOOKUP(E45,index!A:C,3,0),calculations!B45,calculations!C45,calculations!F45,-calculations!G45,VLOOKUP(I45,index!G:H,2,0))) -> 42.88786216 | P45: =IF(A45="","",VLOOKUP(A45,'entry data'!B:L,11,0)+IF(B45=C45,G45,0)) -> 276.2071848 | Q45: 8640.869843 | R45: 8640.869843
A46: =IF(A45="","",IF(B45<C45,A45,IF(A45=MAX('entry data'!$B$8:$B$17),"",A45+1))) -> 1 | B46: 45 | C46: =IF(A46="","",VLOOKUP(A46,'entry data'!B:H,7,0)) -> 78 | D46: =IF(A46="","",VLOOKUP(A46,'entry data'!B:C,2,0)) -> Car Loan | E46: =IF(A46="","",VLOOKUP(A46,'entry data'!B:E,4,0)) -> fortnightly | F46: =IF(A46="","",VLOOKUP(A46,'entry data'!B:F,5,0)) -> 18000 | G46: =IF(A46="","",IF(ISERROR(VLOOKUP(A46,'entry data'!B:G,6,0)),"",VLOOKUP(A46,'entry data'!B:G,6,0))) -> 0 | H46: =IF(A46="","",VLOOKUP(A46,'entry data'!B:L,9,0)) -> 0.126 | I46: =IF(A46="","",VLOOKUP(A46,'entry data'!B:K,10,0)) -> advance | J46: =IF(A46="","",IF(B46=1,VLOOKUP(A46,'entry data'!B:D,3,0),K45)) -> 2015-02-24 | K46: 2015-03-10 | L46: 2015-03 | M46: 8640.869843 | N46: 234.4469262 | O46: =IF(A46="","",-IPMT(H46*VLOOKUP(E46,index!A:C,3,0),calculations!B46,calculations!C46,calculations!F46,-calculations!G46,VLOOKUP(I46,index!G:H,2,0))) -> 41.76025864 | P46: =IF(A46="","",VLOOKUP(A46,'entry data'!B:L,11,0)+IF(B46=C46,G46,0)) -> 276.2071848 | Q46: 8406.422917 | R46: 0
A47: =IF(A46="","",IF(B46<C46,A46,IF(A46=MAX('entry data'!$B$8:$B$17),"",A46+1))) -> 1 | B47: 46 | C47: =IF(A47="","",VLOOKUP(A47,'entry data'!B:H,7,0)) -> 78 | D47: =IF(A47="","",VLOOKUP(A47,'entry data'!B:C,2,0)) -> Car Loan | E47: =IF(A47="","",VLOOKUP(A47,'entry data'!B:E,4,0)) -> fortnightly | F47: =IF(A47="","",VLOOKUP(A47,'entry data'!B:F,5,0)) -> 18000 | G47: =IF(A47="","",IF(ISERROR(VLOOKUP(A47,'entry data'!B:G,6,0)),"",VLOOKUP(A47,'entry data'!B:G,6,0))) -> 0 | H47: =IF(A47="","",VLOOKUP(A47,'entry data'!B:L,9,0)) -> 0.126 | I47: =IF(A47="","",VLOOKUP(A47,'entry data'!B:K,10,0)) -> advance | J47: =IF(A47="","",IF(B47=1,VLOOKUP(A47,'entry data'!B:D,3,0),K46)) -> 2015-03-10 | K47: 2015-03-24 | L47: 2015-03 | M47: 8406.422917 | N47: 235.5799793 | O47: =IF(A47="","",-IPMT(H47*VLOOKUP(E47,index!A:C,3,0),calculations!B47,calculations!C47,calculations!F47,-calculations!G47,VLOOKUP(I47,index!G:H,2,0))) -> 40.62720555 | P47: =IF(A47="","",VLOOKUP(A47,'entry data'!B:L,11,0)+IF(B47=C47,G47,0)) -> 276.2071848 | Q47: 8170.842938 | R47: 8170.842938
A48: =IF(A47="","",IF(B47<C47,A47,IF(A47=MAX('entry data'!$B$8:$B$17),"",A47+1))) -> 1 | B48: 47 | C48: =IF(A48="","",VLOOKUP(A48,'entry data'!B:H,7,0)) -> 78 | D48: =IF(A48="","",VLOOKUP(A48,'entry data'!B:C,2,0)) -> Car Loan | E48: =IF(A48="","",VLOOKUP(A48,'entry data'!B:E,4,0)) -> fortnightly | F48: =IF(A48="","",VLOOKUP(A48,'entry data'!B:F,5,0)) -> 18000 | G48: =IF(A48="","",IF(ISERROR(VLOOKUP(A48,'entry data'!B:G,6,0)),"",VLOOKUP(A48,'entry data'!B:G,6,0))) -> 0 | H48: =IF(A48="","",VLOOKUP(A48,'entry data'!B:L,9,0)) -> 0.126 | I48: =IF(A48="","",VLOOKUP(A48,'entry data'!B:K,10,0)) -> advance | J48: =IF(A48="","",IF(B48=1,VLOOKUP(A48,'entry data'!B:D,3,0),K47)) -> 2015-03-24 | K48: 2015-04-07 | L48: 2015-04 | M48: 8170.842938 | N48: 236.7185083 | O48: =IF(A48="","",-IPMT(H48*VLOOKUP(E48,index!A:C,3,0),calculations!B48,calculations!C48,calculations!F48,-calculations!G48,VLOOKUP(I48,index!G:H,2,0))) -> 39.48867655 | P48: =IF(A48="","",VLOOKUP(A48,'entry data'!B:L,11,0)+IF(B48=C48,G48,0)) -> 276.2071848 | Q48: 7934.12443 | R48: 0
A49: =IF(A48="","",IF(B48<C48,A48,IF(A48=MAX('entry data'!$B$8:$B$17),"",A48+1))) -> 1 | B49: 48 | C49: =IF(A49="","",VLOOKUP(A49,'entry data'!B:H,7,0)) -> 78 | D49: =IF(A49="","",VLOOKUP(A49,'entry data'!B:C,2,0)) -> Car Loan | E49: =IF(A49="","",VLOOKUP(A49,'entry data'!B:E,4,0)) -> fortnightly | F49: =IF(A49="","",VLOOKUP(A49,'entry data'!B:F,5,0)) -> 18000 | G49: =IF(A49="","",IF(ISERROR(VLOOKUP(A49,'entry data'!B:G,6,0)),"",VLOOKUP(A49,'entry data'!B:G,6,0))) -> 0 | H49: =IF(A49="","",VLOOKUP(A49,'entry data'!B:L,9,0)) -> 0.126 | I49: =IF(A49="","",VLOOKUP(A49,'entry data'!B:K,10,0)) -> advance | J49: =IF(A49="","",IF(B49=1,VLOOKUP(A49,'entry data'!B:D,3,0),K48)) -> 2015-04-07 | K49: 2015-04-21 | L49: 2015-04 | M49: 7934.12443 | N49: 237.8625397 | O49: =IF(A49="","",-IPMT(H49*VLOOKUP(E49,index!A:C,3,0),calculations!B49,calculations!C49,calculations!F49,-calculations!G49,VLOOKUP(I49,index!G:H,2,0))) -> 38.34464519 | P49: =IF(A49="","",VLOOKUP(A49,'entry data'!B:L,11,0)+IF(B49=C49,G49,0)) -> 276.2071848 | Q49: 7696.26189 | R49: 7696.26189
A50: =IF(A49="","",IF(B49<C49,A49,IF(A49=MAX('entry data'!$B$8:$B$17),"",A49+1))) -> 1 | B50: 49 | C50: =IF(A50="","",VLOOKUP(A50,'entry data'!B:H,7,0)) -> 78 | D50: =IF(A50="","",VLOOKUP(A50,'entry data'!B:C,2,0)) -> Car Loan | E50: =IF(A50="","",VLOOKUP(A50,'entry data'!B:E,4,0)) -> fortnightly | F50: =IF(A50="","",VLOOKUP(A50,'entry data'!B:F,5,0)) -> 18000 | G50: =IF(A50="","",IF(ISERROR(VLOOKUP(A50,'entry data'!B:G,6,0)),"",VLOOKUP(A50,'entry data'!B:G,6,0))) -> 0 | H50: =IF(A50="","",VLOOKUP(A50,'entry data'!B:L,9,0)) -> 0.126 | I50: =IF(A50="","",VLOOKUP(A50,'entry data'!B:K,10,0)) -> advance | J50: =IF(A50="","",IF(B50=1,VLOOKUP(A50,'entry data'!B:D,3,0),K49)) -> 2015-04-21 | K50: 2015-05-05 | L50: 2015-05 | M50: 7696.26189 | N50: 239.0121 | O50: =IF(A50="","",-IPMT(H50*VLOOKUP(E50,index!A:C,3,0),calculations!B50,calculations!C50,calculations!F50,-calculations!G50,VLOOKUP(I50,index!G:H,2,0))) -> 37.19508486 | P50: =IF(A50="","",VLOOKUP(A50,'entry data'!B:L,11,0)+IF(B50=C50,G50,0)) -> 276.2071848 | Q50: 7457.24979 | R50: 0
A51: =IF(A50="","",IF(B50<C50,A50,IF(A50=MAX('entry data'!$B$8:$B$17),"",A50+1))) -> 1 | B51: 50 | C51: =IF(A51="","",VLOOKUP(A51,'entry data'!B:H,7,0)) -> 78 | D51: =IF(A51="","",VLOOKUP(A51,'entry data'!B:C,2,0)) -> Car Loan | E51: =IF(A51="","",VLOOKUP(A51,'entry data'!B:E,4,0)) -> fortnightly | F51: =IF(A51="","",VLOOKUP(A51,'entry data'!B:F,5,0)) -> 18000 | G51: =IF(A51="","",IF(ISERROR(VLOOKUP(A51,'entry data'!B:G,6,0)),"",VLOOKUP(A51,'entry data'!B:G,6,0))) -> 0 | H51: =IF(A51="","",VLOOKUP(A51,'entry data'!B:L,9,0)) -> 0.126 | I51: =IF(A51="","",VLOOKUP(A51,'entry data'!B:K,10,0)) -> advance | J51: =IF(A51="","",IF(B51=1,VLOOKUP(A51,'entry data'!B:D,3,0),K50)) -> 2015-05-05 | K51: 2015-05-19 | L51: 2015-05 | M51: 7457.24979 | N51: 240.167216 | O51: =IF(A51="","",-IPMT(H51*VLOOKUP(E51,index!A:C,3,0),calculations!B51,calculations!C51,calculations!F51,-calculations!G51,VLOOKUP(I51,index!G:H,2,0))) -> 36.03996885 | P51: =IF(A51="","",VLOOKUP(A51,'entry data'!B:L,11,0)+IF(B51=C51,G51,0)) -> 276.2071848 | Q51: 7217.082574 | R51: 7217.082574
A52: =IF(A51="","",IF(B51<C51,A51,IF(A51=MAX('entry data'!$B$8:$B$17),"",A51+1))) -> 1 | B52: 51 | C52: =IF(A52="","",VLOOKUP(A52,'entry data'!B:H,7,0)) -> 78 | D52: =IF(A52="","",VLOOKUP(A52,'entry data'!B:C,2,0)) -> Car Loan | E52: =IF(A52="","",VLOOKUP(A52,'entry data'!B:E,4,0)) -> fortnightly | F52: =IF(A52="","",VLOOKUP(A52,'entry data'!B:F,5,0)) -> 18000 | G52: =IF(A52="","",IF(ISERROR(VLOOKUP(A52,'entry data'!B:G,6,0)),"",VLOOKUP(A52,'entry data'!B:G,6,0))) -> 0 | H52: =IF(A52="","",VLOOKUP(A52,'entry data'!B:L,9,0)) -> 0.126 | I52: =IF(A52="","",VLOOKUP(A52,'entry data'!B:K,10,0)) -> advance | J52: =IF(A52="","",IF(B52=1,VLOOKUP(A52,'entry data'!B:D,3,0),K51)) -> 2015-05-19 | K52: 2015-06-02 | L52: 2015-06 | M52: 7217.082574 | N52: 241.3279145 | O52: =IF(A52="","",-IPMT(H52*VLOOKUP(E52,index!A:C,3,0),calculations!B52,calculations!C52,calculations!F52,-calculations!G52,VLOOKUP(I52,index!G:H,2,0))) -> 34.8792703 | P52: =IF(A52="","",VLOOKUP(A52,'entry data'!B:L,11,0)+IF(B52=C52,G52,0)) -> 276.2071848 | Q52: 6975.754659 | R52: 0
A53: =IF(A52="","",IF(B52<C52,A52,IF(A52=MAX('entry data'!$B$8:$B$17),"",A52+1))) -> 1 | B53: 52 | C53: =IF(A53="","",VLOOKUP(A53,'entry data'!B:H,7,0)) -> 78 | D53: =IF(A53="","",VLOOKUP(A53,'entry data'!B:C,2,0)) -> Car Loan | E53: =IF(A53="","",VLOOKUP(A53,'entry data'!B:E,4,0)) -> fortnightly | F53: =IF(A53="","",VLOOKUP(A53,'entry data'!B:F,5,0)) -> 18000 | G53: =IF(A53="","",IF(ISERROR(VLOOKUP(A53,'entry data'!B:G,6,0)),"",VLOOKUP(A53,'entry data'!B:G,6,0))) -> 0 | H53: =IF(A53="","",VLOOKUP(A53,'entry data'!B:L,9,0)) -> 0.126 | I53: =IF(A53="","",VLOOKUP(A53,'entry data'!B:K,10,0)) -> advance | J53: =IF(A53="","",IF(B53=1,VLOOKUP(A53,'entry data'!B:D,3,0),K52)) -> 2015-06-02 | K53: 2015-06-16 | L53: 2015-06 | M53: 6975.754659 | N53: 242.4942226 | O53: =IF(A53="","",-IPMT(H53*VLOOKUP(E53,index!A:C,3,0),calculations!B53,calculations!C53,calculations!F53,-calculations!G53,VLOOKUP(I53,index!G:H,2,0))) -> 33.71296224 | P53: =IF(A53="","",VLOOKUP(A53,'entry data'!B:L,11,0)+IF(B53=C53,G53,0)) -> 276.2071848 | Q53: 6733.260437 | R53: 0
A54: =IF(A53="","",IF(B53<C53,A53,IF(A53=MAX('entry data'!$B$8:$B$17),"",A53+1))) -> 1 | B54: 53 | C54: =IF(A54="","",VLOOKUP(A54,'entry data'!B:H,7,0)) -> 78 | D54: =IF(A54="","",VLOOKUP(A54,'entry data'!B:C,2,0)) -> Car Loan | E54: =IF(A54="","",VLOOKUP(A54,'entry data'!B:E,4,0)) -> fortnightly | F54: =IF(A54="","",VLOOKUP(A54,'entry data'!B:F,5,0)) -> 18000 | G54: =IF(A54="","",IF(ISERROR(VLOOKUP(A54,'entry data'!B:G,6,0)),"",VLOOKUP(A54,'entry data'!B:G,6,0))) -> 0 | H54: =IF(A54="","",VLOOKUP(A54,'entry data'!B:L,9,0)) -> 0.126 | I54: =IF(A54="","",VLOOKUP(A54,'entry data'!B:K,10,0)) -> advance | J54: =IF(A54="","",IF(B54=1,VLOOKUP(A54,'entry data'!B:D,3,0),K53)) -> 2015-06-16 | K54: 2015-06-30 | L54: 2015-06 | M54: 6733.260437 | N54: 243.6661673 | O54: =IF(A54="","",-IPMT(H54*VLOOKUP(E54,index!A:C,3,0),calculations!B54,calculations!C54,calculations!F54,-calculations!G54,VLOOKUP(I54,index!G:H,2,0))) -> 32.54101756 | P54: =IF(A54="","",VLOOKUP(A54,'entry data'!B:L,11,0)+IF(B54=C54,G54,0)) -> 276.2071848 | Q54: 6489.59427 | R54: 6489.59427
A55: =IF(A54="","",IF(B54<C54,A54,IF(A54=MAX('entry data'!$B$8:$B$17),"",A54+1))) -> 1 | B55: 54 | C55: =IF(A55="","",VLOOKUP(A55,'entry data'!B:H,7,0)) -> 78 | D55: =IF(A55="","",VLOOKUP(A55,'entry data'!B:C,2,0)) -> Car Loan | E55: =IF(A55="","",VLOOKUP(A55,'entry data'!B:E,4,0)) -> fortnightly | F55: =IF(A55="","",VLOOKUP(A55,'entry data'!B:F,5,0)) -> 18000 | G55: =IF(A55="","",IF(ISERROR(VLOOKUP(A55,'entry data'!B:G,6,0)),"",VLOOKUP(A55,'entry data'!B:G,6,0))) -> 0 | H55: =IF(A55="","",VLOOKUP(A55,'entry data'!B:L,9,0)) -> 0.126 | I55: =IF(A55="","",VLOOKUP(A55,'entry data'!B:K,10,0)) -> advance | J55: =IF(A55="","",IF(B55=1,VLOOKUP(A55,'entry data'!B:D,3,0),K54)) -> 2015-06-30 | K55: 2015-07-14 | L55: 2015-07 | M55: 6489.59427 | N55: 244.8437758 | O55: =IF(A55="","",-IPMT(H55*VLOOKUP(E55,index!A:C,3,0),calculations!B55,calculations!C55,calculations!F55,-calculations!G55,VLOOKUP(I55,index!G:H,2,0))) -> 31.36340902 | P55: =IF(A55="","",VLOOKUP(A55,'entry data'!B:L,11,0)+IF(B55=C55,G55,0)) -> 276.2071848 | Q55: 6244.750494 | R55: 0
A56: =IF(A55="","",IF(B55<C55,A55,IF(A55=MAX('entry data'!$B$8:$B$17),"",A55+1))) -> 1 | B56: 55 | C56: =IF(A56="","",VLOOKUP(A56,'entry data'!B:H,7,0)) -> 78 | D56: =IF(A56="","",VLOOKUP(A56,'entry data'!B:C,2,0)) -> Car Loan | E56: =IF(A56="","",VLOOKUP(A56,'entry data'!B:E,4,0)) -> fortnightly | F56: =IF(A56="","",VLOOKUP(A56,'entry data'!B:F,5,0)) -> 18000 | G56: =IF(A56="","",IF(ISERROR(VLOOKUP(A56,'entry data'!B:G,6,0)),"",VLOOKUP(A56,'entry data'!B:G,6,0))) -> 0 | H56: =IF(A56="","",VLOOKUP(A56,'entry data'!B:L,9,0)) -> 0.126 | I56: =IF(A56="","",VLOOKUP(A56,'entry data'!B:K,10,0)) -> advance | J56: =IF(A56="","",IF(B56=1,VLOOKUP(A56,'entry data'!B:D,3,0),K55)) -> 2015-07-14 | K56: 2015-07-28 | L56: 2015-07 | M56: 6244.750494 | N56: 246.0270756 | O56: =IF(A56="","",-IPMT(H56*VLOOKUP(E56,index!A:C,3,0),calculations!B56,calculations!C56,calculations!F56,-calculations!G56,VLOOKUP(I56,index!G:H,2,0))) -> 30.18010924 | P56: =IF(A56="","",VLOOKUP(A56,'entry data'!B:L,11,0)+IF(B56=C56,G56,0)) -> 276.2071848 | Q56: 5998.723418 | R56: 5998.723418
A57: =IF(A56="","",IF(B56<C56,A56,IF(A56=MAX('entry data'!$B$8:$B$17),"",A56+1))) -> 1 | B57: 56 | C57: =IF(A57="","",VLOOKUP(A57,'entry data'!B:H,7,0)) -> 78 | D57: =IF(A57="","",VLOOKUP(A57,'entry data'!B:C,2,0)) -> Car Loan | E57: =IF(A57="","",VLOOKUP(A57,'entry data'!B:E,4,0)) -> fortnightly | F57: =IF(A57="","",VLOOKUP(A57,'entry data'!B:F,5,0)) -> 18000 | G57: =IF(A57="","",IF(ISERROR(VLOOKUP(A57,'entry data'!B:G,6,0)),"",VLOOKUP(A57,'entry data'!B:G,6,0))) -> 0 | H57: =IF(A57="","",VLOOKUP(A57,'entry data'!B:L,9,0)) -> 0.126 | I57: =IF(A57="","",VLOOKUP(A57,'entry data'!B:K,10,0)) -> advance | J57: =IF(A57="","",IF(B57=1,VLOOKUP(A57,'entry data'!B:D,3,0),K56)) -> 2015-07-28 | K57: 2015-08-11 | L57: 2015-08 | M57: 5998.723418 | N57: 247.2160941 | O57: =IF(A57="","",-IPMT(H57*VLOOKUP(E57,index!A:C,3,0),calculations!B57,calculations!C57,calculations!F57,-calculations!G57,VLOOKUP(I57,index!G:H,2,0))) -> 28.99109071 | P57: =IF(A57="","",VLOOKUP(A57,'entry data'!B:L,11,0)+IF(B57=C57,G57,0)) -> 276.2071848 | Q57: 5751.507324 | R57: 0
A58: =IF(A57="","",IF(B57<C57,A57,IF(A57=MAX('entry data'!$B$8:$B$17),"",A57+1))) -> 1 | B58: 57 | C58: =IF(A58="","",VLOOKUP(A58,'entry data'!B:H,7,0)) -> 78 | D58: =IF(A58="","",VLOOKUP(A58,'entry data'!B:C,2,0)) -> Car Loan | E58: =IF(A58="","",VLOOKUP(A58,'entry data'!B:E,4,0)) -> fortnightly | F58: =IF(A58="","",VLOOKUP(A58,'entry data'!B:F,5,0)) -> 18000 | G58: =IF(A58="","",IF(ISERROR(VLOOKUP(A58,'entry data'!B:G,6,0)),"",VLOOKUP(A58,'entry data'!B:G,6,0))) -> 0 | H58: =IF(A58="","",VLOOKUP(A58,'entry data'!B:L,9,0)) -> 0.126 | I58: =IF(A58="","",VLOOKUP(A58,'entry data'!B:K,10,0)) -> advance | J58: =IF(A58="","",IF(B58=1,VLOOKUP(A58,'entry data'!B:D,3,0),K57)) -> 2015-08-11 | K58: 2015-08-25 | L58: 2015-08 | M58: 5751.507324 | N58: 248.410859 | O58: =IF(A58="","",-IPMT(H58*VLOOKUP(E58,index!A:C,3,0),calculations!B58,calculations!C58,calculations!F58,-calculations!G58,VLOOKUP(I58,index!G:H,2,0))) -> 27.79632581 | P58: =IF(A58="","",VLOOKUP(A58,'entry data'!B:L,11,0)+IF(B58=C58,G58,0)) -> 276.2071848 | Q58: 5503.096465 | R58: 5503.096465
A59: =IF(A58="","",IF(B58<C58,A58,IF(A58=MAX('entry data'!$B$8:$B$17),"",A58+1))) -> 1 | B59: 58 | C59: =IF(A59="","",VLOOKUP(A59,'entry data'!B:H,7,0)) -> 78 | D59: =IF(A59="","",VLOOKUP(A59,'entry data'!B:C,2,0)) -> Car Loan | E59: =IF(A59="","",VLOOKUP(A59,'entry data'!B:E,4,0)) -> fortnightly | F59: =IF(A59="","",VLOOKUP(A59,'entry data'!B:F,5,0)) -> 18000 | G59: =IF(A59="","",IF(ISERROR(VLOOKUP(A59,'entry data'!B:G,6,0)),"",VLOOKUP(A59,'entry data'!B:G,6,0))) -> 0 | H59: =IF(A59="","",VLOOKUP(A59,'entry data'!B:L,9,0)) -> 0.126 | I59: =IF(A59="","",VLOOKUP(A59,'entry data'!B:K,10,0)) -> advance | J59: =IF(A59="","",IF(B59=1,VLOOKUP(A59,'entry data'!B:D,3,0),K58)) -> 2015-08-25 | K59: 2015-09-08 | L59: 2015-09 | M59: 5503.096465 | N59: 249.6113981 | O59: =IF(A59="","",-IPMT(H59*VLOOKUP(E59,index!A:C,3,0),calculations!B59,calculations!C59,calculations!F59,-calculations!G59,VLOOKUP(I59,index!G:H,2,0))) -> 26.59578675 | P59: =IF(A59="","",VLOOKUP(A59,'entry data'!B:L,11,0)+IF(B59=C59,G59,0)) -> 276.2071848 | Q59: 5253.485067 | R59: 0
A60: =IF(A59="","",IF(B59<C59,A59,IF(A59=MAX('entry data'!$B$8:$B$17),"",A59+1))) -> 1 | B60: 59 | C60: =IF(A60="","",VLOOKUP(A60,'entry data'!B:H,7,0)) -> 78 | D60: =IF(A60="","",VLOOKUP(A60,'entry data'!B:C,2,0)) -> Car Loan | E60: =IF(A60="","",VLOOKUP(A60,'entry data'!B:E,4,0)) -> fortnightly | F60: =IF(A60="","",VLOOKUP(A60,'entry data'!B:F,5,0)) -> 18000 | G60: =IF(A60="","",IF(ISERROR(VLOOKUP(A60,'entry data'!B:G,6,0)),"",VLOOKUP(A60,'entry data'!B:G,6,0))) -> 0 | H60: =IF(A60="","",VLOOKUP(A60,'entry data'!B:L,9,0)) -> 0.126 | I60: =IF(A60="","",VLOOKUP(A60,'entry data'!B:K,10,0)) -> advance | J60: =IF(A60="","",IF(B60=1,VLOOKUP(A60,'entry data'!B:D,3,0),K59)) -> 2015-09-08 | K60: 2015-09-22 | L60: 2015-09 | M60: 5253.485067 | N60: 250.8177392 | O60: =IF(A60="","",-IPMT(H60*VLOOKUP(E60,index!A:C,3,0),calculations!B60,calculations!C60,calculations!F60,-calculations!G60,VLOOKUP(I60,index!G:H,2,0))) -> 25.38944564 | P60: =IF(A60="","",VLOOKUP(A60,'entry data'!B:L,11,0)+IF(B60=C60,G60,0)) -> 276.2071848 | Q60: 5002.667328 | R60: 5002.667328
A61: =IF(A60="","",IF(B60<C60,A60,IF(A60=MAX('entry data'!$B$8:$B$17),"",A60+1))) -> 1 | B61: 60 | C61: =IF(A61="","",VLOOKUP(A61,'entry data'!B:H,7,0)) -> 78 | D61: =IF(A61="","",VLOOKUP(A61,'entry data'!B:C,2,0)) -> Car Loan | E61: =IF(A61="","",VLOOKUP(A61,'entry data'!B:E,4,0)) -> fortnightly | F61: =IF(A61="","",VLOOKUP(A61,'entry data'!B:F,5,0)) -> 18000 | G61: =IF(A61="","",IF(ISERROR(VLOOKUP(A61,'entry data'!B:G,6,0)),"",VLOOKUP(A61,'entry data'!B:G,6,0))) -> 0 | H61: =IF(A61="","",VLOOKUP(A61,'entry data'!B:L,9,0)) -> 0.126 | I61: =IF(A61="","",VLOOKUP(A61,'entry data'!B:K,10,0)) -> advance | J61: =IF(A61="","",IF(B61=1,VLOOKUP(A61,'entry data'!B:D,3,0),K60)) -> 2015-09-22 | K61: 2015-10-06 | L61: 2015-10 | M61: 5002.667328 | N61: 252.0299104 | O61: =IF(A61="","",-IPMT(H61*VLOOKUP(E61,index!A:C,3,0),calculations!B61,calculations!C61,calculations!F61,-calculations!G61,VLOOKUP(I61,index!G:H,2,0))) -> 24.17727443 | P61: =IF(A61="","",VLOOKUP(A61,'entry data'!B:L,11,0)+IF(B61=C61,G61,0)) -> 276.2071848 | Q61: 4750.637417 | R61: 0
A62: =IF(A61="","",IF(B61<C61,A61,IF(A61=MAX('entry data'!$B$8:$B$17),"",A61+1))) -> 1 | B62: 61 | C62: =IF(A62="","",VLOOKUP(A62,'entry data'!B:H,7,0)) -> 78 | D62: =IF(A62="","",VLOOKUP(A62,'entry data'!B:C,2,0)) -> Car Loan | E62: =IF(A62="","",VLOOKUP(A62,'entry data'!B:E,4,0)) -> fortnightly | F62: =IF(A62="","",VLOOKUP(A62,'entry data'!B:F,5,0)) -> 18000 | G62: =IF(A62="","",IF(ISERROR(VLOOKUP(A62,'entry data'!B:G,6,0)),"",VLOOKUP(A62,'entry data'!B:G,6,0))) -> 0 | H62: =IF(A62="","",VLOOKUP(A62,'entry data'!B:L,9,0)) -> 0.126 | I62: =IF(A62="","",VLOOKUP(A62,'entry data'!B:K,10,0)) -> advance | J62: =IF(A62="","",IF(B62=1,VLOOKUP(A62,'entry data'!B:D,3,0),K61)) -> 2015-10-06 | K62: 2015-10-20 | L62: 2015-10 | M62: 4750.637417 | N62: 253.2479399 | O62: =IF(A62="","",-IPMT(H62*VLOOKUP(E62,index!A:C,3,0),calculations!B62,calculations!C62,calculations!F62,-calculations!G62,VLOOKUP(I62,index!G:H,2,0))) -> 22.95924494 | P62: =IF(A62="","",VLOOKUP(A62,'entry data'!B:L,11,0)+IF(B62=C62,G62,0)) -> 276.2071848 | Q62: 4497.389477 | R62: 4497.389477
A63: =IF(A62="","",IF(B62<C62,A62,IF(A62=MAX('entry data'!$B$8:$B$17),"",A62+1))) -> 1 | B63: =IF(A63="","",IF(B62=C62,1,B62+1)) -> 62 | C63: =IF(A63="","",VLOOKUP(A63,'entry data'!B:H,7,0)) -> 78 | D63: =IF(A63="","",VLOOKUP(A63,'entry data'!B:C,2,0)) -> Car Loan | E63: =IF(A63="","",VLOOKUP(A63,'entry data'!B:E,4,0)) -> fortnightly | F63: =IF(A63="","",VLOOKUP(A63,'entry data'!B:F,5,0)) -> 18000 | G63: =IF(A63="","",IF(ISERROR(VLOOKUP(A63,'entry data'!B:G,6,0)),"",VLOOKUP(A63,'entry data'!B:G,6,0))) -> 0 | H63: =IF(A63="","",VLOOKUP(A63,'entry data'!B:L,9,0)) -> 0.126 | I63: =IF(A63="","",VLOOKUP(A63,'entry data'!B:K,10,0)) -> advance | J63: =IF(A63="","",IF(B63=1,VLOOKUP(A63,'entry data'!B:D,3,0),K62)) -> 2015-10-20 | K63: =IF(A63="","",IF(E63="weekly",7,IF(E63="fortnightly",14,DATE(IF(MONTH(J63)=12,YEAR(J63)+1,YEAR(J63)),IF(MONTH(J63)=12,1,MONTH(J63)+1),DAY(J63))-J63))+J63) -> 2015-11-03 | L63: =IF(A63="","",IF(MONTH(K63)<10,YEAR(K63)&"-0"&MONTH(K63),YEAR(K63)&"-"&MONTH(K63))) -> 2015-11 | M63: 4497.389477 | N63: =IF(A63="","",P63-O63) -> 254.471856 | O63: =IF(A63="","",-IPMT(H63*VLOOKUP(E63,index!A:C,3,0),calculations!B63,calculations!C63,calculations!F63,-calculations!G63,VLOOKUP(I63,index!G:H,2,0))) -> 21.73532887 | P63: =IF(A63="","",VLOOKUP(A63,'entry data'!B:L,11,0)+IF(B63=C63,G63,0)) -> 276.2071848 | Q63: =IF(A63="","",M63-N63) -> 4242.917621 | R63: 0
A64: =IF(A63="","",IF(B63<C63,A63,IF(A63=MAX('entry data'!$B$8:$B$17),"",A63+1))) -> 1 | B64: =IF(A64="","",IF(B63=C63,1,B63+1)) -> 63 | C64: =IF(A64="","",VLOOKUP(A64,'entry data'!B:H,7,0)) -> 78 | D64: =IF(A64="","",VLOOKUP(A64,'entry data'!B:C,2,0)) -> Car Loan | E64: =IF(A64="","",VLOOKUP(A64,'entry data'!B:E,4,0)) -> fortnightly | F64: =IF(A64="","",VLOOKUP(A64,'entry data'!B:F,5,0)) -> 18000 | G64: =IF(A64="","",IF(ISERROR(VLOOKUP(A64,'entry data'!B:G,6,0)),"",VLOOKUP(A64,'entry data'!B:G,6,0))) -> 0 | H64: =IF(A64="","",VLOOKUP(A64,'entry data'!B:L,9,0)) -> 0.126 | I64: =IF(A64="","",VLOOKUP(A64,'entry data'!B:K,10,0)) -> advance | J64: =IF(A64="","",IF(B64=1,VLOOKUP(A64,'entry data'!B:D,3,0),K63)) -> 2015-11-03 | K64: =IF(A64="","",IF(E64="weekly",7,IF(E64="fortnightly",14,DATE(IF(MONTH(J64)=12,YEAR(J64)+1,YEAR(J64)),IF(MONTH(J64)=12,1,MONTH(J64)+1),DAY(J64))-J64))+J64) -> 2015-11-17 | L64: =IF(A64="","",IF(MONTH(K64)<10,YEAR(K64)&"-0"&MONTH(K64),YEAR(K64)&"-"&MONTH(K64))) -> 2015-11 | M64: 4242.917621 | N64: =IF(A64="","",P64-O64) -> 255.7016871 | O64: =IF(A64="","",-IPMT(H64*VLOOKUP(E64,index!A:C,3,0),calculations!B64,calculations!C64,calculations!F64,-calculations!G64,VLOOKUP(I64,index!G:H,2,0))) -> 20.50549777 | P64: =IF(A64="","",VLOOKUP(A64,'entry data'!B:L,11,0)+IF(B64=C64,G64,0)) -> 276.2071848 | Q64: =IF(A64="","",M64-N64) -> 3987.215934 | R64: 3987.215934
A65: =IF(A64="","",IF(B64<C64,A64,IF(A64=MAX('entry data'!$B$8:$B$17),"",A64+1))) -> 1 | B65: 64 | C65: =IF(A65="","",VLOOKUP(A65,'entry data'!B:H,7,0)) -> 78 | D65: =IF(A65="","",VLOOKUP(A65,'entry data'!B:C,2,0)) -> Car Loan | E65: =IF(A65="","",VLOOKUP(A65,'entry data'!B:E,4,0)) -> fortnightly | F65: =IF(A65="","",VLOOKUP(A65,'entry data'!B:F,5,0)) -> 18000 | G65: =IF(A65="","",IF(ISERROR(VLOOKUP(A65,'entry data'!B:G,6,0)),"",VLOOKUP(A65,'entry data'!B:G,6,0))) -> 0 | H65: =IF(A65="","",VLOOKUP(A65,'entry data'!B:L,9,0)) -> 0.126 | I65: =IF(A65="","",VLOOKUP(A65,'entry data'!B:K,10,0)) -> advance | J65: =IF(A65="","",IF(B65=1,VLOOKUP(A65,'entry data'!B:D,3,0),K64)) -> 2015-11-17 | K65: 2015-12-01 | L65: 2015-12 | M65: 3987.215934 | N65: 256.9374618 | O65: =IF(A65="","",-IPMT(H65*VLOOKUP(E65,index!A:C,3,0),calculations!B65,calculations!C65,calculations!F65,-calculations!G65,VLOOKUP(I65,index!G:H,2,0))) -> 19.26972304 | P65: =IF(A65="","",VLOOKUP(A65,'entry data'!B:L,11,0)+IF(B65=C65,G65,0)) -> 276.2071848 | Q65: 3730.278473 | R65: 0
A66: =IF(A65="","",IF(B65<C65,A65,IF(A65=MAX('entry data'!$B$8:$B$17),"",A65+1))) -> 1 | B66: 65 | C66: =IF(A66="","",VLOOKUP(A66,'entry data'!B:H,7,0)) -> 78 | D66: =IF(A66="","",VLOOKUP(A66,'entry data'!B:C,2,0)) -> Car Loan | E66: =IF(A66="","",VLOOKUP(A66,'entry data'!B:E,4,0)) -> fortnightly | F66: =IF(A66="","",VLOOKUP(A66,'entry data'!B:F,5,0)) -> 18000 | G66: =IF(A66="","",IF(ISERROR(VLOOKUP(A66,'entry data'!B:G,6,0)),"",VLOOKUP(A66,'entry data'!B:G,6,0))) -> 0 | H66: =IF(A66="","",VLOOKUP(A66,'entry data'!B:L,9,0)) -> 0.126 | I66: =IF(A66="","",VLOOKUP(A66,'entry data'!B:K,10,0)) -> advance | J66: =IF(A66="","",IF(B66=1,VLOOKUP(A66,'entry data'!B:D,3,0),K65)) -> 2015-12-01 | K66: 2015-12-15 | L66: 2015-12 | M66: 3730.278473 | N66: 258.1792089 | O66: =IF(A66="","",-IPMT(H66*VLOOKUP(E66,index!A:C,3,0),calculations!B66,calculations!C66,calculations!F66,-calculations!G66,VLOOKUP(I66,index!G:H,2,0))) -> 18.02797596 | P66: =IF(A66="","",VLOOKUP(A66,'entry data'!B:L,11,0)+IF(B66=C66,G66,0)) -> 276.2071848 | Q66: 3472.099264 | R66: 0
A67: =IF(A66="","",IF(B66<C66,A66,IF(A66=MAX('entry data'!$B$8:$B$17),"",A66+1))) -> 1 | B67: 66 | C67: =IF(A67="","",VLOOKUP(A67,'entry data'!B:H,7,0)) -> 78 | D67: =IF(A67="","",VLOOKUP(A67,'entry data'!B:C,2,0)) -> Car Loan | E67: =IF(A67="","",VLOOKUP(A67,'entry data'!B:E,4,0)) -> fortnightly | F67: =IF(A67="","",VLOOKUP(A67,'entry data'!B:F,5,0)) -> 18000 | G67: =IF(A67="","",IF(ISERROR(VLOOKUP(A67,'entry data'!B:G,6,0)),"",VLOOKUP(A67,'entry data'!B:G,6,0))) -> 0 | H67: =IF(A67="","",VLOOKUP(A67,'entry data'!B:L,9,0)) -> 0.126 | I67: =IF(A67="","",VLOOKUP(A67,'entry data'!B:K,10,0)) -> advance | J67: =IF(A67="","",IF(B67=1,VLOOKUP(A67,'entry data'!B:D,3,0),K66)) -> 2015-12-15 | K67: 2015-12-29 | L67: 2015-12 | M67: 3472.099264 | N67: 259.4269572 | O67: =IF(A67="","",-IPMT(H67*VLOOKUP(E67,index!A:C,3,0),calculations!B67,calculations!C67,calculations!F67,-calculations!G67,VLOOKUP(I67,index!G:H,2,0))) -> 16.78022767 | P67: =IF(A67="","",VLOOKUP(A67,'entry data'!B:L,11,0)+IF(B67=C67,G67,0)) -> 276.2071848 | Q67: 3212.672307 | R67: =IF(A67="","",IF(L67<>L68,Q67,0)) -> 3212.672307
A68: =IF(A67="","",IF(B67<C67,A67,IF(A67=MAX('entry data'!$B$8:$B$17),"",A67+1))) -> 1 | B68: 67 | C68: =IF(A68="","",VLOOKUP(A68,'entry data'!B:H,7,0)) -> 78 | D68: =IF(A68="","",VLOOKUP(A68,'entry data'!B:C,2,0)) -> Car Loan | E68: =IF(A68="","",VLOOKUP(A68,'entry data'!B:E,4,0)) -> fortnightly | F68: =IF(A68="","",VLOOKUP(A68,'entry data'!B:F,5,0)) -> 18000 | G68: =IF(A68="","",IF(ISERROR(VLOOKUP(A68,'entry data'!B:G,6,0)),"",VLOOKUP(A68,'entry data'!B:G,6,0))) -> 0 | H68: =IF(A68="","",VLOOKUP(A68,'entry data'!B:L,9,0)) -> 0.126 | I68: =IF(A68="","",VLOOKUP(A68,'entry data'!B:K,10,0)) -> advance | J68: =IF(A68="","",IF(B68=1,VLOOKUP(A68,'entry data'!B:D,3,0),K67)) -> 2015-12-29 | K68: 2016-01-12 | L68: 2016-01 | M68: =IF(A68="","",IF(B68=1,F68,Q67)) -> 3212.672307 | N68: 260.6807357 | O68: =IF(A68="","",-IPMT(H68*VLOOKUP(E68,index!A:C,3,0),calculations!B68,calculations!C68,calculations!F68,-calculations!G68,VLOOKUP(I68,index!G:H,2,0))) -> 15.52644917 | P68: =IF(A68="","",VLOOKUP(A68,'entry data'!B:L,11,0)+IF(B68=C68,G68,0)) -> 276.2071848 | Q68: 2951.991571 | R68: 0
A69: =IF(A68="","",IF(B68<C68,A68,IF(A68=MAX('entry data'!$B$8:$B$17),"",A68+1))) -> 1 | B69: 68 | C69: =IF(A69="","",VLOOKUP(A69,'entry data'!B:H,7,0)) -> 78 | D69: =IF(A69="","",VLOOKUP(A69,'entry data'!B:C,2,0)) -> Car Loan | E69: =IF(A69="","",VLOOKUP(A69,'entry data'!B:E,4,0)) -> fortnightly | F69: =IF(A69="","",VLOOKUP(A69,'entry data'!B:F,5,0)) -> 18000 | G69: =IF(A69="","",IF(ISERROR(VLOOKUP(A69,'entry data'!B:G,6,0)),"",VLOOKUP(A69,'entry data'!B:G,6,0))) -> 0 | H69: =IF(A69="","",VLOOKUP(A69,'entry data'!B:L,9,0)) -> 0.126 | I69: =IF(A69="","",VLOOKUP(A69,'entry data'!B:K,10,0)) -> advance | J69: =IF(A69="","",IF(B69=1,VLOOKUP(A69,'entry data'!B:D,3,0),K68)) -> 2016-01-12 | K69: 2016-01-26 | L69: 2016-01 | M69: 2951.991571 | N69: 261.9405735 | O69: =IF(A69="","",-IPMT(H69*VLOOKUP(E69,index!A:C,3,0),calculations!B69,calculations!C69,calculations!F69,-calculations!G69,VLOOKUP(I69,index!G:H,2,0))) -> 14.26661132 | P69: =IF(A69="","",VLOOKUP(A69,'entry data'!B:L,11,0)+IF(B69=C69,G69,0)) -> 276.2071848 | Q69: 2690.050997 | R69: 2690.050997
A70: =IF(A69="","",IF(B69<C69,A69,IF(A69=MAX('entry data'!$B$8:$B$17),"",A69+1))) -> 1 | B70: 69 | C70: =IF(A70="","",VLOOKUP(A70,'entry data'!B:H,7,0)) -> 78 | D70: =IF(A70="","",VLOOKUP(A70,'entry data'!B:C,2,0)) -> Car Loan | E70: =IF(A70="","",VLOOKUP(A70,'entry data'!B:E,4,0)) -> fortnightly | F70: =IF(A70="","",VLOOKUP(A70,'entry data'!B:F,5,0)) -> 18000 | G70: =IF(A70="","",IF(ISERROR(VLOOKUP(A70,'entry data'!B:G,6,0)),"",VLOOKUP(A70,'entry data'!B:G,6,0))) -> 0 | H70: =IF(A70="","",VLOOKUP(A70,'entry data'!B:L,9,0)) -> 0.126 | I70: =IF(A70="","",VLOOKUP(A70,'entry data'!B:K,10,0)) -> advance | J70: =IF(A70="","",IF(B70=1,VLOOKUP(A70,'entry data'!B:D,3,0),K69)) -> 2016-01-26 | K70: 2016-02-09 | L70: 2016-02 | M70: 2690.050997 | N70: 263.2065 | O70: =IF(A70="","",-IPMT(H70*VLOOKUP(E70,index!A:C,3,0),calculations!B70,calculations!C70,calculations!F70,-calculations!G70,VLOOKUP(I70,index!G:H,2,0))) -> 13.00068482 | P70: =IF(A70="","",VLOOKUP(A70,'entry data'!B:L,11,0)+IF(B70=C70,G70,0)) -> 276.2071848 | Q70: 2426.844497 | R70: 0
A71: =IF(A70="","",IF(B70<C70,A70,IF(A70=MAX('entry data'!$B$8:$B$17),"",A70+1))) -> 1 | B71: 70 | C71: =IF(A71="","",VLOOKUP(A71,'entry data'!B:H,7,0)) -> 78 | D71: =IF(A71="","",VLOOKUP(A71,'entry data'!B:C,2,0)) -> Car Loan | E71: =IF(A71="","",VLOOKUP(A71,'entry data'!B:E,4,0)) -> fortnightly | F71: =IF(A71="","",VLOOKUP(A71,'entry data'!B:F,5,0)) -> 18000 | G71: =IF(A71="","",IF(ISERROR(VLOOKUP(A71,'entry data'!B:G,6,0)),"",VLOOKUP(A71,'entry data'!B:G,6,0))) -> 0 | H71: =IF(A71="","",VLOOKUP(A71,'entry data'!B:L,9,0)) -> 0.126 | I71: =IF(A71="","",VLOOKUP(A71,'entry data'!B:K,10,0)) -> advance | J71: =IF(A71="","",IF(B71=1,VLOOKUP(A71,'entry data'!B:D,3,0),K70)) -> 2016-02-09 | K71: 2016-02-23 | L71: 2016-02 | M71: 2426.844497 | N71: 264.4785446 | O71: =IF(A71="","",-IPMT(H71*VLOOKUP(E71,index!A:C,3,0),calculations!B71,calculations!C71,calculations!F71,-calculations!G71,VLOOKUP(I71,index!G:H,2,0))) -> 11.72864026 | P71: =IF(A71="","",VLOOKUP(A71,'entry data'!B:L,11,0)+IF(B71=C71,G71,0)) -> 276.2071848 | Q71: 2162.365953 | R71: 2162.365953
A72: =IF(A71="","",IF(B71<C71,A71,IF(A71=MAX('entry data'!$B$8:$B$17),"",A71+1))) -> 1 | B72: 71 | C72: =IF(A72="","",VLOOKUP(A72,'entry data'!B:H,7,0)) -> 78 | D72: =IF(A72="","",VLOOKUP(A72,'entry data'!B:C,2,0)) -> Car Loan | E72: =IF(A72="","",VLOOKUP(A72,'entry data'!B:E,4,0)) -> fortnightly | F72: =IF(A72="","",VLOOKUP(A72,'entry data'!B:F,5,0)) -> 18000 | G72: =IF(A72="","",IF(ISERROR(VLOOKUP(A72,'entry data'!B:G,6,0)),"",VLOOKUP(A72,'entry data'!B:G,6,0))) -> 0 | H72: =IF(A72="","",VLOOKUP(A72,'entry data'!B:L,9,0)) -> 0.126 | I72: =IF(A72="","",VLOOKUP(A72,'entry data'!B:K,10,0)) -> advance | J72: =IF(A72="","",IF(B72=1,VLOOKUP(A72,'entry data'!B:D,3,0),K71)) -> 2016-02-23 | K72: 2016-03-08 | L72: 2016-03 | M72: 2162.365953 | N72: 265.7567368 | O72: =IF(A72="","",-IPMT(H72*VLOOKUP(E72,index!A:C,3,0),calculations!B72,calculations!C72,calculations!F72,-calculations!G72,VLOOKUP(I72,index!G:H,2,0))) -> 10.45044806 | P72: =IF(A72="","",VLOOKUP(A72,'entry data'!B:L,11,0)+IF(B72=C72,G72,0)) -> 276.2071848 | Q72: 1896.609216 | R72: 0
A73: =IF(A72="","",IF(B72<C72,A72,IF(A72=MAX('entry data'!$B$8:$B$17),"",A72+1))) -> 1 | B73: 72 | C73: =IF(A73="","",VLOOKUP(A73,'entry data'!B:H,7,0)) -> 78 | D73: =IF(A73="","",VLOOKUP(A73,'entry data'!B:C,2,0)) -> Car Loan | E73: =IF(A73="","",VLOOKUP(A73,'entry data'!B:E,4,0)) -> fortnightly | F73: =IF(A73="","",VLOOKUP(A73,'entry data'!B:F,5,0)) -> 18000 | G73: =IF(A73="","",IF(ISERROR(VLOOKUP(A73,'entry data'!B:G,6,0)),"",VLOOKUP(A73,'entry data'!B:G,6,0))) -> 0 | H73: =IF(A73="","",VLOOKUP(A73,'entry data'!B:L,9,0)) -> 0.126 | I73: =IF(A73="","",VLOOKUP(A73,'entry data'!B:K,10,0)) -> advance | J73: =IF(A73="","",IF(B73=1,VLOOKUP(A73,'entry data'!B:D,3,0),K72)) -> 2016-03-08 | K73: 2016-03-22 | L73: 2016-03 | M73: 1896.609216 | N73: 267.0411063 | O73: =IF(A73="","",-IPMT(H73*VLOOKUP(E73,index!A:C,3,0),calculations!B73,calculations!C73,calculations!F73,-calculations!G73,VLOOKUP(I73,index!G:H,2,0))) -> 9.166078512 | P73: =IF(A73="","",VLOOKUP(A73,'entry data'!B:L,11,0)+IF(B73=C73,G73,0)) -> 276.2071848 | Q73: 1629.56811 | R73: 1629.56811
A74: =IF(A73="","",IF(B73<C73,A73,IF(A73=MAX('entry data'!$B$8:$B$17),"",A73+1))) -> 1 | B74: 73 | C74: =IF(A74="","",VLOOKUP(A74,'entry data'!B:H,7,0)) -> 78 | D74: =IF(A74="","",VLOOKUP(A74,'entry data'!B:C,2,0)) -> Car Loan | E74: =IF(A74="","",VLOOKUP(A74,'entry data'!B:E,4,0)) -> fortnightly | F74: =IF(A74="","",VLOOKUP(A74,'entry data'!B:F,5,0)) -> 18000 | G74: =IF(A74="","",IF(ISERROR(VLOOKUP(A74,'entry data'!B:G,6,0)),"",VLOOKUP(A74,'entry data'!B:G,6,0))) -> 0 | H74: =IF(A74="","",VLOOKUP(A74,'entry data'!B:L,9,0)) -> 0.126 | I74: =IF(A74="","",VLOOKUP(A74,'entry data'!B:K,10,0)) -> advance | J74: =IF(A74="","",IF(B74=1,VLOOKUP(A74,'entry data'!B:D,3,0),K73)) -> 2016-03-22 | K74: 2016-04-05 | L74: 2016-04 | M74: 1629.56811 | N74: 268.3316831 | O74: =IF(A74="","",-IPMT(H74*VLOOKUP(E74,index!A:C,3,0),calculations!B74,calculations!C74,calculations!F74,-calculations!G74,VLOOKUP(I74,index!G:H,2,0))) -> 7.875501768 | P74: =IF(A74="","",VLOOKUP(A74,'entry data'!B:L,11,0)+IF(B74=C74,G74,0)) -> 276.2071848 | Q74: 1361.236427 | R74: 0
A75: =IF(A74="","",IF(B74<C74,A74,IF(A74=MAX('entry data'!$B$8:$B$17),"",A74+1))) -> 1 | B75: 74 | C75: =IF(A75="","",VLOOKUP(A75,'entry data'!B:H,7,0)) -> 78 | D75: =IF(A75="","",VLOOKUP(A75,'entry data'!B:C,2,0)) -> Car Loan | E75: =IF(A75="","",VLOOKUP(A75,'entry data'!B:E,4,0)) -> fortnightly | F75: =IF(A75="","",VLOOKUP(A75,'entry data'!B:F,5,0)) -> 18000 | G75: =IF(A75="","",IF(ISERROR(VLOOKUP(A75,'entry data'!B:G,6,0)),"",VLOOKUP(A75,'entry data'!B:G,6,0))) -> 0 | H75: =IF(A75="","",VLOOKUP(A75,'entry data'!B:L,9,0)) -> 0.126 | I75: =IF(A75="","",VLOOKUP(A75,'entry data'!B:K,10,0)) -> advance | J75: =IF(A75="","",IF(B75=1,VLOOKUP(A75,'entry data'!B:D,3,0),K74)) -> 2016-04-05 | K75: 2016-04-19 | L75: 2016-04 | M75: 1361.236427 | N75: 269.628497 | O75: =IF(A75="","",-IPMT(H75*VLOOKUP(E75,index!A:C,3,0),calculations!B75,calculations!C75,calculations!F75,-calculations!G75,VLOOKUP(I75,index!G:H,2,0))) -> 6.578687826 | P75: =IF(A75="","",VLOOKUP(A75,'entry data'!B:L,11,0)+IF(B75=C75,G75,0)) -> 276.2071848 | Q75: 1091.60793 | R75: 1091.60793
A76: =IF(A75="","",IF(B75<C75,A75,IF(A75=MAX('entry data'!$B$8:$B$17),"",A75+1))) -> 1 | B76: 75 | C76: =IF(A76="","",VLOOKUP(A76,'entry data'!B:H,7,0)) -> 78 | D76: =IF(A76="","",VLOOKUP(A76,'entry data'!B:C,2,0)) -> Car Loan | E76: =IF(A76="","",VLOOKUP(A76,'entry data'!B:E,4,0)) -> fortnightly | F76: =IF(A76="","",VLOOKUP(A76,'entry data'!B:F,5,0)) -> 18000 | G76: =IF(A76="","",IF(ISERROR(VLOOKUP(A76,'entry data'!B:G,6,0)),"",VLOOKUP(A76,'entry data'!B:G,6,0))) -> 0 | H76: =IF(A76="","",VLOOKUP(A76,'entry data'!B:L,9,0)) -> 0.126 | I76: =IF(A76="","",VLOOKUP(A76,'entry data'!B:K,10,0)) -> advance | J76: =IF(A76="","",IF(B76=1,VLOOKUP(A76,'entry data'!B:D,3,0),K75)) -> 2016-04-19 | K76: 2016-05-03 | L76: 2016-05 | M76: 1091.60793 | N76: 270.9315783 | O76: =IF(A76="","",-IPMT(H76*VLOOKUP(E76,index!A:C,3,0),calculations!B76,calculations!C76,calculations!F76,-calculations!G76,VLOOKUP(I76,index!G:H,2,0))) -> 5.275606542 | P76: =IF(A76="","",VLOOKUP(A76,'entry data'!B:L,11,0)+IF(B76=C76,G76,0)) -> 276.2071848 | Q76: 820.6763512 | R76: 0
A77: =IF(A76="","",IF(B76<C76,A76,IF(A76=MAX('entry data'!$B$8:$B$17),"",A76+1))) -> 1 | B77: =IF(A77="","",IF(B76=C76,1,B76+1)) -> 76 | C77: =IF(A77="","",VLOOKUP(A77,'entry data'!B:H,7,0)) -> 78 | D77: =IF(A77="","",VLOOKUP(A77,'entry data'!B:C,2,0)) -> Car Loan | E77: =IF(A77="","",VLOOKUP(A77,'entry data'!B:E,4,0)) -> fortnightly | F77: =IF(A77="","",VLOOKUP(A77,'entry data'!B:F,5,0)) -> 18000 | G77: =IF(A77="","",IF(ISERROR(VLOOKUP(A77,'entry data'!B:G,6,0)),"",VLOOKUP(A77,'entry data'!B:G,6,0))) -> 0 | H77: =IF(A77="","",VLOOKUP(A77,'entry data'!B:L,9,0)) -> 0.126 | I77: =IF(A77="","",VLOOKUP(A77,'entry data'!B:K,10,0)) -> advance | J77: =IF(A77="","",IF(B77=1,VLOOKUP(A77,'entry data'!B:D,3,0),K76)) -> 2016-05-03 | K77: =IF(A77="","",IF(E77="weekly",7,IF(E77="fortnightly",14,DATE(IF(MONTH(J77)=12,YEAR(J77)+1,YEAR(J77)),IF(MONTH(J77)=12,1,MONTH(J77)+1),DAY(J77))-J77))+J77) -> 2016-05-17 | L77: =IF(A77="","",IF(MONTH(K77)<10,YEAR(K77)&"-0"&MONTH(K77),YEAR(K77)&"-"&MONTH(K77))) -> 2016-05 | M77: 820.6763512 | N77: =IF(A77="","",P77-O77) -> 272.2409572 | O77: =IF(A77="","",-IPMT(H77*VLOOKUP(E77,index!A:C,3,0),calculations!B77,calculations!C77,calculations!F77,-calculations!G77,VLOOKUP(I77,index!G:H,2,0))) -> 3.966227626 | P77: =IF(A77="","",VLOOKUP(A77,'entry data'!B:L,11,0)+IF(B77=C77,G77,0)) -> 276.2071848 | Q77: =IF(A77="","",M77-N77) -> 548.435394 | R77: 0
A78: =IF(A77="","",IF(B77<C77,A77,IF(A77=MAX('entry data'!$B$8:$B$17),"",A77+1))) -> 1 | B78: 77 | C78: =IF(A78="","",VLOOKUP(A78,'entry data'!B:H,7,0)) -> 78 | D78: =IF(A78="","",VLOOKUP(A78,'entry data'!B:C,2,0)) -> Car Loan | E78: =IF(A78="","",VLOOKUP(A78,'entry data'!B:E,4,0)) -> fortnightly | F78: =IF(A78="","",VLOOKUP(A78,'entry data'!B:F,5,0)) -> 18000 | G78: =IF(A78="","",IF(ISERROR(VLOOKUP(A78,'entry data'!B:G,6,0)),"",VLOOKUP(A78,'entry data'!B:G,6,0))) -> 0 | H78: =IF(A78="","",VLOOKUP(A78,'entry data'!B:L,9,0)) -> 0.126 | I78: =IF(A78="","",VLOOKUP(A78,'entry data'!B:K,10,0)) -> advance | J78: =IF(A78="","",IF(B78=1,VLOOKUP(A78,'entry data'!B:D,3,0),K77)) -> 2016-05-17 | K78: 2016-05-31 | L78: 2016-05 | M78: 548.435394 | N78: 273.5566642 | O78: =IF(A78="","",-IPMT(H78*VLOOKUP(E78,index!A:C,3,0),calculations!B78,calculations!C78,calculations!F78,-calculations!G78,VLOOKUP(I78,index!G:H,2,0))) -> 2.650520644 | P78: =IF(A78="","",VLOOKUP(A78,'entry data'!B:L,11,0)+IF(B78=C78,G78,0)) -> 276.2071848 | Q78: 274.8787298 | R78: 274.8787298
A79: =IF(A78="","",IF(B78<C78,A78,IF(A78=MAX('entry data'!$B$8:$B$17),"",A78+1))) -> 1 | B79: 78 | C79: =IF(A79="","",VLOOKUP(A79,'entry data'!B:H,7,0)) -> 78 | D79: =IF(A79="","",VLOOKUP(A79,'entry data'!B:C,2,0)) -> Car Loan | E79: =IF(A79="","",VLOOKUP(A79,'entry data'!B:E,4,0)) -> fortnightly | F79: =IF(A79="","",VLOOKUP(A79,'entry data'!B:F,5,0)) -> 18000 | G79: =IF(A79="","",IF(ISERROR(VLOOKUP(A79,'entry data'!B:G,6,0)),"",VLOOKUP(A79,'entry data'!B:G,6,0))) -> 0 | H79: =IF(A79="","",VLOOKUP(A79,'entry data'!B:L,9,0)) -> 0.126 | I79: =IF(A79="","",VLOOKUP(A79,'entry data'!B:K,10,0)) -> advance | J79: =IF(A79="","",IF(B79=1,VLOOKUP(A79,'entry data'!B:D,3,0),K78)) -> 2016-05-31 | K79: 2016-06-14 | L79: 2016-06 | M79: 274.8787298 | N79: 274.8787298 | O79: =IF(A79="","",-IPMT(H79*VLOOKUP(E79,index!A:C,3,0),calculations!B79,calculations!C79,calculations!F79,-calculations!G79,VLOOKUP(I79,index!G:H,2,0))) -> 1.328455012 | P79: =IF(A79="","",VLOOKUP(A79,'entry data'!B:L,11,0)+IF(B79=C79,G79,0)) -> 276.2071848 | Q79: 5.400124792e-12 | R79: 5.400124792e-12
A80: =IF(A79="","",IF(B79<C79,A79,IF(A79=MAX('entry data'!$B$8:$B$17),"",A79+1))) -> 2 | B80: 1 | C80: =IF(A80="","",VLOOKUP(A80,'entry data'!B:H,7,0)) -> 72 | D80: =IF(A80="","",VLOOKUP(A80,'entry data'!B:C,2,0)) -> Hire Purchase 1 | E80: =IF(A80="","",VLOOKUP(A80,'entry data'!B:E,4,0)) -> monthly | F80: =IF(A80="","",VLOOKUP(A80,'entry data'!B:F,5,0)) -> 7000 | G80: =IF(A80="","",IF(ISERROR(VLOOKUP(A80,'entry data'!B:G,6,0)),"",VLOOKUP(A80,'entry data'!B:G,6,0))) -> 0 | H80: =IF(A80="","",VLOOKUP(A80,'entry data'!B:L,9,0)) -> 0.126 | I80: =IF(A80="","",VLOOKUP(A80,'entry data'!B:K,10,0)) -> arrears | J80: =IF(A80="","",IF(B80=1,VLOOKUP(A80,'entry data'!B:D,3,0),K79)) -> 2012-08-26 | K80: 2012-09-26 | L80: 2012-09 | M80: 7000 | N80: 65.54526362 | O80: =IF(A80="","",-IPMT(H80*VLOOKUP(E80,index!A:C,3,0),calculations!B80,calculations!C80,calculations!F80,-calculations!G80,VLOOKUP(I80,index!G:H,2,0))) -> 73.5 | P80: =IF(A80="","",VLOOKUP(A80,'entry data'!B:L,11,0)+IF(B80=C80,G80,0)) -> 139.0452636 | Q80: 6934.454736 | R80: 6934.454736
A81: =IF(A80="","",IF(B80<C80,A80,IF(A80=MAX('entry data'!$B$8:$B$17),"",A80+1))) -> 2 | B81: 2 | C81: =IF(A81="","",VLOOKUP(A81,'entry data'!B:H,7,0)) -> 72 | D81: =IF(A81="","",VLOOKUP(A81,'entry data'!B:C,2,0)) -> Hire Purchase 1 | E81: =IF(A81="","",VLOOKUP(A81,'entry data'!B:E,4,0)) -> monthly | F81: =IF(A81="","",VLOOKUP(A81,'entry data'!B:F,5,0)) -> 7000 | G81: =IF(A81="","",IF(ISERROR(VLOOKUP(A81,'entry data'!B:G,6,0)),"",VLOOKUP(A81,'entry data'!B:G,6,0))) -> 0 | H81: =IF(A81="","",VLOOKUP(A81,'entry data'!B:L,9,0)) -> 0.126 | I81: =IF(A81="","",VLOOKUP(A81,'entry data'!B:K,10,0)) -> arrears | J81: =IF(A81="","",IF(B81=1,VLOOKUP(A81,'entry data'!B:D,3,0),K80)) -> 2012-09-26 | K81: 2012-10-26 | L81: 2012-10 | M81: 6934.454736 | N81: 66.23348889 | O81: =IF(A81="","",-IPMT(H81*VLOOKUP(E81,index!A:C,3,0),calculations!B81,calculations!C81,calculations!F81,-calculations!G81,VLOOKUP(I81,index!G:H,2,0))) -> 72.81177473 | P81: =IF(A81="","",VLOOKUP(A81,'entry data'!B:L,11,0)+IF(B81=C81,G81,0)) -> 139.0452636 | Q81: 6868.221247 | R81: 6868.221247
A82: =IF(A81="","",IF(B81<C81,A81,IF(A81=MAX('entry data'!$B$8:$B$17),"",A81+1))) -> 2 | B82: 3 | C82: =IF(A82="","",VLOOKUP(A82,'entry data'!B:H,7,0)) -> 72 | D82: =IF(A82="","",VLOOKUP(A82,'entry data'!B:C,2,0)) -> Hire Purchase 1 | E82: =IF(A82="","",VLOOKUP(A82,'entry data'!B:E,4,0)) -> monthly | F82: =IF(A82="","",VLOOKUP(A82,'entry data'!B:F,5,0)) -> 7000 | G82: =IF(A82="","",IF(ISERROR(VLOOKUP(A82,'entry data'!B:G,6,0)),"",VLOOKUP(A82,'entry data'!B:G,6,0))) -> 0 | H82: =IF(A82="","",VLOOKUP(A82,'entry data'!B:L,9,0)) -> 0.126 | I82: =IF(A82="","",VLOOKUP(A82,'entry data'!B:K,10,0)) -> arrears | J82: =IF(A82="","",IF(B82=1,VLOOKUP(A82,'entry data'!B:D,3,0),K81)) -> 2012-10-26 | K82: 2012-11-26 | L82: 2012-11 | M82: 6868.221247 | N82: 66.92894053 | O82: =IF(A82="","",-IPMT(H82*VLOOKUP(E82,index!A:C,3,0),calculations!B82,calculations!C82,calculations!F82,-calculations!G82,VLOOKUP(I82,index!G:H,2,0))) -> 72.1163231 | P82: =IF(A82="","",VLOOKUP(A82,'entry data'!B:L,11,0)+IF(B82=C82,G82,0)) -> 139.0452636 | Q82: 6801.292307 | R82: 6801.292307
A83: =IF(A82="","",IF(B82<C82,A82,IF(A82=MAX('entry data'!$B$8:$B$17),"",A82+1))) -> 2 | B83: 4 | C83: =IF(A83="","",VLOOKUP(A83,'entry data'!B:H,7,0)) -> 72 | D83: =IF(A83="","",VLOOKUP(A83,'entry data'!B:C,2,0)) -> Hire Purchase 1 | E83: =IF(A83="","",VLOOKUP(A83,'entry data'!B:E,4,0)) -> monthly | F83: =IF(A83="","",VLOOKUP(A83,'entry data'!B:F,5,0)) -> 7000 | G83: =IF(A83="","",IF(ISERROR(VLOOKUP(A83,'entry data'!B:G,6,0)),"",VLOOKUP(A83,'entry data'!B:G,6,0))) -> 0 | H83: =IF(A83="","",VLOOKUP(A83,'entry data'!B:L,9,0)) -> 0.126 | I83: =IF(A83="","",VLOOKUP(A83,'entry data'!B:K,10,0)) -> arrears | J83: =IF(A83="","",IF(B83=1,VLOOKUP(A83,'entry data'!B:D,3,0),K82)) -> 2012-11-26 | K83: 2012-12-26 | L83: 2012-12 | M83: 6801.292307 | N83: 67.6316944 | O83: =IF(A83="","",-IPMT(H83*VLOOKUP(E83,index!A:C,3,0),calculations!B83,calculations!C83,calculations!F83,-calculations!G83,VLOOKUP(I83,index!G:H,2,0))) -> 71.41356922 | P83: =IF(A83="","",VLOOKUP(A83,'entry data'!B:L,11,0)+IF(B83=C83,G83,0)) -> 139.0452636 | Q83: 6733.660613 | R83: 6733.660613
A84: =IF(A83="","",IF(B83<C83,A83,IF(A83=MAX('entry data'!$B$8:$B$17),"",A83+1))) -> 2 | B84: 5 | C84: =IF(A84="","",VLOOKUP(A84,'entry data'!B:H,7,0)) -> 72 | D84: =IF(A84="","",VLOOKUP(A84,'entry data'!B:C,2,0)) -> Hire Purchase 1 | E84: =IF(A84="","",VLOOKUP(A84,'entry data'!B:E,4,0)) -> monthly | F84: =IF(A84="","",VLOOKUP(A84,'entry data'!B:F,5,0)) -> 7000 | G84: =IF(A84="","",IF(ISERROR(VLOOKUP(A84,'entry data'!B:G,6,0)),"",VLOOKUP(A84,'entry data'!B:G,6,0))) -> 0 | H84: =IF(A84="","",VLOOKUP(A84,'entry data'!B:L,9,0)) -> 0.126 | I84: =IF(A84="","",VLOOKUP(A84,'entry data'!B:K,10,0)) -> arrears | J84: =IF(A84="","",IF(B84=1,VLOOKUP(A84,'entry data'!B:D,3,0),K83)) -> 2012-12-26 | K84: 2013-01-26 | L84: 2013-01 | M84: 6733.660613 | N84: 68.34182719 | O84: =IF(A84="","",-IPMT(H84*VLOOKUP(E84,index!A:C,3,0),calculations!B84,calculations!C84,calculations!F84,-calculations!G84,VLOOKUP(I84,index!G:H,2,0))) -> 70.70343643 | P84: =IF(A84="","",VLOOKUP(A84,'entry data'!B:L,11,0)+IF(B84=C84,G84,0)) -> 139.0452636 | Q84: 6665.318785 | R84: 6665.318785
A85: =IF(A84="","",IF(B84<C84,A84,IF(A84=MAX('entry data'!$B$8:$B$17),"",A84+1))) -> 2 | B85: 6 | C85: =IF(A85="","",VLOOKUP(A85,'entry data'!B:H,7,0)) -> 72 | D85: =IF(A85="","",VLOOKUP(A85,'entry data'!B:C,2,0)) -> Hire Purchase 1 | E85: =IF(A85="","",VLOOKUP(A85,'entry data'!B:E,4,0)) -> monthly | F85: =IF(A85="","",VLOOKUP(A85,'entry data'!B:F,5,0)) -> 7000 | G85: =IF(A85="","",IF(ISERROR(VLOOKUP(A85,'entry data'!B:G,6,0)),"",VLOOKUP(A85,'entry data'!B:G,6,0))) -> 0 | H85: =IF(A85="","",VLOOKUP(A85,'entry data'!B:L,9,0)) -> 0.126 | I85: =IF(A85="","",VLOOKUP(A85,'entry data'!B:K,10,0)) -> arrears | J85: =IF(A85="","",IF(B85=1,VLOOKUP(A85,'entry data'!B:D,3,0),K84)) -> 2013-01-26 | K85: 2013-02-26 | L85: 2013-02 | M85: 6665.318785 | N85: 69.05941638 | O85: =IF(A85="","",-IPMT(H85*VLOOKUP(E85,index!A:C,3,0),calculations!B85,calculations!C85,calculations!F85,-calculations!G85,VLOOKUP(I85,index!G:H,2,0))) -> 69.98584725 | P85: =IF(A85="","",VLOOKUP(A85,'entry data'!B:L,11,0)+IF(B85=C85,G85,0)) -> 139.0452636 | Q85: 6596.259369 | R85: 6596.259369
A86: =IF(A85="","",IF(B85<C85,A85,IF(A85=MAX('entry data'!$B$8:$B$17),"",A85+1))) -> 2 | B86: 7 | C86: =IF(A86="","",VLOOKUP(A86,'entry data'!B:H,7,0)) -> 72 | D86: =IF(A86="","",VLOOKUP(A86,'entry data'!B:C,2,0)) -> Hire Purchase 1 | E86: =IF(A86="","",VLOOKUP(A86,'entry data'!B:E,4,0)) -> monthly | F86: =IF(A86="","",VLOOKUP(A86,'entry data'!B:F,5,0)) -> 7000 | G86: =IF(A86="","",IF(ISERROR(VLOOKUP(A86,'entry data'!B:G,6,0)),"",VLOOKUP(A86,'entry data'!B:G,6,0))) -> 0 | H86: =IF(A86="","",VLOOKUP(A86,'entry data'!B:L,9,0)) -> 0.126 | I86: =IF(A86="","",VLOOKUP(A86,'entry data'!B:K,10,0)) -> arrears | J86: =IF(A86="","",IF(B86=1,VLOOKUP(A86,'entry data'!B:D,3,0),K85)) -> 2013-02-26 | K86: 2013-03-26 | L86: 2013-03 | M86: 6596.259369 | N86: 69.78454025 | O86: =IF(A86="","",-IPMT(H86*VLOOKUP(E86,index!A:C,3,0),calculations!B86,calculations!C86,calculations!F86,-calculations!G86,VLOOKUP(I86,index!G:H,2,0))) -> 69.26072337 | P86: =IF(A86="","",VLOOKUP(A86,'entry data'!B:L,11,0)+IF(B86=C86,G86,0)) -> 139.0452636 | Q86: 6526.474829 | R86: 6526.474829
A87: =IF(A86="","",IF(B86<C86,A86,IF(A86=MAX('entry data'!$B$8:$B$17),"",A86+1))) -> 2 | B87: =IF(A87="","",IF(B86=C86,1,B86+1)) -> 8 | C87: =IF(A87="","",VLOOKUP(A87,'entry data'!B:H,7,0)) -> 72 | D87: =IF(A87="","",VLOOKUP(A87,'entry data'!B:C,2,0)) -> Hire Purchase 1 | E87: =IF(A87="","",VLOOKUP(A87,'entry data'!B:E,4,0)) -> monthly | F87: =IF(A87="","",VLOOKUP(A87,'entry data'!B:F,5,0)) -> 7000 | G87: =IF(A87="","",IF(ISERROR(VLOOKUP(A87,'entry data'!B:G,6,0)),"",VLOOKUP(A87,'entry data'!B:G,6,0))) -> 0 | H87: =IF(A87="","",VLOOKUP(A87,'entry data'!B:L,9,0)) -> 0.126 | I87: =IF(A87="","",VLOOKUP(A87,'entry data'!B:K,10,0)) -> arrears | J87: =IF(A87="","",IF(B87=1,VLOOKUP(A87,'entry data'!B:D,3,0),K86)) -> 2013-03-26 | K87: =IF(A87="","",IF(E87="weekly",7,IF(E87="fortnightly",14,DATE(IF(MONTH(J87)=12,YEAR(J87)+1,YEAR(J87)),IF(MONTH(J87)=12,1,MONTH(J87)+1),DAY(J87))-J87))+J87) -> 2013-04-26 | L87: =IF(A87="","",IF(MONTH(K87)<10,YEAR(K87)&"-0"&MONTH(K87),YEAR(K87)&"-"&MONTH(K87))) -> 2013-04 | M87: 6526.474829 | N87: =IF(A87="","",P87-O87) -> 70.51727792 | O87: =IF(A87="","",-IPMT(H87*VLOOKUP(E87,index!A:C,3,0),calculations!B87,calculations!C87,calculations!F87,-calculations!G87,VLOOKUP(I87,index!G:H,2,0))) -> 68.5279857 | P87: =IF(A87="","",VLOOKUP(A87,'entry data'!B:L,11,0)+IF(B87=C87,G87,0)) -> 139.0452636 | Q87: =IF(A87="","",M87-N87) -> 6455.957551 | R87: 6455.957551
A88: =IF(A87="","",IF(B87<C87,A87,IF(A87=MAX('entry data'!$B$8:$B$17),"",A87+1))) -> 2 | B88: 9 | C88: =IF(A88="","",VLOOKUP(A88,'entry data'!B:H,7,0)) -> 72 | D88: =IF(A88="","",VLOOKUP(A88,'entry data'!B:C,2,0)) -> Hire Purchase 1 | E88: =IF(A88="","",VLOOKUP(A88,'entry data'!B:E,4,0)) -> monthly | F88: =IF(A88="","",VLOOKUP(A88,'entry data'!B:F,5,0)) -> 7000 | G88: =IF(A88="","",IF(ISERROR(VLOOKUP(A88,'entry data'!B:G,6,0)),"",VLOOKUP(A88,'entry data'!B:G,6,0))) -> 0 | H88: =IF(A88="","",VLOOKUP(A88,'entry data'!B:L,9,0)) -> 0.126 | I88: =IF(A88="","",VLOOKUP(A88,'entry data'!B:K,10,0)) -> arrears | J88: =IF(A88="","",IF(B88=1,VLOOKUP(A88,'entry data'!B:D,3,0),K87)) -> 2013-04-26 | K88: 2013-05-26 | L88: 2013-05 | M88: 6455.957551 | N88: 71.25770934 | O88: =IF(A88="","",-IPMT(H88*VLOOKUP(E88,index!A:C,3,0),calculations!B88,calculations!C88,calculations!F88,-calculations!G88,VLOOKUP(I88,index!G:H,2,0))) -> 67.78755428 | P88: =IF(A88="","",VLOOKUP(A88,'entry data'!B:L,11,0)+IF(B88=C88,G88,0)) -> 139.0452636 | Q88: 6384.699841 | R88: 6384.699841
A89: =IF(A88="","",IF(B88<C88,A88,IF(A88=MAX('entry data'!$B$8:$B$17),"",A88+1))) -> 2 | B89: 10 | C89: =IF(A89="","",VLOOKUP(A89,'entry data'!B:H,7,0)) -> 72 | D89: =IF(A89="","",VLOOKUP(A89,'entry data'!B:C,2,0)) -> Hire Purchase 1 | E89: =IF(A89="","",VLOOKUP(A89,'entry data'!B:E,4,0)) -> monthly | F89: =IF(A89="","",VLOOKUP(A89,'entry data'!B:F,5,0)) -> 7000 | G89: =IF(A89="","",IF(ISERROR(VLOOKUP(A89,'entry data'!B:G,6,0)),"",VLOOKUP(A89,'entry data'!B:G,6,0))) -> 0 | H89: =IF(A89="","",VLOOKUP(A89,'entry data'!B:L,9,0)) -> 0.126 | I89: =IF(A89="","",VLOOKUP(A89,'entry data'!B:K,10,0)) -> arrears | J89: =IF(A89="","",IF(B89=1,VLOOKUP(A89,'entry data'!B:D,3,0),K88)) -> 2013-05-26 | K89: 2013-06-26 | L89: 2013-06 | M89: 6384.699841 | N89: 72.00591529 | O89: =IF(A89="","",-IPMT(H89*VLOOKUP(E89,index!A:C,3,0),calculations!B89,calculations!C89,calculations!F89,-calculations!G89,VLOOKUP(I89,index!G:H,2,0))) -> 67.03934834 | P89: =IF(A89="","",VLOOKUP(A89,'entry data'!B:L,11,0)+IF(B89=C89,G89,0)) -> 139.0452636 | Q89: 6312.693926 | R89: 6312.693926
A90: =IF(A89="","",IF(B89<C89,A89,IF(A89=MAX('entry data'!$B$8:$B$17),"",A89+1))) -> 2 | B90: 11 | C90: =IF(A90="","",VLOOKUP(A90,'entry data'!B:H,7,0)) -> 72 | D90: =IF(A90="","",VLOOKUP(A90,'entry data'!B:C,2,0)) -> Hire Purchase 1 | E90: =IF(A90="","",VLOOKUP(A90,'entry data'!B:E,4,0)) -> monthly | F90: =IF(A90="","",VLOOKUP(A90,'entry data'!B:F,5,0)) -> 7000 | G90: =IF(A90="","",IF(ISERROR(VLOOKUP(A90,'entry data'!B:G,6,0)),"",VLOOKUP(A90,'entry data'!B:G,6,0))) -> 0 | H90: =IF(A90="","",VLOOKUP(A90,'entry data'!B:L,9,0)) -> 0.126 | I90: =IF(A90="","",VLOOKUP(A90,'entry data'!B:K,10,0)) -> arrears | J90: =IF(A90="","",IF(B90=1,VLOOKUP(A90,'entry data'!B:D,3,0),K89)) -> 2013-06-26 | K90: 2013-07-26 | L90: 2013-07 | M90: 6312.693926 | N90: 72.7619774 | O90: =IF(A90="","",-IPMT(H90*VLOOKUP(E90,index!A:C,3,0),calculations!B90,calculations!C90,calculations!F90,-calculations!G90,VLOOKUP(I90,index!G:H,2,0))) -> 66.28328622 | P90: =IF(A90="","",VLOOKUP(A90,'entry data'!B:L,11,0)+IF(B90=C90,G90,0)) -> 139.0452636 | Q90: 6239.931949 | R90: 6239.931949
A91: =IF(A90="","",IF(B90<C90,A90,IF(A90=MAX('entry data'!$B$8:$B$17),"",A90+1))) -> 2 | B91: 12 | C91: =IF(A91="","",VLOOKUP(A91,'entry data'!B:H,7,0)) -> 72 | D91: =IF(A91="","",VLOOKUP(A91,'entry data'!B:C,2,0)) -> Hire Purchase 1 | E91: =IF(A91="","",VLOOKUP(A91,'entry data'!B:E,4,0)) -> monthly | F91: =IF(A91="","",VLOOKUP(A91,'entry data'!B:F,5,0)) -> 7000 | G91: =IF(A91="","",IF(ISERROR(VLOOKUP(A91,'entry data'!B:G,6,0)),"",VLOOKUP(A91,'entry data'!B:G,6,0))) -> 0 | H91: =IF(A91="","",VLOOKUP(A91,'entry data'!B:L,9,0)) -> 0.126 | I91: =IF(A91="","",VLOOKUP(A91,'entry data'!B:K,10,0)) -> arrears | J91: =IF(A91="","",IF(B91=1,VLOOKUP(A91,'entry data'!B:D,3,0),K90)) -> 2013-07-26 | K91: 2013-08-26 | L91: 2013-08 | M91: 6239.931949 | N91: 73.52597816 | O91: =IF(A91="","",-IPMT(H91*VLOOKUP(E91,index!A:C,3,0),calculations!B91,calculations!C91,calculations!F91,-calculations!G91,VLOOKUP(I91,index!G:H,2,0))) -> 65.51928546 | P91: =IF(A91="","",VLOOKUP(A91,'entry data'!B:L,11,0)+IF(B91=C91,G91,0)) -> 139.0452636 | Q91: 6166.405971 | R91: 6166.405971
A92: =IF(A91="","",IF(B91<C91,A91,IF(A91=MAX('entry data'!$B$8:$B$17),"",A91+1))) -> 2 | B92: 13 | C92: =IF(A92="","",VLOOKUP(A92,'entry data'!B:H,7,0)) -> 72 | D92: =IF(A92="","",VLOOKUP(A92,'entry data'!B:C,2,0)) -> Hire Purchase 1 | E92: =IF(A92="","",VLOOKUP(A92,'entry data'!B:E,4,0)) -> monthly | F92: =IF(A92="","",VLOOKUP(A92,'entry data'!B:F,5,0)) -> 7000 | G92: =IF(A92="","",IF(ISERROR(VLOOKUP(A92,'entry data'!B:G,6,0)),"",VLOOKUP(A92,'entry data'!B:G,6,0))) -> 0 | H92: =IF(A92="","",VLOOKUP(A92,'entry data'!B:L,9,0)) -> 0.126 | I92: =IF(A92="","",VLOOKUP(A92,'entry data'!B:K,10,0)) -> arrears | J92: =IF(A92="","",IF(B92=1,VLOOKUP(A92,'entry data'!B:D,3,0),K91)) -> 2013-08-26 | K92: 2013-09-26 | L92: 2013-09 | M92: 6166.405971 | N92: 74.29800093 | O92: =IF(A92="","",-IPMT(H92*VLOOKUP(E92,index!A:C,3,0),calculations!B92,calculations!C92,calculations!F92,-calculations!G92,VLOOKUP(I92,index!G:H,2,0))) -> 64.74726269 | P92: =IF(A92="","",VLOOKUP(A92,'entry data'!B:L,11,0)+IF(B92=C92,G92,0)) -> 139.0452636 | Q92: 6092.10797 | R92: 6092.10797
A93: =IF(A92="","",IF(B92<C92,A92,IF(A92=MAX('entry data'!$B$8:$B$17),"",A92+1))) -> 2 | B93: 14 | C93: =IF(A93="","",VLOOKUP(A93,'entry data'!B:H,7,0)) -> 72 | D93: =IF(A93="","",VLOOKUP(A93,'entry data'!B:C,2,0)) -> Hire Purchase 1 | E93: =IF(A93="","",VLOOKUP(A93,'entry data'!B:E,4,0)) -> monthly | F93: =IF(A93="","",VLOOKUP(A93,'entry data'!B:F,5,0)) -> 7000 | G93: =IF(A93="","",IF(ISERROR(VLOOKUP(A93,'entry data'!B:G,6,0)),"",VLOOKUP(A93,'entry data'!B:G,6,0))) -> 0 | H93: =IF(A93="","",VLOOKUP(A93,'entry data'!B:L,9,0)) -> 0.126 | I93: =IF(A93="","",VLOOKUP(A93,'entry data'!B:K,10,0)) -> arrears | J93: =IF(A93="","",IF(B93=1,VLOOKUP(A93,'entry data'!B:D,3,0),K92)) -> 2013-09-26 | K93: 2013-10-26 | L93: 2013-10 | M93: 6092.10797 | N93: 75.07812994 | O93: =IF(A93="","",-IPMT(H93*VLOOKUP(E93,index!A:C,3,0),calculations!B93,calculations!C93,calculations!F93,-calculations!G93,VLOOKUP(I93,index!G:H,2,0))) -> 63.96713368 | P93: =IF(A93="","",VLOOKUP(A93,'entry data'!B:L,11,0)+IF(B93=C93,G93,0)) -> 139.0452636 | Q93: 6017.02984 | R93: 6017.02984
A94: =IF(A93="","",IF(B93<C93,A93,IF(A93=MAX('entry data'!$B$8:$B$17),"",A93+1))) -> 2 | B94: 15 | C94: =IF(A94="","",VLOOKUP(A94,'entry data'!B:H,7,0)) -> 72 | D94: =IF(A94="","",VLOOKUP(A94,'entry data'!B:C,2,0)) -> Hire Purchase 1 | E94: =IF(A94="","",VLOOKUP(A94,'entry data'!B:E,4,0)) -> monthly | F94: =IF(A94="","",VLOOKUP(A94,'entry data'!B:F,5,0)) -> 7000 | G94: =IF(A94="","",IF(ISERROR(VLOOKUP(A94,'entry data'!B:G,6,0)),"",VLOOKUP(A94,'entry data'!B:G,6,0))) -> 0 | H94: =IF(A94="","",VLOOKUP(A94,'entry data'!B:L,9,0)) -> 0.126 | I94: =IF(A94="","",VLOOKUP(A94,'entry data'!B:K,10,0)) -> arrears | J94: =IF(A94="","",IF(B94=1,VLOOKUP(A94,'entry data'!B:D,3,0),K93)) -> 2013-10-26 | K94: 2013-11-26 | L94: 2013-11 | M94: 6017.02984 | N94: 75.86645031 | O94: =IF(A94="","",-IPMT(H94*VLOOKUP(E94,index!A:C,3,0),calculations!B94,calculations!C94,calculations!F94,-calculations!G94,VLOOKUP(I94,index!G:H,2,0))) -> 63.17881332 | P94: =IF(A94="","",VLOOKUP(A94,'entry data'!B:L,11,0)+IF(B94=C94,G94,0)) -> 139.0452636 | Q94: 5941.163389 | R94: 5941.163389
A95: =IF(A94="","",IF(B94<C94,A94,IF(A94=MAX('entry data'!$B$8:$B$17),"",A94+1))) -> 2 | B95: 16 | C95: =IF(A95="","",VLOOKUP(A95,'entry data'!B:H,7,0)) -> 72 | D95: =IF(A95="","",VLOOKUP(A95,'entry data'!B:C,2,0)) -> Hire Purchase 1 | E95: =IF(A95="","",VLOOKUP(A95,'entry data'!B:E,4,0)) -> monthly | F95: =IF(A95="","",VLOOKUP(A95,'entry data'!B:F,5,0)) -> 7000 | G95: =IF(A95="","",IF(ISERROR(VLOOKUP(A95,'entry data'!B:G,6,0)),"",VLOOKUP(A95,'entry data'!B:G,6,0))) -> 0 | H95: =IF(A95="","",VLOOKUP(A95,'entry data'!B:L,9,0)) -> 0.126 | I95: =IF(A95="","",VLOOKUP(A95,'entry data'!B:K,10,0)) -> arrears | J95: =IF(A95="","",IF(B95=1,VLOOKUP(A95,'entry data'!B:D,3,0),K94)) -> 2013-11-26 | K95: 2013-12-26 | L95: 2013-12 | M95: 5941.163389 | N95: 76.66304804 | O95: =IF(A95="","",-IPMT(H95*VLOOKUP(E95,index!A:C,3,0),calculations!B95,calculations!C95,calculations!F95,-calculations!G95,VLOOKUP(I95,index!G:H,2,0))) -> 62.38221559 | P95: =IF(A95="","",VLOOKUP(A95,'entry data'!B:L,11,0)+IF(B95=C95,G95,0)) -> 139.0452636 | Q95: 5864.500341 | R95: 5864.500341
A96: =IF(A95="","",IF(B95<C95,A95,IF(A95=MAX('entry data'!$B$8:$B$17),"",A95+1))) -> 2 | B96: 17 | C96: =IF(A96="","",VLOOKUP(A96,'entry data'!B:H,7,0)) -> 72 | D96: =IF(A96="","",VLOOKUP(A96,'entry data'!B:C,2,0)) -> Hire Purchase 1 | E96: =IF(A96="","",VLOOKUP(A96,'entry data'!B:E,4,0)) -> monthly | F96: =IF(A96="","",VLOOKUP(A96,'entry data'!B:F,5,0)) -> 7000 | G96: =IF(A96="","",IF(ISERROR(VLOOKUP(A96,'entry data'!B:G,6,0)),"",VLOOKUP(A96,'entry data'!B:G,6,0))) -> 0 | H96: =IF(A96="","",VLOOKUP(A96,'entry data'!B:L,9,0)) -> 0.126 | I96: =IF(A96="","",VLOOKUP(A96,'entry data'!B:K,10,0)) -> arrears | J96: =IF(A96="","",IF(B96=1,VLOOKUP(A96,'entry data'!B:D,3,0),K95)) -> 2013-12-26 | K96: 2014-01-26 | L96: 2014-01 | M96: 5864.500341 | N96: 77.46801004 | O96: =IF(A96="","",-IPMT(H96*VLOOKUP(E96,index!A:C,3,0),calculations!B96,calculations!C96,calculations!F96,-calculations!G96,VLOOKUP(I96,index!G:H,2,0))) -> 61.57725358 | P96: =IF(A96="","",VLOOKUP(A96,'entry data'!B:L,11,0)+IF(B96=C96,G96,0)) -> 139.0452636 | Q96: 5787.032331 | R96: 5787.032331
A97: =IF(A96="","",IF(B96<C96,A96,IF(A96=MAX('entry data'!$B$8:$B$17),"",A96+1))) -> 2 | B97: 18 | C97: =IF(A97="","",VLOOKUP(A97,'entry data'!B:H,7,0)) -> 72 | D97: =IF(A97="","",VLOOKUP(A97,'entry data'!B:C,2,0)) -> Hire Purchase 1 | E97: =IF(A97="","",VLOOKUP(A97,'entry data'!B:E,4,0)) -> monthly | F97: =IF(A97="","",VLOOKUP(A97,'entry data'!B:F,5,0)) -> 7000 | G97: =IF(A97="","",IF(ISERROR(VLOOKUP(A97,'entry data'!B:G,6,0)),"",VLOOKUP(A97,'entry data'!B:G,6,0))) -> 0 | H97: =IF(A97="","",VLOOKUP(A97,'entry data'!B:L,9,0)) -> 0.126 | I97: =IF(A97="","",VLOOKUP(A97,'entry data'!B:K,10,0)) -> arrears | J97: =IF(A97="","",IF(B97=1,VLOOKUP(A97,'entry data'!B:D,3,0),K96)) -> 2014-01-26 | K97: 2014-02-26 | L97: 2014-02 | M97: 5787.032331 | N97: 78.28142414 | O97: =IF(A97="","",-IPMT(H97*VLOOKUP(E97,index!A:C,3,0),calculations!B97,calculations!C97,calculations!F97,-calculations!G97,VLOOKUP(I97,index!G:H,2,0))) -> 60.76383948 | P97: =IF(A97="","",VLOOKUP(A97,'entry data'!B:L,11,0)+IF(B97=C97,G97,0)) -> 139.0452636 | Q97: 5708.750907 | R97: 5708.750907
A98: =IF(A97="","",IF(B97<C97,A97,IF(A97=MAX('entry data'!$B$8:$B$17),"",A97+1))) -> 2 | B98: 19 | C98: =IF(A98="","",VLOOKUP(A98,'entry data'!B:H,7,0)) -> 72 | D98: =IF(A98="","",VLOOKUP(A98,'entry data'!B:C,2,0)) -> Hire Purchase 1 | E98: =IF(A98="","",VLOOKUP(A98,'entry data'!B:E,4,0)) -> monthly | F98: =IF(A98="","",VLOOKUP(A98,'entry data'!B:F,5,0)) -> 7000 | G98: =IF(A98="","",IF(ISERROR(VLOOKUP(A98,'entry data'!B:G,6,0)),"",VLOOKUP(A98,'entry data'!B:G,6,0))) -> 0 | H98: =IF(A98="","",VLOOKUP(A98,'entry data'!B:L,9,0)) -> 0.126 | I98: =IF(A98="","",VLOOKUP(A98,'entry data'!B:K,10,0)) -> arrears | J98: =IF(A98="","",IF(B98=1,VLOOKUP(A98,'entry data'!B:D,3,0),K97)) -> 2014-02-26 | K98: 2014-03-26 | L98: 2014-03 | M98: 5708.750907 | N98: 79.1033791 | O98: =IF(A98="","",-IPMT(H98*VLOOKUP(E98,index!A:C,3,0),calculations!B98,calculations!C98,calculations!F98,-calculations!G98,VLOOKUP(I98,index!G:H,2,0))) -> 59.94188453 | P98: =IF(A98="","",VLOOKUP(A98,'entry data'!B:L,11,0)+IF(B98=C98,G98,0)) -> 139.0452636 | Q98: 5629.647528 | R98: 5629.647528
A99: =IF(A98="","",IF(B98<C98,A98,IF(A98=MAX('entry data'!$B$8:$B$17),"",A98+1))) -> 2 | B99: 20 | C99: =IF(A99="","",VLOOKUP(A99,'entry data'!B:H,7,0)) -> 72 | D99: =IF(A99="","",VLOOKUP(A99,'entry data'!B:C,2,0)) -> Hire Purchase 1 | E99: =IF(A99="","",VLOOKUP(A99,'entry data'!B:E,4,0)) -> monthly | F99: =IF(A99="","",VLOOKUP(A99,'entry data'!B:F,5,0)) -> 7000 | G99: =IF(A99="","",IF(ISERROR(VLOOKUP(A99,'entry data'!B:G,6,0)),"",VLOOKUP(A99,'entry data'!B:G,6,0))) -> 0 | H99: =IF(A99="","",VLOOKUP(A99,'entry data'!B:L,9,0)) -> 0.126 | I99: =IF(A99="","",VLOOKUP(A99,'entry data'!B:K,10,0)) -> arrears | J99: =IF(A99="","",IF(B99=1,VLOOKUP(A99,'entry data'!B:D,3,0),K98)) -> 2014-03-26 | K99: 2014-04-26 | L99: 2014-04 | M99: 5629.647528 | N99: 79.93396458 | O99: =IF(A99="","",-IPMT(H99*VLOOKUP(E99,index!A:C,3,0),calculations!B99,calculations!C99,calculations!F99,-calculations!G99,VLOOKUP(I99,index!G:H,2,0))) -> 59.11129905 | P99: =IF(A99="","",VLOOKUP(A99,'entry data'!B:L,11,0)+IF(B99=C99,G99,0)) -> 139.0452636 | Q99: 5549.713564 | R99: 5549.713564
A100: =IF(A99="","",IF(B99<C99,A99,IF(A99=MAX('entry data'!$B$8:$B$17),"",A99+1))) -> 2 | B100: 21 | C100: =IF(A100="","",VLOOKUP(A100,'entry data'!B:H,7,0)) -> 72 | D100: =IF(A100="","",VLOOKUP(A100,'entry data'!B:C,2,0)) -> Hire Purchase 1 | E100: =IF(A100="","",VLOOKUP(A100,'entry data'!B:E,4,0)) -> monthly | F100: =IF(A100="","",VLOOKUP(A100,'entry data'!B:F,5,0)) -> 7000 | G100: =IF(A100="","",IF(ISERROR(VLOOKUP(A100,'entry data'!B:G,6,0)),"",VLOOKUP(A100,'entry data'!B:G,6,0))) -> 0 | H100: =IF(A100="","",VLOOKUP(A100,'entry data'!B:L,9,0)) -> 0.126 | I100: =IF(A100="","",VLOOKUP(A100,'entry data'!B:K,10,0)) -> arrears | J100: =IF(A100="","",IF(B100=1,VLOOKUP(A100,'entry data'!B:D,3,0),K99)) -> 2014-04-26 | K100: 2014-05-26 | L100: 2014-05 | M100: 5549.713564 | N100: 80.77327121 | O100: =IF(A100="","",-IPMT(H100*VLOOKUP(E100,index!A:C,3,0),calculations!B100,calculations!C100,calculations!F100,-calculations!G100,VLOOKUP(I100,index!G:H,2,0))) -> 58.27199242 | P100: =IF(A100="","",VLOOKUP(A100,'entry data'!B:L,11,0)+IF(B100=C100,G100,0)) -> 139.0452636 | Q100: 5468.940292 | R100: 5468.940292
A101: =IF(A100="","",IF(B100<C100,A100,IF(A100=MAX('entry data'!$B$8:$B$17),"",A100+1))) -> 2 | B101: 22 | C101: =IF(A101="","",VLOOKUP(A101,'entry data'!B:H,7,0)) -> 72 | D101: =IF(A101="","",VLOOKUP(A101,'entry data'!B:C,2,0)) -> Hire Purchase 1 | E101: =IF(A101="","",VLOOKUP(A101,'entry data'!B:E,4,0)) -> monthly | F101: =IF(A101="","",VLOOKUP(A101,'entry data'!B:F,5,0)) -> 7000 | G101: =IF(A101="","",IF(ISERROR(VLOOKUP(A101,'entry data'!B:G,6,0)),"",VLOOKUP(A101,'entry data'!B:G,6,0))) -> 0 | H101: =IF(A101="","",VLOOKUP(A101,'entry data'!B:L,9,0)) -> 0.126 | I101: =IF(A101="","",VLOOKUP(A101,'entry data'!B:K,10,0)) -> arrears | J101: =IF(A101="","",IF(B101=1,VLOOKUP(A101,'entry data'!B:D,3,0),K100)) -> 2014-05-26 | K101: 2014-06-26 | L101: 2014-06 | M101: 5468.940292 | N101: 81.62139055 | O101: =IF(A101="","",-IPMT(H101*VLOOKUP(E101,index!A:C,3,0),calculations!B101,calculations!C101,calculations!F101,-calculations!G101,VLOOKUP(I101,index!G:H,2,0))) -> 57.42387307 | P101: =IF(A101="","",VLOOKUP(A101,'entry data'!B:L,11,0)+IF(B101=C101,G101,0)) -> 139.0452636 | Q101: 5387.318902 | R101: 5387.318902
A102: =IF(A101="","",IF(B101<C101,A101,IF(A101=MAX('entry data'!$B$8:$B$17),"",A101+1))) -> 2 | B102: 23 | C102: =IF(A102="","",VLOOKUP(A102,'entry data'!B:H,7,0)) -> 72 | D102: =IF(A102="","",VLOOKUP(A102,'entry data'!B:C,2,0)) -> Hire Purchase 1 | E102: =IF(A102="","",VLOOKUP(A102,'entry data'!B:E,4,0)) -> monthly | F102: =IF(A102="","",VLOOKUP(A102,'entry data'!B:F,5,0)) -> 7000 | G102: =IF(A102="","",IF(ISERROR(VLOOKUP(A102,'entry data'!B:G,6,0)),"",VLOOKUP(A102,'entry data'!B:G,6,0))) -> 0 | H102: =IF(A102="","",VLOOKUP(A102,'entry data'!B:L,9,0)) -> 0.126 | I102: =IF(A102="","",VLOOKUP(A102,'entry data'!B:K,10,0)) -> arrears | J102: =IF(A102="","",IF(B102=1,VLOOKUP(A102,'entry data'!B:D,3,0),K101)) -> 2014-06-26 | K102: 2014-07-26 | L102: 2014-07 | M102: 5387.318902 | N102: 82.47841516 | O102: =IF(A102="","",-IPMT(H102*VLOOKUP(E102,index!A:C,3,0),calculations!B102,calculations!C102,calculations!F102,-calculations!G102,VLOOKUP(I102,index!G:H,2,0))) -> 56.56684847 | P102: =IF(A102="","",VLOOKUP(A102,'entry data'!B:L,11,0)+IF(B102=C102,G102,0)) -> 139.0452636 | Q102: 5304.840487 | R102: 5304.840487
A103: =IF(A102="","",IF(B102<C102,A102,IF(A102=MAX('entry data'!$B$8:$B$17),"",A102+1))) -> 2 | B103: 24 | C103: =IF(A103="","",VLOOKUP(A103,'entry data'!B:H,7,0)) -> 72 | D103: =IF(A103="","",VLOOKUP(A103,'entry data'!B:C,2,0)) -> Hire Purchase 1 | E103: =IF(A103="","",VLOOKUP(A103,'entry data'!B:E,4,0)) -> monthly | F103: =IF(A103="","",VLOOKUP(A103,'entry data'!B:F,5,0)) -> 7000 | G103: =IF(A103="","",IF(ISERROR(VLOOKUP(A103,'entry data'!B:G,6,0)),"",VLOOKUP(A103,'entry data'!B:G,6,0))) -> 0 | H103: =IF(A103="","",VLOOKUP(A103,'entry data'!B:L,9,0)) -> 0.126 | I103: =IF(A103="","",VLOOKUP(A103,'entry data'!B:K,10,0)) -> arrears | J103: =IF(A103="","",IF(B103=1,VLOOKUP(A103,'entry data'!B:D,3,0),K102)) -> 2014-07-26 | K103: 2014-08-26 | L103: 2014-08 | M103: 5304.840487 | N103: 83.34443851 | O103: =IF(A103="","",-IPMT(H103*VLOOKUP(E103,index!A:C,3,0),calculations!B103,calculations!C103,calculations!F103,-calculations!G103,VLOOKUP(I103,index!G:H,2,0))) -> 55.70082511 | P103: =IF(A103="","",VLOOKUP(A103,'entry data'!B:L,11,0)+IF(B103=C103,G103,0)) -> 139.0452636 | Q103: 5221.496048 | R103: 5221.496048
A104: =IF(A103="","",IF(B103<C103,A103,IF(A103=MAX('entry data'!$B$8:$B$17),"",A103+1))) -> 2 | B104: 25 | C104: =IF(A104="","",VLOOKUP(A104,'entry data'!B:H,7,0)) -> 72 | D104: =IF(A104="","",VLOOKUP(A104,'entry data'!B:C,2,0)) -> Hire Purchase 1 | E104: =IF(A104="","",VLOOKUP(A104,'entry data'!B:E,4,0)) -> monthly | F104: =IF(A104="","",VLOOKUP(A104,'entry data'!B:F,5,0)) -> 7000 | G104: =IF(A104="","",IF(ISERROR(VLOOKUP(A104,'entry data'!B:G,6,0)),"",VLOOKUP(A104,'entry data'!B:G,6,0))) -> 0 | H104: =IF(A104="","",VLOOKUP(A104,'entry data'!B:L,9,0)) -> 0.126 | I104: =IF(A104="","",VLOOKUP(A104,'entry data'!B:K,10,0)) -> arrears | J104: =IF(A104="","",IF(B104=1,VLOOKUP(A104,'entry data'!B:D,3,0),K103)) -> 2014-08-26 | K104: 2014-09-26 | L104: 2014-09 | M104: 5221.496048 | N104: 84.21955512 | O104: =IF(A104="","",-IPMT(H104*VLOOKUP(E104,index!A:C,3,0),calculations!B104,calculations!C104,calculations!F104,-calculations!G104,VLOOKUP(I104,index!G:H,2,0))) -> 54.82570851 | P104: =IF(A104="","",VLOOKUP(A104,'entry data'!B:L,11,0)+IF(B104=C104,G104,0)) -> 139.0452636 | Q104: 5137.276493 | R104: 5137.276493
A105: =IF(A104="","",IF(B104<C104,A104,IF(A104=MAX('entry data'!$B$8:$B$17),"",A104+1))) -> 2 | B105: 26 | C105: =IF(A105="","",VLOOKUP(A105,'entry data'!B:H,7,0)) -> 72 | D105: =IF(A105="","",VLOOKUP(A105,'entry data'!B:C,2,0)) -> Hire Purchase 1 | E105: =IF(A105="","",VLOOKUP(A105,'entry data'!B:E,4,0)) -> monthly | F105: =IF(A105="","",VLOOKUP(A105,'entry data'!B:F,5,0)) -> 7000 | G105: =IF(A105="","",IF(ISERROR(VLOOKUP(A105,'entry data'!B:G,6,0)),"",VLOOKUP(A105,'entry data'!B:G,6,0))) -> 0 | H105: =IF(A105="","",VLOOKUP(A105,'entry data'!B:L,9,0)) -> 0.126 | I105: =IF(A105="","",VLOOKUP(A105,'entry data'!B:K,10,0)) -> arrears | J105: =IF(A105="","",IF(B105=1,VLOOKUP(A105,'entry data'!B:D,3,0),K104)) -> 2014-09-26 | K105: 2014-10-26 | L105: 2014-10 | M105: 5137.276493 | N105: 85.10386045 | O105: =IF(A105="","",-IPMT(H105*VLOOKUP(E105,index!A:C,3,0),calculations!B105,calculations!C105,calculations!F105,-calculations!G105,VLOOKUP(I105,index!G:H,2,0))) -> 53.94140318 | P105: =IF(A105="","",VLOOKUP(A105,'entry data'!B:L,11,0)+IF(B105=C105,G105,0)) -> 139.0452636 | Q105: 5052.172633 | R105: 5052.172633
A106: =IF(A105="","",IF(B105<C105,A105,IF(A105=MAX('entry data'!$B$8:$B$17),"",A105+1))) -> 2 | B106: 27 | C106: =IF(A106="","",VLOOKUP(A106,'entry data'!B:H,7,0)) -> 72 | D106: =IF(A106="","",VLOOKUP(A106,'entry data'!B:C,2,0)) -> Hire Purchase 1 | E106: =IF(A106="","",VLOOKUP(A106,'entry data'!B:E,4,0)) -> monthly | F106: =IF(A106="","",VLOOKUP(A106,'entry data'!B:F,5,0)) -> 7000 | G106: =IF(A106="","",IF(ISERROR(VLOOKUP(A106,'entry data'!B:G,6,0)),"",VLOOKUP(A106,'entry data'!B:G,6,0))) -> 0 | H106: =IF(A106="","",VLOOKUP(A106,'entry data'!B:L,9,0)) -> 0.126 | I106: =IF(A106="","",VLOOKUP(A106,'entry data'!B:K,10,0)) -> arrears | J106: =IF(A106="","",IF(B106=1,VLOOKUP(A106,'entry data'!B:D,3,0),K105)) -> 2014-10-26 | K106: 2014-11-26 | L106: 2014-11 | M106: 5052.172633 | N106: 85.99745098 | O106: =IF(A106="","",-IPMT(H106*VLOOKUP(E106,index!A:C,3,0),calculations!B106,calculations!C106,calculations!F106,-calculations!G106,VLOOKUP(I106,index!G:H,2,0))) -> 53.04781264 | P106: =IF(A106="","",VLOOKUP(A106,'entry data'!B:L,11,0)+IF(B106=C106,G106,0)) -> 139.0452636 | Q106: 4966.175182 | R106: 4966.175182
A107: =IF(A106="","",IF(B106<C106,A106,IF(A106=MAX('entry data'!$B$8:$B$17),"",A106+1))) -> 2 | B107: 28 | C107: =IF(A107="","",VLOOKUP(A107,'entry data'!B:H,7,0)) -> 72 | D107: =IF(A107="","",VLOOKUP(A107,'entry data'!B:C,2,0)) -> Hire Purchase 1 | E107: =IF(A107="","",VLOOKUP(A107,'entry data'!B:E,4,0)) -> monthly | F107: =IF(A107="","",VLOOKUP(A107,'entry data'!B:F,5,0)) -> 7000 | G107: =IF(A107="","",IF(ISERROR(VLOOKUP(A107,'entry data'!B:G,6,0)),"",VLOOKUP(A107,'entry data'!B:G,6,0))) -> 0 | H107: =IF(A107="","",VLOOKUP(A107,'entry data'!B:L,9,0)) -> 0.126 | I107: =IF(A107="","",VLOOKUP(A107,'entry data'!B:K,10,0)) -> arrears | J107: =IF(A107="","",IF(B107=1,VLOOKUP(A107,'entry data'!B:D,3,0),K106)) -> 2014-11-26 | K107: 2014-12-26 | L107: 2014-12 | M107: 4966.175182 | N107: 86.90042422 | O107: =IF(A107="","",-IPMT(H107*VLOOKUP(E107,index!A:C,3,0),calculations!B107,calculations!C107,calculations!F107,-calculations!G107,VLOOKUP(I107,index!G:H,2,0))) -> 52.14483941 | P107: =IF(A107="","",VLOOKUP(A107,'entry data'!B:L,11,0)+IF(B107=C107,G107,0)) -> 139.0452636 | Q107: 4879.274757 | R107: 4879.274757
A108: =IF(A107="","",IF(B107<C107,A107,IF(A107=MAX('entry data'!$B$8:$B$17),"",A107+1))) -> 2 | B108: 29 | C108: =IF(A108="","",VLOOKUP(A108,'entry data'!B:H,7,0)) -> 72 | D108: =IF(A108="","",VLOOKUP(A108,'entry data'!B:C,2,0)) -> Hire Purchase 1 | E108: =IF(A108="","",VLOOKUP(A108,'entry data'!B:E,4,0)) -> monthly | F108: =IF(A108="","",VLOOKUP(A108,'entry data'!B:F,5,0)) -> 7000 | G108: =IF(A108="","",IF(ISERROR(VLOOKUP(A108,'entry data'!B:G,6,0)),"",VLOOKUP(A108,'entry data'!B:G,6,0))) -> 0 | H108: =IF(A108="","",VLOOKUP(A108,'entry data'!B:L,9,0)) -> 0.126 | I108: =IF(A108="","",VLOOKUP(A108,'entry data'!B:K,10,0)) -> arrears | J108: =IF(A108="","",IF(B108=1,VLOOKUP(A108,'entry data'!B:D,3,0),K107)) -> 2014-12-26 | K108: 2015-01-26 | L108: 2015-01 | M108: 4879.274757 | N108: 87.81287867 | O108: =IF(A108="","",-IPMT(H108*VLOOKUP(E108,index!A:C,3,0),calculations!B108,calculations!C108,calculations!F108,-calculations!G108,VLOOKUP(I108,index!G:H,2,0))) -> 51.23238495 | P108: =IF(A108="","",VLOOKUP(A108,'entry data'!B:L,11,0)+IF(B108=C108,G108,0)) -> 139.0452636 | Q108: 4791.461879 | R108: 4791.461879
A109: =IF(A108="","",IF(B108<C108,A108,IF(A108=MAX('entry data'!$B$8:$B$17),"",A108+1))) -> 2 | B109: 30 | C109: =IF(A109="","",VLOOKUP(A109,'entry data'!B:H,7,0)) -> 72 | D109: =IF(A109="","",VLOOKUP(A109,'entry data'!B:C,2,0)) -> Hire Purchase 1 | E109: =IF(A109="","",VLOOKUP(A109,'entry data'!B:E,4,0)) -> monthly | F109: =IF(A109="","",VLOOKUP(A109,'entry data'!B:F,5,0)) -> 7000 | G109: =IF(A109="","",IF(ISERROR(VLOOKUP(A109,'entry data'!B:G,6,0)),"",VLOOKUP(A109,'entry data'!B:G,6,0))) -> 0 | H109: =IF(A109="","",VLOOKUP(A109,'entry data'!B:L,9,0)) -> 0.126 | I109: =IF(A109="","",VLOOKUP(A109,'entry data'!B:K,10,0)) -> arrears | J109: =IF(A109="","",IF(B109=1,VLOOKUP(A109,'entry data'!B:D,3,0),K108)) -> 2015-01-26 | K109: 2015-02-26 | L109: 2015-02 | M109: 4791.461879 | N109: 88.7349139 | O109: =IF(A109="","",-IPMT(H109*VLOOKUP(E109,index!A:C,3,0),calculations!B109,calculations!C109,calculations!F109,-calculations!G109,VLOOKUP(I109,index!G:H,2,0))) -> 50.31034973 | P109: =IF(A109="","",VLOOKUP(A109,'entry data'!B:L,11,0)+IF(B109=C109,G109,0)) -> 139.0452636 | Q109: 4702.726965 | R109: 4702.726965
A110: =IF(A109="","",IF(B109<C109,A109,IF(A109=MAX('entry data'!$B$8:$B$17),"",A109+1))) -> 2 | B110: 31 | C110: =IF(A110="","",VLOOKUP(A110,'entry data'!B:H,7,0)) -> 72 | D110: =IF(A110="","",VLOOKUP(A110,'entry data'!B:C,2,0)) -> Hire Purchase 1 | E110: =IF(A110="","",VLOOKUP(A110,'entry data'!B:E,4,0)) -> monthly | F110: =IF(A110="","",VLOOKUP(A110,'entry data'!B:F,5,0)) -> 7000 | G110: =IF(A110="","",IF(ISERROR(VLOOKUP(A110,'entry data'!B:G,6,0)),"",VLOOKUP(A110,'entry data'!B:G,6,0))) -> 0 | H110: =IF(A110="","",VLOOKUP(A110,'entry data'!B:L,9,0)) -> 0.126 | I110: =IF(A110="","",VLOOKUP(A110,'entry data'!B:K,10,0)) -> arrears | J110: =IF(A110="","",IF(B110=1,VLOOKUP(A110,'entry data'!B:D,3,0),K109)) -> 2015-02-26 | K110: 2015-03-26 | L110: 2015-03 | M110: 4702.726965 | N110: 89.66663049 | O110: =IF(A110="","",-IPMT(H110*VLOOKUP(E110,index!A:C,3,0),calculations!B110,calculations!C110,calculations!F110,-calculations!G110,VLOOKUP(I110,index!G:H,2,0))) -> 49.37863313 | P110: =IF(A110="","",VLOOKUP(A110,'entry data'!B:L,11,0)+IF(B110=C110,G110,0)) -> 139.0452636 | Q110: 4613.060334 | R110: 4613.060334
A111: =IF(A110="","",IF(B110<C110,A110,IF(A110=MAX('entry data'!$B$8:$B$17),"",A110+1))) -> 2 | B111: 32 | C111: =IF(A111="","",VLOOKUP(A111,'entry data'!B:H,7,0)) -> 72 | D111: =IF(A111="","",VLOOKUP(A111,'entry data'!B:C,2,0)) -> Hire Purchase 1 | E111: =IF(A111="","",VLOOKUP(A111,'entry data'!B:E,4,0)) -> monthly | F111: =IF(A111="","",VLOOKUP(A111,'entry data'!B:F,5,0)) -> 7000 | G111: =IF(A111="","",IF(ISERROR(VLOOKUP(A111,'entry data'!B:G,6,0)),"",VLOOKUP(A111,'entry data'!B:G,6,0))) -> 0 | H111: =IF(A111="","",VLOOKUP(A111,'entry data'!B:L,9,0)) -> 0.126 | I111: =IF(A111="","",VLOOKUP(A111,'entry data'!B:K,10,0)) -> arrears | J111: =IF(A111="","",IF(B111=1,VLOOKUP(A111,'entry data'!B:D,3,0),K110)) -> 2015-03-26 | K111: 2015-04-26 | L111: 2015-04 | M111: 4613.060334 | N111: 90.60813011 | O111: =IF(A111="","",-IPMT(H111*VLOOKUP(E111,index!A:C,3,0),calculations!B111,calculations!C111,calculations!F111,-calculations!G111,VLOOKUP(I111,index!G:H,2,0))) -> 48.43713351 | P111: =IF(A111="","",VLOOKUP(A111,'entry data'!B:L,11,0)+IF(B111=C111,G111,0)) -> 139.0452636 | Q111: 4522.452204 | R111: 4522.452204
A112: =IF(A111="","",IF(B111<C111,A111,IF(A111=MAX('entry data'!$B$8:$B$17),"",A111+1))) -> 2 | B112: 33 | C112: =IF(A112="","",VLOOKUP(A112,'entry data'!B:H,7,0)) -> 72 | D112: =IF(A112="","",VLOOKUP(A112,'entry data'!B:C,2,0)) -> Hire Purchase 1 | E112: =IF(A112="","",VLOOKUP(A112,'entry data'!B:E,4,0)) -> monthly | F112: =IF(A112="","",VLOOKUP(A112,'entry data'!B:F,5,0)) -> 7000 | G112: =IF(A112="","",IF(ISERROR(VLOOKUP(A112,'entry data'!B:G,6,0)),"",VLOOKUP(A112,'entry data'!B:G,6,0))) -> 0 | H112: =IF(A112="","",VLOOKUP(A112,'entry data'!B:L,9,0)) -> 0.126 | I112: =IF(A112="","",VLOOKUP(A112,'entry data'!B:K,10,0)) -> arrears | J112: =IF(A112="","",IF(B112=1,VLOOKUP(A112,'entry data'!B:D,3,0),K111)) -> 2015-04-26 | K112: 2015-05-26 | L112: 2015-05 | M112: 4522.452204 | N112: 91.55951548 | O112: =IF(A112="","",-IPMT(H112*VLOOKUP(E112,index!A:C,3,0),calculations!B112,calculations!C112,calculations!F112,-calculations!G112,VLOOKUP(I112,index!G:H,2,0))) -> 47.48574814 | P112: =IF(A112="","",VLOOKUP(A112,'entry data'!B:L,11,0)+IF(B112=C112,G112,0)) -> 139.0452636 | Q112: 4430.892689 | R112: 4430.892689
A113: =IF(A112="","",IF(B112<C112,A112,IF(A112=MAX('entry data'!$B$8:$B$17),"",A112+1))) -> 2 | B113: 34 | C113: =IF(A113="","",VLOOKUP(A113,'entry data'!B:H,7,0)) -> 72 | D113: =IF(A113="","",VLOOKUP(A113,'entry data'!B:C,2,0)) -> Hire Purchase 1 | E113: =IF(A113="","",VLOOKUP(A113,'entry data'!B:E,4,0)) -> monthly | F113: =IF(A113="","",VLOOKUP(A113,'entry data'!B:F,5,0)) -> 7000 | G113: =IF(A113="","",IF(ISERROR(VLOOKUP(A113,'entry data'!B:G,6,0)),"",VLOOKUP(A113,'entry data'!B:G,6,0))) -> 0 | H113: =IF(A113="","",VLOOKUP(A113,'entry data'!B:L,9,0)) -> 0.126 | I113: =IF(A113="","",VLOOKUP(A113,'entry data'!B:K,10,0)) -> arrears | J113: =IF(A113="","",IF(B113=1,VLOOKUP(A113,'entry data'!B:D,3,0),K112)) -> 2015-05-26 | K113: 2015-06-26 | L113: 2015-06 | M113: 4430.892689 | N113: 92.52089039 | O113: =IF(A113="","",-IPMT(H113*VLOOKUP(E113,index!A:C,3,0),calculations!B113,calculations!C113,calculations!F113,-calculations!G113,VLOOKUP(I113,index!G:H,2,0))) -> 46.52437323 | P113: =IF(A113="","",VLOOKUP(A113,'entry data'!B:L,11,0)+IF(B113=C113,G113,0)) -> 139.0452636 | Q113: 4338.371798 | R113: 4338.371798
A114: =IF(A113="","",IF(B113<C113,A113,IF(A113=MAX('entry data'!$B$8:$B$17),"",A113+1))) -> 2 | B114: 35 | C114: =IF(A114="","",VLOOKUP(A114,'entry data'!B:H,7,0)) -> 72 | D114: =IF(A114="","",VLOOKUP(A114,'entry data'!B:C,2,0)) -> Hire Purchase 1 | E114: =IF(A114="","",VLOOKUP(A114,'entry data'!B:E,4,0)) -> monthly | F114: =IF(A114="","",VLOOKUP(A114,'entry data'!B:F,5,0)) -> 7000 | G114: =IF(A114="","",IF(ISERROR(VLOOKUP(A114,'entry data'!B:G,6,0)),"",VLOOKUP(A114,'entry data'!B:G,6,0))) -> 0 | H114: =IF(A114="","",VLOOKUP(A114,'entry data'!B:L,9,0)) -> 0.126 | I114: =IF(A114="","",VLOOKUP(A114,'entry data'!B:K,10,0)) -> arrears | J114: =IF(A114="","",IF(B114=1,VLOOKUP(A114,'entry data'!B:D,3,0),K113)) -> 2015-06-26 | K114: 2015-07-26 | L114: 2015-07 | M114: 4338.371798 | N114: 93.49235974 | O114: =IF(A114="","",-IPMT(H114*VLOOKUP(E114,index!A:C,3,0),calculations!B114,calculations!C114,calculations!F114,-calculations!G114,VLOOKUP(I114,index!G:H,2,0))) -> 45.55290388 | P114: =IF(A114="","",VLOOKUP(A114,'entry data'!B:L,11,0)+IF(B114=C114,G114,0)) -> 139.0452636 | Q114: 4244.879439 | R114: 4244.879439
A115: =IF(A114="","",IF(B114<C114,A114,IF(A114=MAX('entry data'!$B$8:$B$17),"",A114+1))) -> 2 | B115: 36 | C115: =IF(A115="","",VLOOKUP(A115,'entry data'!B:H,7,0)) -> 72 | D115: =IF(A115="","",VLOOKUP(A115,'entry data'!B:C,2,0)) -> Hire Purchase 1 | E115: =IF(A115="","",VLOOKUP(A115,'entry data'!B:E,4,0)) -> monthly | F115: =IF(A115="","",VLOOKUP(A115,'entry data'!B:F,5,0)) -> 7000 | G115: =IF(A115="","",IF(ISERROR(VLOOKUP(A115,'entry data'!B:G,6,0)),"",VLOOKUP(A115,'entry data'!B:G,6,0))) -> 0 | H115: =IF(A115="","",VLOOKUP(A115,'entry data'!B:L,9,0)) -> 0.126 | I115: =IF(A115="","",VLOOKUP(A115,'entry data'!B:K,10,0)) -> arrears | J115: =IF(A115="","",IF(B115=1,VLOOKUP(A115,'entry data'!B:D,3,0),K114)) -> 2015-07-26 | K115: 2015-08-26 | L115: 2015-08 | M115: 4244.879439 | N115: 94.47402952 | O115: =IF(A115="","",-IPMT(H115*VLOOKUP(E115,index!A:C,3,0),calculations!B115,calculations!C115,calculations!F115,-calculations!G115,VLOOKUP(I115,index!G:H,2,0))) -> 44.5712341 | P115: =IF(A115="","",VLOOKUP(A115,'entry data'!B:L,11,0)+IF(B115=C115,G115,0)) -> 139.0452636 | Q115: 4150.405409 | R115: 4150.405409
A116: =IF(A115="","",IF(B115<C115,A115,IF(A115=MAX('entry data'!$B$8:$B$17),"",A115+1))) -> 2 | B116: 37 | C116: =IF(A116="","",VLOOKUP(A116,'entry data'!B:H,7,0)) -> 72 | D116: =IF(A116="","",VLOOKUP(A116,'entry data'!B:C,2,0)) -> Hire Purchase 1 | E116: =IF(A116="","",VLOOKUP(A116,'entry data'!B:E,4,0)) -> monthly | F116: =IF(A116="","",VLOOKUP(A116,'entry data'!B:F,5,0)) -> 7000 | G116: =IF(A116="","",IF(ISERROR(VLOOKUP(A116,'entry data'!B:G,6,0)),"",VLOOKUP(A116,'entry data'!B:G,6,0))) -> 0 | H116: =IF(A116="","",VLOOKUP(A116,'entry data'!B:L,9,0)) -> 0.126 | I116: =IF(A116="","",VLOOKUP(A116,'entry data'!B:K,10,0)) -> arrears | J116: =IF(A116="","",IF(B116=1,VLOOKUP(A116,'entry data'!B:D,3,0),K115)) -> 2015-08-26 | K116: 2015-09-26 | L116: 2015-09 | M116: 4150.405409 | N116: 95.46600683 | O116: =IF(A116="","",-IPMT(H116*VLOOKUP(E116,index!A:C,3,0),calculations!B116,calculations!C116,calculations!F116,-calculations!G116,VLOOKUP(I116,index!G:H,2,0))) -> 43.57925679 | P116: =IF(A116="","",VLOOKUP(A116,'entry data'!B:L,11,0)+IF(B116=C116,G116,0)) -> 139.0452636 | Q116: 4054.939402 | R116: 4054.939402
A117: =IF(A116="","",IF(B116<C116,A116,IF(A116=MAX('entry data'!$B$8:$B$17),"",A116+1))) -> 2 | B117: 38 | C117: =IF(A117="","",VLOOKUP(A117,'entry data'!B:H,7,0)) -> 72 | D117: =IF(A117="","",VLOOKUP(A117,'entry data'!B:C,2,0)) -> Hire Purchase 1 | E117: =IF(A117="","",VLOOKUP(A117,'entry data'!B:E,4,0)) -> monthly | F117: =IF(A117="","",VLOOKUP(A117,'entry data'!B:F,5,0)) -> 7000 | G117: =IF(A117="","",IF(ISERROR(VLOOKUP(A117,'entry data'!B:G,6,0)),"",VLOOKUP(A117,'entry data'!B:G,6,0))) -> 0 | H117: =IF(A117="","",VLOOKUP(A117,'entry data'!B:L,9,0)) -> 0.126 | I117: =IF(A117="","",VLOOKUP(A117,'entry data'!B:K,10,0)) -> arrears | J117: =IF(A117="","",IF(B117=1,VLOOKUP(A117,'entry data'!B:D,3,0),K116)) -> 2015-09-26 | K117: 2015-10-26 | L117: 2015-10 | M117: 4054.939402 | N117: 96.4683999 | O117: =IF(A117="","",-IPMT(H117*VLOOKUP(E117,index!A:C,3,0),calculations!B117,calculations!C117,calculations!F117,-calculations!G117,VLOOKUP(I117,index!G:H,2,0))) -> 42.57686372 | P117: =IF(A117="","",VLOOKUP(A117,'entry data'!B:L,11,0)+IF(B117=C117,G117,0)) -> 139.0452636 | Q117: 3958.471002 | R117: 3958.471002
A118: =IF(A117="","",IF(B117<C117,A117,IF(A117=MAX('entry data'!$B$8:$B$17),"",A117+1))) -> 2 | B118: 39 | C118: =IF(A118="","",VLOOKUP(A118,'entry data'!B:H,7,0)) -> 72 | D118: =IF(A118="","",VLOOKUP(A118,'entry data'!B:C,2,0)) -> Hire Purchase 1 | E118: =IF(A118="","",VLOOKUP(A118,'entry data'!B:E,4,0)) -> monthly | F118: =IF(A118="","",VLOOKUP(A118,'entry data'!B:F,5,0)) -> 7000 | G118: =IF(A118="","",IF(ISERROR(VLOOKUP(A118,'entry data'!B:G,6,0)),"",VLOOKUP(A118,'entry data'!B:G,6,0))) -> 0 | H118: =IF(A118="","",VLOOKUP(A118,'entry data'!B:L,9,0)) -> 0.126 | I118: =IF(A118="","",VLOOKUP(A118,'entry data'!B:K,10,0)) -> arrears | J118: =IF(A118="","",IF(B118=1,VLOOKUP(A118,'entry data'!B:D,3,0),K117)) -> 2015-10-26 | K118: 2015-11-26 | L118: 2015-11 | M118: 3958.471002 | N118: 97.4813181 | O118: =IF(A118="","",-IPMT(H118*VLOOKUP(E118,index!A:C,3,0),calculations!B118,calculations!C118,calculations!F118,-calculations!G118,VLOOKUP(I118,index!G:H,2,0))) -> 41.56394552 | P118: =IF(A118="","",VLOOKUP(A118,'entry data'!B:L,11,0)+IF(B118=C118,G118,0)) -> 139.0452636 | Q118: 3860.989684 | R118: 3860.989684
A119: =IF(A118="","",IF(B118<C118,A118,IF(A118=MAX('entry data'!$B$8:$B$17),"",A118+1))) -> 2 | B119: 40 | C119: =IF(A119="","",VLOOKUP(A119,'entry data'!B:H,7,0)) -> 72 | D119: =IF(A119="","",VLOOKUP(A119,'entry data'!B:C,2,0)) -> Hire Purchase 1 | E119: =IF(A119="","",VLOOKUP(A119,'entry data'!B:E,4,0)) -> monthly | F119: =IF(A119="","",VLOOKUP(A119,'entry data'!B:F,5,0)) -> 7000 | G119: =IF(A119="","",IF(ISERROR(VLOOKUP(A119,'entry data'!B:G,6,0)),"",VLOOKUP(A119,'entry data'!B:G,6,0))) -> 0 | H119: =IF(A119="","",VLOOKUP(A119,'entry data'!B:L,9,0)) -> 0.126 | I119: =IF(A119="","",VLOOKUP(A119,'entry data'!B:K,10,0)) -> arrears | J119: =IF(A119="","",IF(B119=1,VLOOKUP(A119,'entry data'!B:D,3,0),K118)) -> 2015-11-26 | K119: 2015-12-26 | L119: 2015-12 | M119: 3860.989684 | N119: 98.50487194 | O119: =IF(A119="","",-IPMT(H119*VLOOKUP(E119,index!A:C,3,0),calculations!B119,calculations!C119,calculations!F119,-calculations!G119,VLOOKUP(I119,index!G:H,2,0))) -> 40.54039168 | P119: =IF(A119="","",VLOOKUP(A119,'entry data'!B:L,11,0)+IF(B119=C119,G119,0)) -> 139.0452636 | Q119: 3762.484812 | R119: 3762.484812
A120: =IF(A119="","",IF(B119<C119,A119,IF(A119=MAX('entry data'!$B$8:$B$17),"",A119+1))) -> 2 | B120: 41 | C120: =IF(A120="","",VLOOKUP(A120,'entry data'!B:H,7,0)) -> 72 | D120: =IF(A120="","",VLOOKUP(A120,'entry data'!B:C,2,0)) -> Hire Purchase 1 | E120: =IF(A120="","",VLOOKUP(A120,'entry data'!B:E,4,0)) -> monthly | F120: =IF(A120="","",VLOOKUP(A120,'entry data'!B:F,5,0)) -> 7000 | G120: =IF(A120="","",IF(ISERROR(VLOOKUP(A120,'entry data'!B:G,6,0)),"",VLOOKUP(A120,'entry data'!B:G,6,0))) -> 0 | H120: =IF(A120="","",VLOOKUP(A120,'entry data'!B:L,9,0)) -> 0.126 | I120: =IF(A120="","",VLOOKUP(A120,'entry data'!B:K,10,0)) -> arrears | J120: =IF(A120="","",IF(B120=1,VLOOKUP(A120,'entry data'!B:D,3,0),K119)) -> 2015-12-26 | K120: 2016-01-26 | L120: 2016-01 | M120: 3762.484812 | N120: 99.5391731 | O120: =IF(A120="","",-IPMT(H120*VLOOKUP(E120,index!A:C,3,0),calculations!B120,calculations!C120,calculations!F120,-calculations!G120,VLOOKUP(I120,index!G:H,2,0))) -> 39.50609053 | P120: =IF(A120="","",VLOOKUP(A120,'entry data'!B:L,11,0)+IF(B120=C120,G120,0)) -> 139.0452636 | Q120: 3662.945639 | R120: 3662.945639
A121: =IF(A120="","",IF(B120<C120,A120,IF(A120=MAX('entry data'!$B$8:$B$17),"",A120+1))) -> 2 | B121: 42 | C121: =IF(A121="","",VLOOKUP(A121,'entry data'!B:H,7,0)) -> 72 | D121: =IF(A121="","",VLOOKUP(A121,'entry data'!B:C,2,0)) -> Hire Purchase 1 | E121: =IF(A121="","",VLOOKUP(A121,'entry data'!B:E,4,0)) -> monthly | F121: =IF(A121="","",VLOOKUP(A121,'entry data'!B:F,5,0)) -> 7000 | G121: =IF(A121="","",IF(ISERROR(VLOOKUP(A121,'entry data'!B:G,6,0)),"",VLOOKUP(A121,'entry data'!B:G,6,0))) -> 0 | H121: =IF(A121="","",VLOOKUP(A121,'entry data'!B:L,9,0)) -> 0.126 | I121: =IF(A121="","",VLOOKUP(A121,'entry data'!B:K,10,0)) -> arrears | J121: =IF(A121="","",IF(B121=1,VLOOKUP(A121,'entry data'!B:D,3,0),K120)) -> 2016-01-26 | K121: 2016-02-26 | L121: 2016-02 | M121: 3662.945639 | N121: 100.5843344 | O121: =IF(A121="","",-IPMT(H121*VLOOKUP(E121,index!A:C,3,0),calculations!B121,calculations!C121,calculations!F121,-calculations!G121,VLOOKUP(I121,index!G:H,2,0))) -> 38.46092921 | P121: =IF(A121="","",VLOOKUP(A121,'entry data'!B:L,11,0)+IF(B121=C121,G121,0)) -> 139.0452636 | Q121: 3562.361305 | R121: 3562.361305
A122: =IF(A121="","",IF(B121<C121,A121,IF(A121=MAX('entry data'!$B$8:$B$17),"",A121+1))) -> 2 | B122: 43 | C122: =IF(A122="","",VLOOKUP(A122,'entry data'!B:H,7,0)) -> 72 | D122: =IF(A122="","",VLOOKUP(A122,'entry data'!B:C,2,0)) -> Hire Purchase 1 | E122: =IF(A122="","",VLOOKUP(A122,'entry data'!B:E,4,0)) -> monthly | F122: =IF(A122="","",VLOOKUP(A122,'entry data'!B:F,5,0)) -> 7000 | G122: =IF(A122="","",IF(ISERROR(VLOOKUP(A122,'entry data'!B:G,6,0)),"",VLOOKUP(A122,'entry data'!B:G,6,0))) -> 0 | H122: =IF(A122="","",VLOOKUP(A122,'entry data'!B:L,9,0)) -> 0.126 | I122: =IF(A122="","",VLOOKUP(A122,'entry data'!B:K,10,0)) -> arrears | J122: =IF(A122="","",IF(B122=1,VLOOKUP(A122,'entry data'!B:D,3,0),K121)) -> 2016-02-26 | K122: 2016-03-26 | L122: 2016-03 | M122: 3562.361305 | N122: 101.6404699 | O122: =IF(A122="","",-IPMT(H122*VLOOKUP(E122,index!A:C,3,0),calculations!B122,calculations!C122,calculations!F122,-calculations!G122,VLOOKUP(I122,index!G:H,2,0))) -> 37.4047937 | P122: =IF(A122="","",VLOOKUP(A122,'entry data'!B:L,11,0)+IF(B122=C122,G122,0)) -> 139.0452636 | Q122: 3460.720835 | R122: 3460.720835
A123: =IF(A122="","",IF(B122<C122,A122,IF(A122=MAX('entry data'!$B$8:$B$17),"",A122+1))) -> 2 | B123: 44 | C123: =IF(A123="","",VLOOKUP(A123,'entry data'!B:H,7,0)) -> 72 | D123: =IF(A123="","",VLOOKUP(A123,'entry data'!B:C,2,0)) -> Hire Purchase 1 | E123: =IF(A123="","",VLOOKUP(A123,'entry data'!B:E,4,0)) -> monthly | F123: =IF(A123="","",VLOOKUP(A123,'entry data'!B:F,5,0)) -> 7000 | G123: =IF(A123="","",IF(ISERROR(VLOOKUP(A123,'entry data'!B:G,6,0)),"",VLOOKUP(A123,'entry data'!B:G,6,0))) -> 0 | H123: =IF(A123="","",VLOOKUP(A123,'entry data'!B:L,9,0)) -> 0.126 | I123: =IF(A123="","",VLOOKUP(A123,'entry data'!B:K,10,0)) -> arrears | J123: =IF(A123="","",IF(B123=1,VLOOKUP(A123,'entry data'!B:D,3,0),K122)) -> 2016-03-26 | K123: 2016-04-26 | L123: 2016-04 | M123: 3460.720835 | N123: 102.7076949 | O123: =IF(A123="","",-IPMT(H123*VLOOKUP(E123,index!A:C,3,0),calculations!B123,calculations!C123,calculations!F123,-calculations!G123,VLOOKUP(I123,index!G:H,2,0))) -> 36.33756877 | P123: =IF(A123="","",VLOOKUP(A123,'entry data'!B:L,11,0)+IF(B123=C123,G123,0)) -> 139.0452636 | Q123: 3358.01314 | R123: 3358.01314
A124: =IF(A123="","",IF(B123<C123,A123,IF(A123=MAX('entry data'!$B$8:$B$17),"",A123+1))) -> 2 | B124: 45 | C124: =IF(A124="","",VLOOKUP(A124,'entry data'!B:H,7,0)) -> 72 | D124: =IF(A124="","",VLOOKUP(A124,'entry data'!B:C,2,0)) -> Hire Purchase 1 | E124: =IF(A124="","",VLOOKUP(A124,'entry data'!B:E,4,0)) -> monthly | F124: =IF(A124="","",VLOOKUP(A124,'entry data'!B:F,5,0)) -> 7000 | G124: =IF(A124="","",IF(ISERROR(VLOOKUP(A124,'entry data'!B:G,6,0)),"",VLOOKUP(A124,'entry data'!B:G,6,0))) -> 0 | H124: =IF(A124="","",VLOOKUP(A124,'entry data'!B:L,9,0)) -> 0.126 | I124: =IF(A124="","",VLOOKUP(A124,'entry data'!B:K,10,0)) -> arrears | J124: =IF(A124="","",IF(B124=1,VLOOKUP(A124,'entry data'!B:D,3,0),K123)) -> 2016-04-26 | K124: 2016-05-26 | L124: 2016-05 | M124: 3358.01314 | N124: 103.7861257 | O124: =IF(A124="","",-IPMT(H124*VLOOKUP(E124,index!A:C,3,0),calculations!B124,calculations!C124,calculations!F124,-calculations!G124,VLOOKUP(I124,index!G:H,2,0))) -> 35.25913797 | P124: =IF(A124="","",VLOOKUP(A124,'entry data'!B:L,11,0)+IF(B124=C124,G124,0)) -> 139.0452636 | Q124: 3254.227014 | R124: 3254.227014
A125: =IF(A124="","",IF(B124<C124,A124,IF(A124=MAX('entry data'!$B$8:$B$17),"",A124+1))) -> 2 | B125: 46 | C125: =IF(A125="","",VLOOKUP(A125,'entry data'!B:H,7,0)) -> 72 | D125: =IF(A125="","",VLOOKUP(A125,'entry data'!B:C,2,0)) -> Hire Purchase 1 | E125: =IF(A125="","",VLOOKUP(A125,'entry data'!B:E,4,0)) -> monthly | F125: =IF(A125="","",VLOOKUP(A125,'entry data'!B:F,5,0)) -> 7000 | G125: =IF(A125="","",IF(ISERROR(VLOOKUP(A125,'entry data'!B:G,6,0)),"",VLOOKUP(A125,'entry data'!B:G,6,0))) -> 0 | H125: =IF(A125="","",VLOOKUP(A125,'entry data'!B:L,9,0)) -> 0.126 | I125: =IF(A125="","",VLOOKUP(A125,'entry data'!B:K,10,0)) -> arrears | J125: =IF(A125="","",IF(B125=1,VLOOKUP(A125,'entry data'!B:D,3,0),K124)) -> 2016-05-26 | K125: 2016-06-26 | L125: 2016-06 | M125: 3254.227014 | N125: 104.87588 | O125: =IF(A125="","",-IPMT(H125*VLOOKUP(E125,index!A:C,3,0),calculations!B125,calculations!C125,calculations!F125,-calculations!G125,VLOOKUP(I125,index!G:H,2,0))) -> 34.16938365 | P125: =IF(A125="","",VLOOKUP(A125,'entry data'!B:L,11,0)+IF(B125=C125,G125,0)) -> 139.0452636 | Q125: 3149.351134 | R125: 3149.351134
A126: =IF(A125="","",IF(B125<C125,A125,IF(A125=MAX('entry data'!$B$8:$B$17),"",A125+1))) -> 2 | B126: 47 | C126: =IF(A126="","",VLOOKUP(A126,'entry data'!B:H,7,0)) -> 72 | D126: =IF(A126="","",VLOOKUP(A126,'entry data'!B:C,2,0)) -> Hire Purchase 1 | E126: =IF(A126="","",VLOOKUP(A126,'entry data'!B:E,4,0)) -> monthly | F126: =IF(A126="","",VLOOKUP(A126,'entry data'!B:F,5,0)) -> 7000 | G126: =IF(A126="","",IF(ISERROR(VLOOKUP(A126,'entry data'!B:G,6,0)),"",VLOOKUP(A126,'entry data'!B:G,6,0))) -> 0 | H126: =IF(A126="","",VLOOKUP(A126,'entry data'!B:L,9,0)) -> 0.126 | I126: =IF(A126="","",VLOOKUP(A126,'entry data'!B:K,10,0)) -> arrears | J126: =IF(A126="","",IF(B126=1,VLOOKUP(A126,'entry data'!B:D,3,0),K125)) -> 2016-06-26 | K126: 2016-07-26 | L126: 2016-07 | M126: 3149.351134 | N126: 105.9770767 | O126: =IF(A126="","",-IPMT(H126*VLOOKUP(E126,index!A:C,3,0),calculations!B126,calculations!C126,calculations!F126,-calculations!G126,VLOOKUP(I126,index!G:H,2,0))) -> 33.06818691 | P126: =IF(A126="","",VLOOKUP(A126,'entry data'!B:L,11,0)+IF(B126=C126,G126,0)) -> 139.0452636 | Q126: 3043.374058 | R126: 3043.374058
A127: =IF(A126="","",IF(B126<C126,A126,IF(A126=MAX('entry data'!$B$8:$B$17),"",A126+1))) -> 2 | B127: 48 | C127: =IF(A127="","",VLOOKUP(A127,'entry data'!B:H,7,0)) -> 72 | D127: =IF(A127="","",VLOOKUP(A127,'entry data'!B:C,2,0)) -> Hire Purchase 1 | E127: =IF(A127="","",VLOOKUP(A127,'entry data'!B:E,4,0)) -> monthly | F127: =IF(A127="","",VLOOKUP(A127,'entry data'!B:F,5,0)) -> 7000 | G127: =IF(A127="","",IF(ISERROR(VLOOKUP(A127,'entry data'!B:G,6,0)),"",VLOOKUP(A127,'entry data'!B:G,6,0))) -> 0 | H127: =IF(A127="","",VLOOKUP(A127,'entry data'!B:L,9,0)) -> 0.126 | I127: =IF(A127="","",VLOOKUP(A127,'entry data'!B:K,10,0)) -> arrears | J127: =IF(A127="","",IF(B127=1,VLOOKUP(A127,'entry data'!B:D,3,0),K126)) -> 2016-07-26 | K127: 2016-08-26 | L127: 2016-08 | M127: 3043.374058 | N127: 107.089836 | O127: =IF(A127="","",-IPMT(H127*VLOOKUP(E127,index!A:C,3,0),calculations!B127,calculations!C127,calculations!F127,-calculations!G127,VLOOKUP(I127,index!G:H,2,0))) -> 31.95542761 | P127: =IF(A127="","",VLOOKUP(A127,'entry data'!B:L,11,0)+IF(B127=C127,G127,0)) -> 139.0452636 | Q127: 2936.284222 | R127: 2936.284222
A128: =IF(A127="","",IF(B127<C127,A127,IF(A127=MAX('entry data'!$B$8:$B$17),"",A127+1))) -> 2 | B128: 49 | C128: =IF(A128="","",VLOOKUP(A128,'entry data'!B:H,7,0)) -> 72 | D128: =IF(A128="","",VLOOKUP(A128,'entry data'!B:C,2,0)) -> Hire Purchase 1 | E128: =IF(A128="","",VLOOKUP(A128,'entry data'!B:E,4,0)) -> monthly | F128: =IF(A128="","",VLOOKUP(A128,'entry data'!B:F,5,0)) -> 7000 | G128: =IF(A128="","",IF(ISERROR(VLOOKUP(A128,'entry data'!B:G,6,0)),"",VLOOKUP(A128,'entry data'!B:G,6,0))) -> 0 | H128: =IF(A128="","",VLOOKUP(A128,'entry data'!B:L,9,0)) -> 0.126 | I128: =IF(A128="","",VLOOKUP(A128,'entry data'!B:K,10,0)) -> arrears | J128: =IF(A128="","",IF(B128=1,VLOOKUP(A128,'entry data'!B:D,3,0),K127)) -> 2016-08-26 | K128: 2016-09-26 | L128: 2016-09 | M128: 2936.284222 | N128: 108.2142793 | O128: =IF(A128="","",-IPMT(H128*VLOOKUP(E128,index!A:C,3,0),calculations!B128,calculations!C128,calculations!F128,-calculations!G128,VLOOKUP(I128,index!G:H,2,0))) -> 30.83098433 | P128: =IF(A128="","",VLOOKUP(A128,'entry data'!B:L,11,0)+IF(B128=C128,G128,0)) -> 139.0452636 | Q128: 2828.069942 | R128: 2828.069942
A129: =IF(A128="","",IF(B128<C128,A128,IF(A128=MAX('entry data'!$B$8:$B$17),"",A128+1))) -> 2 | B129: 50 | C129: =IF(A129="","",VLOOKUP(A129,'entry data'!B:H,7,0)) -> 72 | D129: =IF(A129="","",VLOOKUP(A129,'entry data'!B:C,2,0)) -> Hire Purchase 1 | E129: =IF(A129="","",VLOOKUP(A129,'entry data'!B:E,4,0)) -> monthly | F129: =IF(A129="","",VLOOKUP(A129,'entry data'!B:F,5,0)) -> 7000 | G129: =IF(A129="","",IF(ISERROR(VLOOKUP(A129,'entry data'!B:G,6,0)),"",VLOOKUP(A129,'entry data'!B:G,6,0))) -> 0 | H129: =IF(A129="","",VLOOKUP(A129,'entry data'!B:L,9,0)) -> 0.126 | I129: =IF(A129="","",VLOOKUP(A129,'entry data'!B:K,10,0)) -> arrears | J129: =IF(A129="","",IF(B129=1,VLOOKUP(A129,'entry data'!B:D,3,0),K128)) -> 2016-09-26 | K129: 2016-10-26 | L129: 2016-10 | M129: 2828.069942 | N129: 109.3505292 | O129: =IF(A129="","",-IPMT(H129*VLOOKUP(E129,index!A:C,3,0),calculations!B129,calculations!C129,calculations!F129,-calculations!G129,VLOOKUP(I129,index!G:H,2,0))) -> 29.69473439 | P129: =IF(A129="","",VLOOKUP(A129,'entry data'!B:L,11,0)+IF(B129=C129,G129,0)) -> 139.0452636 | Q129: 2718.719413 | R129: 2718.719413
A130: =IF(A129="","",IF(B129<C129,A129,IF(A129=MAX('entry data'!$B$8:$B$17),"",A129+1))) -> 2 | B130: 51 | C130: =IF(A130="","",VLOOKUP(A130,'entry data'!B:H,7,0)) -> 72 | D130: =IF(A130="","",VLOOKUP(A130,'entry data'!B:C,2,0)) -> Hire Purchase 1 | E130: =IF(A130="","",VLOOKUP(A130,'entry data'!B:E,4,0)) -> monthly | F130: =IF(A130="","",VLOOKUP(A130,'entry data'!B:F,5,0)) -> 7000 | G130: =IF(A130="","",IF(ISERROR(VLOOKUP(A130,'entry data'!B:G,6,0)),"",VLOOKUP(A130,'entry data'!B:G,6,0))) -> 0 | H130: =IF(A130="","",VLOOKUP(A130,'entry data'!B:L,9,0)) -> 0.126 | I130: =IF(A130="","",VLOOKUP(A130,'entry data'!B:K,10,0)) -> arrears | J130: =IF(A130="","",IF(B130=1,VLOOKUP(A130,'entry data'!B:D,3,0),K129)) -> 2016-10-26 | K130: 2016-11-26 | L130: 2016-11 | M130: 2718.719413 | N130: 110.4987098 | O130: =IF(A130="","",-IPMT(H130*VLOOKUP(E130,index!A:C,3,0),calculations!B130,calculations!C130,calculations!F130,-calculations!G130,VLOOKUP(I130,index!G:H,2,0))) -> 28.54655384 | P130: =IF(A130="","",VLOOKUP(A130,'entry data'!B:L,11,0)+IF(B130=C130,G130,0)) -> 139.0452636 | Q130: 2608.220703 | R130: 2608.220703
A131: =IF(A130="","",IF(B130<C130,A130,IF(A130=MAX('entry data'!$B$8:$B$17),"",A130+1))) -> 2 | B131: 52 | C131: =IF(A131="","",VLOOKUP(A131,'entry data'!B:H,7,0)) -> 72 | D131: =IF(A131="","",VLOOKUP(A131,'entry data'!B:C,2,0)) -> Hire Purchase 1 | E131: =IF(A131="","",VLOOKUP(A131,'entry data'!B:E,4,0)) -> monthly | F131: =IF(A131="","",VLOOKUP(A131,'entry data'!B:F,5,0)) -> 7000 | G131: =IF(A131="","",IF(ISERROR(VLOOKUP(A131,'entry data'!B:G,6,0)),"",VLOOKUP(A131,'entry data'!B:G,6,0))) -> 0 | H131: =IF(A131="","",VLOOKUP(A131,'entry data'!B:L,9,0)) -> 0.126 | I131: =IF(A131="","",VLOOKUP(A131,'entry data'!B:K,10,0)) -> arrears | J131: =IF(A131="","",IF(B131=1,VLOOKUP(A131,'entry data'!B:D,3,0),K130)) -> 2016-11-26 | K131: 2016-12-26 | L131: 2016-12 | M131: 2608.220703 | N131: 111.6589462 | O131: =IF(A131="","",-IPMT(H131*VLOOKUP(E131,index!A:C,3,0),calculations!B131,calculations!C131,calculations!F131,-calculations!G131,VLOOKUP(I131,index!G:H,2,0))) -> 27.38631738 | P131: =IF(A131="","",VLOOKUP(A131,'entry data'!B:L,11,0)+IF(B131=C131,G131,0)) -> 139.0452636 | Q131: 2496.561757 | R131: =IF(A131="","",IF(L131<>L132,Q131,0)) -> 2496.561757
A132: =IF(A131="","",IF(B131<C131,A131,IF(A131=MAX('entry data'!$B$8:$B$17),"",A131+1))) -> 2 | B132: 53 | C132: =IF(A132="","",VLOOKUP(A132,'entry data'!B:H,7,0)) -> 72 | D132: =IF(A132="","",VLOOKUP(A132,'entry data'!B:C,2,0)) -> Hire Purchase 1 | E132: =IF(A132="","",VLOOKUP(A132,'entry data'!B:E,4,0)) -> monthly | F132: =IF(A132="","",VLOOKUP(A132,'entry data'!B:F,5,0)) -> 7000 | G132: =IF(A132="","",IF(ISERROR(VLOOKUP(A132,'entry data'!B:G,6,0)),"",VLOOKUP(A132,'entry data'!B:G,6,0))) -> 0 | H132: =IF(A132="","",VLOOKUP(A132,'entry data'!B:L,9,0)) -> 0.126 | I132: =IF(A132="","",VLOOKUP(A132,'entry data'!B:K,10,0)) -> arrears | J132: =IF(A132="","",IF(B132=1,VLOOKUP(A132,'entry data'!B:D,3,0),K131)) -> 2016-12-26 | K132: 2017-01-26 | L132: 2017-01 | M132: =IF(A132="","",IF(B132=1,F132,Q131)) -> 2496.561757 | N132: 112.8313652 | O132: =IF(A132="","",-IPMT(H132*VLOOKUP(E132,index!A:C,3,0),calculations!B132,calculations!C132,calculations!F132,-calculations!G132,VLOOKUP(I132,index!G:H,2,0))) -> 26.21389845 | P132: =IF(A132="","",VLOOKUP(A132,'entry data'!B:L,11,0)+IF(B132=C132,G132,0)) -> 139.0452636 | Q132: 2383.730392 | R132: 2383.730392
A133: =IF(A132="","",IF(B132<C132,A132,IF(A132=MAX('entry data'!$B$8:$B$17),"",A132+1))) -> 2 | B133: 54 | C133: =IF(A133="","",VLOOKUP(A133,'entry data'!B:H,7,0)) -> 72 | D133: =IF(A133="","",VLOOKUP(A133,'entry data'!B:C,2,0)) -> Hire Purchase 1 | E133: =IF(A133="","",VLOOKUP(A133,'entry data'!B:E,4,0)) -> monthly | F133: =IF(A133="","",VLOOKUP(A133,'entry data'!B:F,5,0)) -> 7000 | G133: =IF(A133="","",IF(ISERROR(VLOOKUP(A133,'entry data'!B:G,6,0)),"",VLOOKUP(A133,'entry data'!B:G,6,0))) -> 0 | H133: =IF(A133="","",VLOOKUP(A133,'entry data'!B:L,9,0)) -> 0.126 | I133: =IF(A133="","",VLOOKUP(A133,'entry data'!B:K,10,0)) -> arrears | J133: =IF(A133="","",IF(B133=1,VLOOKUP(A133,'entry data'!B:D,3,0),K132)) -> 2017-01-26 | K133: 2017-02-26 | L133: 2017-02 | M133: 2383.730392 | N133: 114.0160945 | O133: =IF(A133="","",-IPMT(H133*VLOOKUP(E133,index!A:C,3,0),calculations!B133,calculations!C133,calculations!F133,-calculations!G133,VLOOKUP(I133,index!G:H,2,0))) -> 25.02916911 | P133: =IF(A133="","",VLOOKUP(A133,'entry data'!B:L,11,0)+IF(B133=C133,G133,0)) -> 139.0452636 | Q133: 2269.714297 | R133: 2269.714297
A134: =IF(A133="","",IF(B133<C133,A133,IF(A133=MAX('entry data'!$B$8:$B$17),"",A133+1))) -> 2 | B134: 55 | C134: =IF(A134="","",VLOOKUP(A134,'entry data'!B:H,7,0)) -> 72 | D134: =IF(A134="","",VLOOKUP(A134,'entry data'!B:C,2,0)) -> Hire Purchase 1 | E134: =IF(A134="","",VLOOKUP(A134,'entry data'!B:E,4,0)) -> monthly | F134: =IF(A134="","",VLOOKUP(A134,'entry data'!B:F,5,0)) -> 7000 | G134: =IF(A134="","",IF(ISERROR(VLOOKUP(A134,'entry data'!B:G,6,0)),"",VLOOKUP(A134,'entry data'!B:G,6,0))) -> 0 | H134: =IF(A134="","",VLOOKUP(A134,'entry data'!B:L,9,0)) -> 0.126 | I134: =IF(A134="","",VLOOKUP(A134,'entry data'!B:K,10,0)) -> arrears | J134: =IF(A134="","",IF(B134=1,VLOOKUP(A134,'entry data'!B:D,3,0),K133)) -> 2017-02-26 | K134: 2017-03-26 | L134: 2017-03 | M134: 2269.714297 | N134: 115.2132635 | O134: =IF(A134="","",-IPMT(H134*VLOOKUP(E134,index!A:C,3,0),calculations!B134,calculations!C134,calculations!F134,-calculations!G134,VLOOKUP(I134,index!G:H,2,0))) -> 23.83200012 | P134: =IF(A134="","",VLOOKUP(A134,'entry data'!B:L,11,0)+IF(B134=C134,G134,0)) -> 139.0452636 | Q134: 2154.501034 | R134: 2154.501034
A135: =IF(A134="","",IF(B134<C134,A134,IF(A134=MAX('entry data'!$B$8:$B$17),"",A134+1))) -> 2 | B135: 56 | C135: =IF(A135="","",VLOOKUP(A135,'entry data'!B:H,7,0)) -> 72 | D135: =IF(A135="","",VLOOKUP(A135,'entry data'!B:C,2,0)) -> Hire Purchase 1 | E135: =IF(A135="","",VLOOKUP(A135,'entry data'!B:E,4,0)) -> monthly | F135: =IF(A135="","",VLOOKUP(A135,'entry data'!B:F,5,0)) -> 7000 | G135: =IF(A135="","",IF(ISERROR(VLOOKUP(A135,'entry data'!B:G,6,0)),"",VLOOKUP(A135,'entry data'!B:G,6,0))) -> 0 | H135: =IF(A135="","",VLOOKUP(A135,'entry data'!B:L,9,0)) -> 0.126 | I135: =IF(A135="","",VLOOKUP(A135,'entry data'!B:K,10,0)) -> arrears | J135: =IF(A135="","",IF(B135=1,VLOOKUP(A135,'entry data'!B:D,3,0),K134)) -> 2017-03-26 | K135: 2017-04-26 | L135: 2017-04 | M135: 2154.501034 | N135: 116.4230028 | O135: =IF(A135="","",-IPMT(H135*VLOOKUP(E135,index!A:C,3,0),calculations!B135,calculations!C135,calculations!F135,-calculations!G135,VLOOKUP(I135,index!G:H,2,0))) -> 22.62226086 | P135: =IF(A135="","",VLOOKUP(A135,'entry data'!B:L,11,0)+IF(B135=C135,G135,0)) -> 139.0452636 | Q135: 2038.078031 | R135: 2038.078031
A136: =IF(A135="","",IF(B135<C135,A135,IF(A135=MAX('entry data'!$B$8:$B$17),"",A135+1))) -> 2 | B136: 57 | C136: =IF(A136="","",VLOOKUP(A136,'entry data'!B:H,7,0)) -> 72 | D136: =IF(A136="","",VLOOKUP(A136,'entry data'!B:C,2,0)) -> Hire Purchase 1 | E136: =IF(A136="","",VLOOKUP(A136,'entry data'!B:E,4,0)) -> monthly | F136: =IF(A136="","",VLOOKUP(A136,'entry data'!B:F,5,0)) -> 7000 | G136: =IF(A136="","",IF(ISERROR(VLOOKUP(A136,'entry data'!B:G,6,0)),"",VLOOKUP(A136,'entry data'!B:G,6,0))) -> 0 | H136: =IF(A136="","",VLOOKUP(A136,'entry data'!B:L,9,0)) -> 0.126 | I136: =IF(A136="","",VLOOKUP(A136,'entry data'!B:K,10,0)) -> arrears | J136: =IF(A136="","",IF(B136=1,VLOOKUP(A136,'entry data'!B:D,3,0),K135)) -> 2017-04-26 | K136: 2017-05-26 | L136: 2017-05 | M136: 2038.078031 | N136: 117.6454443 | O136: =IF(A136="","",-IPMT(H136*VLOOKUP(E136,index!A:C,3,0),calculations!B136,calculations!C136,calculations!F136,-calculations!G136,VLOOKUP(I136,index!G:H,2,0))) -> 21.39981933 | P136: =IF(A136="","",VLOOKUP(A136,'entry data'!B:L,11,0)+IF(B136=C136,G136,0)) -> 139.0452636 | Q136: 1920.432587 | R136: 1920.432587
A137: =IF(A136="","",IF(B136<C136,A136,IF(A136=MAX('entry data'!$B$8:$B$17),"",A136+1))) -> 2 | B137: 58 | C137: =IF(A137="","",VLOOKUP(A137,'entry data'!B:H,7,0)) -> 72 | D137: =IF(A137="","",VLOOKUP(A137,'entry data'!B:C,2,0)) -> Hire Purchase 1 | E137: =IF(A137="","",VLOOKUP(A137,'entry data'!B:E,4,0)) -> monthly | F137: =IF(A137="","",VLOOKUP(A137,'entry data'!B:F,5,0)) -> 7000 | G137: =IF(A137="","",IF(ISERROR(VLOOKUP(A137,'entry data'!B:G,6,0)),"",VLOOKUP(A137,'entry data'!B:G,6,0))) -> 0 | H137: =IF(A137="","",VLOOKUP(A137,'entry data'!B:L,9,0)) -> 0.126 | I137: =IF(A137="","",VLOOKUP(A137,'entry data'!B:K,10,0)) -> arrears | J137: =IF(A137="","",IF(B137=1,VLOOKUP(A137,'entry data'!B:D,3,0),K136)) -> 2017-05-26 | K137: 2017-06-26 | L137: 2017-06 | M137: 1920.432587 | N137: 118.8807215 | O137: =IF(A137="","",-IPMT(H137*VLOOKUP(E137,index!A:C,3,0),calculations!B137,calculations!C137,calculations!F137,-calculations!G137,VLOOKUP(I137,index!G:H,2,0))) -> 20.16454216 | P137: =IF(A137="","",VLOOKUP(A137,'entry data'!B:L,11,0)+IF(B137=C137,G137,0)) -> 139.0452636 | Q137: 1801.551865 | R137: 1801.551865
A138: =IF(A137="","",IF(B137<C137,A137,IF(A137=MAX('entry data'!$B$8:$B$17),"",A137+1))) -> 2 | B138: 59 | C138: =IF(A138="","",VLOOKUP(A138,'entry data'!B:H,7,0)) -> 72 | D138: =IF(A138="","",VLOOKUP(A138,'entry data'!B:C,2,0)) -> Hire Purchase 1 | E138: =IF(A138="","",VLOOKUP(A138,'entry data'!B:E,4,0)) -> monthly | F138: =IF(A138="","",VLOOKUP(A138,'entry data'!B:F,5,0)) -> 7000 | G138: =IF(A138="","",IF(ISERROR(VLOOKUP(A138,'entry data'!B:G,6,0)),"",VLOOKUP(A138,'entry data'!B:G,6,0))) -> 0 | H138: =IF(A138="","",VLOOKUP(A138,'entry data'!B:L,9,0)) -> 0.126 | I138: =IF(A138="","",VLOOKUP(A138,'entry data'!B:K,10,0)) -> arrears | J138: =IF(A138="","",IF(B138=1,VLOOKUP(A138,'entry data'!B:D,3,0),K137)) -> 2017-06-26 | K138: 2017-07-26 | L138: 2017-07 | M138: 1801.551865 | N138: 120.128969 | O138: =IF(A138="","",-IPMT(H138*VLOOKUP(E138,index!A:C,3,0),calculations!B138,calculations!C138,calculations!F138,-calculations!G138,VLOOKUP(I138,index!G:H,2,0))) -> 18.91629459 | P138: =IF(A138="","",VLOOKUP(A138,'entry data'!B:L,11,0)+IF(B138=C138,G138,0)) -> 139.0452636 | Q138: 1681.422896 | R138: 1681.422896
A139: =IF(A138="","",IF(B138<C138,A138,IF(A138=MAX('entry data'!$B$8:$B$17),"",A138+1))) -> 2 | B139: 60 | C139: =IF(A139="","",VLOOKUP(A139,'entry data'!B:H,7,0)) -> 72 | D139: =IF(A139="","",VLOOKUP(A139,'entry data'!B:C,2,0)) -> Hire Purchase 1 | E139: =IF(A139="","",VLOOKUP(A139,'entry data'!B:E,4,0)) -> monthly | F139: =IF(A139="","",VLOOKUP(A139,'entry data'!B:F,5,0)) -> 7000 | G139: =IF(A139="","",IF(ISERROR(VLOOKUP(A139,'entry data'!B:G,6,0)),"",VLOOKUP(A139,'entry data'!B:G,6,0))) -> 0 | H139: =IF(A139="","",VLOOKUP(A139,'entry data'!B:L,9,0)) -> 0.126 | I139: =IF(A139="","",VLOOKUP(A139,'entry data'!B:K,10,0)) -> arrears | J139: =IF(A139="","",IF(B139=1,VLOOKUP(A139,'entry data'!B:D,3,0),K138)) -> 2017-07-26 | K139: 2017-08-26 | L139: 2017-08 | M139: 1681.422896 | N139: 121.3903232 | O139: =IF(A139="","",-IPMT(H139*VLOOKUP(E139,index!A:C,3,0),calculations!B139,calculations!C139,calculations!F139,-calculations!G139,VLOOKUP(I139,index!G:H,2,0))) -> 17.65494041 | P139: =IF(A139="","",VLOOKUP(A139,'entry data'!B:L,11,0)+IF(B139=C139,G139,0)) -> 139.0452636 | Q139: 1560.032573 | R139: 1560.032573
A140: =IF(A139="","",IF(B139<C139,A139,IF(A139=MAX('entry data'!$B$8:$B$17),"",A139+1))) -> 2 | B140: 61 | C140: =IF(A140="","",VLOOKUP(A140,'entry data'!B:H,7,0)) -> 72 | D140: =IF(A140="","",VLOOKUP(A140,'entry data'!B:C,2,0)) -> Hire Purchase 1 | E140: =IF(A140="","",VLOOKUP(A140,'entry data'!B:E,4,0)) -> monthly | F140: =IF(A140="","",VLOOKUP(A140,'entry data'!B:F,5,0)) -> 7000 | G140: =IF(A140="","",IF(ISERROR(VLOOKUP(A140,'entry data'!B:G,6,0)),"",VLOOKUP(A140,'entry data'!B:G,6,0))) -> 0 | H140: =IF(A140="","",VLOOKUP(A140,'entry data'!B:L,9,0)) -> 0.126 | I140: =IF(A140="","",VLOOKUP(A140,'entry data'!B:K,10,0)) -> arrears | J140: =IF(A140="","",IF(B140=1,VLOOKUP(A140,'entry data'!B:D,3,0),K139)) -> 2017-08-26 | K140: 2017-09-26 | L140: 2017-09 | M140: 1560.032573 | N140: 122.6649216 | O140: =IF(A140="","",-IPMT(H140*VLOOKUP(E140,index!A:C,3,0),calculations!B140,calculations!C140,calculations!F140,-calculations!G140,VLOOKUP(I140,index!G:H,2,0))) -> 16.38034202 | P140: =IF(A140="","",VLOOKUP(A140,'entry data'!B:L,11,0)+IF(B140=C140,G140,0)) -> 139.0452636 | Q140: 1437.367651 | R140: 1437.367651
A141: =IF(A140="","",IF(B140<C140,A140,IF(A140=MAX('entry data'!$B$8:$B$17),"",A140+1))) -> 2 | B141: 62 | C141: =IF(A141="","",VLOOKUP(A141,'entry data'!B:H,7,0)) -> 72 | D141: =IF(A141="","",VLOOKUP(A141,'entry data'!B:C,2,0)) -> Hire Purchase 1 | E141: =IF(A141="","",VLOOKUP(A141,'entry data'!B:E,4,0)) -> monthly | F141: =IF(A141="","",VLOOKUP(A141,'entry data'!B:F,5,0)) -> 7000 | G141: =IF(A141="","",IF(ISERROR(VLOOKUP(A141,'entry data'!B:G,6,0)),"",VLOOKUP(A141,'entry data'!B:G,6,0))) -> 0 | H141: =IF(A141="","",VLOOKUP(A141,'entry data'!B:L,9,0)) -> 0.126 | I141: =IF(A141="","",VLOOKUP(A141,'entry data'!B:K,10,0)) -> arrears | J141: =IF(A141="","",IF(B141=1,VLOOKUP(A141,'entry data'!B:D,3,0),K140)) -> 2017-09-26 | K141: 2017-10-26 | L141: 2017-10 | M141: 1437.367651 | N141: 123.9529033 | O141: =IF(A141="","",-IPMT(H141*VLOOKUP(E141,index!A:C,3,0),calculations!B141,calculations!C141,calculations!F141,-calculations!G141,VLOOKUP(I141,index!G:H,2,0))) -> 15.09236034 | P141: =IF(A141="","",VLOOKUP(A141,'entry data'!B:L,11,0)+IF(B141=C141,G141,0)) -> 139.0452636 | Q141: 1313.414748 | R141: 1313.414748
A142: =IF(A141="","",IF(B141<C141,A141,IF(A141=MAX('entry data'!$B$8:$B$17),"",A141+1))) -> 2 | B142: 63 | C142: =IF(A142="","",VLOOKUP(A142,'entry data'!B:H,7,0)) -> 72 | D142: =IF(A142="","",VLOOKUP(A142,'entry data'!B:C,2,0)) -> Hire Purchase 1 | E142: =IF(A142="","",VLOOKUP(A142,'entry data'!B:E,4,0)) -> monthly | F142: =IF(A142="","",VLOOKUP(A142,'entry data'!B:F,5,0)) -> 7000 | G142: =IF(A142="","",IF(ISERROR(VLOOKUP(A142,'entry data'!B:G,6,0)),"",VLOOKUP(A142,'entry data'!B:G,6,0))) -> 0 | H142: =IF(A142="","",VLOOKUP(A142,'entry data'!B:L,9,0)) -> 0.126 | I142: =IF(A142="","",VLOOKUP(A142,'entry data'!B:K,10,0)) -> arrears | J142: =IF(A142="","",IF(B142=1,VLOOKUP(A142,'entry data'!B:D,3,0),K141)) -> 2017-10-26 | K142: 2017-11-26 | L142: 2017-11 | M142: 1313.414748 | N142: 125.2544088 | O142: =IF(A142="","",-IPMT(H142*VLOOKUP(E142,index!A:C,3,0),calculations!B142,calculations!C142,calculations!F142,-calculations!G142,VLOOKUP(I142,index!G:H,2,0))) -> 13.79085486 | P142: =IF(A142="","",VLOOKUP(A142,'entry data'!B:L,11,0)+IF(B142=C142,G142,0)) -> 139.0452636 | Q142: 1188.160339 | R142: 1188.160339
A143: =IF(A142="","",IF(B142<C142,A142,IF(A142=MAX('entry data'!$B$8:$B$17),"",A142+1))) -> 2 | B143: 64 | C143: =IF(A143="","",VLOOKUP(A143,'entry data'!B:H,7,0)) -> 72 | D143: =IF(A143="","",VLOOKUP(A143,'entry data'!B:C,2,0)) -> Hire Purchase 1 | E143: =IF(A143="","",VLOOKUP(A143,'entry data'!B:E,4,0)) -> monthly | F143: =IF(A143="","",VLOOKUP(A143,'entry data'!B:F,5,0)) -> 7000 | G143: =IF(A143="","",IF(ISERROR(VLOOKUP(A143,'entry data'!B:G,6,0)),"",VLOOKUP(A143,'entry data'!B:G,6,0))) -> 0 | H143: =IF(A143="","",VLOOKUP(A143,'entry data'!B:L,9,0)) -> 0.126 | I143: =IF(A143="","",VLOOKUP(A143,'entry data'!B:K,10,0)) -> arrears | J143: =IF(A143="","",IF(B143=1,VLOOKUP(A143,'entry data'!B:D,3,0),K142)) -> 2017-11-26 | K143: 2017-12-26 | L143: 2017-12 | M143: 1188.160339 | N143: 126.5695801 | O143: =IF(A143="","",-IPMT(H143*VLOOKUP(E143,index!A:C,3,0),calculations!B143,calculations!C143,calculations!F143,-calculations!G143,VLOOKUP(I143,index!G:H,2,0))) -> 12.47568356 | P143: =IF(A143="","",VLOOKUP(A143,'entry data'!B:L,11,0)+IF(B143=C143,G143,0)) -> 139.0452636 | Q143: 1061.590759 | R143: 1061.590759
A144: =IF(A143="","",IF(B143<C143,A143,IF(A143=MAX('entry data'!$B$8:$B$17),"",A143+1))) -> 2 | B144: 65 | C144: =IF(A144="","",VLOOKUP(A144,'entry data'!B:H,7,0)) -> 72 | D144: =IF(A144="","",VLOOKUP(A144,'entry data'!B:C,2,0)) -> Hire Purchase 1 | E144: =IF(A144="","",VLOOKUP(A144,'entry data'!B:E,4,0)) -> monthly | F144: =IF(A144="","",VLOOKUP(A144,'entry data'!B:F,5,0)) -> 7000 | G144: =IF(A144="","",IF(ISERROR(VLOOKUP(A144,'entry data'!B:G,6,0)),"",VLOOKUP(A144,'entry data'!B:G,6,0))) -> 0 | H144: =IF(A144="","",VLOOKUP(A144,'entry data'!B:L,9,0)) -> 0.126 | I144: =IF(A144="","",VLOOKUP(A144,'entry data'!B:K,10,0)) -> arrears | J144: =IF(A144="","",IF(B144=1,VLOOKUP(A144,'entry data'!B:D,3,0),K143)) -> 2017-12-26 | K144: 2018-01-26 | L144: 2018-01 | M144: 1061.590759 | N144: 127.8985607 | O144: =IF(A144="","",-IPMT(H144*VLOOKUP(E144,index!A:C,3,0),calculations!B144,calculations!C144,calculations!F144,-calculations!G144,VLOOKUP(I144,index!G:H,2,0))) -> 11.14670297 | P144: =IF(A144="","",VLOOKUP(A144,'entry data'!B:L,11,0)+IF(B144=C144,G144,0)) -> 139.0452636 | Q144: 933.6921987 | R144: 933.6921987
A145: =IF(A144="","",IF(B144<C144,A144,IF(A144=MAX('entry data'!$B$8:$B$17),"",A144+1))) -> 2 | B145: 66 | C145: =IF(A145="","",VLOOKUP(A145,'entry data'!B:H,7,0)) -> 72 | D145: =IF(A145="","",VLOOKUP(A145,'entry data'!B:C,2,0)) -> Hire Purchase 1 | E145: =IF(A145="","",VLOOKUP(A145,'entry data'!B:E,4,0)) -> monthly | F145: =IF(A145="","",VLOOKUP(A145,'entry data'!B:F,5,0)) -> 7000 | G145: =IF(A145="","",IF(ISERROR(VLOOKUP(A145,'entry data'!B:G,6,0)),"",VLOOKUP(A145,'entry data'!B:G,6,0))) -> 0 | H145: =IF(A145="","",VLOOKUP(A145,'entry data'!B:L,9,0)) -> 0.126 | I145: =IF(A145="","",VLOOKUP(A145,'entry data'!B:K,10,0)) -> arrears | J145: =IF(A145="","",IF(B145=1,VLOOKUP(A145,'entry data'!B:D,3,0),K144)) -> 2018-01-26 | K145: 2018-02-26 | L145: 2018-02 | M145: 933.6921987 | N145: 129.2414955 | O145: =IF(A145="","",-IPMT(H145*VLOOKUP(E145,index!A:C,3,0),calculations!B145,calculations!C145,calculations!F145,-calculations!G145,VLOOKUP(I145,index!G:H,2,0))) -> 9.803768087 | P145: =IF(A145="","",VLOOKUP(A145,'entry data'!B:L,11,0)+IF(B145=C145,G145,0)) -> 139.0452636 | Q145: 804.4507032 | R145: 804.4507032
A146: =IF(A145="","",IF(B145<C145,A145,IF(A145=MAX('entry data'!$B$8:$B$17),"",A145+1))) -> 2 | B146: 67 | C146: =IF(A146="","",VLOOKUP(A146,'entry data'!B:H,7,0)) -> 72 | D146: =IF(A146="","",VLOOKUP(A146,'entry data'!B:C,2,0)) -> Hire Purchase 1 | E146: =IF(A146="","",VLOOKUP(A146,'entry data'!B:E,4,0)) -> monthly | F146: =IF(A146="","",VLOOKUP(A146,'entry data'!B:F,5,0)) -> 7000 | G146: =IF(A146="","",IF(ISERROR(VLOOKUP(A146,'entry data'!B:G,6,0)),"",VLOOKUP(A146,'entry data'!B:G,6,0))) -> 0 | H146: =IF(A146="","",VLOOKUP(A146,'entry data'!B:L,9,0)) -> 0.126 | I146: =IF(A146="","",VLOOKUP(A146,'entry data'!B:K,10,0)) -> arrears | J146: =IF(A146="","",IF(B146=1,VLOOKUP(A146,'entry data'!B:D,3,0),K145)) -> 2018-02-26 | K146: 2018-03-26 | L146: 2018-03 | M146: 804.4507032 | N146: 130.5985312 | O146: =IF(A146="","",-IPMT(H146*VLOOKUP(E146,index!A:C,3,0),calculations!B146,calculations!C146,calculations!F146,-calculations!G146,VLOOKUP(I146,index!G:H,2,0))) -> 8.446732383 | P146: =IF(A146="","",VLOOKUP(A146,'entry data'!B:L,11,0)+IF(B146=C146,G146,0)) -> 139.0452636 | Q146: 673.8521719 | R146: 673.8521719
A147: =IF(A146="","",IF(B146<C146,A146,IF(A146=MAX('entry data'!$B$8:$B$17),"",A146+1))) -> 2 | B147: 68 | C147: =IF(A147="","",VLOOKUP(A147,'entry data'!B:H,7,0)) -> 72 | D147: =IF(A147="","",VLOOKUP(A147,'entry data'!B:C,2,0)) -> Hire Purchase 1 | E147: =IF(A147="","",VLOOKUP(A147,'entry data'!B:E,4,0)) -> monthly | F147: =IF(A147="","",VLOOKUP(A147,'entry data'!B:F,5,0)) -> 7000 | G147: =IF(A147="","",IF(ISERROR(VLOOKUP(A147,'entry data'!B:G,6,0)),"",VLOOKUP(A147,'entry data'!B:G,6,0))) -> 0 | H147: =IF(A147="","",VLOOKUP(A147,'entry data'!B:L,9,0)) -> 0.126 | I147: =IF(A147="","",VLOOKUP(A147,'entry data'!B:K,10,0)) -> arrears | J147: =IF(A147="","",IF(B147=1,VLOOKUP(A147,'entry data'!B:D,3,0),K146)) -> 2018-03-26 | K147: 2018-04-26 | L147: 2018-04 | M147: 673.8521719 | N147: 131.9698158 | O147: =IF(A147="","",-IPMT(H147*VLOOKUP(E147,index!A:C,3,0),calculations!B147,calculations!C147,calculations!F147,-calculations!G147,VLOOKUP(I147,index!G:H,2,0))) -> 7.075447805 | P147: =IF(A147="","",VLOOKUP(A147,'entry data'!B:L,11,0)+IF(B147=C147,G147,0)) -> 139.0452636 | Q147: 541.8823561 | R147: 541.8823561
A148: =IF(A147="","",IF(B147<C147,A147,IF(A147=MAX('entry data'!$B$8:$B$17),"",A147+1))) -> 2 | B148: 69 | C148: =IF(A148="","",VLOOKUP(A148,'entry data'!B:H,7,0)) -> 72 | D148: =IF(A148="","",VLOOKUP(A148,'entry data'!B:C,2,0)) -> Hire Purchase 1 | E148: =IF(A148="","",VLOOKUP(A148,'entry data'!B:E,4,0)) -> monthly | F148: =IF(A148="","",VLOOKUP(A148,'entry data'!B:F,5,0)) -> 7000 | G148: =IF(A148="","",IF(ISERROR(VLOOKUP(A148,'entry data'!B:G,6,0)),"",VLOOKUP(A148,'entry data'!B:G,6,0))) -> 0 | H148: =IF(A148="","",VLOOKUP(A148,'entry data'!B:L,9,0)) -> 0.126 | I148: =IF(A148="","",VLOOKUP(A148,'entry data'!B:K,10,0)) -> arrears | J148: =IF(A148="","",IF(B148=1,VLOOKUP(A148,'entry data'!B:D,3,0),K147)) -> 2018-04-26 | K148: 2018-05-26 | L148: 2018-05 | M148: 541.8823561 | N148: 133.3554989 | O148: =IF(A148="","",-IPMT(H148*VLOOKUP(E148,index!A:C,3,0),calculations!B148,calculations!C148,calculations!F148,-calculations!G148,VLOOKUP(I148,index!G:H,2,0))) -> 5.689764739 | P148: =IF(A148="","",VLOOKUP(A148,'entry data'!B:L,11,0)+IF(B148=C148,G148,0)) -> 139.0452636 | Q148: 408.5268572 | R148: 408.5268572
A149: =IF(A148="","",IF(B148<C148,A148,IF(A148=MAX('entry data'!$B$8:$B$17),"",A148+1))) -> 2 | B149: 70 | C149: =IF(A149="","",VLOOKUP(A149,'entry data'!B:H,7,0)) -> 72 | D149: =IF(A149="","",VLOOKUP(A149,'entry data'!B:C,2,0)) -> Hire Purchase 1 | E149: =IF(A149="","",VLOOKUP(A149,'entry data'!B:E,4,0)) -> monthly | F149: =IF(A149="","",VLOOKUP(A149,'entry data'!B:F,5,0)) -> 7000 | G149: =IF(A149="","",IF(ISERROR(VLOOKUP(A149,'entry data'!B:G,6,0)),"",VLOOKUP(A149,'entry data'!B:G,6,0))) -> 0 | H149: =IF(A149="","",VLOOKUP(A149,'entry data'!B:L,9,0)) -> 0.126 | I149: =IF(A149="","",VLOOKUP(A149,'entry data'!B:K,10,0)) -> arrears | J149: =IF(A149="","",IF(B149=1,VLOOKUP(A149,'entry data'!B:D,3,0),K148)) -> 2018-05-26 | K149: 2018-06-26 | L149: 2018-06 | M149: 408.5268572 | N149: 134.7557316 | O149: =IF(A149="","",-IPMT(H149*VLOOKUP(E149,index!A:C,3,0),calculations!B149,calculations!C149,calculations!F149,-calculations!G149,VLOOKUP(I149,index!G:H,2,0))) -> 4.289532001 | P149: =IF(A149="","",VLOOKUP(A149,'entry data'!B:L,11,0)+IF(B149=C149,G149,0)) -> 139.0452636 | Q149: 273.7711256 | R149: 273.7711256
A150: =IF(A149="","",IF(B149<C149,A149,IF(A149=MAX('entry data'!$B$8:$B$17),"",A149+1))) -> 2 | B150: 71 | C150: =IF(A150="","",VLOOKUP(A150,'entry data'!B:H,7,0)) -> 72 | D150: =IF(A150="","",VLOOKUP(A150,'entry data'!B:C,2,0)) -> Hire Purchase 1 | E150: =IF(A150="","",VLOOKUP(A150,'entry data'!B:E,4,0)) -> monthly | F150: =IF(A150="","",VLOOKUP(A150,'entry data'!B:F,5,0)) -> 7000 | G150: =IF(A150="","",IF(ISERROR(VLOOKUP(A150,'entry data'!B:G,6,0)),"",VLOOKUP(A150,'entry data'!B:G,6,0))) -> 0 | H150: =IF(A150="","",VLOOKUP(A150,'entry data'!B:L,9,0)) -> 0.126 | I150: =IF(A150="","",VLOOKUP(A150,'entry data'!B:K,10,0)) -> arrears | J150: =IF(A150="","",IF(B150=1,VLOOKUP(A150,'entry data'!B:D,3,0),K149)) -> 2018-06-26 | K150: 2018-07-26 | L150: 2018-07 | M150: 273.7711256 | N150: 136.1706668 | O150: =IF(A150="","",-IPMT(H150*VLOOKUP(E150,index!A:C,3,0),calculations!B150,calculations!C150,calculations!F150,-calculations!G150,VLOOKUP(I150,index!G:H,2,0))) -> 2.874596819 | P150: =IF(A150="","",VLOOKUP(A150,'entry data'!B:L,11,0)+IF(B150=C150,G150,0)) -> 139.0452636 | Q150: 137.6004588 | R150: 137.6004588
A151: =IF(A150="","",IF(B150<C150,A150,IF(A150=MAX('entry data'!$B$8:$B$17),"",A150+1))) -> 2 | B151: =IF(A151="","",IF(B150=C150,1,B150+1)) -> 72 | C151: =IF(A151="","",VLOOKUP(A151,'entry data'!B:H,7,0)) -> 72 | D151: =IF(A151="","",VLOOKUP(A151,'entry data'!B:C,2,0)) -> Hire Purchase 1 | E151: =IF(A151="","",VLOOKUP(A151,'entry data'!B:E,4,0)) -> monthly | F151: =IF(A151="","",VLOOKUP(A151,'entry data'!B:F,5,0)) -> 7000 | G151: =IF(A151="","",IF(ISERROR(VLOOKUP(A151,'entry data'!B:G,6,0)),"",VLOOKUP(A151,'entry data'!B:G,6,0))) -> 0 | H151: =IF(A151="","",VLOOKUP(A151,'entry data'!B:L,9,0)) -> 0.126 | I151: =IF(A151="","",VLOOKUP(A151,'entry data'!B:K,10,0)) -> arrears | J151: =IF(A151="","",IF(B151=1,VLOOKUP(A151,'entry data'!B:D,3,0),K150)) -> 2018-07-26 | K151: =IF(A151="","",IF(E151="weekly",7,IF(E151="fortnightly",14,DATE(IF(MONTH(J151)=12,YEAR(J151)+1,YEAR(J151)),IF(MONTH(J151)=12,1,MONTH(J151)+1),DAY(J151))-J151))+J151) -> 2018-08-26 | L151: =IF(A151="","",IF(MONTH(K151)<10,YEAR(K151)&"-0"&MONTH(K151),YEAR(K151)&"-"&MONTH(K151))) -> 2018-08 | M151: 137.6004588 | N151: =IF(A151="","",P151-O151) -> 137.6004588 | O151: =IF(A151="","",-IPMT(H151*VLOOKUP(E151,index!A:C,3,0),calculations!B151,calculations!C151,calculations!F151,-calculations!G151,VLOOKUP(I151,index!G:H,2,0))) -> 1.444804817 | P151: =IF(A151="","",VLOOKUP(A151,'entry data'!B:L,11,0)+IF(B151=C151,G151,0)) -> 139.0452636 | Q151: =IF(A151="","",M151-N151) -> -2.046363079e-12 | R151: -2.046363079e-12
A152: =IF(A151="","",IF(B151<C151,A151,IF(A151=MAX('entry data'!$B$8:$B$17),"",A151+1))) -> 3 | B152: 1 | C152: =IF(A152="","",VLOOKUP(A152,'entry data'!B:H,7,0)) -> 312 | D152: =IF(A152="","",VLOOKUP(A152,'entry data'!B:C,2,0)) -> Inventory Loan | E152: =IF(A152="","",VLOOKUP(A152,'entry data'!B:E,4,0)) -> weekly | F152: =IF(A152="","",VLOOKUP(A152,'entry data'!B:F,5,0)) -> 15000 | G152: =IF(A152="","",IF(ISERROR(VLOOKUP(A152,'entry data'!B:G,6,0)),"",VLOOKUP(A152,'entry data'!B:G,6,0))) -> 0 | H152: =IF(A152="","",VLOOKUP(A152,'entry data'!B:L,9,0)) -> 0.126 | I152: =IF(A152="","",VLOOKUP(A152,'entry data'!B:K,10,0)) -> advance | J152: =IF(A152="","",IF(B152=1,VLOOKUP(A152,'entry data'!B:D,3,0),K151)) -> 2011-07-20 | K152: 2011-07-27 | L152: 2011-07 | M152: 15000 | N152: 68.34644124 | O152: =IF(A152="","",-IPMT(H152*VLOOKUP(E152,index!A:C,3,0),calculations!B152,calculations!C152,calculations!F152,-calculations!G152,VLOOKUP(I152,index!G:H,2,0))) -> 0 | P152: =IF(A152="","",VLOOKUP(A152,'entry data'!B:L,11,0)+IF(B152=C152,G152,0)) -> 68.34644124 | Q152: 14931.65356 | R152: 14931.65356
A153: =IF(A152="","",IF(B152<C152,A152,IF(A152=MAX('entry data'!$B$8:$B$17),"",A152+1))) -> 3 | B153: 2 | C153: =IF(A153="","",VLOOKUP(A153,'entry data'!B:H,7,0)) -> 312 | D153: =IF(A153="","",VLOOKUP(A153,'entry data'!B:C,2,0)) -> Inventory Loan | E153: =IF(A153="","",VLOOKUP(A153,'entry data'!B:E,4,0)) -> weekly | F153: =IF(A153="","",VLOOKUP(A153,'entry data'!B:F,5,0)) -> 15000 | G153: =IF(A153="","",IF(ISERROR(VLOOKUP(A153,'entry data'!B:G,6,0)),"",VLOOKUP(A153,'entry data'!B:G,6,0))) -> 0 | H153: =IF(A153="","",VLOOKUP(A153,'entry data'!B:L,9,0)) -> 0.126 | I153: =IF(A153="","",VLOOKUP(A153,'entry data'!B:K,10,0)) -> advance | J153: =IF(A153="","",IF(B153=1,VLOOKUP(A153,'entry data'!B:D,3,0),K152)) -> 2011-07-27 | K153: 2011-08-03 | L153: 2011-08 | M153: 14931.65356 | N153: 32.26502086 | O153: =IF(A153="","",-IPMT(H153*VLOOKUP(E153,index!A:C,3,0),calculations!B153,calculations!C153,calculations!F153,-calculations!G153,VLOOKUP(I153,index!G:H,2,0))) -> 36.08142038 | P153: =IF(A153="","",VLOOKUP(A153,'entry data'!B:L,11,0)+IF(B153=C153,G153,0)) -> 68.34644124 | Q153: 14899.38854 | R153: 0
A154: =IF(A153="","",IF(B153<C153,A153,IF(A153=MAX('entry data'!$B$8:$B$17),"",A153+1))) -> 3 | B154: 3 | C154: =IF(A154="","",VLOOKUP(A154,'entry data'!B:H,7,0)) -> 312 | D154: =IF(A154="","",VLOOKUP(A154,'entry data'!B:C,2,0)) -> Inventory Loan | E154: =IF(A154="","",VLOOKUP(A154,'entry data'!B:E,4,0)) -> weekly | F154: =IF(A154="","",VLOOKUP(A154,'entry data'!B:F,5,0)) -> 15000 | G154: =IF(A154="","",IF(ISERROR(VLOOKUP(A154,'entry data'!B:G,6,0)),"",VLOOKUP(A154,'entry data'!B:G,6,0))) -> 0 | H154: =IF(A154="","",VLOOKUP(A154,'entry data'!B:L,9,0)) -> 0.126 | I154: =IF(A154="","",VLOOKUP(A154,'entry data'!B:K,10,0)) -> advance | J154: =IF(A154="","",IF(B154=1,VLOOKUP(A154,'entry data'!B:D,3,0),K153)) -> 2011-08-03 | K154: 2011-08-10 | L154: 2011-08 | M154: 14899.38854 | N154: 32.34298729 | O154: =IF(A154="","",-IPMT(H154*VLOOKUP(E154,index!A:C,3,0),calculations!B154,calculations!C154,calculations!F154,-calculations!G154,VLOOKUP(I154,index!G:H,2,0))) -> 36.00345395 | P154: =IF(A154="","",VLOOKUP(A154,'entry data'!B:L,11,0)+IF(B154=C154,G154,0)) -> 68.34644124 | Q154: 14867.04555 | R154: 0
A155: =IF(A154="","",IF(B154<C154,A154,IF(A154=MAX('entry data'!$B$8:$B$17),"",A154+1))) -> 3 | B155: 4 | C155: =IF(A155="","",VLOOKUP(A155,'entry data'!B:H,7,0)) -> 312 | D155: =IF(A155="","",VLOOKUP(A155,'entry data'!B:C,2,0)) -> Inventory Loan | E155: =IF(A155="","",VLOOKUP(A155,'entry data'!B:E,4,0)) -> weekly | F155: =IF(A155="","",VLOOKUP(A155,'entry data'!B:F,5,0)) -> 15000 | G155: =IF(A155="","",IF(ISERROR(VLOOKUP(A155,'entry data'!B:G,6,0)),"",VLOOKUP(A155,'entry data'!B:G,6,0))) -> 0 | H155: =IF(A155="","",VLOOKUP(A155,'entry data'!B:L,9,0)) -> 0.126 | I155: =IF(A155="","",VLOOKUP(A155,'entry data'!B:K,10,0)) -> advance | J155: =IF(A155="","",IF(B155=1,VLOOKUP(A155,'entry data'!B:D,3,0),K154)) -> 2011-08-10 | K155: 2011-08-17 | L155: 2011-08 | M155: 14867.04555 | N155: 32.42114213 | O155: =IF(A155="","",-IPMT(H155*VLOOKUP(E155,index!A:C,3,0),calculations!B155,calculations!C155,calculations!F155,-calculations!G155,VLOOKUP(I155,index!G:H,2,0))) -> 35.92529911 | P155: =IF(A155="","",VLOOKUP(A155,'entry data'!B:L,11,0)+IF(B155=C155,G155,0)) -> 68.34644124 | Q155: 14834.62441 | R155: 0
A156: =IF(A155="","",IF(B155<C155,A155,IF(A155=MAX('entry data'!$B$8:$B$17),"",A155+1))) -> 3 | B156: 5 | C156: =IF(A156="","",VLOOKUP(A156,'entry data'!B:H,7,0)) -> 312 | D156: =IF(A156="","",VLOOKUP(A156,'entry data'!B:C,2,0)) -> Inventory Loan | E156: =IF(A156="","",VLOOKUP(A156,'entry data'!B:E,4,0)) -> weekly | F156: =IF(A156="","",VLOOKUP(A156,'entry data'!B:F,5,0)) -> 15000 | G156: =IF(A156="","",IF(ISERROR(VLOOKUP(A156,'entry data'!B:G,6,0)),"",VLOOKUP(A156,'entry data'!B:G,6,0))) -> 0 | H156: =IF(A156="","",VLOOKUP(A156,'entry data'!B:L,9,0)) -> 0.126 | I156: =IF(A156="","",VLOOKUP(A156,'entry data'!B:K,10,0)) -> advance | J156: =IF(A156="","",IF(B156=1,VLOOKUP(A156,'entry data'!B:D,3,0),K155)) -> 2011-08-17 | K156: 2011-08-24 | L156: 2011-08 | M156: 14834.62441 | N156: 32.49948582 | O156: =IF(A156="","",-IPMT(H156*VLOOKUP(E156,index!A:C,3,0),calculations!B156,calculations!C156,calculations!F156,-calculations!G156,VLOOKUP(I156,index!G:H,2,0))) -> 35.84695542 | P156: =IF(A156="","",VLOOKUP(A156,'entry data'!B:L,11,0)+IF(B156=C156,G156,0)) -> 68.34644124 | Q156: 14802.12492 | R156: 0
A157: =IF(A156="","",IF(B156<C156,A156,IF(A156=MAX('entry data'!$B$8:$B$17),"",A156+1))) -> 3 | B157: 6 | C157: =IF(A157="","",VLOOKUP(A157,'entry data'!B:H,7,0)) -> 312 | D157: =IF(A157="","",VLOOKUP(A157,'entry data'!B:C,2,0)) -> Inventory Loan | E157: =IF(A157="","",VLOOKUP(A157,'entry data'!B:E,4,0)) -> weekly | F157: =IF(A157="","",VLOOKUP(A157,'entry data'!B:F,5,0)) -> 15000 | G157: =IF(A157="","",IF(ISERROR(VLOOKUP(A157,'entry data'!B:G,6,0)),"",VLOOKUP(A157,'entry data'!B:G,6,0))) -> 0 | H157: =IF(A157="","",VLOOKUP(A157,'entry data'!B:L,9,0)) -> 0.126 | I157: =IF(A157="","",VLOOKUP(A157,'entry data'!B:K,10,0)) -> advance | J157: =IF(A157="","",IF(B157=1,VLOOKUP(A157,'entry data'!B:D,3,0),K156)) -> 2011-08-24 | K157: 2011-08-31 | L157: 2011-08 | M157: 14802.12492 | N157: 32.57801882 | O157: =IF(A157="","",-IPMT(H157*VLOOKUP(E157,index!A:C,3,0),calculations!B157,calculations!C157,calculations!F157,-calculations!G157,VLOOKUP(I157,index!G:H,2,0))) -> 35.76842242 | P157: =IF(A157="","",VLOOKUP(A157,'entry data'!B:L,11,0)+IF(B157=C157,G157,0)) -> 68.34644124 | Q157: 14769.5469 | R157: 14769.5469
A158: =IF(A157="","",IF(B157<C157,A157,IF(A157=MAX('entry data'!$B$8:$B$17),"",A157+1))) -> 3 | B158: 7 | C158: =IF(A158="","",VLOOKUP(A158,'entry data'!B:H,7,0)) -> 312 | D158: =IF(A158="","",VLOOKUP(A158,'entry data'!B:C,2,0)) -> Inventory Loan | E158: =IF(A158="","",VLOOKUP(A158,'entry data'!B:E,4,0)) -> weekly | F158: =IF(A158="","",VLOOKUP(A158,'entry data'!B:F,5,0)) -> 15000 | G158: =IF(A158="","",IF(ISERROR(VLOOKUP(A158,'entry data'!B:G,6,0)),"",VLOOKUP(A158,'entry data'!B:G,6,0))) -> 0 | H158: =IF(A158="","",VLOOKUP(A158,'entry data'!B:L,9,0)) -> 0.126 | I158: =IF(A158="","",VLOOKUP(A158,'entry data'!B:K,10,0)) -> advance | J158: =IF(A158="","",IF(B158=1,VLOOKUP(A158,'entry data'!B:D,3,0),K157)) -> 2011-08-31 | K158: 2011-09-07 | L158: 2011-09 | M158: 14769.5469 | N158: 32.6567416 | O158: =IF(A158="","",-IPMT(H158*VLOOKUP(E158,index!A:C,3,0),calculations!B158,calculations!C158,calculations!F158,-calculations!G158,VLOOKUP(I158,index!G:H,2,0))) -> 35.68969964 | P158: =IF(A158="","",VLOOKUP(A158,'entry data'!B:L,11,0)+IF(B158=C158,G158,0)) -> 68.34644124 | Q158: 14736.89016 | R158: 0
A159: =IF(A158="","",IF(B158<C158,A158,IF(A158=MAX('entry data'!$B$8:$B$17),"",A158+1))) -> 3 | B159: 8 | C159: =IF(A159="","",VLOOKUP(A159,'entry data'!B:H,7,0)) -> 312 | D159: =IF(A159="","",VLOOKUP(A159,'entry data'!B:C,2,0)) -> Inventory Loan | E159: =IF(A159="","",VLOOKUP(A159,'entry data'!B:E,4,0)) -> weekly | F159: =IF(A159="","",VLOOKUP(A159,'entry data'!B:F,5,0)) -> 15000 | G159: =IF(A159="","",IF(ISERROR(VLOOKUP(A159,'entry data'!B:G,6,0)),"",VLOOKUP(A159,'entry data'!B:G,6,0))) -> 0 | H159: =IF(A159="","",VLOOKUP(A159,'entry data'!B:L,9,0)) -> 0.126 | I159: =IF(A159="","",VLOOKUP(A159,'entry data'!B:K,10,0)) -> advance | J159: =IF(A159="","",IF(B159=1,VLOOKUP(A159,'entry data'!B:D,3,0),K158)) -> 2011-09-07 | K159: 2011-09-14 | L159: 2011-09 | M159: 14736.89016 | N159: 32.7356546 | O159: =IF(A159="","",-IPMT(H159*VLOOKUP(E159,index!A:C,3,0),calculations!B159,calculations!C159,calculations!F159,-calculations!G159,VLOOKUP(I159,index!G:H,2,0))) -> 35.61078664 | P159: =IF(A159="","",VLOOKUP(A159,'entry data'!B:L,11,0)+IF(B159=C159,G159,0)) -> 68.34644124 | Q159: 14704.15451 | R159: 0
A160: =IF(A159="","",IF(B159<C159,A159,IF(A159=MAX('entry data'!$B$8:$B$17),"",A159+1))) -> 3 | B160: 9 | C160: =IF(A160="","",VLOOKUP(A160,'entry data'!B:H,7,0)) -> 312 | D160: =IF(A160="","",VLOOKUP(A160,'entry data'!B:C,2,0)) -> Inventory Loan | E160: =IF(A160="","",VLOOKUP(A160,'entry data'!B:E,4,0)) -> weekly | F160: =IF(A160="","",VLOOKUP(A160,'entry data'!B:F,5,0)) -> 15000 | G160: =IF(A160="","",IF(ISERROR(VLOOKUP(A160,'entry data'!B:G,6,0)),"",VLOOKUP(A160,'entry data'!B:G,6,0))) -> 0 | H160: =IF(A160="","",VLOOKUP(A160,'entry data'!B:L,9,0)) -> 0.126 | I160: =IF(A160="","",VLOOKUP(A160,'entry data'!B:K,10,0)) -> advance | J160: =IF(A160="","",IF(B160=1,VLOOKUP(A160,'entry data'!B:D,3,0),K159)) -> 2011-09-14 | K160: 2011-09-21 | L160: 2011-09 | M160: 14704.15451 | N160: 32.81475829 | O160: =IF(A160="","",-IPMT(H160*VLOOKUP(E160,index!A:C,3,0),calculations!B160,calculations!C160,calculations!F160,-calculations!G160,VLOOKUP(I160,index!G:H,2,0))) -> 35.53168295 | P160: =IF(A160="","",VLOOKUP(A160,'entry data'!B:L,11,0)+IF(B160=C160,G160,0)) -> 68.34644124 | Q160: 14671.33975 | R160: 0
A161: =IF(A160="","",IF(B160<C160,A160,IF(A160=MAX('entry data'!$B$8:$B$17),"",A160+1))) -> 3 | B161: 10 | C161: =IF(A161="","",VLOOKUP(A161,'entry data'!B:H,7,0)) -> 312 | D161: =IF(A161="","",VLOOKUP(A161,'entry data'!B:C,2,0)) -> Inventory Loan | E161: =IF(A161="","",VLOOKUP(A161,'entry data'!B:E,4,0)) -> weekly | F161: =IF(A161="","",VLOOKUP(A161,'entry data'!B:F,5,0)) -> 15000 | G161: =IF(A161="","",IF(ISERROR(VLOOKUP(A161,'entry data'!B:G,6,0)),"",VLOOKUP(A161,'entry data'!B:G,6,0))) -> 0 | H161: =IF(A161="","",VLOOKUP(A161,'entry data'!B:L,9,0)) -> 0.126 | I161: =IF(A161="","",VLOOKUP(A161,'entry data'!B:K,10,0)) -> advance | J161: =IF(A161="","",IF(B161=1,VLOOKUP(A161,'entry data'!B:D,3,0),K160)) -> 2011-09-21 | K161: 2011-09-28 | L161: 2011-09 | M161: 14671.33975 | N161: 32.89405313 | O161: =IF(A161="","",-IPMT(H161*VLOOKUP(E161,index!A:C,3,0),calculations!B161,calculations!C161,calculations!F161,-calculations!G161,VLOOKUP(I161,index!G:H,2,0))) -> 35.45238811 | P161: =IF(A161="","",VLOOKUP(A161,'entry data'!B:L,11,0)+IF(B161=C161,G161,0)) -> 68.34644124 | Q161: 14638.4457 | R161: 14638.4457
A162: =IF(A161="","",IF(B161<C161,A161,IF(A161=MAX('entry data'!$B$8:$B$17),"",A161+1))) -> 3 | B162: 11 | C162: =IF(A162="","",VLOOKUP(A162,'entry data'!B:H,7,0)) -> 312 | D162: =IF(A162="","",VLOOKUP(A162,'entry data'!B:C,2,0)) -> Inventory Loan | E162: =IF(A162="","",VLOOKUP(A162,'entry data'!B:E,4,0)) -> weekly | F162: =IF(A162="","",VLOOKUP(A162,'entry data'!B:F,5,0)) -> 15000 | G162: =IF(A162="","",IF(ISERROR(VLOOKUP(A162,'entry data'!B:G,6,0)),"",VLOOKUP(A162,'entry data'!B:G,6,0))) -> 0 | H162: =IF(A162="","",VLOOKUP(A162,'entry data'!B:L,9,0)) -> 0.126 | I162: =IF(A162="","",VLOOKUP(A162,'entry data'!B:K,10,0)) -> advance | J162: =IF(A162="","",IF(B162=1,VLOOKUP(A162,'entry data'!B:D,3,0),K161)) -> 2011-09-28 | K162: 2011-10-05 | L162: 2011-10 | M162: 14638.4457 | N162: 32.97353958 | O162: =IF(A162="","",-IPMT(H162*VLOOKUP(E162,index!A:C,3,0),calculations!B162,calculations!C162,calculations!F162,-calculations!G162,VLOOKUP(I162,index!G:H,2,0))) -> 35.37290166 | P162: =IF(A162="","",VLOOKUP(A162,'entry data'!B:L,11,0)+IF(B162=C162,G162,0)) -> 68.34644124 | Q162: 14605.47216 | R162: 0
A163: =IF(A162="","",IF(B162<C162,A162,IF(A162=MAX('entry data'!$B$8:$B$17),"",A162+1))) -> 3 | B163: 12 | C163: =IF(A163="","",VLOOKUP(A163,'entry data'!B:H,7,0)) -> 312 | D163: =IF(A163="","",VLOOKUP(A163,'entry data'!B:C,2,0)) -> Inventory Loan | E163: =IF(A163="","",VLOOKUP(A163,'entry data'!B:E,4,0)) -> weekly | F163: =IF(A163="","",VLOOKUP(A163,'entry data'!B:F,5,0)) -> 15000 | G163: =IF(A163="","",IF(ISERROR(VLOOKUP(A163,'entry data'!B:G,6,0)),"",VLOOKUP(A163,'entry data'!B:G,6,0))) -> 0 | H163: =IF(A163="","",VLOOKUP(A163,'entry data'!B:L,9,0)) -> 0.126 | I163: =IF(A163="","",VLOOKUP(A163,'entry data'!B:K,10,0)) -> advance | J163: =IF(A163="","",IF(B163=1,VLOOKUP(A163,'entry data'!B:D,3,0),K162)) -> 2011-10-05 | K163: 2011-10-12 | L163: 2011-10 | M163: 14605.47216 | N163: 33.05321811 | O163: =IF(A163="","",-IPMT(H163*VLOOKUP(E163,index!A:C,3,0),calculations!B163,calculations!C163,calculations!F163,-calculations!G163,VLOOKUP(I163,index!G:H,2,0))) -> 35.29322313 | P163: =IF(A163="","",VLOOKUP(A163,'entry data'!B:L,11,0)+IF(B163=C163,G163,0)) -> 68.34644124 | Q163: 14572.41894 | R163: 0
A164: =IF(A163="","",IF(B163<C163,A163,IF(A163=MAX('entry data'!$B$8:$B$17),"",A163+1))) -> 3 | B164: 13 | C164: =IF(A164="","",VLOOKUP(A164,'entry data'!B:H,7,0)) -> 312 | D164: =IF(A164="","",VLOOKUP(A164,'entry data'!B:C,2,0)) -> Inventory Loan | E164: =IF(A164="","",VLOOKUP(A164,'entry data'!B:E,4,0)) -> weekly | F164: =IF(A164="","",VLOOKUP(A164,'entry data'!B:F,5,0)) -> 15000 | G164: =IF(A164="","",IF(ISERROR(VLOOKUP(A164,'entry data'!B:G,6,0)),"",VLOOKUP(A164,'entry data'!B:G,6,0))) -> 0 | H164: =IF(A164="","",VLOOKUP(A164,'entry data'!B:L,9,0)) -> 0.126 | I164: =IF(A164="","",VLOOKUP(A164,'entry data'!B:K,10,0)) -> advance | J164: =IF(A164="","",IF(B164=1,VLOOKUP(A164,'entry data'!B:D,3,0),K163)) -> 2011-10-12 | K164: 2011-10-19 | L164: 2011-10 | M164: 14572.41894 | N164: 33.13308917 | O164: =IF(A164="","",-IPMT(H164*VLOOKUP(E164,index!A:C,3,0),calculations!B164,calculations!C164,calculations!F164,-calculations!G164,VLOOKUP(I164,index!G:H,2,0))) -> 35.21335207 | P164: =IF(A164="","",VLOOKUP(A164,'entry data'!B:L,11,0)+IF(B164=C164,G164,0)) -> 68.34644124 | Q164: 14539.28585 | R164: 0
A165: =IF(A164="","",IF(B164<C164,A164,IF(A164=MAX('entry data'!$B$8:$B$17),"",A164+1))) -> 3 | B165: 14 | C165: =IF(A165="","",VLOOKUP(A165,'entry data'!B:H,7,0)) -> 312 | D165: =IF(A165="","",VLOOKUP(A165,'entry data'!B:C,2,0)) -> Inventory Loan | E165: =IF(A165="","",VLOOKUP(A165,'entry data'!B:E,4,0)) -> weekly | F165: =IF(A165="","",VLOOKUP(A165,'entry data'!B:F,5,0)) -> 15000 | G165: =IF(A165="","",IF(ISERROR(VLOOKUP(A165,'entry data'!B:G,6,0)),"",VLOOKUP(A165,'entry data'!B:G,6,0))) -> 0 | H165: =IF(A165="","",VLOOKUP(A165,'entry data'!B:L,9,0)) -> 0.126 | I165: =IF(A165="","",VLOOKUP(A165,'entry data'!B:K,10,0)) -> advance | J165: =IF(A165="","",IF(B165=1,VLOOKUP(A165,'entry data'!B:D,3,0),K164)) -> 2011-10-19 | K165: 2011-10-26 | L165: 2011-10 | M165: 14539.28585 | N165: 33.21315324 | O165: =IF(A165="","",-IPMT(H165*VLOOKUP(E165,index!A:C,3,0),calculations!B165,calculations!C165,calculations!F165,-calculations!G165,VLOOKUP(I165,index!G:H,2,0))) -> 35.133288 | P165: =IF(A165="","",VLOOKUP(A165,'entry data'!B:L,11,0)+IF(B165=C165,G165,0)) -> 68.34644124 | Q165: 14506.0727 | R165: 14506.0727
A166: =IF(A165="","",IF(B165<C165,A165,IF(A165=MAX('entry data'!$B$8:$B$17),"",A165+1))) -> 3 | B166: 15 | C166: =IF(A166="","",VLOOKUP(A166,'entry data'!B:H,7,0)) -> 312 | D166: =IF(A166="","",VLOOKUP(A166,'entry data'!B:C,2,0)) -> Inventory Loan | E166: =IF(A166="","",VLOOKUP(A166,'entry data'!B:E,4,0)) -> weekly | F166: =IF(A166="","",VLOOKUP(A166,'entry data'!B:F,5,0)) -> 15000 | G166: =IF(A166="","",IF(ISERROR(VLOOKUP(A166,'entry data'!B:G,6,0)),"",VLOOKUP(A166,'entry data'!B:G,6,0))) -> 0 | H166: =IF(A166="","",VLOOKUP(A166,'entry data'!B:L,9,0)) -> 0.126 | I166: =IF(A166="","",VLOOKUP(A166,'entry data'!B:K,10,0)) -> advance | J166: =IF(A166="","",IF(B166=1,VLOOKUP(A166,'entry data'!B:D,3,0),K165)) -> 2011-10-26 | K166: 2011-11-02 | L166: 2011-11 | M166: 14506.0727 | N166: 33.29341078 | O166: =IF(A166="","",-IPMT(H166*VLOOKUP(E166,index!A:C,3,0),calculations!B166,calculations!C166,calculations!F166,-calculations!G166,VLOOKUP(I166,index!G:H,2,0))) -> 35.05303046 | P166: =IF(A166="","",VLOOKUP(A166,'entry data'!B:L,11,0)+IF(B166=C166,G166,0)) -> 68.34644124 | Q166: 14472.77929 | R166: 0
A167: =IF(A166="","",IF(B166<C166,A166,IF(A166=MAX('entry data'!$B$8:$B$17),"",A166+1))) -> 3 | B167: 16 | C167: =IF(A167="","",VLOOKUP(A167,'entry data'!B:H,7,0)) -> 312 | D167: =IF(A167="","",VLOOKUP(A167,'entry data'!B:C,2,0)) -> Inventory Loan | E167: =IF(A167="","",VLOOKUP(A167,'entry data'!B:E,4,0)) -> weekly | F167: =IF(A167="","",VLOOKUP(A167,'entry data'!B:F,5,0)) -> 15000 | G167: =IF(A167="","",IF(ISERROR(VLOOKUP(A167,'entry data'!B:G,6,0)),"",VLOOKUP(A167,'entry data'!B:G,6,0))) -> 0 | H167: =IF(A167="","",VLOOKUP(A167,'entry data'!B:L,9,0)) -> 0.126 | I167: =IF(A167="","",VLOOKUP(A167,'entry data'!B:K,10,0)) -> advance | J167: =IF(A167="","",IF(B167=1,VLOOKUP(A167,'entry data'!B:D,3,0),K166)) -> 2011-11-02 | K167: 2011-11-09 | L167: 2011-11 | M167: 14472.77929 | N167: 33.37386225 | O167: =IF(A167="","",-IPMT(H167*VLOOKUP(E167,index!A:C,3,0),calculations!B167,calculations!C167,calculations!F167,-calculations!G167,VLOOKUP(I167,index!G:H,2,0))) -> 34.97257899 | P167: =IF(A167="","",VLOOKUP(A167,'entry data'!B:L,11,0)+IF(B167=C167,G167,0)) -> 68.34644124 | Q167: 14439.40542 | R167: 0
A168: =IF(A167="","",IF(B167<C167,A167,IF(A167=MAX('entry data'!$B$8:$B$17),"",A167+1))) -> 3 | B168: 17 | C168: =IF(A168="","",VLOOKUP(A168,'entry data'!B:H,7,0)) -> 312 | D168: =IF(A168="","",VLOOKUP(A168,'entry data'!B:C,2,0)) -> Inventory Loan | E168: =IF(A168="","",VLOOKUP(A168,'entry data'!B:E,4,0)) -> weekly | F168: =IF(A168="","",VLOOKUP(A168,'entry data'!B:F,5,0)) -> 15000 | G168: =IF(A168="","",IF(ISERROR(VLOOKUP(A168,'entry data'!B:G,6,0)),"",VLOOKUP(A168,'entry data'!B:G,6,0))) -> 0 | H168: =IF(A168="","",VLOOKUP(A168,'entry data'!B:L,9,0)) -> 0.126 | I168: =IF(A168="","",VLOOKUP(A168,'entry data'!B:K,10,0)) -> advance | J168: =IF(A168="","",IF(B168=1,VLOOKUP(A168,'entry data'!B:D,3,0),K167)) -> 2011-11-09 | K168: 2011-11-16 | L168: 2011-11 | M168: 14439.40542 | N168: 33.45450813 | O168: =IF(A168="","",-IPMT(H168*VLOOKUP(E168,index!A:C,3,0),calculations!B168,calculations!C168,calculations!F168,-calculations!G168,VLOOKUP(I168,index!G:H,2,0))) -> 34.8919331 | P168: =IF(A168="","",VLOOKUP(A168,'entry data'!B:L,11,0)+IF(B168=C168,G168,0)) -> 68.34644124 | Q168: 14405.95091 | R168: 0
A169: =IF(A168="","",IF(B168<C168,A168,IF(A168=MAX('entry data'!$B$8:$B$17),"",A168+1))) -> 3 | B169: 18 | C169: =IF(A169="","",VLOOKUP(A169,'entry data'!B:H,7,0)) -> 312 | D169: =IF(A169="","",VLOOKUP(A169,'entry data'!B:C,2,0)) -> Inventory Loan | E169: =IF(A169="","",VLOOKUP(A169,'entry data'!B:E,4,0)) -> weekly | F169: =IF(A169="","",VLOOKUP(A169,'entry data'!B:F,5,0)) -> 15000 | G169: =IF(A169="","",IF(ISERROR(VLOOKUP(A169,'entry data'!B:G,6,0)),"",VLOOKUP(A169,'entry data'!B:G,6,0))) -> 0 | H169: =IF(A169="","",VLOOKUP(A169,'entry data'!B:L,9,0)) -> 0.126 | I169: =IF(A169="","",VLOOKUP(A169,'entry data'!B:K,10,0)) -> advance | J169: =IF(A169="","",IF(B169=1,VLOOKUP(A169,'entry data'!B:D,3,0),K168)) -> 2011-11-16 | K169: 2011-11-23 | L169: 2011-11 | M169: 14405.95091 | N169: 33.53534889 | O169: =IF(A169="","",-IPMT(H169*VLOOKUP(E169,index!A:C,3,0),calculations!B169,calculations!C169,calculations!F169,-calculations!G169,VLOOKUP(I169,index!G:H,2,0))) -> 34.81109235 | P169: =IF(A169="","",VLOOKUP(A169,'entry data'!B:L,11,0)+IF(B169=C169,G169,0)) -> 68.34644124 | Q169: 14372.41557 | R169: 0
A170: =IF(A169="","",IF(B169<C169,A169,IF(A169=MAX('entry data'!$B$8:$B$17),"",A169+1))) -> 3 | B170: 19 | C170: =IF(A170="","",VLOOKUP(A170,'entry data'!B:H,7,0)) -> 312 | D170: =IF(A170="","",VLOOKUP(A170,'entry data'!B:C,2,0)) -> Inventory Loan | E170: =IF(A170="","",VLOOKUP(A170,'entry data'!B:E,4,0)) -> weekly | F170: =IF(A170="","",VLOOKUP(A170,'entry data'!B:F,5,0)) -> 15000 | G170: =IF(A170="","",IF(ISERROR(VLOOKUP(A170,'entry data'!B:G,6,0)),"",VLOOKUP(A170,'entry data'!B:G,6,0))) -> 0 | H170: =IF(A170="","",VLOOKUP(A170,'entry data'!B:L,9,0)) -> 0.126 | I170: =IF(A170="","",VLOOKUP(A170,'entry data'!B:K,10,0)) -> advance | J170: =IF(A170="","",IF(B170=1,VLOOKUP(A170,'entry data'!B:D,3,0),K169)) -> 2011-11-23 | K170: 2011-11-30 | L170: 2011-11 | M170: 14372.41557 | N170: 33.61638499 | O170: =IF(A170="","",-IPMT(H170*VLOOKUP(E170,index!A:C,3,0),calculations!B170,calculations!C170,calculations!F170,-calculations!G170,VLOOKUP(I170,index!G:H,2,0))) -> 34.73005624 | P170: =IF(A170="","",VLOOKUP(A170,'entry data'!B:L,11,0)+IF(B170=C170,G170,0)) -> 68.34644124 | Q170: 14338.79918 | R170: 14338.79918
A171: =IF(A170="","",IF(B170<C170,A170,IF(A170=MAX('entry data'!$B$8:$B$17),"",A170+1))) -> 3 | B171: 20 | C171: =IF(A171="","",VLOOKUP(A171,'entry data'!B:H,7,0)) -> 312 | D171: =IF(A171="","",VLOOKUP(A171,'entry data'!B:C,2,0)) -> Inventory Loan | E171: =IF(A171="","",VLOOKUP(A171,'entry data'!B:E,4,0)) -> weekly | F171: =IF(A171="","",VLOOKUP(A171,'entry data'!B:F,5,0)) -> 15000 | G171: =IF(A171="","",IF(ISERROR(VLOOKUP(A171,'entry data'!B:G,6,0)),"",VLOOKUP(A171,'entry data'!B:G,6,0))) -> 0 | H171: =IF(A171="","",VLOOKUP(A171,'entry data'!B:L,9,0)) -> 0.126 | I171: =IF(A171="","",VLOOKUP(A171,'entry data'!B:K,10,0)) -> advance | J171: =IF(A171="","",IF(B171=1,VLOOKUP(A171,'entry data'!B:D,3,0),K170)) -> 2011-11-30 | K171: 2011-12-07 | L171: 2011-12 | M171: 14338.79918 | N171: 33.69761691 | O171: =IF(A171="","",-IPMT(H171*VLOOKUP(E171,index!A:C,3,0),calculations!B171,calculations!C171,calculations!F171,-calculations!G171,VLOOKUP(I171,index!G:H,2,0))) -> 34.64882432 | P171: =IF(A171="","",VLOOKUP(A171,'entry data'!B:L,11,0)+IF(B171=C171,G171,0)) -> 68.34644124 | Q171: 14305.10156 | R171: 0
A172: =IF(A171="","",IF(B171<C171,A171,IF(A171=MAX('entry data'!$B$8:$B$17),"",A171+1))) -> 3 | B172: 21 | C172: =IF(A172="","",VLOOKUP(A172,'entry data'!B:H,7,0)) -> 312 | D172: =IF(A172="","",VLOOKUP(A172,'entry data'!B:C,2,0)) -> Inventory Loan | E172: =IF(A172="","",VLOOKUP(A172,'entry data'!B:E,4,0)) -> weekly | F172: =IF(A172="","",VLOOKUP(A172,'entry data'!B:F,5,0)) -> 15000 | G172: =IF(A172="","",IF(ISERROR(VLOOKUP(A172,'entry data'!B:G,6,0)),"",VLOOKUP(A172,'entry data'!B:G,6,0))) -> 0 | H172: =IF(A172="","",VLOOKUP(A172,'entry data'!B:L,9,0)) -> 0.126 | I172: =IF(A172="","",VLOOKUP(A172,'entry data'!B:K,10,0)) -> advance | J172: =IF(A172="","",IF(B172=1,VLOOKUP(A172,'entry data'!B:D,3,0),K171)) -> 2011-12-07 | K172: 2011-12-14 | L172: 2011-12 | M172: 14305.10156 | N172: 33.77904513 | O172: =IF(A172="","",-IPMT(H172*VLOOKUP(E172,index!A:C,3,0),calculations!B172,calculations!C172,calculations!F172,-calculations!G172,VLOOKUP(I172,index!G:H,2,0))) -> 34.56739611 | P172: =IF(A172="","",VLOOKUP(A172,'entry data'!B:L,11,0)+IF(B172=C172,G172,0)) -> 68.34644124 | Q172: 14271.32252 | R172: 0
A173: =IF(A172="","",IF(B172<C172,A172,IF(A172=MAX('entry data'!$B$8:$B$17),"",A172+1))) -> 3 | B173: 22 | C173: =IF(A173="","",VLOOKUP(A173,'entry data'!B:H,7,0)) -> 312 | D173: =IF(A173="","",VLOOKUP(A173,'entry data'!B:C,2,0)) -> Inventory Loan | E173: =IF(A173="","",VLOOKUP(A173,'entry data'!B:E,4,0)) -> weekly | F173: =IF(A173="","",VLOOKUP(A173,'entry data'!B:F,5,0)) -> 15000 | G173: =IF(A173="","",IF(ISERROR(VLOOKUP(A173,'entry data'!B:G,6,0)),"",VLOOKUP(A173,'entry data'!B:G,6,0))) -> 0 | H173: =IF(A173="","",VLOOKUP(A173,'entry data'!B:L,9,0)) -> 0.126 | I173: =IF(A173="","",VLOOKUP(A173,'entry data'!B:K,10,0)) -> advance | J173: =IF(A173="","",IF(B173=1,VLOOKUP(A173,'entry data'!B:D,3,0),K172)) -> 2011-12-14 | K173: 2011-12-21 | L173: 2011-12 | M173: 14271.32252 | N173: 33.86067011 | O173: =IF(A173="","",-IPMT(H173*VLOOKUP(E173,index!A:C,3,0),calculations!B173,calculations!C173,calculations!F173,-calculations!G173,VLOOKUP(I173,index!G:H,2,0))) -> 34.48577113 | P173: =IF(A173="","",VLOOKUP(A173,'entry data'!B:L,11,0)+IF(B173=C173,G173,0)) -> 68.34644124 | Q173: 14237.46185 | R173: 0
A174: =IF(A173="","",IF(B173<C173,A173,IF(A173=MAX('entry data'!$B$8:$B$17),"",A173+1))) -> 3 | B174: 23 | C174: =IF(A174="","",VLOOKUP(A174,'entry data'!B:H,7,0)) -> 312 | D174: =IF(A174="","",VLOOKUP(A174,'entry data'!B:C,2,0)) -> Inventory Loan | E174: =IF(A174="","",VLOOKUP(A174,'entry data'!B:E,4,0)) -> weekly | F174: =IF(A174="","",VLOOKUP(A174,'entry data'!B:F,5,0)) -> 15000 | G174: =IF(A174="","",IF(ISERROR(VLOOKUP(A174,'entry data'!B:G,6,0)),"",VLOOKUP(A174,'entry data'!B:G,6,0))) -> 0 | H174: =IF(A174="","",VLOOKUP(A174,'entry data'!B:L,9,0)) -> 0.126 | I174: =IF(A174="","",VLOOKUP(A174,'entry data'!B:K,10,0)) -> advance | J174: =IF(A174="","",IF(B174=1,VLOOKUP(A174,'entry data'!B:D,3,0),K173)) -> 2011-12-21 | K174: 2011-12-28 | L174: 2011-12 | M174: 14237.46185 | N174: 33.94249233 | O174: =IF(A174="","",-IPMT(H174*VLOOKUP(E174,index!A:C,3,0),calculations!B174,calculations!C174,calculations!F174,-calculations!G174,VLOOKUP(I174,index!G:H,2,0))) -> 34.40394891 | P174: =IF(A174="","",VLOOKUP(A174,'entry data'!B:L,11,0)+IF(B174=C174,G174,0)) -> 68.34644124 | Q174: 14203.51936 | R174: 14203.51936
A175: =IF(A174="","",IF(B174<C174,A174,IF(A174=MAX('entry data'!$B$8:$B$17),"",A174+1))) -> 3 | B175: 24 | C175: =IF(A175="","",VLOOKUP(A175,'entry data'!B:H,7,0)) -> 312 | D175: =IF(A175="","",VLOOKUP(A175,'entry data'!B:C,2,0)) -> Inventory Loan | E175: =IF(A175="","",VLOOKUP(A175,'entry data'!B:E,4,0)) -> weekly | F175: =IF(A175="","",VLOOKUP(A175,'entry data'!B:F,5,0)) -> 15000 | G175: =IF(A175="","",IF(ISERROR(VLOOKUP(A175,'entry data'!B:G,6,0)),"",VLOOKUP(A175,'entry data'!B:G,6,0))) -> 0 | H175: =IF(A175="","",VLOOKUP(A175,'entry data'!B:L,9,0)) -> 0.126 | I175: =IF(A175="","",VLOOKUP(A175,'entry data'!B:K,10,0)) -> advance | J175: =IF(A175="","",IF(B175=1,VLOOKUP(A175,'entry data'!B:D,3,0),K174)) -> 2011-12-28 | K175: 2012-01-04 | L175: 2012-01 | M175: 14203.51936 | N175: 34.02451227 | O175: =IF(A175="","",-IPMT(H175*VLOOKUP(E175,index!A:C,3,0),calculations!B175,calculations!C175,calculations!F175,-calculations!G175,VLOOKUP(I175,index!G:H,2,0))) -> 34.32192897 | P175: =IF(A175="","",VLOOKUP(A175,'entry data'!B:L,11,0)+IF(B175=C175,G175,0)) -> 68.34644124 | Q175: 14169.49484 | R175: 0
A176: =IF(A175="","",IF(B175<C175,A175,IF(A175=MAX('entry data'!$B$8:$B$17),"",A175+1))) -> 3 | B176: 25 | C176: =IF(A176="","",VLOOKUP(A176,'entry data'!B:H,7,0)) -> 312 | D176: =IF(A176="","",VLOOKUP(A176,'entry data'!B:C,2,0)) -> Inventory Loan | E176: =IF(A176="","",VLOOKUP(A176,'entry data'!B:E,4,0)) -> weekly | F176: =IF(A176="","",VLOOKUP(A176,'entry data'!B:F,5,0)) -> 15000 | G176: =IF(A176="","",IF(ISERROR(VLOOKUP(A176,'entry data'!B:G,6,0)),"",VLOOKUP(A176,'entry data'!B:G,6,0))) -> 0 | H176: =IF(A176="","",VLOOKUP(A176,'entry data'!B:L,9,0)) -> 0.126 | I176: =IF(A176="","",VLOOKUP(A176,'entry data'!B:K,10,0)) -> advance | J176: =IF(A176="","",IF(B176=1,VLOOKUP(A176,'entry data'!B:D,3,0),K175)) -> 2012-01-04 | K176: 2012-01-11 | L176: 2012-01 | M176: 14169.49484 | N176: 34.10673041 | O176: =IF(A176="","",-IPMT(H176*VLOOKUP(E176,index!A:C,3,0),calculations!B176,calculations!C176,calculations!F176,-calculations!G176,VLOOKUP(I176,index!G:H,2,0))) -> 34.23971083 | P176: =IF(A176="","",VLOOKUP(A176,'entry data'!B:L,11,0)+IF(B176=C176,G176,0)) -> 68.34644124 | Q176: 14135.38811 | R176: 0
A177: =IF(A176="","",IF(B176<C176,A176,IF(A176=MAX('entry data'!$B$8:$B$17),"",A176+1))) -> 3 | B177: 26 | C177: =IF(A177="","",VLOOKUP(A177,'entry data'!B:H,7,0)) -> 312 | D177: =IF(A177="","",VLOOKUP(A177,'entry data'!B:C,2,0)) -> Inventory Loan | E177: =IF(A177="","",VLOOKUP(A177,'entry data'!B:E,4,0)) -> weekly | F177: =IF(A177="","",VLOOKUP(A177,'entry data'!B:F,5,0)) -> 15000 | G177: =IF(A177="","",IF(ISERROR(VLOOKUP(A177,'entry data'!B:G,6,0)),"",VLOOKUP(A177,'entry data'!B:G,6,0))) -> 0 | H177: =IF(A177="","",VLOOKUP(A177,'entry data'!B:L,9,0)) -> 0.126 | I177: =IF(A177="","",VLOOKUP(A177,'entry data'!B:K,10,0)) -> advance | J177: =IF(A177="","",IF(B177=1,VLOOKUP(A177,'entry data'!B:D,3,0),K176)) -> 2012-01-11 | K177: 2012-01-18 | L177: 2012-01 | M177: 14135.38811 | N177: 34.18914722 | O177: =IF(A177="","",-IPMT(H177*VLOOKUP(E177,index!A:C,3,0),calculations!B177,calculations!C177,calculations!F177,-calculations!G177,VLOOKUP(I177,index!G:H,2,0))) -> 34.15729402 | P177: =IF(A177="","",VLOOKUP(A177,'entry data'!B:L,11,0)+IF(B177=C177,G177,0)) -> 68.34644124 | Q177: 14101.19897 | R177: 0
A178: =IF(A177="","",IF(B177<C177,A177,IF(A177=MAX('entry data'!$B$8:$B$17),"",A177+1))) -> 3 | B178: 27 | C178: =IF(A178="","",VLOOKUP(A178,'entry data'!B:H,7,0)) -> 312 | D178: =IF(A178="","",VLOOKUP(A178,'entry data'!B:C,2,0)) -> Inventory Loan | E178: =IF(A178="","",VLOOKUP(A178,'entry data'!B:E,4,0)) -> weekly | F178: =IF(A178="","",VLOOKUP(A178,'entry data'!B:F,5,0)) -> 15000 | G178: =IF(A178="","",IF(ISERROR(VLOOKUP(A178,'entry data'!B:G,6,0)),"",VLOOKUP(A178,'entry data'!B:G,6,0))) -> 0 | H178: =IF(A178="","",VLOOKUP(A178,'entry data'!B:L,9,0)) -> 0.126 | I178: =IF(A178="","",VLOOKUP(A178,'entry data'!B:K,10,0)) -> advance | J178: =IF(A178="","",IF(B178=1,VLOOKUP(A178,'entry data'!B:D,3,0),K177)) -> 2012-01-18 | K178: 2012-01-25 | L178: 2012-01 | M178: 14101.19897 | N178: 34.27176319 | O178: =IF(A178="","",-IPMT(H178*VLOOKUP(E178,index!A:C,3,0),calculations!B178,calculations!C178,calculations!F178,-calculations!G178,VLOOKUP(I178,index!G:H,2,0))) -> 34.07467805 | P178: =IF(A178="","",VLOOKUP(A178,'entry data'!B:L,11,0)+IF(B178=C178,G178,0)) -> 68.34644124 | Q178: 14066.9272 | R178: 14066.9272
A179: =IF(A178="","",IF(B178<C178,A178,IF(A178=MAX('entry data'!$B$8:$B$17),"",A178+1))) -> 3 | B179: 28 | C179: =IF(A179="","",VLOOKUP(A179,'entry data'!B:H,7,0)) -> 312 | D179: =IF(A179="","",VLOOKUP(A179,'entry data'!B:C,2,0)) -> Inventory Loan | E179: =IF(A179="","",VLOOKUP(A179,'entry data'!B:E,4,0)) -> weekly | F179: =IF(A179="","",VLOOKUP(A179,'entry data'!B:F,5,0)) -> 15000 | G179: =IF(A179="","",IF(ISERROR(VLOOKUP(A179,'entry data'!B:G,6,0)),"",VLOOKUP(A179,'entry data'!B:G,6,0))) -> 0 | H179: =IF(A179="","",VLOOKUP(A179,'entry data'!B:L,9,0)) -> 0.126 | I179: =IF(A179="","",VLOOKUP(A179,'entry data'!B:K,10,0)) -> advance | J179: =IF(A179="","",IF(B179=1,VLOOKUP(A179,'entry data'!B:D,3,0),K178)) -> 2012-01-25 | K179: 2012-02-01 | L179: 2012-02 | M179: 14066.9272 | N179: 34.35457879 | O179: =IF(A179="","",-IPMT(H179*VLOOKUP(E179,index!A:C,3,0),calculations!B179,calculations!C179,calculations!F179,-calculations!G179,VLOOKUP(I179,index!G:H,2,0))) -> 33.99186245 | P179: =IF(A179="","",VLOOKUP(A179,'entry data'!B:L,11,0)+IF(B179=C179,G179,0)) -> 68.34644124 | Q179: 14032.57262 | R179: 0
A180: =IF(A179="","",IF(B179<C179,A179,IF(A179=MAX('entry data'!$B$8:$B$17),"",A179+1))) -> 3 | B180: 29 | C180: =IF(A180="","",VLOOKUP(A180,'entry data'!B:H,7,0)) -> 312 | D180: =IF(A180="","",VLOOKUP(A180,'entry data'!B:C,2,0)) -> Inventory Loan | E180: =IF(A180="","",VLOOKUP(A180,'entry data'!B:E,4,0)) -> weekly | F180: =IF(A180="","",VLOOKUP(A180,'entry data'!B:F,5,0)) -> 15000 | G180: =IF(A180="","",IF(ISERROR(VLOOKUP(A180,'entry data'!B:G,6,0)),"",VLOOKUP(A180,'entry data'!B:G,6,0))) -> 0 | H180: =IF(A180="","",VLOOKUP(A180,'entry data'!B:L,9,0)) -> 0.126 | I180: =IF(A180="","",VLOOKUP(A180,'entry data'!B:K,10,0)) -> advance | J180: =IF(A180="","",IF(B180=1,VLOOKUP(A180,'entry data'!B:D,3,0),K179)) -> 2012-02-01 | K180: 2012-02-08 | L180: 2012-02 | M180: 14032.57262 | N180: 34.43759451 | O180: =IF(A180="","",-IPMT(H180*VLOOKUP(E180,index!A:C,3,0),calculations!B180,calculations!C180,calculations!F180,-calculations!G180,VLOOKUP(I180,index!G:H,2,0))) -> 33.90884673 | P180: =IF(A180="","",VLOOKUP(A180,'entry data'!B:L,11,0)+IF(B180=C180,G180,0)) -> 68.34644124 | Q180: 13998.13503 | R180: 0
A181: =IF(A180="","",IF(B180<C180,A180,IF(A180=MAX('entry data'!$B$8:$B$17),"",A180+1))) -> 3 | B181: 30 | C181: =IF(A181="","",VLOOKUP(A181,'entry data'!B:H,7,0)) -> 312 | D181: =IF(A181="","",VLOOKUP(A181,'entry data'!B:C,2,0)) -> Inventory Loan | E181: =IF(A181="","",VLOOKUP(A181,'entry data'!B:E,4,0)) -> weekly | F181: =IF(A181="","",VLOOKUP(A181,'entry data'!B:F,5,0)) -> 15000 | G181: =IF(A181="","",IF(ISERROR(VLOOKUP(A181,'entry data'!B:G,6,0)),"",VLOOKUP(A181,'entry data'!B:G,6,0))) -> 0 | H181: =IF(A181="","",VLOOKUP(A181,'entry data'!B:L,9,0)) -> 0.126 | I181: =IF(A181="","",VLOOKUP(A181,'entry data'!B:K,10,0)) -> advance | J181: =IF(A181="","",IF(B181=1,VLOOKUP(A181,'entry data'!B:D,3,0),K180)) -> 2012-02-08 | K181: 2012-02-15 | L181: 2012-02 | M181: 13998.13503 | N181: 34.52081084 | O181: =IF(A181="","",-IPMT(H181*VLOOKUP(E181,index!A:C,3,0),calculations!B181,calculations!C181,calculations!F181,-calculations!G181,VLOOKUP(I181,index!G:H,2,0))) -> 33.8256304 | P181: =IF(A181="","",VLOOKUP(A181,'entry data'!B:L,11,0)+IF(B181=C181,G181,0)) -> 68.34644124 | Q181: 13963.61422 | R181: 0
A182: =IF(A181="","",IF(B181<C181,A181,IF(A181=MAX('entry data'!$B$8:$B$17),"",A181+1))) -> 3 | B182: 31 | C182: =IF(A182="","",VLOOKUP(A182,'entry data'!B:H,7,0)) -> 312 | D182: =IF(A182="","",VLOOKUP(A182,'entry data'!B:C,2,0)) -> Inventory Loan | E182: =IF(A182="","",VLOOKUP(A182,'entry data'!B:E,4,0)) -> weekly | F182: =IF(A182="","",VLOOKUP(A182,'entry data'!B:F,5,0)) -> 15000 | G182: =IF(A182="","",IF(ISERROR(VLOOKUP(A182,'entry data'!B:G,6,0)),"",VLOOKUP(A182,'entry data'!B:G,6,0))) -> 0 | H182: =IF(A182="","",VLOOKUP(A182,'entry data'!B:L,9,0)) -> 0.126 | I182: =IF(A182="","",VLOOKUP(A182,'entry data'!B:K,10,0)) -> advance | J182: =IF(A182="","",IF(B182=1,VLOOKUP(A182,'entry data'!B:D,3,0),K181)) -> 2012-02-15 | K182: 2012-02-22 | L182: 2012-02 | M182: 13963.61422 | N182: 34.60422825 | O182: =IF(A182="","",-IPMT(H182*VLOOKUP(E182,index!A:C,3,0),calculations!B182,calculations!C182,calculations!F182,-calculations!G182,VLOOKUP(I182,index!G:H,2,0))) -> 33.74221299 | P182: =IF(A182="","",VLOOKUP(A182,'entry data'!B:L,11,0)+IF(B182=C182,G182,0)) -> 68.34644124 | Q182: 13929.00999 | R182: 0
A183: =IF(A182="","",IF(B182<C182,A182,IF(A182=MAX('entry data'!$B$8:$B$17),"",A182+1))) -> 3 | B183: 32 | C183: =IF(A183="","",VLOOKUP(A183,'entry data'!B:H,7,0)) -> 312 | D183: =IF(A183="","",VLOOKUP(A183,'entry data'!B:C,2,0)) -> Inventory Loan | E183: =IF(A183="","",VLOOKUP(A183,'entry data'!B:E,4,0)) -> weekly | F183: =IF(A183="","",VLOOKUP(A183,'entry data'!B:F,5,0)) -> 15000 | G183: =IF(A183="","",IF(ISERROR(VLOOKUP(A183,'entry data'!B:G,6,0)),"",VLOOKUP(A183,'entry data'!B:G,6,0))) -> 0 | H183: =IF(A183="","",VLOOKUP(A183,'entry data'!B:L,9,0)) -> 0.126 | I183: =IF(A183="","",VLOOKUP(A183,'entry data'!B:K,10,0)) -> advance | J183: =IF(A183="","",IF(B183=1,VLOOKUP(A183,'entry data'!B:D,3,0),K182)) -> 2012-02-22 | K183: 2012-02-29 | L183: 2012-02 | M183: 13929.00999 | N183: 34.68784723 | O183: =IF(A183="","",-IPMT(H183*VLOOKUP(E183,index!A:C,3,0),calculations!B183,calculations!C183,calculations!F183,-calculations!G183,VLOOKUP(I183,index!G:H,2,0))) -> 33.65859401 | P183: =IF(A183="","",VLOOKUP(A183,'entry data'!B:L,11,0)+IF(B183=C183,G183,0)) -> 68.34644124 | Q183: 13894.32214 | R183: 13894.32214
A184: =IF(A183="","",IF(B183<C183,A183,IF(A183=MAX('entry data'!$B$8:$B$17),"",A183+1))) -> 3 | B184: 33 | C184: =IF(A184="","",VLOOKUP(A184,'entry data'!B:H,7,0)) -> 312 | D184: =IF(A184="","",VLOOKUP(A184,'entry data'!B:C,2,0)) -> Inventory Loan | E184: =IF(A184="","",VLOOKUP(A184,'entry data'!B:E,4,0)) -> weekly | F184: =IF(A184="","",VLOOKUP(A184,'entry data'!B:F,5,0)) -> 15000 | G184: =IF(A184="","",IF(ISERROR(VLOOKUP(A184,'entry data'!B:G,6,0)),"",VLOOKUP(A184,'entry data'!B:G,6,0))) -> 0 | H184: =IF(A184="","",VLOOKUP(A184,'entry data'!B:L,9,0)) -> 0.126 | I184: =IF(A184="","",VLOOKUP(A184,'entry data'!B:K,10,0)) -> advance | J184: =IF(A184="","",IF(B184=1,VLOOKUP(A184,'entry data'!B:D,3,0),K183)) -> 2012-02-29 | K184: 2012-03-07 | L184: 2012-03 | M184: 13894.32214 | N184: 34.77166828 | O184: =IF(A184="","",-IPMT(H184*VLOOKUP(E184,index!A:C,3,0),calculations!B184,calculations!C184,calculations!F184,-calculations!G184,VLOOKUP(I184,index!G:H,2,0))) -> 33.57477296 | P184: =IF(A184="","",VLOOKUP(A184,'entry data'!B:L,11,0)+IF(B184=C184,G184,0)) -> 68.34644124 | Q184: 13859.55048 | R184: 0
A185: =IF(A184="","",IF(B184<C184,A184,IF(A184=MAX('entry data'!$B$8:$B$17),"",A184+1))) -> 3 | B185: 34 | C185: =IF(A185="","",VLOOKUP(A185,'entry data'!B:H,7,0)) -> 312 | D185: =IF(A185="","",VLOOKUP(A185,'entry data'!B:C,2,0)) -> Inventory Loan | E185: =IF(A185="","",VLOOKUP(A185,'entry data'!B:E,4,0)) -> weekly | F185: =IF(A185="","",VLOOKUP(A185,'entry data'!B:F,5,0)) -> 15000 | G185: =IF(A185="","",IF(ISERROR(VLOOKUP(A185,'entry data'!B:G,6,0)),"",VLOOKUP(A185,'entry data'!B:G,6,0))) -> 0 | H185: =IF(A185="","",VLOOKUP(A185,'entry data'!B:L,9,0)) -> 0.126 | I185: =IF(A185="","",VLOOKUP(A185,'entry data'!B:K,10,0)) -> advance | J185: =IF(A185="","",IF(B185=1,VLOOKUP(A185,'entry data'!B:D,3,0),K184)) -> 2012-03-07 | K185: 2012-03-14 | L185: 2012-03 | M185: 13859.55048 | N185: 34.85569187 | O185: =IF(A185="","",-IPMT(H185*VLOOKUP(E185,index!A:C,3,0),calculations!B185,calculations!C185,calculations!F185,-calculations!G185,VLOOKUP(I185,index!G:H,2,0))) -> 33.49074937 | P185: =IF(A185="","",VLOOKUP(A185,'entry data'!B:L,11,0)+IF(B185=C185,G185,0)) -> 68.34644124 | Q185: 13824.69478 | R185: 0
A186: =IF(A185="","",IF(B185<C185,A185,IF(A185=MAX('entry data'!$B$8:$B$17),"",A185+1))) -> 3 | B186: 35 | C186: =IF(A186="","",VLOOKUP(A186,'entry data'!B:H,7,0)) -> 312 | D186: =IF(A186="","",VLOOKUP(A186,'entry data'!B:C,2,0)) -> Inventory Loan | E186: =IF(A186="","",VLOOKUP(A186,'entry data'!B:E,4,0)) -> weekly | F186: =IF(A186="","",VLOOKUP(A186,'entry data'!B:F,5,0)) -> 15000 | G186: =IF(A186="","",IF(ISERROR(VLOOKUP(A186,'entry data'!B:G,6,0)),"",VLOOKUP(A186,'entry data'!B:G,6,0))) -> 0 | H186: =IF(A186="","",VLOOKUP(A186,'entry data'!B:L,9,0)) -> 0.126 | I186: =IF(A186="","",VLOOKUP(A186,'entry data'!B:K,10,0)) -> advance | J186: =IF(A186="","",IF(B186=1,VLOOKUP(A186,'entry data'!B:D,3,0),K185)) -> 2012-03-14 | K186: 2012-03-21 | L186: 2012-03 | M186: 13824.69478 | N186: 34.9399185 | O186: =IF(A186="","",-IPMT(H186*VLOOKUP(E186,index!A:C,3,0),calculations!B186,calculations!C186,calculations!F186,-calculations!G186,VLOOKUP(I186,index!G:H,2,0))) -> 33.40652274 | P186: =IF(A186="","",VLOOKUP(A186,'entry data'!B:L,11,0)+IF(B186=C186,G186,0)) -> 68.34644124 | Q186: 13789.75487 | R186: 0
A187: =IF(A186="","",IF(B186<C186,A186,IF(A186=MAX('entry data'!$B$8:$B$17),"",A186+1))) -> 3 | B187: 36 | C187: =IF(A187="","",VLOOKUP(A187,'entry data'!B:H,7,0)) -> 312 | D187: =IF(A187="","",VLOOKUP(A187,'entry data'!B:C,2,0)) -> Inventory Loan | E187: =IF(A187="","",VLOOKUP(A187,'entry data'!B:E,4,0)) -> weekly | F187: =IF(A187="","",VLOOKUP(A187,'entry data'!B:F,5,0)) -> 15000 | G187: =IF(A187="","",IF(ISERROR(VLOOKUP(A187,'entry data'!B:G,6,0)),"",VLOOKUP(A187,'entry data'!B:G,6,0))) -> 0 | H187: =IF(A187="","",VLOOKUP(A187,'entry data'!B:L,9,0)) -> 0.126 | I187: =IF(A187="","",VLOOKUP(A187,'entry data'!B:K,10,0)) -> advance | J187: =IF(A187="","",IF(B187=1,VLOOKUP(A187,'entry data'!B:D,3,0),K186)) -> 2012-03-21 | K187: 2012-03-28 | L187: 2012-03 | M187: 13789.75487 | N187: 35.02434866 | O187: =IF(A187="","",-IPMT(H187*VLOOKUP(E187,index!A:C,3,0),calculations!B187,calculations!C187,calculations!F187,-calculations!G187,VLOOKUP(I187,index!G:H,2,0))) -> 33.32209258 | P187: =IF(A187="","",VLOOKUP(A187,'entry data'!B:L,11,0)+IF(B187=C187,G187,0)) -> 68.34644124 | Q187: 13754.73052 | R187: 13754.73052
A188: =IF(A187="","",IF(B187<C187,A187,IF(A187=MAX('entry data'!$B$8:$B$17),"",A187+1))) -> 3 | B188: 37 | C188: =IF(A188="","",VLOOKUP(A188,'entry data'!B:H,7,0)) -> 312 | D188: =IF(A188="","",VLOOKUP(A188,'entry data'!B:C,2,0)) -> Inventory Loan | E188: =IF(A188="","",VLOOKUP(A188,'entry data'!B:E,4,0)) -> weekly | F188: =IF(A188="","",VLOOKUP(A188,'entry data'!B:F,5,0)) -> 15000 | G188: =IF(A188="","",IF(ISERROR(VLOOKUP(A188,'entry data'!B:G,6,0)),"",VLOOKUP(A188,'entry data'!B:G,6,0))) -> 0 | H188: =IF(A188="","",VLOOKUP(A188,'entry data'!B:L,9,0)) -> 0.126 | I188: =IF(A188="","",VLOOKUP(A188,'entry data'!B:K,10,0)) -> advance | J188: =IF(A188="","",IF(B188=1,VLOOKUP(A188,'entry data'!B:D,3,0),K187)) -> 2012-03-28 | K188: 2012-04-04 | L188: 2012-04 | M188: 13754.73052 | N188: 35.10898284 | O188: =IF(A188="","",-IPMT(H188*VLOOKUP(E188,index!A:C,3,0),calculations!B188,calculations!C188,calculations!F188,-calculations!G188,VLOOKUP(I188,index!G:H,2,0))) -> 33.2374584 | P188: =IF(A188="","",VLOOKUP(A188,'entry data'!B:L,11,0)+IF(B188=C188,G188,0)) -> 68.34644124 | Q188: 13719.62153 | R188: 0
A189: =IF(A188="","",IF(B188<C188,A188,IF(A188=MAX('entry data'!$B$8:$B$17),"",A188+1))) -> 3 | B189: 38 | C189: =IF(A189="","",VLOOKUP(A189,'entry data'!B:H,7,0)) -> 312 | D189: =IF(A189="","",VLOOKUP(A189,'entry data'!B:C,2,0)) -> Inventory Loan | E189: =IF(A189="","",VLOOKUP(A189,'entry data'!B:E,4,0)) -> weekly | F189: =IF(A189="","",VLOOKUP(A189,'entry data'!B:F,5,0)) -> 15000 | G189: =IF(A189="","",IF(ISERROR(VLOOKUP(A189,'entry data'!B:G,6,0)),"",VLOOKUP(A189,'entry data'!B:G,6,0))) -> 0 | H189: =IF(A189="","",VLOOKUP(A189,'entry data'!B:L,9,0)) -> 0.126 | I189: =IF(A189="","",VLOOKUP(A189,'entry data'!B:K,10,0)) -> advance | J189: =IF(A189="","",IF(B189=1,VLOOKUP(A189,'entry data'!B:D,3,0),K188)) -> 2012-04-04 | K189: 2012-04-11 | L189: 2012-04 | M189: 13719.62153 | N189: 35.19382153 | O189: =IF(A189="","",-IPMT(H189*VLOOKUP(E189,index!A:C,3,0),calculations!B189,calculations!C189,calculations!F189,-calculations!G189,VLOOKUP(I189,index!G:H,2,0))) -> 33.15261971 | P189: =IF(A189="","",VLOOKUP(A189,'entry data'!B:L,11,0)+IF(B189=C189,G189,0)) -> 68.34644124 | Q189: 13684.42771 | R189: 0
A190: =IF(A189="","",IF(B189<C189,A189,IF(A189=MAX('entry data'!$B$8:$B$17),"",A189+1))) -> 3 | B190: 39 | C190: =IF(A190="","",VLOOKUP(A190,'entry data'!B:H,7,0)) -> 312 | D190: =IF(A190="","",VLOOKUP(A190,'entry data'!B:C,2,0)) -> Inventory Loan | E190: =IF(A190="","",VLOOKUP(A190,'entry data'!B:E,4,0)) -> weekly | F190: =IF(A190="","",VLOOKUP(A190,'entry data'!B:F,5,0)) -> 15000 | G190: =IF(A190="","",IF(ISERROR(VLOOKUP(A190,'entry data'!B:G,6,0)),"",VLOOKUP(A190,'entry data'!B:G,6,0))) -> 0 | H190: =IF(A190="","",VLOOKUP(A190,'entry data'!B:L,9,0)) -> 0.126 | I190: =IF(A190="","",VLOOKUP(A190,'entry data'!B:K,10,0)) -> advance | J190: =IF(A190="","",IF(B190=1,VLOOKUP(A190,'entry data'!B:D,3,0),K189)) -> 2012-04-11 | K190: 2012-04-18 | L190: 2012-04 | M190: 13684.42771 | N190: 35.27886523 | O190: =IF(A190="","",-IPMT(H190*VLOOKUP(E190,index!A:C,3,0),calculations!B190,calculations!C190,calculations!F190,-calculations!G190,VLOOKUP(I190,index!G:H,2,0))) -> 33.06757601 | P190: =IF(A190="","",VLOOKUP(A190,'entry data'!B:L,11,0)+IF(B190=C190,G190,0)) -> 68.34644124 | Q190: 13649.14885 | R190: 0
A191: =IF(A190="","",IF(B190<C190,A190,IF(A190=MAX('entry data'!$B$8:$B$17),"",A190+1))) -> 3 | B191: 40 | C191: =IF(A191="","",VLOOKUP(A191,'entry data'!B:H,7,0)) -> 312 | D191: =IF(A191="","",VLOOKUP(A191,'entry data'!B:C,2,0)) -> Inventory Loan | E191: =IF(A191="","",VLOOKUP(A191,'entry data'!B:E,4,0)) -> weekly | F191: =IF(A191="","",VLOOKUP(A191,'entry data'!B:F,5,0)) -> 15000 | G191: =IF(A191="","",IF(ISERROR(VLOOKUP(A191,'entry data'!B:G,6,0)),"",VLOOKUP(A191,'entry data'!B:G,6,0))) -> 0 | H191: =IF(A191="","",VLOOKUP(A191,'entry data'!B:L,9,0)) -> 0.126 | I191: =IF(A191="","",VLOOKUP(A191,'entry data'!B:K,10,0)) -> advance | J191: =IF(A191="","",IF(B191=1,VLOOKUP(A191,'entry data'!B:D,3,0),K190)) -> 2012-04-18 | K191: 2012-04-25 | L191: 2012-04 | M191: 13649.14885 | N191: 35.36411443 | O191: =IF(A191="","",-IPMT(H191*VLOOKUP(E191,index!A:C,3,0),calculations!B191,calculations!C191,calculations!F191,-calculations!G191,VLOOKUP(I191,index!G:H,2,0))) -> 32.9823268 | P191: =IF(A191="","",VLOOKUP(A191,'entry data'!B:L,11,0)+IF(B191=C191,G191,0)) -> 68.34644124 | Q191: 13613.78473 | R191: 13613.78473
A192: =IF(A191="","",IF(B191<C191,A191,IF(A191=MAX('entry data'!$B$8:$B$17),"",A191+1))) -> 3 | B192: 41 | C192: =IF(A192="","",VLOOKUP(A192,'entry data'!B:H,7,0)) -> 312 | D192: =IF(A192="","",VLOOKUP(A192,'entry data'!B:C,2,0)) -> Inventory Loan | E192: =IF(A192="","",VLOOKUP(A192,'entry data'!B:E,4,0)) -> weekly | F192: =IF(A192="","",VLOOKUP(A192,'entry data'!B:F,5,0)) -> 15000 | G192: =IF(A192="","",IF(ISERROR(VLOOKUP(A192,'entry data'!B:G,6,0)),"",VLOOKUP(A192,'entry data'!B:G,6,0))) -> 0 | H192: =IF(A192="","",VLOOKUP(A192,'entry data'!B:L,9,0)) -> 0.126 | I192: =IF(A192="","",VLOOKUP(A192,'entry data'!B:K,10,0)) -> advance | J192: =IF(A192="","",IF(B192=1,VLOOKUP(A192,'entry data'!B:D,3,0),K191)) -> 2012-04-25 | K192: 2012-05-02 | L192: 2012-05 | M192: 13613.78473 | N192: 35.44956964 | O192: =IF(A192="","",-IPMT(H192*VLOOKUP(E192,index!A:C,3,0),calculations!B192,calculations!C192,calculations!F192,-calculations!G192,VLOOKUP(I192,index!G:H,2,0))) -> 32.8968716 | P192: =IF(A192="","",VLOOKUP(A192,'entry data'!B:L,11,0)+IF(B192=C192,G192,0)) -> 68.34644124 | Q192: 13578.33516 | R192: 0
A193: =IF(A192="","",IF(B192<C192,A192,IF(A192=MAX('entry data'!$B$8:$B$17),"",A192+1))) -> 3 | B193: 42 | C193: =IF(A193="","",VLOOKUP(A193,'entry data'!B:H,7,0)) -> 312 | D193: =IF(A193="","",VLOOKUP(A193,'entry data'!B:C,2,0)) -> Inventory Loan | E193: =IF(A193="","",VLOOKUP(A193,'entry data'!B:E,4,0)) -> weekly | F193: =IF(A193="","",VLOOKUP(A193,'entry data'!B:F,5,0)) -> 15000 | G193: =IF(A193="","",IF(ISERROR(VLOOKUP(A193,'entry data'!B:G,6,0)),"",VLOOKUP(A193,'entry data'!B:G,6,0))) -> 0 | H193: =IF(A193="","",VLOOKUP(A193,'entry data'!B:L,9,0)) -> 0.126 | I193: =IF(A193="","",VLOOKUP(A193,'entry data'!B:K,10,0)) -> advance | J193: =IF(A193="","",IF(B193=1,VLOOKUP(A193,'entry data'!B:D,3,0),K192)) -> 2012-05-02 | K193: 2012-05-09 | L193: 2012-05 | M193: 13578.33516 | N193: 35.53523134 | O193: =IF(A193="","",-IPMT(H193*VLOOKUP(E193,index!A:C,3,0),calculations!B193,calculations!C193,calculations!F193,-calculations!G193,VLOOKUP(I193,index!G:H,2,0))) -> 32.8112099 | P193: =IF(A193="","",VLOOKUP(A193,'entry data'!B:L,11,0)+IF(B193=C193,G193,0)) -> 68.34644124 | Q193: 13542.79993 | R193: 0
A194: =IF(A193="","",IF(B193<C193,A193,IF(A193=MAX('entry data'!$B$8:$B$17),"",A193+1))) -> 3 | B194: 43 | C194: =IF(A194="","",VLOOKUP(A194,'entry data'!B:H,7,0)) -> 312 | D194: =IF(A194="","",VLOOKUP(A194,'entry data'!B:C,2,0)) -> Inventory Loan | E194: =IF(A194="","",VLOOKUP(A194,'entry data'!B:E,4,0)) -> weekly | F194: =IF(A194="","",VLOOKUP(A194,'entry data'!B:F,5,0)) -> 15000 | G194: =IF(A194="","",IF(ISERROR(VLOOKUP(A194,'entry data'!B:G,6,0)),"",VLOOKUP(A194,'entry data'!B:G,6,0))) -> 0 | H194: =IF(A194="","",VLOOKUP(A194,'entry data'!B:L,9,0)) -> 0.126 | I194: =IF(A194="","",VLOOKUP(A194,'entry data'!B:K,10,0)) -> advance | J194: =IF(A194="","",IF(B194=1,VLOOKUP(A194,'entry data'!B:D,3,0),K193)) -> 2012-05-09 | K194: 2012-05-16 | L194: 2012-05 | M194: 13542.79993 | N194: 35.62110003 | O194: =IF(A194="","",-IPMT(H194*VLOOKUP(E194,index!A:C,3,0),calculations!B194,calculations!C194,calculations!F194,-calculations!G194,VLOOKUP(I194,index!G:H,2,0))) -> 32.7253412 | P194: =IF(A194="","",VLOOKUP(A194,'entry data'!B:L,11,0)+IF(B194=C194,G194,0)) -> 68.34644124 | Q194: 13507.17883 | R194: 0
A195: =IF(A194="","",IF(B194<C194,A194,IF(A194=MAX('entry data'!$B$8:$B$17),"",A194+1))) -> 3 | B195: 44 | C195: =IF(A195="","",VLOOKUP(A195,'entry data'!B:H,7,0)) -> 312 | D195: =IF(A195="","",VLOOKUP(A195,'entry data'!B:C,2,0)) -> Inventory Loan | E195: =IF(A195="","",VLOOKUP(A195,'entry data'!B:E,4,0)) -> weekly | F195: =IF(A195="","",VLOOKUP(A195,'entry data'!B:F,5,0)) -> 15000 | G195: =IF(A195="","",IF(ISERROR(VLOOKUP(A195,'entry data'!B:G,6,0)),"",VLOOKUP(A195,'entry data'!B:G,6,0))) -> 0 | H195: =IF(A195="","",VLOOKUP(A195,'entry data'!B:L,9,0)) -> 0.126 | I195: =IF(A195="","",VLOOKUP(A195,'entry data'!B:K,10,0)) -> advance | J195: =IF(A195="","",IF(B195=1,VLOOKUP(A195,'entry data'!B:D,3,0),K194)) -> 2012-05-16 | K195: 2012-05-23 | L195: 2012-05 | M195: 13507.17883 | N195: 35.70717622 | O195: =IF(A195="","",-IPMT(H195*VLOOKUP(E195,index!A:C,3,0),calculations!B195,calculations!C195,calculations!F195,-calculations!G195,VLOOKUP(I195,index!G:H,2,0))) -> 32.63926501 | P195: =IF(A195="","",VLOOKUP(A195,'entry data'!B:L,11,0)+IF(B195=C195,G195,0)) -> 68.34644124 | Q195: 13471.47166 | R195: =IF(A195="","",IF(L195<>L196,Q195,0)) -> 0
A196: =IF(A195="","",IF(B195<C195,A195,IF(A195=MAX('entry data'!$B$8:$B$17),"",A195+1))) -> 3 | B196: 45 | C196: =IF(A196="","",VLOOKUP(A196,'entry data'!B:H,7,0)) -> 312 | D196: =IF(A196="","",VLOOKUP(A196,'entry data'!B:C,2,0)) -> Inventory Loan | E196: =IF(A196="","",VLOOKUP(A196,'entry data'!B:E,4,0)) -> weekly | F196: =IF(A196="","",VLOOKUP(A196,'entry data'!B:F,5,0)) -> 15000 | G196: =IF(A196="","",IF(ISERROR(VLOOKUP(A196,'entry data'!B:G,6,0)),"",VLOOKUP(A196,'entry data'!B:G,6,0))) -> 0 | H196: =IF(A196="","",VLOOKUP(A196,'entry data'!B:L,9,0)) -> 0.126 | I196: =IF(A196="","",VLOOKUP(A196,'entry data'!B:K,10,0)) -> advance | J196: =IF(A196="","",IF(B196=1,VLOOKUP(A196,'entry data'!B:D,3,0),K195)) -> 2012-05-23 | K196: 2012-05-30 | L196: 2012-05 | M196: =IF(A196="","",IF(B196=1,F196,Q195)) -> 13471.47166 | N196: 35.79346042 | O196: =IF(A196="","",-IPMT(H196*VLOOKUP(E196,index!A:C,3,0),calculations!B196,calculations!C196,calculations!F196,-calculations!G196,VLOOKUP(I196,index!G:H,2,0))) -> 32.55298082 | P196: =IF(A196="","",VLOOKUP(A196,'entry data'!B:L,11,0)+IF(B196=C196,G196,0)) -> 68.34644124 | Q196: 13435.67819 | R196: 13435.67819
A197: =IF(A196="","",IF(B196<C196,A196,IF(A196=MAX('entry data'!$B$8:$B$17),"",A196+1))) -> 3 | B197: 46 | C197: =IF(A197="","",VLOOKUP(A197,'entry data'!B:H,7,0)) -> 312 | D197: =IF(A197="","",VLOOKUP(A197,'entry data'!B:C,2,0)) -> Inventory Loan | E197: =IF(A197="","",VLOOKUP(A197,'entry data'!B:E,4,0)) -> weekly | F197: =IF(A197="","",VLOOKUP(A197,'entry data'!B:F,5,0)) -> 15000 | G197: =IF(A197="","",IF(ISERROR(VLOOKUP(A197,'entry data'!B:G,6,0)),"",VLOOKUP(A197,'entry data'!B:G,6,0))) -> 0 | H197: =IF(A197="","",VLOOKUP(A197,'entry data'!B:L,9,0)) -> 0.126 | I197: =IF(A197="","",VLOOKUP(A197,'entry data'!B:K,10,0)) -> advance | J197: =IF(A197="","",IF(B197=1,VLOOKUP(A197,'entry data'!B:D,3,0),K196)) -> 2012-05-30 | K197: 2012-06-06 | L197: 2012-06 | M197: 13435.67819 | N197: 35.87995311 | O197: =IF(A197="","",-IPMT(H197*VLOOKUP(E197,index!A:C,3,0),calculations!B197,calculations!C197,calculations!F197,-calculations!G197,VLOOKUP(I197,index!G:H,2,0))) -> 32.46648813 | P197: =IF(A197="","",VLOOKUP(A197,'entry data'!B:L,11,0)+IF(B197=C197,G197,0)) -> 68.34644124 | Q197: 13399.79824 | R197: 0
A198: =IF(A197="","",IF(B197<C197,A197,IF(A197=MAX('entry data'!$B$8:$B$17),"",A197+1))) -> 3 | B198: 47 | C198: =IF(A198="","",VLOOKUP(A198,'entry data'!B:H,7,0)) -> 312 | D198: =IF(A198="","",VLOOKUP(A198,'entry data'!B:C,2,0)) -> Inventory Loan | E198: =IF(A198="","",VLOOKUP(A198,'entry data'!B:E,4,0)) -> weekly | F198: =IF(A198="","",VLOOKUP(A198,'entry data'!B:F,5,0)) -> 15000 | G198: =IF(A198="","",IF(ISERROR(VLOOKUP(A198,'entry data'!B:G,6,0)),"",VLOOKUP(A198,'entry data'!B:G,6,0))) -> 0 | H198: =IF(A198="","",VLOOKUP(A198,'entry data'!B:L,9,0)) -> 0.126 | I198: =IF(A198="","",VLOOKUP(A198,'entry data'!B:K,10,0)) -> advance | J198: =IF(A198="","",IF(B198=1,VLOOKUP(A198,'entry data'!B:D,3,0),K197)) -> 2012-06-06 | K198: 2012-06-13 | L198: 2012-06 | M198: 13399.79824 | N198: 35.9666548 | O198: =IF(A198="","",-IPMT(H198*VLOOKUP(E198,index!A:C,3,0),calculations!B198,calculations!C198,calculations!F198,-calculations!G198,VLOOKUP(I198,index!G:H,2,0))) -> 32.37978644 | P198: =IF(A198="","",VLOOKUP(A198,'entry data'!B:L,11,0)+IF(B198=C198,G198,0)) -> 68.34644124 | Q198: 13363.83159 | R198: 0
A199: =IF(A198="","",IF(B198<C198,A198,IF(A198=MAX('entry data'!$B$8:$B$17),"",A198+1))) -> 3 | B199: 48 | C199: =IF(A199="","",VLOOKUP(A199,'entry data'!B:H,7,0)) -> 312 | D199: =IF(A199="","",VLOOKUP(A199,'entry data'!B:C,2,0)) -> Inventory Loan | E199: =IF(A199="","",VLOOKUP(A199,'entry data'!B:E,4,0)) -> weekly | F199: =IF(A199="","",VLOOKUP(A199,'entry data'!B:F,5,0)) -> 15000 | G199: =IF(A199="","",IF(ISERROR(VLOOKUP(A199,'entry data'!B:G,6,0)),"",VLOOKUP(A199,'entry data'!B:G,6,0))) -> 0 | H199: =IF(A199="","",VLOOKUP(A199,'entry data'!B:L,9,0)) -> 0.126 | I199: =IF(A199="","",VLOOKUP(A199,'entry data'!B:K,10,0)) -> advance | J199: =IF(A199="","",IF(B199=1,VLOOKUP(A199,'entry data'!B:D,3,0),K198)) -> 2012-06-13 | K199: 2012-06-20 | L199: 2012-06 | M199: 13363.83159 | N199: 36.053566 | O199: =IF(A199="","",-IPMT(H199*VLOOKUP(E199,index!A:C,3,0),calculations!B199,calculations!C199,calculations!F199,-calculations!G199,VLOOKUP(I199,index!G:H,2,0))) -> 32.29287523 | P199: =IF(A199="","",VLOOKUP(A199,'entry data'!B:L,11,0)+IF(B199=C199,G199,0)) -> 68.34644124 | Q199: 13327.77802 | R199: 0
A200: =IF(A199="","",IF(B199<C199,A199,IF(A199=MAX('entry data'!$B$8:$B$17),"",A199+1))) -> 3 | B200: 49 | C200: =IF(A200="","",VLOOKUP(A200,'entry data'!B:H,7,0)) -> 312 | D200: =IF(A200="","",VLOOKUP(A200,'entry data'!B:C,2,0)) -> Inventory Loan | E200: =IF(A200="","",VLOOKUP(A200,'entry data'!B:E,4,0)) -> weekly | F200: =IF(A200="","",VLOOKUP(A200,'entry data'!B:F,5,0)) -> 15000 | G200: =IF(A200="","",IF(ISERROR(VLOOKUP(A200,'entry data'!B:G,6,0)),"",VLOOKUP(A200,'entry data'!B:G,6,0))) -> 0 | H200: =IF(A200="","",VLOOKUP(A200,'entry data'!B:L,9,0)) -> 0.126 | I200: =IF(A200="","",VLOOKUP(A200,'entry data'!B:K,10,0)) -> advance | J200: =IF(A200="","",IF(B200=1,VLOOKUP(A200,'entry data'!B:D,3,0),K199)) -> 2012-06-20 | K200: 2012-06-27 | L200: 2012-06 | M200: 13327.77802 | N200: 36.14068722 | O200: =IF(A200="","",-IPMT(H200*VLOOKUP(E200,index!A:C,3,0),calculations!B200,calculations!C200,calculations!F200,-calculations!G200,VLOOKUP(I200,index!G:H,2,0))) -> 32.20575401 | P200: =IF(A200="","",VLOOKUP(A200,'entry data'!B:L,11,0)+IF(B200=C200,G200,0)) -> 68.34644124 | Q200: 13291.63733 | R200: 13291.63733
... 4300 more rows

Sheet individual schedule
B2: Individual Loan Schedule
B4: Loan Name | C4: Lease 2 - Truck
D6: Values
B7: Period No | C7: Payment Date | D7: Principal ($) | E7: Interest ($) | F7: Payment ($) | G7: Closing Balance ($)
B8: 1 | C8: 2012-07-04 | D8: 1686.836738 | E8: 1575 | F8: 3261.836738 | G8: 148313.1633
B9: 2 | C9: 2012-08-04 | D9: 1704.548523 | E9: 1557.288214 | F9: 3261.836738 | G9: 146608.6147
B10: 3 | C10: 2012-09-04 | D10: 1722.446283 | E10: 1539.390455 | F10: 3261.836738 | G10: 144886.1685
B11: 4 | C11: 2012-10-04 | D11: 1740.531969 | E11: 1521.304769 | F11: 3261.836738 | G11: 143145.6365
B12: 5 | C12: 2012-11-04 | D12: 1758.807555 | E12: 1503.029183 | F12: 3261.836738 | G12: 141386.8289
B13: 6 | C13: 2012-12-04 | D13: 1777.275034 | E13: 1484.561704 | F13: 3261.836738 | G13: 139609.5539
B14: 7 | C14: 2013-01-04 | D14: 1795.936422 | E14: 1465.900316 | F14: 3261.836738 | G14: 137813.6175
B15: 8 | C15: 2013-02-04 | D15: 1814.793754 | E15: 1447.042984 | F15: 3261.836738 | G15: 135998.8237
B16: 9 | C16: 2013-03-04 | D16: 1833.849089 | E16: 1427.987649 | F16: 3261.836738 | G16: 134164.9746
B17: 10 | C17: 2013-04-04 | D17: 1853.104504 | E17: 1408.732234 | F17: 3261.836738 | G17: 132311.8701
B18: 11 | C18: 2013-05-04 | D18: 1872.562101 | E18: 1389.274636 | F18: 3261.836738 | G18: 130439.308
B19: 12 | C19: 2013-06-04 | D19: 1892.224003 | E19: 1369.612734 | F19: 3261.836738 | G19: 128547.084
B20: 13 | C20: 2013-07-04 | D20: 1912.092355 | E20: 1349.744382 | F20: 3261.836738 | G20: 126634.9917
B21: 14 | C21: 2013-08-04 | D21: 1932.169325 | E21: 1329.667413 | F21: 3261.836738 | G21: 124702.8223
B22: 15 | C22: 2013-09-04 | D22: 1952.457103 | E22: 1309.379635 | F22: 3261.836738 | G22: 122750.3652
B23: 16 | C23: 2013-10-04 | D23: 1972.957903 | E23: 1288.878835 | F23: 3261.836738 | G23: 120777.4073
B24: 17 | C24: 2013-11-04 | D24: 1993.673961 | E24: 1268.162777 | F24: 3261.836738 | G24: 118783.7334
B25: 18 | C25: 2013-12-04 | D25: 2014.607537 | E25: 1247.2292 | F25: 3261.836738 | G25: 116769.1258
B26: 19 | C26: 2014-01-04 | D26: 2035.760916 | E26: 1226.075821 | F26: 3261.836738 | G26: 114733.3649
B27: 20 | C27: 2014-02-04 | D27: 2057.136406 | E27: 1204.700332 | F27: 3261.836738 | G27: 112676.2285
B28: 21 | C28: 2014-03-04 | D28: 2078.736338 | E28: 1183.100399 | F28: 3261.836738 | G28: 110597.4922
B29: 22 | C29: 2014-04-04 | D29: 2100.56307 | E29: 1161.273668 | F29: 3261.836738 | G29: 108496.9291
B30: 23 | C30: 2014-05-04 | D30: 2122.618982 | E30: 1139.217756 | F30: 3261.836738 | G30: 106374.3101
B31: 24 | C31: 2014-06-04 | D31: 2144.906481 | E31: 1116.930256 | F31: 3261.836738 | G31: 104229.4036
B32: 25 | C32: 2014-07-04 | D32: 2167.427999 | E32: 1094.408738 | F32: 3261.836738 | G32: 102061.9756
B33: 26 | C33: 2014-08-04 | D33: 2190.185993 | E33: 1071.650744 | F33: 3261.836738 | G33: 99871.78966
B34: 27 | C34: 2014-09-04 | D34: 2213.182946 | E34: 1048.653791 | F34: 3261.836738 | G34: 97658.60671
B35: 28 | C35: 2014-10-04 | D35: 2236.421367 | E35: 1025.41537 | F35: 3261.836738 | G35: 95422.18534
B36: 29 | C36: 2014-11-04 | D36: 2259.903792 | E36: 1001.932946 | F36: 3261.836738 | G36: 93162.28155
B37: 30 | C37: 2014-12-04 | D37: 2283.632781 | E37: 978.2039563 | F37: 3261.836738 | G37: 90878.64877
B38: 31 | C38: 2015-01-04 | D38: 2307.610926 | E38: 954.2258121 | F38: 3261.836738 | G38: 88571.03784
B39: 32 | C39: 2015-02-04 | D39: 2331.84084 | E39: 929.9958974 | F39: 3261.836738 | G39: 86239.197
B40: 33 | C40: 2015-03-04 | D40: 2356.325169 | E40: 905.5115685 | F40: 3261.836738 | G40: 83882.87183
B41: 34 | C41: 2015-04-04 | D41: 2381.066583 | E41: 880.7701543 | F41: 3261.836738 | G41: 81501.80525
B42: 35 | C42: 2015-05-04 | D42: 2406.067783 | E42: 855.7689551 | F42: 3261.836738 | G42: 79095.73747
B43: 36 | C43: 2015-06-04 | D43: 2431.331494 | E43: 830.5052434 | F43: 3261.836738 | G43: 76664.40597
B44: 37 | C44: 2015-07-04 | D44: 2456.860475 | E44: 804.9762627 | F44: 3261.836738 | G44: 74207.5455
B45: 38 | C45: 2015-08-04 | D45: 2482.65751 | E45: 779.1792277 | F45: 3261.836738 | G45: 71724.88799
B46: 39 | C46: 2015-09-04 | D46: 2508.725414 | E46: 753.1113239 | F46: 3261.836738 | G46: 69216.16258
B47: 40 | C47: 2015-10-04 | D47: 2535.067031 | E47: 726.769707 | F47: 3261.836738 | G47: 66681.09554
B48: 41 | C48: 2015-11-04 | D48: 2561.685234 | E48: 700.1515032 | F48: 3261.836738 | G48: 64119.41031
B49: 42 | C49: 2015-12-04 | D49: 2588.582929 | E49: 673.2538083 | F49: 3261.836738 | G49: 61530.82738
B50: 43 | C50: 2016-01-04 | D50: 2615.76305 | E50: 646.0736875 | F50: 3261.836738 | G50: 58915.06433
B51: 44 | C51: 2016-02-04 | D51: 2643.228562 | E51: 618.6081755 | F51: 3261.836738 | G51: 56271.83577
B52: 45 | C52: 2016-03-04 | D52: 2670.982462 | E52: 590.8542756 | F52: 3261.836738 | G52: 53600.85331
B53: 46 | C53: 2016-04-04 | D53: 2699.027778 | E53: 562.8089597 | F53: 3261.836738 | G53: 50901.82553
B54: 47 | C54: 2016-05-04 | D54: 2727.36757 | E54: 534.469168 | F54: 3261.836738 | G54: 48174.45796
B55: 48 | C55: 2016-06-04 | D55: 2756.004929 | E55: 505.8318086 | F55: 3261.836738 | G55: 45418.45303
B56: 49 | C56: 2016-07-04 | D56: 2784.942981 | E56: 476.8937568 | F56: 3261.836738 | G56: 42633.51005
B57: 50 | C57: 2016-08-04 | D57: 2814.184882 | E57: 447.6518555 | F57: 3261.836738 | G57: 39819.32517
B58: 51 | C58: 2016-09-04 | D58: 2843.733823 | E58: 418.1029142 | F58: 3261.836738 | G58: 36975.59134
B59: 52 | C59: 2016-10-04 | D59: 2873.593029 | E59: 388.2437091 | F59: 3261.836738 | G59: 34101.99831
B60: 53 | C60: 2016-11-04 | D60: 2903.765755 | E60: 358.0709823 | F60: 3261.836738 | G60: 31198.23256
B61: 54 | C61: 2016-12-04 | D61: 2934.255296 | E61: 327.5814419 | F61: 3261.836738 | G61: 28263.97726
B62: 55 | C62: 2017-01-04 | D62: 2965.064976 | E62: 296.7717613 | F62: 3261.836738 | G62: 25298.91229
B63: 56 | C63: 2017-02-04 | D63: 2996.198159 | E63: 265.638579 | F63: 3261.836738 | G63: 22302.71413
B64: 57 | C64: 2017-03-04 | D64: 3027.658239 | E64: 234.1784983 | F64: 3261.836738 | G64: 19275.05589
B65: 58 | C65: 2017-04-04 | D65: 3059.448651 | E65: 202.3880868 | F65: 3261.836738 | G65: 16215.60724
B66: 59 | C66: 2017-05-04 | D66: 3091.572862 | E66: 170.263876 | F66: 3261.836738 | G66: 13124.03438
B67: 60 | C67: 2017-06-04 | D67: 13124.03438 | E67: 137.802361 | F67: 13261.83674 | G67: -2.182787284e-11
B68: Grand Total | D68: 150000 | E68: 55710.20426 | F68: 205710.2043 | G68: 5155733.739

Sheet all loans calendar (hidden)
B4: Row Labels | C4: Monthly Payments | H4: Row Labels | I4: Balance Owed
C5: 0 | I5: 0
B6: 2011-07 | C6: 68.34644124 | H6: 2011-07 | I6: 14931.65356
B7: 2011-08 | C7: 341.7322062 | H7: 2011-08 | I7: 14769.5469
B8: 2011-09 | C8: 273.3857649 | H8: 2011-09 | I8: 14638.4457
B9: 2011-10 | C9: 273.3857649 | H9: 2011-10 | I9: 14506.0727
B10: 2011-11 | C10: 341.7322062 | H10: 2011-11 | I10: 14338.79918
B11: 2011-12 | C11: 273.3857649 | H11: 2011-12 | I11: 14203.51936
B12: 2012-01 | C12: 273.3857649 | H12: 2012-01 | I12: 14066.9272
B13: 2012-02 | C13: 341.7322062 | H13: 2012-02 | I13: 13894.32214
B14: 2012-03 | C14: 273.3857649 | H14: 2012-03 | I14: 13754.73052
B15: 2012-04 | C15: 273.3857649 | H15: 2012-04 | I15: 13613.78473
B16: 2012-05 | C16: 341.7322062 | H16: 2012-05 | I16: 13435.67819
B17: 2012-06 | C17: 273.3857649 | H17: 2012-06 | I17: 13291.63733
B18: 2012-07 | C18: 3535.222503 | H18: 2012-07 | I18: 161459.3624
B19: 2012-08 | C19: 3603.568944 | H19: 2012-08 | I19: 159571.0305
B20: 2012-09 | C20: 3674.267766 | H20: 2012-09 | I20: 164634.4071
B21: 2012-10 | C21: 3742.614207 | H21: 2012-10 | I21: 162639.8225
B22: 2012-11 | C22: 3674.267766 | H22: 2012-11 | I22: 160662.1902
B23: 2012-12 | C23: 3674.267766 | H23: 2012-12 | I23: 158663.9142
B24: 2013-01 | C24: 3742.614207 | H24: 2013-01 | I24: 156605.8304
B25: 2013-02 | C25: 3674.267766 | H25: 2013-02 | I25: 154565.2401
B26: 2013-03 | C26: 4140.197512 | H26: 2013-03 | I26: 180331.4191
B27: 2013-04 | C27: 4140.197512 | H27: 2013-04 | I27: 178074.2694
B28: 2013-05 | C28: 4208.543953 | H28: 2013-05 | I28: 175752.9676
B29: 2013-06 | C29: 4140.197512 | H29: 2013-06 | I29: 173448.0333
B30: 2013-07 | C30: 5037.165508 | H30: 2013-07 | I30: 188419.3281
B31: 2013-08 | C31: 4692.611882 | H31: 2013-08 | I31: 185679.8745
B32: 2013-09 | C32: 4692.611882 | H32: 2013-09 | I32: 182912.1027
B33: 2013-10 | C33: 4760.958323 | H33: 2013-10 | I33: 180072.9272
B34: 2013-11 | C34: 4692.611882 | H34: 2013-11 | I34: 177247.2219
B35: 2013-12 | C35: 4968.819066 | H35: 2013-12 | I35: 174190.4067
B36: 2014-01 | C36: 4760.958323 | H36: 2014-01 | I36: 171259.8658
B37: 2014-02 | C37: 4692.611882 | H37: 2014-02 | I37: 168343.2162
B38: 2014-03 | C38: 4692.611882 | H38: 2014-03 | I38: 165396.4167
B39: 2014-04 | C39: 4760.958323 | H39: 2014-04 | I39: 162373.5916
B40: 2014-05 | C40: 4692.611882 | H40: 2014-05 | I40: 159365.1114
B41: 2014-06 | C41: 4692.611882 | H41: 2014-06 | I41: 156325.5315
B42: 2014-07 | C42: 5037.165508 | H42: 2014-07 | I42: 152990.4721
B43: 2014-08 | C43: 4692.611882 | H43: 2014-08 | I43: 149885.1649
B44: 2014-09 | C44: 4692.611882 | H44: 2014-09 | I44: 146747.7578
B45: 2014-10 | C45: 4760.958323 | H45: 2014-10 | I45: 143529.4038
B46: 2014-11 | C46: 4692.611882 | H46: 2014-11 | I46: 140326.3262
B47: 2014-12 | C47: 5037.165508 | H47: 2014-12 | I47: 136811.6942
B48: 2015-01 | C48: 4692.611882 | H48: 2015-01 | I48: 133539.3529
B49: 2015-02 | C49: 4692.611882 | H49: 2015-02 | I49: 130233.1853
B50: 2015-03 | C50: 4692.611882 | H50: 2015-03 | I50: 126892.8414
B51: 2015-04 | C51: 4760.958323 | H51: 2015-04 | I51: 123466.3109
B52: 2015-05 | C52: 4692.611882 | H52: 2015-05 | I52: 120056.0488
B53: 2015-06 | C53: 4968.819066 | H53: 2015-06 | I53: 116366.8675
B54: 2015-07 | C54: 4760.958323 | H54: 2015-07 | I54: 112830.0703
B55: 2015-08 | C55: 4692.611882 | H55: 2015-08 | I55: 109310.05
B56: 2015-09 | C56: 4760.958323 | H56: 2015-09 | I56: 105699.1691
B57: 2015-10 | C57: 4692.611882 | H57: 2015-10 | I57: 102105.4701
B58: 2015-11 | C58: 4692.611882 | H58: 2015-11 | I58: 98474.62217
B59: 2015-12 | C59: 5037.165508 | H59: 2015-12 | I59: 94490.60397
B60: 2016-01 | C60: 4692.611882 | H60: 2016-01 | I60: 90781.2421
B61: 2016-02 | C61: 4692.611882 | H61: 2016-02 | I61: 87033.53648
B62: 2016-03 | C62: 4760.958323 | H62: 2016-03 | I62: 83189.08882
B63: 2016-04 | C63: 4692.611882 | H63: 2016-04 | I63: 79362.9387
B64: 2016-05 | C64: 4968.819066 | H64: 2016-05 | I64: 75223.6801
B65: 2016-06 | C65: 4484.751138 | H65: 2016-06 | I65: 71531.72349
B66: 2016-07 | C66: 4140.197512 | H66: 2016-07 | I66: 68138.85456
B67: 2016-08 | C67: 4208.543953 | H67: 2016-08 | I67: 64649.38844
B68: 2016-09 | C68: 4140.197512 | H68: 2016-09 | I68: 61184.69069
B69: 2016-10 | C69: 4140.197512 | H69: 2016-10 | I69: 57683.81031
B70: 2016-11 | C70: 4208.543953 | H70: 2016-11 | I70: 54083.25526
B71: 2016-12 | C71: 4140.197512 | H71: 2016-12 | I71: 50508.2594
B72: 2017-01 | C72: 4140.197512 | H72: 2017-01 | I72: 46895.92906
B73: 2017-02 | C73: 4140.197512 | H73: 2017-02 | I73: 43245.87419
B74: 2017-03 | C74: 4208.543953 | H74: 2017-03 | I74: 39491.94321
B75: 2017-04 | C75: 4140.197512 | H75: 2017-04 | I75: 35764.61491
B76: 2017-05 | C76: 4208.543953 | H76: 2017-05 | I76: 31931.15969
B77: 2017-06 | C77: 14140.19751 | H77: 2017-06 | I77: 18124.92186
B78: 2017-07 | C78: 741.6678918 | H78: 2017-07 | I78: 17572.62943
B79: 2017-08 | C79: 604.9750093 | H79: 2017-08 | I79: 17152.16703
B80: 2017-09 | C80: 604.9750093 | H80: 2017-09 | I80: 16727.28978
B81: 2017-10 | C81: 604.9750093 | H81: 2017-10 | I81: 16297.95131
B82: 2017-11 | C82: 604.9750093 | H82: 2017-11 | I82: 15864.10479
B83: 2017-12 | C83: 604.9750093 | H83: 2017-12 | I83: 15425.70288
B84: 2018-01 | C84: 604.9750093 | H84: 2018-01 | I84: 14982.69775
B85: 2018-02 | C85: 604.9750093 | H85: 2018-02 | I85: 14535.04107
B86: 2018-03 | C86: 604.9750093 | H86: 2018-03 | I86: 14082.68399
B87: 2018-04 | C87: 604.9750093 | H87: 2018-04 | I87: 13625.57716
B88: 2018-05 | C88: 604.9750093 | H88: 2018-05 | I88: 13163.67071
B89: 2018-06 | C89: 604.9750093 | H89: 2018-06 | I89: 12696.91425
B90: 2018-07 | C90: 604.9750093 | H90: 2018-07 | I90: 12225.25684
B91: 2018-08 | C91: 604.9750093 | H91: 2018-08 | I91: 11748.64703
B92: 2018-09 | C92: 465.9297457 | H92: 2018-09 | I92: 11406.07807
B93: 2018-10 | C93: 465.9297457 | H93: 2018-10 | I93: 11059.91215
B94: 2018-11 | C94: 465.9297457 | H94: 2018-11 | I94: 10710.11148
B95: 2018-12 | C95: 465.9297457 | H95: 2018-12 | I95: 10356.6379
B96: 2019-01 | C96: 465.9297457 | H96: 2019-01 | I96: 9999.452856
B97: 2019-02 | C97: 465.9297457 | H97: 2019-02 | I97: 9638.517366
B98: 2019-03 | C98: 465.9297457 | H98: 2019-03 | I98: 9273.792052
B99: 2019-04 | C99: 465.9297457 | H99: 2019-04 | I99: 8905.237123
B100: 2019-05 | C100: 465.9297457 | H100: 2019-05 | I100: 8532.812367
B101: 2019-06 | C101: 465.9297457 | H101: 2019-06 | I101: 8156.477152
B102: 2019-07 | C102: 465.9297457 | H102: 2019-07 | I102: 7776.190416
B103: 2019-08 | C103: 465.9297457 | H103: 2019-08 | I103: 7391.91067
B104: 2019-09 | C104: 465.9297457 | H104: 2019-09 | I104: 7003.595986
B105: 2019-10 | C105: 465.9297457 | H105: 2019-10 | I105: 6611.203998
B106: 2019-11 | C106: 465.9297457 | H106: 2019-11 | I106: 6214.691894
B107: 2019-12 | C107: 465.9297457 | H107: 2019-12 | I107: 5814.016414
B108: 2020-01 | C108: 465.9297457 | H108: 2020-01 | I108: 5409.13384
B109: 2020-02 | C109: 5465.929746 | H109: 2020-02 | I109: 4.547473509e-12
B110: (blank) | H110: (blank)
H111: Grand Total | I111: 7880379.627

Sheet consolidated schedule
B2: Consolidated Schedule
B5: Month | C5: Principal Paid | D5: Interest Paid | E5: Total Repayments | F5: Outstanding Loan Balance
C6: 0 | D6: 0 | E6: 0 | F6: 0
B7: 2011-07 | C7: 68.34644124 | D7: 0 | E7: 68.34644124 | F7: 14931.65356
B8: 2011-08 | C8: 162.1066549 | D8: 179.6255513 | E8: 341.7322062 | F8: 14769.5469
B9: 2011-09 | C9: 131.1012076 | D9: 142.2845573 | E9: 273.3857649 | F9: 14638.4457
B10: 2011-10 | C10: 132.3730001 | D10: 141.0127648 | E10: 273.3857649 | F10: 14506.0727
B11: 2011-11 | C11: 167.273515 | D11: 174.4586911 | E11: 341.7322062 | F11: 14338.79918
B12: 2011-12 | C12: 135.2798245 | D12: 138.1059405 | E12: 273.3857649 | F12: 14203.51936
B13: 2012-01 | C13: 136.5921531 | D13: 136.7936119 | E13: 273.3857649 | F13: 14066.9272
B14: 2012-02 | C14: 172.6050596 | D14: 169.1271466 | E14: 341.7322062 | F14: 13894.32214
B15: 2012-03 | C15: 139.5916273 | D15: 133.7941376 | E15: 273.3857649 | F15: 13754.73052
B16: 2012-04 | C16: 140.945784 | D16: 132.4399809 | E16: 273.3857649 | F16: 13613.78473
B17: 2012-05 | C17: 178.1065376 | D17: 163.6256685 | E17: 341.7322062 | F17: 13435.67819
B18: 2012-06 | C18: 144.0408611 | D18: 129.3449038 | E18: 273.3857649 | F18: 13291.63733
B19: 2012-07 | C19: 1832.274917 | D19: 1702.947586 | E19: 3535.222503 | F19: 161459.3624
B20: 2012-08 | C20: 1888.331889 | D20: 1715.237055 | E20: 3603.568944 | F20: 159571.0305
B21: 2012-09 | C21: 1936.623453 | D21: 1737.644313 | E21: 3674.267766 | F21: 164634.4071
B22: 2012-10 | C22: 1994.584586 | D22: 1748.029622 | E22: 3742.614207 | F22: 162639.8225
B23: 2012-11 | C23: 1977.632261 | D23: 1696.635505 | E23: 3674.267766 | F23: 160662.1902
B24: 2012-12 | C24: 1998.276011 | D24: 1675.991755 | E24: 3674.267766 | F24: 158663.9142
B25: 2013-01 | C25: 2058.083776 | D25: 1684.530431 | E25: 3742.614207 | F25: 156605.8304
B26: 2013-02 | C26: 2040.590342 | D26: 1633.677424 | E26: 3674.267766 | F26: 154565.2401
B27: 2013-03 | C27: 2233.821029 | D27: 1906.376482 | E27: 4140.197512 | F27: 180331.4191
B28: 2013-04 | C28: 2257.149678 | D28: 1883.047834 | E28: 4140.197512 | F28: 178074.2694
B29: 2013-05 | C29: 2321.30177 | D29: 1887.242183 | E29: 4208.543953 | F29: 175752.9676
B30: 2013-06 | C30: 2304.934351 | D30: 1835.263161 | E30: 4140.197512 | F30: 173448.0333
B31: 2013-07 | C31: 3028.705132 | D31: 2008.460376 | E31: 5037.165508 | F31: 188419.3281
B32: 2013-08 | C32: 2739.453663 | D32: 1953.158219 | E32: 4692.611882 | F32: 185679.8745
B33: 2013-09 | C33: 2767.771778 | D33: 1924.840103 | E33: 4692.611882 | F33: 182912.1027
B34: 2013-10 | C34: 2839.175542 | D34: 1921.782781 | E34: 4760.958323 | F34: 180072.9272
B35: 2013-11 | C35: 2825.705216 | D35: 1866.906665 | E35: 4692.611882 | F35: 177247.2219
B36: 2013-12 | C36: 3056.815219 | D36: 1912.003848 | E36: 4968.819066 | F36: 174190.4067
B37: 2014-01 | C37: 2930.540921 | D37: 1830.417402 | E37: 4760.958323 | F37: 171259.8658
B38: 2014-02 | C38: 2916.649624 | D38: 1775.962258 | E38: 4692.611882 | F38: 168343.2162
B39: 2014-03 | C39: 2946.799429 | D39: 1745.812453 | E39: 4692.611882 | F39: 165396.4167
B40: 2014-04 | C40: 3022.825185 | D40: 1738.133138 | E40: 4760.958323 | F40: 162373.5916
B41: 2014-05 | C41: 3008.480184 | D41: 1684.131697 | E41: 4692.611882 | F41: 159365.1114
B42: 2014-06 | C42: 3039.57991 | D42: 1653.031972 | E42: 4692.611882 | F42: 156325.5315
B43: 2014-07 | C43: 3335.059384 | D43: 1702.106123 | E43: 5037.165508 | F43: 152990.4721
B44: 2014-08 | C44: 3105.307145 | D44: 1587.304737 | E44: 4692.611882 | F44: 149885.1649
B45: 2014-09 | C45: 3137.407117 | D45: 1555.204765 | E45: 4692.611882 | F45: 146747.7578
B46: 2014-10 | C46: 3218.354049 | D46: 1542.604274 | E46: 4760.958323 | F46: 143529.4038
B47: 2014-11 | C47: 3203.077579 | D47: 1489.534303 | E47: 4692.611882 | F47: 140326.3262
B48: 2014-12 | C48: 3514.631963 | D48: 1522.533544 | E48: 5037.165508 | F48: 136811.6942
B49: 2015-01 | C49: 3272.341318 | D49: 1420.270563 | E49: 4692.611882 | F49: 133539.3529
B50: 2015-02 | C50: 3306.167593 | D50: 1386.444288 | E50: 4692.611882 | F50: 130233.1853
B51: 2015-03 | C51: 3340.343875 | D51: 1352.268007 | E51: 4692.611882 | F51: 126892.8414
B52: 2015-04 | C52: 3426.530533 | D52: 1334.42779 | E52: 4760.958323 | F52: 123466.3109
B53: 2015-05 | C53: 3410.26211 | D53: 1282.349772 | E53: 4692.611882 | F53: 120056.0488
B54: 2015-06 | C54: 3689.181341 | D54: 1279.637726 | E54: 4968.819066 | F54: 116366.8675
B55: 2015-07 | C55: 3536.797137 | D55: 1224.161186 | E55: 4760.958323 | F55: 112830.0703
B56: 2015-08 | C56: 3520.02029 | D56: 1172.591591 | E56: 4692.611882 | F56: 109310.05
B57: 2015-09 | C57: 3610.880897 | D57: 1150.077425 | E57: 4760.958323 | F57: 105699.1691
B58: 2015-10 | C58: 3593.699021 | D58: 1098.91286 | E58: 4692.611882 | F58: 102105.4701
B59: 2015-11 | C59: 3630.84795 | D59: 1061.763932 | E59: 4692.611882 | F59: 98474.62217
B60: 2015-12 | C60: 3984.018198 | D60: 1053.14731 | E60: 5037.165508 | F60: 94490.60397
B61: 2016-01 | C61: 3709.361873 | D61: 983.2500091 | E61: 4692.611882 | F61: 90781.2421
B62: 2016-02 | C62: 3747.705614 | D62: 944.9062677 | E62: 4692.611882 | F62: 87033.53648
B63: 2016-03 | C63: 3844.447664 | D63: 916.5106586 | E63: 4760.958323 | F63: 83189.08882
B64: 2016-04 | C64: 3826.150118 | D64: 866.4617633 | E64: 4692.611882 | F64: 79362.9387
B65: 2016-05 | C65: 4139.258601 | D65: 829.5604659 | E65: 4968.819066 | F65: 75223.6801
B66: 2016-06 | C66: 3691.956604 | D66: 792.7945342 | E66: 4484.751138 | F66: 71531.72349
B67: 2016-07 | C67: 3392.868938 | D67: 747.328574 | E67: 4140.197512 | F67: 68138.85456
B68: 2016-08 | C68: 3489.466113 | D68: 719.0778403 | E68: 4208.543953 | F68: 64649.38844
B69: 2016-09 | C69: 3464.697755 | D69: 675.4997573 | E69: 4140.197512 | F69: 61184.69069
B70: 2016-10 | C70: 3500.880377 | D70: 639.3171346 | E70: 4140.197512 | F70: 57683.81031
B71: 2016-11 | C71: 3600.555048 | D71: 607.9889056 | E71: 4208.543953 | F71: 54083.25526
B72: 2016-12 | C72: 3574.995861 | D72: 565.2016512 | E72: 4140.197512 | F72: 50508.2594
B73: 2017-01 | C73: 3612.330344 | D73: 527.867168 | E73: 4140.197512 | F73: 46895.92906
B74: 2017-02 | C74: 3650.05487 | D74: 490.1426418 | E74: 4140.197512 | F74: 43245.87419
B75: 2017-03 | C75: 3753.930975 | D75: 454.6129777 | E75: 4208.543953 | F75: 39491.94321
B76: 2017-04 | C76: 3727.328303 | D76: 412.8692092 | E76: 4140.197512 | F76: 35764.61491
B77: 2017-05 | C77: 3833.455226 | D77: 375.0887274 | E77: 4208.543953 | F77: 31931.15969
B78: 2017-06 | C78: 13806.23782 | D78: 333.9596871 | E78: 14140.19751 | F78: 18124.92186
B79: 2017-07 | C79: 552.2924285 | D79: 189.3754633 | E79: 741.6678918 | F79: 17572.62943
B80: 2017-08 | C80: 420.4624003 | D80: 184.512609 | E80: 604.9750093 | F80: 17152.16703
B81: 2017-09 | C81: 424.8772555 | D81: 180.0977538 | E81: 604.9750093 | F81: 16727.28978
B82: 2017-10 | C82: 429.3384666 | D82: 175.6365427 | E82: 604.9750093 | F82: 16297.95131
B83: 2017-11 | C83: 433.8465205 | D83: 171.1284888 | E83: 604.9750093 | F83: 15864.10479
B84: 2017-12 | C84: 438.401909 | D84: 166.5731003 | E84: 604.9750093 | F84: 15425.70288
B85: 2018-01 | C85: 443.0051291 | D85: 161.9698802 | E85: 604.9750093 | F85: 14982.69775
B86: 2018-02 | C86: 447.6566829 | D86: 157.3183264 | E86: 604.9750093 | F86: 14535.04107
B87: 2018-03 | C87: 452.3570781 | D87: 152.6179312 | E87: 604.9750093 | F87: 14082.68399
B88: 2018-04 | C88: 457.1068274 | D88: 147.8681819 | E88: 604.9750093 | F88: 13625.57716
B89: 2018-05 | C89: 461.9064491 | D89: 143.0685602 | E89: 604.9750093 | F89: 13163.67071
B90: 2018-06 | C90: 466.7564668 | D90: 138.2185425 | E90: 604.9750093 | F90: 12696.91425
B91: 2018-07 | C91: 471.6574097 | D91: 133.3175996 | E91: 604.9750093 | F91: 12225.25684
B92: 2018-08 | C92: 476.6098125 | D92: 128.3651968 | E92: 604.9750093 | F92: 11748.64703
B93: 2018-09 | C93: 342.5689519 | D93: 123.3607938 | E93: 465.9297457 | F93: 11406.07807
B94: 2018-10 | C94: 346.1659259 | D94: 119.7638198 | E94: 465.9297457 | F94: 11059.91215
B95: 2018-11 | C95: 349.8006681 | D95: 116.1290775 | E95: 465.9297457 | F95: 10710.11148
B96: 2018-12 | C96: 353.4735752 | D96: 112.4561705 | E96: 465.9297457 | F96: 10356.6379
B97: 2019-01 | C97: 357.1850477 | D97: 108.744698 | E97: 465.9297457 | F97: 9999.452856
B98: 2019-02 | C98: 360.9354907 | D98: 104.994255 | E98: 465.9297457 | F98: 9638.517366
B99: 2019-03 | C99: 364.7253133 | D99: 101.2044323 | E99: 465.9297457 | F99: 9273.792052
B100: 2019-04 | C100: 368.5549291 | D100: 97.37481655 | E100: 465.9297457 | F100: 8905.237123
B101: 2019-05 | C101: 372.4247559 | D101: 93.50498979 | E101: 465.9297457 | F101: 8532.812367
B102: 2019-06 | C102: 376.3352158 | D102: 89.59452986 | E102: 465.9297457 | F102: 8156.477152
B103: 2019-07 | C103: 380.2867356 | D103: 85.64301009 | E103: 465.9297457 | F103: 7776.190416
B104: 2019-08 | C104: 384.2797463 | D104: 81.64999937 | E104: 465.9297457 | F104: 7391.91067
B105: 2019-09 | C105: 388.3146837 | D105: 77.61506203 | E105: 465.9297457 | F105: 7003.595986
B106: 2019-10 | C106: 392.3919878 | D106: 73.53775785 | E106: 465.9297457 | F106: 6611.203998
B107: 2019-11 | C107: 396.5121037 | D107: 69.41764198 | E107: 465.9297457 | F107: 6214.691894
B108: 2019-12 | C108: 400.6754808 | D108: 65.25426489 | E108: 465.9297457 | F108: 5814.016414
B109: 2020-01 | C109: 404.8825733 | D109: 61.04717234 | E109: 465.9297457 | F109: 5409.13384
B110: 2020-02 | C110: 5409.13384 | D110: 56.79590532 | E110: 5465.929746 | F110: 4.547473509e-12
B111: (blank)
B112: Grand Total | C112: 218000 | D112: 84727.81196 | E112: 302727.812 | F112: 7880379.627

Sheet repayment calendar
B2: Repayment Calendar
B4: Month | C4: 2013-03
D6: Values
B7: Payment Date | C7: Loan Name | D7: Principal Amount | E7: Interest Amount | F7: Payment Amount
B8: 2013-03-06 | C8: Inventory Loan | D8: 39.42129472 | E8: 28.92514652 | F8: 68.34644124
B9: 2013-03-13 | C9: Inventory Loan | D9: 39.51655384 | E9: 28.82988739 | F9: 68.34644124
B10: 2013-03-20 | C10: Inventory Loan | D10: 39.61204316 | E10: 28.73439808 | F10: 68.34644124
B11: 2013-03-26 | C11: Hire Purchase 1 | D11: 69.78454025 | E11: 69.26072337 | F11: 139.0452636
B12: 2013-03-27 | C12: Inventory Loan | D12: 39.70776322 | E12: 28.63867802 | F12: 68.34644124
B13: 2013-03-04 | C13: Lease 2 - Truck | D13: 1833.849089 | E13: 1427.987649 | F13: 3261.836738
B14: 2013-03-17 | C14: Lease 2 - Vehicle | D14: 171.9297457 | E14: 294 | F14: 465.9297457
B15: Grand Total | D15: 2233.821029 | E15: 1906.376482 | F15: 4140.197512

Sheet charts
